Workbook

Sheet GUIDE D'UTILISATION
A1: GUIDE D'UTILISATION DU PROGRAMME
B3: 1) Sommaire:
B4: Le sommaire présente l'ensembles des états pris en compte dans ce programme
B5: 2) INFORMATIONS
B6: Entrez toutes les informations sur votre entreprise dans la feuil nommée"INFORMATIONS"
B7: NB: Les états sont protégés par des mots de passe et ne permettent pas d'y entrer directement des informations
B8: 3) "BALANCE N" et "BALANCE N-1"
B9: Copiez et Collez vos "Balances à 6 colonnes" de l'année N et N-1 dans les feuil nommées "Balance N "et "Balance N-1"
B10: NB: Après collage des Balances
B11: a) Les lignes en rouge indiquent que les comptes utilisés ne sont pas conforme au nouveau plan comptable SYSCOHADA
B12: b) Les lignes en orange indiquent que les soldes des comptes selectionnés ne sont pas corrects
B13: AVERTISSEMENT!!!!!
B14: Veuillez à ne pas opérer des corrections directement dans les "Balance N et N-1".
B15: S'il y a lieu de procéder à des corrections eventuelles, reportez vous à votre comptabilité avant de reexporter à nouveau vos Balances
B16: c) Les états sont générés automatiquements à partir des données des Balances N & N-1
B17: Sau les case en bleu | E17: à compléter manuellement
B18: d) Il est absolument recommandé de contrôler vos états pour s'assurer qu'ils sont conforme à vos attentes
B19: e) Les quelques états de la liasse comptable à completer manuellement
B20: R2 | D20: Note 15B
B21: R3 | D21: Note 16B
B22: Note 1 | D22: Note 16B bis
B23: Note 3A; 3B; 3D | D23: Note 16C
B24: Note 8A | D24: Note 27B
B25: Note 12 | D25: Note 31
B26: Note 13 | D26: Note 32
B27: Note 15A | D27: Note 33
B28: NB: Veuillez à renseigner les commentaires en bas de page de chaque note. Les parties ne sont pas protégées
B30: f) Les notes à joindre à la liasse SYSCOHADA, sont celle qui sont remplies
B32: e) Les quelques états de la liasse fiscale à completer manuellement
B33: Toutes les annexes extra comptables à joindre à la liasse fiscale
B35: 4) CALCULS FISCAUX
B36: a) Veuillez à bien remplir correctement les paramêtres de calcul de l'impôt de votre entreprise dans la feuil nommée "INFORMATIONS"
B37: Notamment: | D37: - Régime d'imposition | F37: (RSI ou RNI)
D38: - Forme Juridique | F38: (Société ou Entreprise individuelle)
D39: - Préciser si l'entreprise est à son premier exercice oui ou non
D40: - Préciser si l'entreprise est adhérent du Centre de Gestion Agrée (CGA) oui ou non
B41: Notez bien que ces informations sont très capital pour le calacul de l'impôt
B42: b) Les Réintégrations et les déductions fiscales sont à saisir dans cette feuille, veuillez à bien remplir dans les champs appropriés
B43: c) Veuillez à renseigner les déficits antérieur reportable dans la feuil "Calculs Fiscaux"
B44: d) Veuillez à saisir les acomptes provisionnels (Sociétés) ou le Minimum Forfetaire de Perception (Entreprises individuelles)
B45: declarés de l'exercice dans cette feuil "CALCULS FISCAUX"
B46: e) Le Bordereau Avis de Versement (BAV), les liasses fiscales (RSI et RNI) sont générés automatiquement à l'issu des calculs
B47: f) L'impôt est reporté automatiquement dans le Compte de Resultat dans la "Rubrique impôt sur le resultat" et
B48: dans le Bilan dans la Rubrique "Dettes fiscales et sociales"
B49: g) Les états fiscaux disponibles dans ce programme sont "La liasse fiscales RNI" et "La liasse fiscale RSI"
B50: à vous de choisir le système qui s'applique votre entreprise
B51: h) Après l'édition de vos états, "Veuillez compléter l'écriture de l'impôt dans votre comptabilité avant de clôturer le dossier"
E53: AVERTISSEMENT:
B54: Vérifiez soigneusement tous les états après édition!!!!!!!!!!!!
B56: Nous espérons que vous serez satisfaits de programme automatisé.
A58: © Copyright----SAM CONSEILS
F59: Tel:(+226) 25 33 28 78
F60: WhatsApp: (+226) 78 30 91 18
F61: Email: contact@samconseils.com
F62: Site Web: www.samconseils.com

Sheet SOMMAIRE
A4: N° | B4: INTITULE | C4: RENVOIE | D4: N° | E4: INTITULE | F4: RENVOIE
A5: 1 | B5: GUIDE D'UTILISATION | C5: Guide | D5: 46 | E5: Chiffre d'affaires et autres produits | F5: NOTE 21
A6: 2 | B6: SOMMAIRE | C6: Sommaire | D6: 47 | E6: Achats | F6: NOTE 22
A7: 3 | B7: INFORMATIONS | C7: Informations | D7: 48 | E7: Transports | F7: NOTE 23
A8: 4 | B8: Plage de collage Balance générale de l'exercice N | C8: Balance n | D8: 49 | E8: Services extérieurs | F8: NOTE 24
A9: 5 | B9: Plage de collageBalance générale de l'exercice N-1 | C9: Balance n-1 | D9: 50 | E9: Impôts et taxes | F9: NOTE 25
A10: 6 | B10: Calculs Fiscaux | C10: Entité | D10: 51 | E10: Autres charges | F10: NOTE 26
A11: 7 | B11: LIASSE SYSCOHADA | C11: Page de garde | D11: 52 | E11: Charges de personnel | F11: NOTE 27 A
A12: 8 | B12: PAGE DE GARDE LIASSE | C12: Liasse SYSC | D12: 53 | E12: Effectifs, masse salariale et personnel extérieur | F12: NOTE 27 B
A13: 9 | B13: Tables des codes | C13: NOTE 36 | D13: 54 | E13: Provisions et dépréciations inscrites au bilan | F13: NOTE 28
A14: 10 | B14: Fiche d'identification et renseignements divers 1 | C14: Fiche R1 | D14: 55 | E14: Charges et revenus financiers | F14: NOTE 29
A15: 11 | B15: Fiche d'identification et renseignements divers 2 | C15: Fiche R2 | D15: 56 | E15: Autres charges et produits HAO | F15: NOTE 30
A16: 12 | B16: Fiche d'identification et renseignements divers 3 | C16: Fiche R3 | D16: 57 | E16: Répartition du résultat et autres éléments caractéristiques des cinq derniers années | F16: NOTE 31
A17: 13 | B17: Fiche recapitulative des Notes annexes présentées | C17: Fiche R4 | D17: 58 | E17: Production de l'exercice | F17: NOTE 32
A18: 14 | B18: Bilan en paysage | C18: Modèle 1 | D18: 59 | E18: Achats destines a la production | F18: NOTE 33
A19: 15 | B19: Compte de résultat | C19: Modèle 4 | D19: 60 | E19: Fiche de synthèse des principaux indicateurs financiers | F19: NOTE 34
A20: 16 | B20: Tableau des flux de trésorerie | C20: Modèle 5 | D20: 61 | E20: Liste des informations sociales, environnementales et sociétales à fournir | F20: NOTE 35
A21: 17 | B21: Dettes garanties par des suretés réelles | C21: NOTE 1 | D21: 62 | E21: Etats Supplémentaires-Direction Générale des Impôts | F21: GARDE(DGI)
A22: 18 | B22: Informations obligatoires | C22: NOTE 2 | D22: 63 | E22: FICHE RECAPITULATIVE DES ETATS SUPPLEMENTAIRES DGI PRESENTES (1) | F22: SUPPL DGI
A23: 19 | B23: Immobilisation brute | C23: NOTE 3A | D23: 64 | E23: ETAT SUPPLEMENTAIRE DIRECTION GENERALE DES IMPOTS/COMPTABILITE NATIONALE | F23: SUPPL1-Charg
A24: 20 | B24: Biens pris en location acquisition | C24: NOTE 3 B | D24: 65 | E24: ETAT SUPPLEMENTAIRE DIRECTION GENERALE DES IMPOTS/COMPTABILITE NATIONALE | F24: SUPPL2-Prod
A25: 21 | B25: Immobilisations : amortissements | C25: NOTE 3 C | D25: 66 | E25: ETAT SUPPLEMENTAIRE DIRECTION GENERALE DES IMPOTS/COMPTABILITE NATIONALE | F25: SUPPL3-TVA(1)
A26: 22 | B26: Immobilisations : plus-values et moins-value de cession | C26: NOTE 3 D | D26: 67 | E26: ETAT SUPPLEMENTAIRE COMPTABILITE NATIONALE | F26: SUPPL4-TVA(2)
A27: 23 | B27: Informations sur les réévaluations effectuées par l'entité | C27: NOTE 3 E | D27: 68 | E27: ETAT SUPPLEMENTAIRE : ELEMENTS STATISTIQUES UEMOA | F27: SUPPL5
A28: 24 | B28: Tableau d'étalement des charges immobilisées | C28: NOTE 3 F | D28: 69 | E28: REPARTITION DU RESULTAT FISCAL DES SOCIETES DE PERSONNES | F28: SUPPL6
A29: 25 | B29: Immobilisations financières | C29: NOTE 4 | D29: 70 | E29: COMPLEMENT INFORMATIONS ENTITES INDIVIDUELLES | F29: SUPPL7
A30: 26 | B30: Actif circulant et dettes circulantes HAO | C30: NOTE 5 | D30: 71 | E30: TABLEAU DES IMMOBILISATIONS ET DES AMORTISSEMENTS | F30: SUPPL8
A31: 27 | B31: Stocks et encours | C31: NOTE 6 | D31: 72 | E31: DETAIL DES FRAIS ACCESSOIRES SUR ACHATS | F31: SUPPL9
A32: 28 | B32: Clients | C32: NOTE 7 | D32: 73 | E32: DETAIL DES AVANTAGES EN NATURE | F32: SUPPL10
A33: 29 | B33: Autres créances | C33: NOTE 8 | D33: 74 | E33: CREANCES & DETTES ECHUES DE L'EXERCICE | F33: SUPPL11
A34: 30 | B34: Titres de placement | C34: NOTE 9 | D34: 75 | E34: ETAT ANNUEL DES SALAIRES | F34: SUPPL12
A35: 31 | B35: Valeurs à encaisser | C35: NOTE 10 | D35: 76 | E35: ETAT ANNUEL DES COMMISSIONS, VACATIONS, COURTAGES, RISTOURNES, HONORAIRES ET DROITS D'AUTEUR | F35: SUPPL13
A36: 32 | B36: Disponibilités | C36: NOTE 11 | D36: 77 | E36: ETAT ANNUEL DES REMUNERATIONS VERSEES AUX ASSOCIES ET DES PARTS DE BENEFICES SOCIAUX | F36: SUPPL14
A37: 33 | B37: Ecarts de conversion et transferts de charges | C37: NOTE 12 | D37: 78 | E37: ETAT DES LOYERS PASSES EN CHARGES | F37: SUPPL15
A38: 34 | B38: Capital : valeur nominale des actions ou parts | C38: NOTE 13 | D38: 79 | E38: ETAT ANNUEL DES HONORAIRES RETROCEDES POUR DETERMINATION DE L'IBNC | F38: SUPPL16
A39: 35 | B39: Primes et réserves | C39: NOTE 14 | D39: 80 | E39: LISTE DES PRINCIPAUX CLIENTS | F39: SUPPL17
A40: 36 | B40: Subventions et provisions règlementées | C40: NOTE 15 A | D40: 81 | E40: LISTE DES PRINCIPAUX FOURNISSEURS | F40: SUPPL18
A41: 37 | B41: Autres fonds propres | C41: NOTE 15 B | D41: 82 | E41: TABLEAU DE DETERMINATION DU RESULTAT FISCAL | F41: SUPPL19
A42: 38 | B42: Dettes financières et ressources assimilées | C42: NOTE 16A | D42: 83 | E42: BORDEREAU AVIS DE VERSEMENT | F42: SUPPL20 BAV
A43: 39 | B43: Engagements de retraite et avantages assimiles (méthode actuarielle) | C43: NOTE 16 B | D43: 84 | E43: DECLARATION DES PRELEVEMENTS ET RETENUES A LA SOURCE SUPPORTES A TITRE D'ACOMPTE | F43: PREL ET RETENU
A44: 40 | B44: Engagements de retraite et avantages assimiles (méthode actuarielle) | C44: NOTE 16 B bis | D44: 85 | E44: RELEVE DES PRELEVEMENTS ACQUITES SUR LES IMPORTATIONS DE BIENS | F44: ANNEX 1
A45: 41 | B45: Actifs et passifs éventuels | C45: NOTE 16 C | D45: 86 | E45: ETAT DETAILLE DES PRELEVEMENTS SUPPORTES EN REGIME INTERIEUR | F45: ANNEX 2
A46: 42 | B46: Fournisseurs d'exploitation | C46: NOTE 17 | D46: 87 | E46: ETAT DES RETENUES SUPPORTEES AU COURS DE LA PERIODE A LAQUELLE SE RAPPORTE LA DECLARATION | F46: ANNEX 3
A47: 43 | B47: Dettes fiscales et sociales | C47: NOTE 18 | D47: 88 | E47: DETERMINATION DU RESULTAT FISCAL ET DE L'IMPOT SUR LES SOCIETES (IS) | F47: PAGE GARDE IS
A48: 44 | B48: Autres dettes et provisions pour risques a court terme | C48: NOTE 19 | D48: 89 | E48: DETERMINATION DU RESULTAT FISCAL ET DE L'IMPOT SUR LES BENEFICES INDUSTRIELS OU COMMERCIAUX | F48: PAGE GARDE IBICA
A49: 45 | B49: Banques, crédit d'escompte et de trésorerie | C49: NOTE 20 | D49: 90 | E49: DETERMINATION DU RESULTAT FISCAL ET DE L'IMPOT SUR LES DES BENEFICES NON COMMERCIAUX (IBNC) | F49: PAGE GARDE IBNC
A50: © SAM Conseils: +22625332878- contact@samconseils.com

Sheet INFORMATIONS
A2: Pays: | B2: BURKINA FASO | D2: BF
A3: Ministère: | B3: MINISTERE DE L'ECONOMIE, DES FINANCES ET DU DEVELOPPEMENT
A4: Direction: | B4: DIRECTION GENERALE DES IMPOTS
A5: Centre de dépôt des états financiers: | B5: DME I
A6: Régime d'imposition | B6: RSI | C6: =IF(B6="RNI","Régime Normal d'Imposition","Régime Simplifié d'Imposition") -> Régime Simplifié d'Imposition
A7: Premier Exercice | B7: NON
A8: Adhérent CGA | B8: NON
A10: Désignation de l'entreprise : | B10: SAM CONSEILS
A11: Sigle : | B11: SAM CONSEILS
A12: Forme juridique | B12: INDIVIDUELLE
A13: Nom & Prénom de l'exploitant | B13: SAMBA BONIFACE
A14: Nationalité
A15: Date du debut d'activité | B15: 2012-12-26
A16: Localisation | B16: 15 | D16: 18 | E16: 05 | F16: AW
B17: Secteur | C17: Rue | D17: Parcelle | E17: Lot | F17: Section
A18: Ville | B18: Ouagadougou
A19: Boîte Postale: | B19: 02 | C19: BP | D19: 5358 | E19: OUAGA | F19: 02
B20: 1er code | D20: numéro | E20: Ville | F20: 2ème code
A21: Téléphone
A22: Email
A23: Régistre de commerce (RCCM)
A24: Code contribuable (IFU) | B24: 00084404X | D24: N° de télédéclarant (NES): | F24: AMMTB89
A25: Immatriculation sociale (CNSS)
A26: CODE ACTIVITES PRINCIPALES
A27: Désignation de l'activité principale
A28: CODE ACTIVITES SECONDAIRES
A30: EXERCICE COMPTABLE: | B30: 2018
A31: DU | B31: 2018-01-01 | C31: au | D31: 2018-12-31 | E31: NOMBRE DE MOIS | F31: 12
A32: DATE D'ARRETE DES COMPTES | B32: 2018-12-31
A33: EXERCICE PRECEDENT | B33: 2017-12-31
A34: DU | B34: 2017-01-01 | C34: au | D34: 2017-12-31 | E34: NOMBRE DE MOIS | F34: 12
A36: Domiciliations bancaires:
B37: Banque 1 | D37: Numéro de compte
B39: Banque 2 | D39: Numéro de compte
B41: Banque 3 | D41: Numéro de compte
B43: Banque 4 | D43: Numéro de compte
A45: Nom & Prénom(s) du signataire
A46: Qualité du signataire
A47: Date de signature
A48: Nom, adresse et qualité de la personne à contacter en cas de demande d'informations complémentaires
A49: Nom du comptable de l'entité
A50: Nom et adresse du conseil
A54: CHARGES DEDUCTIBLES : LIMITATION (Réintégration IS et BIC)
A56: D. Frais de siège et assistance technique
A58: Art.62.- Est déductible, dans la limite de 10 % des frais généraux, le montant cumulé des frais suivants :
A59: - la quote-part des frais de siège incombant aux entreprises exploitées au Burkina Faso
A60: - les frais d’assistance technique, comptable et financière ainsi que les frais d’études et assimilés, versés à des entreprises liées au sens de l’article 66.
A62: E. Commissions et courtages
A63: Art.63.-Les commissions ou courtages portant sur les marchandises achetées pour le compte d’entreprises exploitées au Burkina Faso sont admises en déduction du bénéfice imposable dans la limite de 5 % du montant des achats effectués par les centrales d’achats ou les intermédiaires.
A65: F. Redevance
A66: Art.64.- Les redevances de cession ou concession de licences d’exploitation, de brevets d’invention, de marques de fabrique, procédés ou formules de fabrication et autres droits analogues en cours de validité sont déductibles dans la limite de 3,5 % du chiffre d’affaires hors taxes.
A67: Toutefois, les sommes payées ne sont admises en déduction du bénéfice que si le débiteur apporte la preuve que ces dépenses correspondent à des opérations réelles et qu’elles ne présentent pas de caractère exagéré.
A68: Cette limitation ne s’applique pas aux sommes versées aux entreprises ne participant pas directement ou indirectement à la gestion ou au capital d’une entreprise située au Burkina Faso.
A70: I. Dépenses locatives
A71: Art.67 :
A72: 1) Le montant des loyers des locaux professionnels figurant dans le contrat de bail dûment enregistré est déductible, à condition que le relevé détaillé des loyers prévu à l’article 120 soit effectivement joint à la déclaration annuelle des résultats.
A73: 2) Lorsqu’un associé dirigeant personne physique détient au moins 10 % des parts ou des actions d’une société, le produit de ses locations de biens meubles consenties à cette société n’est pas déductible.
A75: J. Primes d’assurances
A76: Art.68.- Les primes d’assurance sont déductibles à la condition qu’elles couvrent des risques dont la réalisation entraîne une diminution de l’actif net de l’entreprise.
A77: - les primes versées aux sociétés d’assurance burkinabè en raison de contrats d’assurance maladie conclus au profit de l’ensemble du personnel ou d’au moins une ou plusieurs catégories du personnel ne sont déductibles que dans la limite de 5 % de la masse salariale du personnel effectivement assuré.
A79: K. Frais d’hôtels et de restaurants
A80: Art.69.- Les frais d’hôtels et de restaurants justifiés par des factures sont admis en déduction dans la limite de cinq pour mille (5 ‰) du montant du chiffre d’affaires hors taxes.
A81: Cette limite ne s’applique pas :
A82: - aux frais engagés directement pour l’exécution d’un contrat dans une région administrative ou dans un pays où le contribuable n’a pas d’installation fixe ;
A83: - aux frais engagés dans le cadre du détachement ou de l’expatriation du personnel de la société.
A85: L. Frais publicitaires
A86: Art.70.- Les cadeaux et objets spécialement conçus pour la publicité sont déductibles s’ils sont justifiés par des factures et dans les limites de deux pour mille (2 ‰) du chiffre d’affaires hors taxe.
A88: M. Libéralités, dons, subventions
A89: Art.71.- Les versements effectués au profit des fondations, des associations sportives et culturelles, d’œuvres ou organismes d’intérêt général à caractère philanthropique, éducatif, scientifique, social reconnus d’utilité publique par l’autorité compétente, sont déductibles dans la limite de trois pour mille (3 ‰) du chiffre d’affaires hors taxe.
A90: Le bénéfice de cette disposition est subordonné à la double condition que :
A91: - soit joint à la déclaration des résultats un relevé indiquant les montants, la date des versements et l’identité des bénéficiaires ;
A92: - le résultat net imposable avant déduction de ces versements soit positif.
A94: N. Charges financières
A95: Art.72.- 1) Sont notamment déductibles au titre des charges financières :
A96: - les intérêts servis aux associés à raison des sommes versées par eux dans la caisse sociale, en sus de leur part de capital, quelle que soit la forme de la société, dans la limite de ceux calculés au taux d’intérêt légal majoré de deux (2) points ;
A97: - les intérêts des emprunts réalisés par les sociétés auprès des personnes physiques ou morales non domiciliées ou non résidentes au Burkina Faso, autres que les banques et établissements financiers, à condition que ces emprunts soient justifiés et ce, dans la limite du taux d’intérêt légal.
A98: 3) Cette déduction est subordonnée à la condition que le capital de la société ait été entièrement libéré, qu’il s’agisse de constitution de société ou d’augmentation de capital.
A99: 4) Le montant total des intérêts déductibles ne peut pas excéder 15 % de l’excédent brut d’exploitation ; cette disposition ne s’applique pas aux banques et aux établissements financiers.
A100: O. Impôts, taxes, amendes et pénalités diverses
A101: Art.74.- 1) Sont déductibles les impôts à la charge de l’entreprise mis en recouvrement au cours de l’exercice, à l’exception de l’impôt sur les sociétés et du minimum forfaitaire de perception.
A102: 3) Toutefois, les montants des transactions, amendes, confiscations, pénalités et majorations de toute nature mises à la charge des contrevenants à la législation fiscale, douanière et sociale, à la réglementation des prix, de circulation ou de consommation et, d’une manière générale, aux lois et règlements de l’État ne sont pas admis en déduction des bénéfices soumis à l’impôt.
A104: P. Amortissements
A105: 2) Ne sont pas déductibles, les amortissements se rapportant à des biens meubles et immeubles inscrits à l’actif du bilan de la société et n’ayant pas fait l’objet de mutation au nom de la société.
A106: Toutefois, le locataire peut déduire les amortissements des biens loués dans le cadre d’un contrat de crédit-bail ou de location-vente. La durée d’amortissement de ces biens est réputée coïncider avec leur durée d’utilité.
A107: 3) Les dépenses d’acquisition inférieures à cent mille (100 000) francs CFA sont admises en charges déductibles au titre de l’exercice d’acquisition.
A108: Q. Provisions
A109: Art.79.- Sont admises en déduction, les provisions constituées en vue de faire face à des pertes ou charges nettement précisées et que les événements en cours rendent probables, à condition qu’elles aient été effectivement constatées dans les écritures de l’exercice et figurent au relevé des provisions.
A110: Art.81.- Ne sont pas admises en déduction :
A111: - la provision pour propre assureur constituée par une entreprise ;
A112: - la provision pour congés payés :
A113: - la provision pour indemnités de départ à la retraite ;
A114: - la provision pour dépréciation des immobilisations amortissables ;
A115: - la provision pour pertes de change.
A117: R. Reports déficitaires
A118: Art.83.- Le déficit constaté au cours d’un exercice est considéré comme une charge déductible du bénéfice imposable de l’exercice suivant.
A119: Si ce bénéfice n’est pas suffisant pour que la déduction puisse être intégralement opérée, il est procédé à un report déficitaire sur les exercices suivants jusqu’au cinquième exercice qui suit l’exercice déficitaire.
A120: Les amortissements régulièrement comptabilisés mais réputés différés en période déficitaire sont considérés comme des déficits ordinaires.
A121: S. Dépenses somptuaires
A122: Art.84.- Sont exclues des charges déductibles, les dépenses de toute nature ayant trait à l’exercice de la chasse et de la pêche sportives, à l’utilisation des bateaux de plaisance, d’aéronefs de tourisme ou de résidences d’agrément et de toutes autres dépenses à caractère somptuaire, que ce soit sous la forme d’allocations forfaitaires ou de remboursement de frais.
A123: CONDITIONS SPECIFIQUES DE DETERMINATION DU BIC
A124: Art.6.- Le bénéfice imposable est déterminé dans les mêmes conditions que celles prévues en matière d’impôt sur les sociétés.
A125: Art.7.- À l’exclusion des revenus des capitaux mobiliers et des produits de la location des immeubles bâtis et non bâtis qui ne sont pas inscrits à l’actif du bilan de l’entreprise, les produits taxables sont ceux visés à l’article 51.
A126: Art.11.- En ce qui concerne les dépenses mixtes qui se rapportent à la fois à l’exercice de la profession et aux besoins personnels de l’exploitant, il y a lieu de faire une ventilation en vue de déterminer la fraction desdites dépenses qui se rapporte à l’exploitation. À défaut de pouvoir déterminer précisément cette fraction, il est retenu forfaitairement deux tiers (2/3) du montant desdites charges.

Sheet PLAN COMPTABLE (hidden)
A1: PLAN COMPTABLE DE REFERENCE
A4: 1011 | B4: Capital souscrit, non appelé | C4: C
A5: 1012 | B5: Capital souscrit, appelé, non versé | C5: C
A6: 1013 | B6: Capital souscrit, appelé, versé, non amorti | C6: C
A7: 1014 | B7: Capital souscrit, appelé, versé, amorti | C7: C
A8: 1018 | B8: Capital souscrit soumis à des conditions particulières | C8: C
A9: 1021 | B9: Dotation initiale | C9: C
A10: 1022 | B10: Dotations complémentaires | C10: C
A11: 1028 | B11: Autres dotations | C11: C
A12: 103 | B12: CAPITAL PERSONNEL | C12: R
A13: 1041 | B13: Apports temporaires | C13: C
A14: 1042 | B14: Opérations courantes | C14: C
A15: 1043 | B15: Rémunérations, impôts et autres charges personnelles | C15: C
A16: 1047 | B16: Prélèvements d'autoconsommation | C16: C
A17: 1048 | B17: Autres prélèvements | C17: C
A18: 1051 | B18: Primes d'émission | C18: C
A19: 1052 | B19: Primes d'apport | C19: C
A20: 1053 | B20: Primes de fusion | C20: C
A21: 1054 | B21: Primes de conversion | C21: C
A22: 1058 | B22: Autres primes | C22: C
A23: 106 | B23: ECARTS DE REEVALUATION | C23: R
A24: 1061 | B24: Ecarts de réévaluation légale | C24: R
A25: 1062 | B25: Ecarts de réévaluation libre | C25: R
A26: 109 | B26: ACTIONNAIRES, CAPITAL SOUSCRIT, NON APPELE | C26: R
A27: 111 | B27: RESERVE LEGALE | C27: R
A28: 112 | B28: RESERVES STATUTAIRES OU CONTRACTUELLES | C28: R
A29: 1131 | B29: Réserves de plus-values nettes à long terme | C29: C
A30: 1132 | B30: Réserves d'attribution gratuite d'actions au personnel salarié et aux dirigeants | C30: C
A31: 1133 | B31: Réserves consécutives à l'octroi de subventions d'investissement | C31: C
A32: 1134 | B32: Réserves des valeurs mobilières donnant accès au capital | C32: C
A33: 1138 | B33: Autres réserves réglementées | C33: C
A34: 1181 | B34: Réserves facultatives | C34: C
A35: 1188 | B35: Réserves diverses | C35: C
A36: 121 | B36: REPORT A NOUVEAU CREDITEUR | C36: R
A37: 1291 | B37: Perte nette à reporter | C37: C
A38: 1292 | B38: Perte - Amortissements réputés différés | C38: C
A39: 1301 | B39: Résultat en instance d'affectation: Bénéfice | C39: C
A40: 1309 | B40: Résultat en instance d'affectation: Perte | C40: C
A41: 131 | B41: RESULTAT NET : BENEFICE | C41: R
A42: 132 | B42: MARGE COMMERCIALE (M.C) | C42: R
A43: 133 | B43: VALEUR AJOUTEE (V.A.) | C43: R
A44: 134 | B44: EXCEDENT BRUTE D'EXPLOITATION (E.B.E.) | C44: R
A45: 135 | B45: RESULTAT D'EXPLOITATION (R.E.) | C45: R
A46: 136 | B46: RESULTAT FINANCER (R.F.) | C46: R
A47: 137 | B47: RESULTAT DES ACTIVITES ORDINAIRES (R.A.O.) | C47: R
A48: 1381 | B48: Résultat de fusion | C48: C
A49: 1382 | B49: Résultat d'apport partiel d'actif | C49: C
A50: 1383 | B50: Résultat de scission | C50: C
A51: 1384 | B51: Résultat de liquidation | C51: C
A52: 139 | B52: RESULTAT NET : PERTE | C52: R
A53: 1411 | B53: Etat | C53: C
A54: 1412 | B54: Régions | C54: C
A55: 1413 | B55: Départements | C55: C
A56: 1414 | B56: Communes et collectivités publiques décentralisées | C56: C
A57: 1415 | B57: Enttités publiques ou mixtes | C57: C
A58: 1416 | B58: Entités et organismes privés | C58: C
A59: 1417 | B59: Organismes internationaux | C59: C
A60: 1418 | B60: Autres | C60: C
A61: 148 | B61: AUTRES SUBVENTIONS D'INVESTISSEMENT | C61: R
A62: 151 | B62: AMORTISSEMENTS DEROGATOIRES | C62: R
A63: 152 | B63: PLUS-VALUES DE CESSION A REINVESTIR | C63: R
A64: 1531 | B64: Fonds national | C64: C
A65: 1532 | B65: Prélèvement pour le budget | C65: C
A66: 154 | B66: PROVISIONS SPECIALE DE REEVALUATION | C66: R
A67: 1551 | B67: Reconstitution des gisements miniers et pétroliers | C67: C
A68: 1561 | B68: Hausse de prix | C68: C
A69: 1562 | B69: Fluctuation des cours | C69: C
A70: 157 | B70: PROVISIONS POUR INVESTISSEMENT | C70: R
A71: 158 | B71: AUTRES PROVISIONS ET FONDS REGLEMENTES | C71: R
A72: 1611 | B72: Emprunts obligataires ordinaires | C72: C
A73: 1612 | B73: Emprunts obligataires convertibles en actions | C73: C
A74: 1613 | B74: Emprunts obligataires remboursables en actions | C74: C
A75: 1618 | B75: Autres emprunts obligataires | C75: C
A76: 162 | B76: EMPRUNTS ET DETTES AUPRES DES ETABLISSEMENTS DE CREDIT | C76: R
A77: 163 | B77: AVANCES RECUES DE L'ETAT | C77: R
A78: 164 | B78: AVANCES RECUES ET COMPTES COURANTS BLOQUES | C78: R
A79: 1651 | B79: Dépôts | C79: C
A80: 1652 | B80: Cautionnements | C80: C
A81: 1661 | B81: sur emprunts obligataires | C81: C
A82: 1662 | B82: sur emprunts et dettes auprès des établissements de crédit | C82: C
A83: 1663 | B83: sur avances reçues de l'Etat | C83: C
A84: 1664 | B84: sur avances reçues et comptes courants bloqués | C84: C
A85: 1665 | B85: sur dépôts et cautionnements reçus | C85: C
A86: 1667 | B86: sur avances assorties de conditions particulières | C86: C
A87: 1668 | B87: sur autres emprunts et dettes | C87: C
A88: 1671 | B88: Avances bloquées pour augmentation de capital | C88: C
A89: 1672 | B89: Avances conditionnées par l'Etat | C89: C
A90: 1673 | B90: Avances conditionnées par les autres organismes africains | C90: C
A91: 1674 | B91: Avances conditionnées par les organismes internationaux | C91: C
A92: 1681 | B92: Rentes viagères capitalisées | C92: C
A93: 1682 | B93: Billets de fonds | C93: C
A94: 1683 | B94: Dettes consécutives à des titres empruntés | C94: C
A95: 1684 | B95: Emprunts participatifs | C95: C
A96: 1685 | B96: Participation des travailleurs aux bénéfices | C96: C
A97: 1686 | B97: Emprunts et dettes contractés auprès des autres tiers | C97: C
A98: 172 | B98: DETTES DE LOCATION ACQUISITION/CREDIT-BAIL IMMOBILIER | C98: R
A99: 173 | B99: DETTES DE LOCATION ACQUISITION/CREDIT-BAIL MOBILIER | C99: R
A100: 174 | B100: DETTES DE LOCATION ACQUISITION/LOCATION DE VENTE | C100: R
A101: 1762 | B101: sur dettes de location acquisition/crédit-bail immobilier | C101: C
A102: 1763 | B102: sur dettes de location acquisition/crédit-bail mobilier | C102: C
A103: 1764 | B103: sur dettes de location acquisition/location-vente | C103: C
A104: 1768 | B104: sur autres dettes de location acquisition | C104: C
A105: 178 | B105: AUTRES DETTES DE LOCATION ACQUISITION | C105: R
A106: 1811 | B106: Dettes liées à des participations (groupe) | C106: C
A107: 1812 | B107: Dettes liées à des participations (hors groupe) | C107: C
A108: 182 | B108: DETTES LIEES A DES SOCIETES EN PARTICIPATION | C108: R
A109: 183 | B109: INTERETS COURUS SUR DETTES LIEES A DES PATICIPATIONS | C109: R
A110: 184 | B110: COMPTES PERMANENTS BLOQUES DES ETABLISSEMENTS ET SUCCURSALES | C110: R
A111: 185 | B111: COMPTES PERMANENTS NON BLOQUES DES ETABLISSEMENTS ET SUCCURSALES | C111: R
A112: 186 | B112: COMPTES DE LIAISON CHARGES | C112: R
A113: 187 | B113: COMPTES DE LIAISON PRODUITS | C113: R
A114: 188 | B114: COMPTES DE LIAISON DES SOCIETES EN PARTICIPATION | C114: R
A115: 191 | B115: PROVISIONS POUR LITIGES | C115: R
A116: 192 | B116: PROVISIONS POUR GARANTIES DONNEES AUX CLIENTS | C116: R
A117: 193 | B117: PROVISIONS POUR PERTES SUR MARCHES A ACHEVEMENT FUTUR | C117: R
A118: 194 | B118: PROVIONS POUR PERTES DE CHANGE | C118: R
A119: 195 | B119: PROVISIONS POUR IMPÔTS | C119: R
A120: 1961 | B120: Provisions pour pensions et obligations similaires-engagement de retraite | C120: C
A121: 1962 | B121: Actif du régime de retraite | C121: C
A122: 197 | B122: PROVISIONS POUR RESTRUCTURATION | C122: R
A123: 1981 | B123: Provisions pour amendes et pénalités | C123: C
A124: 1983 | B124: Provisions de propre assureur | C124: C
A125: 1984 | B125: Provisions pour démantèlement et remise en état | C125: C
A126: 1985 | B126: Provisions pour droits à réduction ou avantage en nature (Chèques cadeau, cartes de fidélité….) | C126: C
A127: 1988 | B127: Provisions pour risques et charges | C127: C
A128: 211 | B128: FRAIS DE DEVELOPPEMENT | C128: R
A129: 2121 | B129: Brevets | C129: C
A130: 2122 | B130: Licences | C130: C
A131: 2123 | B131: Concessions de service public | C131: C
A132: 2128 | B132: Autres concessions et droits similaires | C132: C
A133: 2131 | B133: Logiciels | C133: C
A134: 2132 | B134: Sites internet | C134: C
A135: 214 | B135: MARQUES | C135: R
A136: 215 | B136: FONDS COMMERCIAL | C136: R
A137: 216 | B137: DROIT AU BAIL | C137: R
A138: 217 | B138: INVESTISSEMENTS DE CREATION | C138: R
A139: 2181 | B139: Frais de prospection et d'évaluation de ressources minérales | C139: C
A140: 2182 | B140: Coûts d'obtention du contrat | C140: C
A141: 2183 | B141: Fichiers clients, notices, titres de journaux et magazines | C141: C
A142: 2184 | B142: Coûts des franchises | C142: C
A143: 2188 | B143: Divers droits et valeurs incorporels | C143: C
A144: 2191 | B144: Frais de développement | C144: C
A145: 2193 | B145: Logiciels et internet | C145: C
A146: 2198 | B146: Autres droits et valeurs incorporels | C146: C
A147: 2211 | B147: Terrains d'exploitation agricole | C147: C
A148: 2212 | B148: Terrains d'exploitation forestière | C148: C
A149: 2218 | B149: Autres terrains | C149: C
A150: 2221 | B150: Terrains à bâtir | C150: C
A151: 2228 | B151: Autres terrains nus | C151: C
A152: 2231 | B152: Pour bâtiments industriels et agricoles | C152: C
A153: 2232 | B153: Pour bâtiments administratifs et commerciaux | C153: C
A154: 2234 | B154: Pour bâtiments affectés aux autres opérations professionnelles | C154: C
A155: 2235 | B155: Pour bâtiments affectés aux autres opérations non professionnelles | C155: C
A156: 2238 | B156: Autres terrains bâtis | C156: C
A157: 2241 | B157: Plantation d'arbres et d'arbustes | C157: C
A158: 2245 | B158: Améliorations du fonds | C158: C
A159: 2248 | B159: Autres travaux | C159: C
A160: 2251 | B160: Carrières | C160: C
A161: 2261 | B161: Parkings | C161: C
A162: 227 | B162: TERRAINS MIS EN CONCESSION | C162: R
A163: 2281 | B163: Terrains-immeubles de placement | C163: C
A164: 2285 | B164: Terrains des logements affectés au personnel | C164: C
A165: 2286 | B165: Terrains location-acquisition | C165: C
A166: 2288 | B166: Divers terrains | C166: C
A167: 2291 | B167: Terrains agricoles et forestiers | C167: C
A168: 2292 | B168: Terrains nus | C168: C
A169: 2295 | B169: Terrains de carrières-tréfonds | C169: C
A170: 2298 | B170: Autres terrains | C170: C
A171: 2311 | B171: Bâtiments industriels | C171: C
A172: 2312 | B172: Bâtiments agricoles | C172: C
A173: 2313 | B173: Bâtiments administratifs et commerciaux | C173: C
A174: 2314 | B174: Bâtiments affectés au logement du personnel | C174: C
A175: 2315 | B175: Bâtiments-immeubles de placement | C175: C
A176: 2316 | B176: Bâtiments de location-acquisition | C176: C
A177: 2321 | B177: Bâtiments industriels | C177: C
A178: 2322 | B178: Bâtiments agricoles | C178: C
A179: 2323 | B179: Bâtiments administratifs et commerciaux | C179: C
A180: 2324 | B180: Bâtiments affectés au logement du personnel | C180: C
A181: 2325 | B181: Bâtiments-immeubles de placement | C181: C
A182: 2326 | B182: Bâtiments de location-acquisition | C182: C
A183: 2331 | B183: Voies de terre | C183: C
A184: 2332 | B184: Voies de fer | C184: C
A185: 2333 | B185: Voies d'eau | C185: C
A186: 2334 | B186: Barrages, digues | C186: C
A187: 2335 | B187: Pistes d'aérodrome | C187: C
A188: 2338 | B188: Autres ouvrages d'infrastructures | C188: C
A189: 2341 | B189: Installations complexes spécialisées sur sol propre | C189: C
A190: 2342 | B190: Installations complexes spécialisées sur sol d'autrui | C190: C
A191: 2343 | B191: Installations à caractère spécifique sur sol propre | C191: C
A192: 2344 | B192: Installations à caractère spécifique sur sol d'autrui | C192: C
A193: 2345 | B193: Aménagements et agencements des bâtiments | C193: C
A194: 2351 | B194: Installations générales | C194: C
A195: 2358 | B195: Autres aménagements de bureaux | C195: C
A196: 237 | B196: BATIMENTS INDUSTRIELS, AGRICOLES ET COMMERCIAUX MIS EN CONCESSION | C196: R
A197: 238 | B197: AUTRES INSTALLATIONS ET AGENCEMENTS | C197: R
A198: 2391 | B198: Bâtiments en cours | C198: C
A199: 2392 | B199: Installations en cours | C199: C
A200: 2393 | B200: Ouvrages d'infrastructures en cours | C200: C
A201: 2394 | B201: Aménagements et agencements et installations techniques en cours | C201: C
A202: 2395 | B202: Aménagements de bureaux en cours | C202: C
... 903 more rows

Sheet BalanceN
A1: BALANCE N
A2: Comptes | B2: Intitulés | C2: Soldes d'ouverture | E2: Mouvements N | G2: Soldes N
C3: Débiteur | D3: Créditeur | E3: Débiteur | F3: Créditeur | G3: Débiteur | H3: Créditeur
A4: 101100 | B4: Capital souscrit, non appelé | E4: 200000000 | F4: 300000000 | H4: 100000000
A5: 101200 | B5: Capital souscrit, appelé, non versé | E5: 200000000 | F5: 200000000 | H5: 0
A6: 101300 | B6: Capital souscrit, appelé, versé non amorti | D6: 100000000 | F6: 200000000 | H6: 300000000
A7: 106200 | B7: Ecarts de réévaluation | F7: 3500000 | H7: 3500000
A8: 1090000 | B8: Apporteurs, capital souscrit, non appelé | E8: 300000000 | F8: 200000000 | G8: 100000000
A9: 111000 | B9: Réserve légale | D9: 20000000 | H9: 20000000
A10: 120000 | B10: Report à nouveau | D10: 47450317 | E10: 90000000 | F10: 118619674 | H10: 76069991
A11: 131000 | B11: Résultat net | D11: 118619674 | E11: 118619674
A12: 141400 | B12: Subvention d’investissement | F12: 2000000 | H12: 2000000
A13: 154000 | B13: Provisions spéciales de réévaluation | F13: 40000000 | H13: 40000000
A14: 162000 | B14: Emprunt bancaire | E14: 7500925 | F14: 100000000 | H14: 92499075
A15: 165200 | B15: Cautionnements reçus | D15: 2200000 | H15: 2200000
A16: 196000 | B16: Provisions pour pensions et obligations similaires | D16: 54864697 | E16: 6701530 | F16: 13953199 | H16: 62116366
A17: 213000 | B17: Logiciels | C17: 1050000 | E17: 2000000 | G17: 3050000
A18: 215000 | B18: Fonds commercial | C18: 1600000 | G18: 1600000
A19: 223000 | B19: Terrains bâtis | C19: 12500000 | E19: 3500000 | G19: 16000000
A20: 229000 | B20: Aménagement de terrain en cours | C20: 22673950 | G20: 22673950
A21: 231100 | B21: Bâtiments industriels sur sol propre | C21: 55000000 | E21: 23000000 | G21: 78000000
A22: 232100 | B22: Bâtiments industriels sur sol d’autrui | C22: 231411100 | E22: 432000000 | G22: 663411100
A23: 235100 | B23: Installations générales | C23: 60263648 | E23: 1000000 | G23: 61263648
A24: 238000 | B24: Autres installations et agencements | C24: 11064619 | E24: 1000000 | G24: 12064619
A25: 241100 | B25: Matériel industriel | C25: 91310403 | E25: 17694000 | F25: 40023276 | G25: 68981127
A26: 244100 | B26: Matériel de bureau | C26: 1325000 | E26: 5075000 | F26: 140000 | G26: 6260000
A27: 244200 | B27: Matériel informatique | C27: 6867703 | E27: 1199000 | F27: 5829703 | G27: 2237000
A28: 244400 | B28: Mobilier de bureau | C28: 4968900 | E28: 500000 | G28: 5468900
A29: 245100 | B29: Matériel automobile | C29: 54050000 | E29: 22000000 | G29: 76050000
A30: 252000 | B30: Avance acompte sur immobilisation | E30: 25000000 | F30: 5000000 | G30: 20000000
A31: 272800 | B31: Autres prêts au personnel | C31: 1927000 | G31: 1927000
A32: 275000 | B32: Dépôts et cautionnement électricité | C32: 1335290 | E32: 401175 | F32: 730043 | G32: 1006422
A33: 275300 | B33: Dépôts et caution. Eau | C33: 87068 | G33: 87068
A34: 275500 | B34: Dépôt/téléphone télex télécopie | C34: 449300 | E34: 200000 | G34: 649300
A35: 275800 | B35: Autres dépôts et cautionnements | C35: 750000 | G35: 750000
A36: 283210 | B36: Amortissement des bâtiments industriels | D36: 150313959 | F36: 9734682 | H36: 160048641
A37: 283510 | B37: Amortissement des instal. Générales | D37: 71328267 | H37: 71328267
A38: 284110 | B38: Amortissement du matériel industriel | D38: 60303913 | E38: 40023276 | F38: 8385232 | H38: 28665869
A39: 284410 | B39: Amortissement du matériel de bureau | D39: 1325000 | E39: 140000 | F39: 4833 | H39: 1189833
A40: 284420 | B40: Amortissement du matériel informatique | D40: 6175037 | E40: 5829703 | F40: 496917 | H40: 842251
A41: 284440 | B41: Amortissement du mobilier de bureau | D41: 4582020 | F41: 260480 | H41: 4842500
A42: 284510 | B42: Amortissement du matériel automobile | D42: 53862500 | F42: 377500 | H42: 54240000
A43: 311000 | B43: Stock marchandises | E43: 5000000 | G43: 5000000
A44: 321100 | B44: Stock de matières premières | C44: 7721440 | E44: 57881451 | F44: 57775035 | G44: 7827856
A45: 335100 | B45: Stocks emballages | C45: 8146993 | E45: 76874255 | F45: 79288966 | G45: 5732282
A46: 401100 | B46: Fournisseurs | D46: 40583900 | E46: 579308293 | F46: 565419408 | H46: 26695015
A47: 408100 | B47: Fournisseurs fac. Non parvenues | D47: 15310306 | E47: 117810569 | F47: 114015470 | H47: 11515207
A48: 409100 | B48: Fournisseurs, avances et acomptes | C48: 700000 | E48: 4007612 | F48: 3850000 | G48: 857612
A49: 411100 | B49: Clients | C49: 140683833 | E49: 2068782537 | F49: 2073205069 | G49: 136261301
A50: 416200 | B50: Créances douteuses | C50: 31677520 | G50: 31677520
A51: 421000 | B51: Personnel avances & acomptes | C51: 692500 | E51: 20740622 | F51: 6330272 | G51: 15102850
A52: 421300 | B52: Personnel frais avances | C52: 587786 | E52: 2856452 | F52: 1625425 | G52: 1818813
A53: 422000 | B53: Personnel rémunérations dues | D53: 983251 | E53: 106926551 | F53: 106078239 | H53: 134939
A54: 423200 | B54: Personnel saisies- arrêts | D54: 40000 | E54: 520000 | F54: 480000
A55: 424200 | B55: Allocations familiales | E55: 56700 | F55: 56700
A56: 427000 | B56: Personnel dépôts | D56: 72500 | E56: 197000 | F56: 186500 | H56: 62000
A57: 428101 | B57: Pers locaux congés à payer | D57: 3057458 | E57: 3057458 | F57: 2690099 | H57: 2690099
A58: 428102 | B58: Pers non national congés à payer | D58: 955634 | E58: 955634 | F58: 956541 | H58: 956541
A59: 431000 | B59: Caisse sécurité sociale | D59: 775903 | E59: 7301357 | F59: 7148050 | H59: 622596
A60: 431300 | B60: Caisse de retraite | D60: 1249810 | E60: 13665738 | F60: 13921213 | H60: 1505285
A61: 433110 | B61: Mutuelle de sante | D61: 470001 | E61: 3704942 | F61: 3539940 | H61: 304999
A62: 438200 | B62: Charges sociales / congés | D62: 508585 | E62: 508585 | F62: 479581 | H62: 479581
A63: 441100 | B63: Etat impôt sur les sociétés | D63: 23411413 | E63: 23411413 | F63: 31102200 | H63: 0
A64: 442100 | B64: Etat impôts et taxes | D64: 3213144 | F64: 456192 | H64: 3669336
A65: 443200 | B65: Etat tva facturée | D65: 89781 | E65: 316062 | F65: 226281
A66: 444100 | B66: Etat tva due | E66: 226281 | F66: 226281
A67: 447000 | B67: Etat impôts retenue à la source | D67: 1182818 | E67: 15162688 | F67: 15120541 | H67: 1140671
A68: 462000 | B68: Compte courant associés | D68: 9938959 | E68: 33999957 | F68: 4060998 | G68: 20000000
A69: 465000 | B69: Associés dividendes à payer | E69: 90000000 | F69: 90000000
A70: 467000 | B70: Apporteurs restant dû sur capital appelé | E70: 200000000 | F70: 200000000
A71: 471100 | B71: Débiteurs divers | C71: 450000 | E71: 13050 | F71: 463050 | G71: 0
A72: 471300 | B72: Créditeurs divers | D72: 710000 | E72: 3330000 | F72: 3240000 | H72: 620000
A73: 476000 | B73: Charges constatées d'avance | C73: 1398099 | E73: 6817087 | F73: 6951322 | G73: 1263864
A74: 477000 | B74: Produits constatés d'avance | E74: 10560000 | F74: 10560000
A75: 478100 | B75: Ecart conversion créances clients | E75: 15000000 | G75: 15000000
A76: 479400 | B76: Ecart conversion emprunts | F76: 2500925 | H76: 2500925
A77: 481200 | B77: Frs invest. Immobilisation corporelle | E77: 7000000 | F77: 163250000 | H77: 156250000
A78: 481800 | B78: Frs invest. Fnp | D78: 399942 | H78: 399942
A79: 488000 | B79: Autres créances HAO | E79: 2000000 | G79: 2000000
A80: 485100 | B80: Créances sur cessions d’immobilisations | C80: 380000 | F80: 240000 | G80: 140000
A81: 491000 | B81: Dépréciations comptes clients | D81: 31677520 | H81: 31677520
A82: 521400 | B82: Banques | C82: 69123976 | E82: 2247552500 | F82: 2195523485 | G82: 121152991
A83: 571100 | B83: Caisse | C83: 5460181 | E83: 141403437 | F83: 144919482 | G83: 1944136
A84: 585000 | B84: Virements de fonds | E84: 144502048 | F84: 144502048
A85: 601100 | B85: Achats marchandises | E85: 75000000 | G85: 75000000
A86: 602100 | B86: Achats matières dans la région | E86: 924957492 | F86: 1770650 | G86: 923186842
A87: 602210 | B87: Achats fournitures | E87: 5116850 | G87: 5116850
A88: 603100 | B88: Variations stocks de marchandises | F88: 5000000 | H88: 5000000
A89: 603201 | B89: Variation stocks matières premières | E89: 57775035 | F89: 57881451 | H89: 106416
A90: 603302 | B90: Variation stocks emballages | E90: 79288966 | F90: 76874255 | G90: 2414711
A91: 604200 | B91: Achats carburant | E91: 21691425 | F91: 10431949 | G91: 11259476
A92: 605100 | B92: Eau | E92: 10895715 | F92: 5387895 | G92: 5507820
A93: 605200 | B93: Electricité | E93: 56706955 | F93: 32760604 | G93: 23946351
A94: 605400 | B94: Fourniture entretien non stockables | E94: 4268103 | F94: 285000 | G94: 3983103
A95: 605500 | B95: Fourniture de bureau | E95: 4480500 | F95: 207000 | G95: 4273500
A96: 605600 | B96: Achats de petit matériel & outillage | E96: 13718052 | G96: 13718052
A97: 605700 | B97: Achats d'études prestations service | E97: 12000 | G97: 12000
A98: 608100 | B98: Emballages perdus | E98: 132571022 | F98: 37004365 | G98: 95566657
A99: 612000 | B99: Transports sur ventes | E99: 343513892 | F99: 19987821 | G99: 323526071
A100: 618100 | B100: Voyages et déplacements | E100: 3958126 | G100: 3958126
A101: 618300 | B101: Transports administratifs | E101: 1662475 | G101: 1662475
A102: 622200 | B102: Location de bâtiments | E102: 8750000 | F102: 350000 | G102: 8400000
A103: 622300 | B103: Location véhicules et parking | E103: 15080000 | F103: 2955000 | G103: 12125000
A104: 622800 | B104: Location de machines | E104: 682298 | F104: 399400 | G104: 282898
A105: 624100 | B105: Entretiens & réparations biens immobiliers | E105: 1951316 | G105: 1951316
A106: 624200 | B106: Entretiens & réparations biens mobiliers | E106: 4392302 | F106: 720054 | G106: 3672248
A107: 624300 | B107: Maintenance | E107: 6460000 | F107: 650000 | G107: 5810000
A108: 624330 | B108: Hygiène et services assimilés | E108: 585000 | G108: 585000
A109: 625100 | B109: Assurances multirisques | E109: 2796869 | F109: 1378167 | G109: 1418702
A110: 625200 | B110: Assurances matériel de transport | E110: 2660291 | F110: 1617217 | G110: 1043074
A111: 628100 | B111: Frais de téléphone | E111: 10693350 | F111: 4187100 | G111: 6506250
A112: 628800 | B112: Autres frais télécommunications | E112: 1207400 | F112: 397000 | G112: 810400
A113: 631800 | B113: Frais bancaires | E113: 2012656 | G113: 2012656
A114: 631810 | B114: Frais virements/règlement clients | E114: 6417410 | G114: 6417410
A115: 632400 | B115: Honoraires expert-comptable | E115: 22500000 | F115: 6600000 | G115: 15900000
A116: 632401 | B116: Honoraires notaires | E116: 1500000 | G116: 1500000
A117: 632410 | B117: Honoraires analyses | E117: 2049080 | F117: 647560 | G117: 1401520
A118: 632500 | B118: Frais d'acte et de contentieux | E118: 46680 | G118: 46680
A119: 632800 | B119: Certificat de salubrité | E119: 2277000 | G119: 2277000
A120: 632801 | B120: Droit d’entrée port | E120: 129375 | G120: 129375
A121: 634800 | B121: Autres redevances | E121: 48000 | G121: 48000
A122: 635101 | B122: Cotisation syndicale patronale | E122: 400000 | F122: 200000 | G122: 200000
A123: 638300 | B123: Réceptions | E123: 31500 | G123: 31500
A124: 638900 | B124: Prestations diverses | E124: 30300 | G124: 30300
A125: 646100 | B125: Droits enregistrement aug. Capital | E125: 3000000 | G125: 3000000
A126: 646200 | B126: Droits de timbres | E126: 10200 | G126: 10200
A127: 646400 | B127: Vignettes | E127: 35000 | G127: 35000
A128: 647200 | B128: Pénalités TVA | E128: 90000 | G128: 90000
A129: 651100 | B129: Pertes sur créances clients | E129: 4150956 | G129: 4150956
A130: 658200 | B130: Dons | E130: 100000 | G130: 100000
A131: 658800 | B131: Autres charges diverses | E131: 12973 | G131: 12973
A132: 661100 | B132: Salaires bruts nationaux | E132: 101601787 | G132: 101601787
A133: 661300 | B133: Congés payés au personnel national. | E133: 7690099 | F133: 3057458 | G133: 4632641
A134: 661800 | B134: Autres rémunérations directes | E134: 45353580 | G134: 45353580
A135: 662100 | B135: Salaires bruts non nationaux | E135: 26964127 | G135: 26964127
A136: 662300 | B136: Congés payés au personnel .non national | E136: 956541 | F136: 955634 | G136: 907
A137: 663100 | B137: Indemnités de logement | E137: 3216000 | G137: 3216000
A138: 663400 | B138: Primes de transport | E138: 5407994 | G138: 5407994
A139: 663800 | B139: Autres indemnités & avantages divers | E139: 4651183 | G139: 4651183
A140: 664120 | B140: Charges de sécurité sociale - permanents | E140: 2588506 | F140: 171878 | G140: 2416628
A141: 664121 | B141: Charge de sécurité sociale - journaliers | E141: 4728850 | G141: 4728850
A142: 664130 | B142: Charges sociales - caisse retraite | E142: 8662975 | F142: 336707 | G142: 8326268
A143: 664140 | B143: Charges sociales - mutuelle | E143: 1739939 | G143: 1739939
A144: 664200 | B144: Charges sociales - caisse retraite complémentaire | E144: 9164992 | F144: 2893292 | G144: 6271700
A145: 664800 | B145: Autres charges sociales | E145: 800000 | G145: 800000
A146: 668400 | B146: Médecine du travail et pharmacie | E146: 2929779 | F146: 1241500 | G146: 1688279
A147: 668500 | B147: Equipements personnel | E147: 417210 | G147: 417210
A148: 671200 | B148: Intérêt emprunts | E148: 3500000 | G148: 3500000
A149: 681300 | B149: Dotations aux amortissements biens corporels | E149: 41555720 | F149: 22296076 | G149: 19259644
A150: 691100 | B150: Dotations aux provisions pour risques | E150: 13953199 | F150: 6701530 | G150: 7251669
A151: 701100 | B151: Ventes marchandises | F151: 110000000 | H151: 110000000
A152: 702200 | B152: Ventes produits finis | F152: 1941053121 | H152: 1941053121
A153: 702200 | B153: Retour produits finis | E153: 1112590 | G153: 1112590
A154: 702901 | B154: Remises et ristournes / ventes produits finis | E154: 21795786 | G154: 21795786
A155: 706100 | B155: Location villa | F155: 12672000 | H155: 12672000
A156: 707800 | B156: Locations groupe électrogène | F156: 1130000 | H156: 1130000
A157: 722100 | B157: Production immobilisée | F157: 4500000 | H157: 4500000
A158: 756000 | B158: Gains de change sur créances commerciales | F158: 1081031 | H158: 1081031
A159: 758000 | B159: Indemnités assurances | F159: 2355947 | H159: 2355947
A160: 773000 | B160: Escomptes obtenus | F160: 7500000 | H160: 7500000
A161: 781000 | B161: Transfert de charges | F161: 3233550 | H161: 3233550
A162: 812000 | B162: Valeur comptable des cessions d'imm | E162: 45992979 | F162: 45992979
A163: 822000 | B163: Produits de cession immob corporelles | F163: 127119 | H163: 127119
A164: 845000 | B164: Dons et libéralités obtenus | F164: 2000000 | H164: 2000000
A165: 891000 | B165: Impôt / bénéfices | E165: 31102200 | G165: 31102200

Sheet BalanceN-1
A1: BALANCE N-1
A2: Comptes | B2: Intitulés | C2: Soldes d'ouverture | E2: Mouvements | G2: Soldes
C3: Débiteur | D3: Créditeur | E3: Débiteur | F3: Créditeur | G3: Débiteur | H3: Créditeur
A4: 101300 | B4: Capital souscrit, appelé, versé, non amorti | D4: 100000000 | H4: 100000000
A5: 111000 | B5: Réserve légale | D5: 20000000 | H5: 20000000
A6: 120000 | B6: Report à nouveau | D6: 20818799 | F6: 26631518 | H6: 47450317
A7: 585100 | B7: Résultat net | D7: 66631518 | E7: 66631518
A8: 165200 | B8: Cautionnements reçus | D8: 2200000 | H8: 2200000
A9: 196000 | B9: Provision pour pensions et obligations assimilées | D9: 47553935 | E9: 3771900 | F9: 11082662 | H9: 54864697
A10: 213000 | B10: Logiciels | C10: 1050000 | G10: 1050000
A11: 215000 | B11: Fonds commercial | C11: 1600000 | G11: 1600000
A12: 223000 | B12: Terrains bâtis | C12: 12500000 | G12: 12500000
A13: 229000 | B13: Aménagement de terrain en cours | C13: 22673950 | G13: 22673950
A14: 231100 | B14: Bâtiments industriels sur sol propre | C14: 55000000 | G14: 55000000
A15: 232100 | B15: Bâtiments industriels sur sol d’autrui | C15: 231411100 | G15: 231411100
A16: 235100 | B16: Installations générales | C16: 60263648 | G16: 60263648
A17: 238000 | B17: Autres installations et agencements | C17: 11064619 | G17: 11064619
A18: 241100 | B18: Matériel industriel | C18: 74507291 | E18: 17153112 | F18: 350000 | G18: 91310403
A19: 244100 | B19: Matériel de bureau | C19: 1325000 | G19: 1325000
A20: 244200 | B20: Matériel informatique | C20: 6867703 | G20: 6867703
A21: 244400 | B21: Mobilier de bureau | C21: 4968900 | G21: 4968900
A22: 245100 | B22: Matériel automobile | C22: 54050000 | G22: 54050000
A23: 272800 | B23: Autres prêts au personnel | C23: 1245000 | E23: 682000 | G23: 1927000
A24: 275000 | B24: Dépôts et cautionnement électricité | C24: 1238776 | E24: 276379 | F24: 179865 | G24: 1335290
A25: 275300 | B25: Dépôts et caution. Eau | C25: 87068 | G25: 87068
A26: 275500 | B26: Dépôt/téléphone télex télécopie | C26: 449300 | G26: 449300
A27: 275800 | B27: Autres dépôts et cautionnements | C27: 750000 | G27: 750000
A28: 276200 | B28: Prêt amicale personnel | C28: 1000000 | F28: 1000000
A29: 283210 | B29: Amortissement des bâtiments indust. | D29: 140579277 | F29: 9734682 | H29: 150313959
A30: 283510 | B30: Amortissement des instal. Générales | D30: 71310267 | F30: 18000 | H30: 71328267
A31: 284110 | B31: Amortissement du matériel indust. | D31: 53005415 | E31: 58333 | F31: 7356831 | H31: 60303913
A32: 284410 | B32: Amortissement du matériel de bureau | D32: 1325000 | H32: 1325000
A33: 284420 | B33: Amortissement du matériel informatique | D33: 5733437 | F33: 441600 | H33: 6175037
A34: 284440 | B34: Amortissement du mobilier de bureau | D34: 4283140 | F34: 298880 | H34: 4582020
A35: 284510 | B35: Amortissement du matériel automobile | D35: 47407500 | F35: 6455000 | H35: 53862500
A36: 321100 | B36: Stock de matières premières | C36: 10552040 | E36: 7721440 | F36: 10552040 | G36: 7721440
A37: 335100 | B37: Stocks emballages | C37: 6262346 | E37: 8146993 | F37: 6262346 | G37: 8146993
A38: 401100 | B38: Fournisseurs | D38: 76549980 | E38: 562421027 | F38: 526454947 | H38: 40583900
A39: 408100 | B39: Fournisseurs fac non parvenues | D39: 8071358 | E39: 54500645 | F39: 60428763 | H39: 13999476
A40: 408110 | B40: Fac. Non parvenues eau | D40: 782702 | E40: 782702
A41: 408120 | B41: Fac. Non parvenues téléphone | D41: 415200 | E41: 415200
A42: 408130 | B42: Fac. Non parvenues électricité | D42: 3257358 | E42: 3257358
A43: 408140 | B43: Fac. Non parvenues transporteur | D43: 637437 | E43: 14451330 | F43: 13813893
A44: 408150 | B44: Fac. Non parvenues avocats | F44: 1310830 | H44: 1310830
A45: 409100 | B45: Fournisseurs, avances et acomptes | E45: 1433750 | F45: 733750 | G45: 700000
A46: 411100 | B46: Clients | C46: 114098863 | E46: 1906855340 | F46: 1880270370 | G46: 140683833
A47: 416200 | B47: Créances douteuses | C47: 31677520 | G47: 31677520
A48: 419800 | B48: R. R. Ristournes & avoirs à accorder | C48: 948441 | F48: 948441
A49: 421000 | B49: Personnel avances & acomptes | C49: 675000 | E49: 5362000 | F49: 5344500 | G49: 692500
A50: 421400 | B50: Frais médicaux | C50: 1162554 | E50: 1935977 | F50: 2510745 | G50: 587786
A51: 422000 | B51: Personnel rémunérations dues | E51: 130502753 | F51: 131486004 | H51: 983251
A52: 423200 | B52: Personnel saisies- arrêts | D52: 40000 | E52: 480000 | F52: 480000 | H52: 40000
A53: 427000 | B53: Personnel dépôts | D53: 55000 | E53: 166500 | F53: 184000 | H53: 72500
A54: 428001 | B54: Pers locaux congés à payer | D54: 2303892 | E54: 2303892 | F54: 3057458 | H54: 3057458
A55: 428002 | B55: Pers non nat congés à payer | D55: 1351085 | E55: 1351085 | F55: 955634 | H55: 955634
A56: 431000 | B56: Caisse sécurité sociale | D56: 979255 | E56: 7316170 | F56: 7112818 | H56: 775903
A57: 431300 | B57: Caisse de retraite | D57: 1161181 | E57: 13328375 | F57: 13417004 | H57: 1249810
A58: 433110 | B58: Mutuelle de sante | D58: 587724 | E58: 3657726 | F58: 3540003 | H58: 470001
A59: 438200 | B59: Charges sociales / congés | D59: 506047 | E59: 506047 | F59: 508585 | H59: 508585
A60: 441100 | B60: Etat impôt sur les sociétés | D60: 9098000 | E60: 9098000 | F60: 23411413 | H60: 23411413
A61: 442100 | B61: Etat impôts et taxes | D61: 2752200 | E61: 114048 | F61: 574992 | H61: 3213144
A62: 443200 | B62: Tva facturée / prestation services | D62: 54049 | E62: 252049 | F62: 287781 | H62: 89781
A63: 447000 | B63: Etat impôts retenue à la source personnel | D63: 596627 | E63: 12424778 | F63: 12894469 | H63: 1066318
A64: 447200 | B64: Etat retenue à la source prestataire | D64: 90750 | E64: 870129 | F64: 895879 | H64: 116500
A65: 462001 | B65: Compte courant associés | D65: 10336159 | E65: 40643970 | F65: 40246770 | H65: 9938959
A66: 471100 | B66: Débiteurs divers | D66: 10000000 | E66: 10650000 | F66: 200000 | G66: 450000
A67: 471300 | B67: Créditeurs divers | D67: 530000 | E67: 4120000 | F67: 4300000 | H67: 710000
A68: 476000 | B68: Charges constatées d'avance | C68: 2255622 | E68: 5310480 | F68: 6168003 | G68: 1398099
A69: 477000 | B69: Produits constatés d'avance | E69: 1056000 | F69: 1056000
A70: 4818200 | B70: Fours d'invest. Fnp | F70: 399942 | H70: 399942
A71: 4822000 | B71: Frs invest. effets à payer | D71: 1218333 | E71: 1218333
A72: 485100 | B72: Créances sur cessions d’immobilisations | C72: 620000 | F72: 240000 | G72: 380000
A73: 491000 | B73: Dépréciations comptes clts | D73: 31677520 | H73: 31677520
A74: 521400 | B74: Banques | C74: 18485559 | E74: 1864651283 | F74: 1814012866 | G74: 69123976
A75: 571100 | B75: Caisse | C75: 15109845 | E75: 164971903 | F75: 174621567 | G75: 5460181
A76: 585000 | B76: Virements de fonds | E76: 155673628 | F76: 155673628
A77: 602100 | B77: Achats matières premières | E77: 955664862 | F77: 1079390 | G77: 954585472
A78: 603201 | B78: Variation stock matières premières | E78: 10552040 | F78: 7721440 | G78: 2830600
A79: 603302 | B79: Variation stock emballage | E79: 6262346 | F79: 8146993 | H79: 1884647
A80: 604200 | B80: Achats carburant | E80: 12683576 | G80: 12683576
A81: 604300 | B81: Produits d'entretien | E81: 1144000 | G81: 1144000
A82: 605100 | B82: Eau | E82: 6125987 | F82: 1466738 | G82: 4659249
A83: 605200 | B83: Electricité | E83: 36907753 | F83: 15147134 | G83: 21760619
A84: 605300 | B84: Autres énergies gaz | E84: 6618773 | F84: 6618773
A85: 605400 | B85: Fourniture entretien non stockables | E85: 2249226 | F85: 69600 | G85: 2179626
A86: 605500 | B86: Fourniture de bureau | E86: 5047450 | F86: 12500 | G86: 5034950
A87: 605600 | B87: Achats de petit matériel & outillage | E87: 11441377 | G87: 11441377
A88: 605700 | B88: Achats d'études prestations service | E88: 505000 | G88: 505000
A89: 605800 | B89: Petits équipements | E89: 420025 | G89: 420025
A90: 608100 | B90: Emballages perdus | E90: 101311095 | F90: 19000 | G90: 101292095
A91: 612000 | B91: Transports sur ventes | E91: 346376807 | F91: 18382446 | G91: 327994361
A92: 616000 | B92: Transport de plis | E92: 86870 | G92: 86870
A93: 618100 | B93: Voyages et déplacements | E93: 306500 | G93: 306500
A94: 618300 | B94: Transports administratifs | E94: 685825 | G94: 685825
A95: 622200 | B95: Location de bâtiments | E95: 8513500 | F95: 350000 | G95: 8163500
A96: 622300 | B96: Location véhicules et parking | E96: 14162750 | F96: 1442750 | G96: 12720000
A97: 622800 | B97: Location machines | E97: 2299377 | F97: 49118 | G97: 2250259
A98: 624200 | B98: Entretiens & réparations biens mobiliers | E98: 3570579 | F98: 295547 | G98: 3275032
A99: 624300 | B99: Maintenance machines | E99: 5110000 | G99: 5110000
A100: 624330 | B100: Hygiène et services assimilés | E100: 390000 | G100: 390000
A101: 624800 | B101: Autres entretiens et réparations | E101: 931113 | G101: 931113
A102: 625100 | B102: Assurances multirisques | E102: 1459236 | G102: 1459236
A103: 625200 | B103: Assurances matériel de transport | E103: 981248 | G103: 981248
A104: 626500 | B104: Documentation générale | E104: 30000 | G104: 30000
A105: 627100 | B105: Annonces insertion | E105: 200000 | G105: 200000
A106: 628100 | B106: Frais de téléphone | E106: 6203750 | F106: 1837900 | G106: 4365850
A107: 628800 | B107: Autres frais télécommunications | E107: 1012400 | F107: 155000 | G107: 857400
A108: 631800 | B108: Frais bancaires | E108: 3117023 | G108: 3117023
A109: 631810 | B109: Frais virements/règlement clients | E109: 9611023 | G109: 9611023
A110: 632400 | B110: Honoraires | E110: 3000000 | F110: 1000000 | G110: 2000000
A111: 632410 | B111: Honoraires analyses | E111: 4050900 | F111: 899480 | G111: 3151420
A112: 632800 | B112: Certificat de salubrité | E112: 1725285 | G112: 1725285
A113: 632801 | B113: Droit entrée port | E113: 140990 | G113: 140990
A114: 635100 | B114: Cotisations | E114: 90000 | G114: 90000
A115: 635101 | B115: Cotisation syndicat patronal | E115: 200000 | G115: 200000
A116: 638300 | B116: Réceptions | E116: 18000 | G116: 18000
A117: 646800 | B117: Autres droits | E117: 35000 | G117: 35000
A118: 647800 | B118: Autres amendes pénales & fiscales | E118: 75000 | G118: 75000
A119: 658800 | B119: Autres charges diverses | E119: 67670 | G119: 67670
A120: 661100 | B120: Salaires bruts nationaux | E120: 85757833 | G120: 85757833
A121: 661300 | B121: Congés payés au pers. nat. | E121: 10273495 | F121: 2303892 | G121: 7969603
A122: 661800 | B122: Autres rémunérations directes | E122: 46989030 | G122: 46989030
A123: 662100 | B123: Salaires bruts non nationaux | E123: 28414973 | F123: 1351085 | G123: 27063888
A124: 663100 | B124: Indemnités de logement | E124: 3216000 | G124: 3216000
A125: 663400 | B125: Primes de transport | E125: 5360307 | G125: 5360307
A126: 663800 | B126: Autres indemnités & avantages divers | E126: 4776437 | G126: 4776437
A127: 664000 | B127: Charges sociales | E127: 5000821 | G127: 5000821
A128: 664120 | B128: Charges de sécurité sociale-permanents | E128: 2762138 | F128: 176400 | G128: 2585738
A129: 664121 | B129: Charges de sécurité sociale- journaliers | E129: 4522558 | G129: 4522558
A130: 664130 | B130: Charges sociales caisse retraite | E130: 8386885 | F130: 329647 | G130: 8057238
A131: 664140 | B131: Charges sociales mutuelle de sante | E131: 1770020 | G131: 1770020
A132: 664200 | B132: Charges sociales non nationaux | E132: 513033 | G132: 513033
A133: 664800 | B133: Autres charges sociales | E133: 800000 | G133: 800000
A134: 668400 | B134: Médecine du travail et pharmacie | E134: 662735 | G134: 662735
A135: 668500 | B135: Equipements personnel | E135: 3807010 | G135: 3807010
A136: 681300 | B136: Dotations aux amorts biens corporels | E136: 47569542 | F136: 23264549 | G136: 24304993
A137: 6911000 | B137: Dotations aux provisions pour risques | E137: 11082662 | F137: 3771900 | G137: 7310762
A138: 702200 | B138: Ventes produits finis | F138: 1872894148 | H138: 1872894148
A139: 702201 | B139: Avoir / ventes produits finis | E139: 14316453 | G139: 14316453
A140: 702902 | B140: Remise / ventes produits finis | E140: 1153585 | G140: 1153585
A141: 706100 | B141: Location villa | E141: 2112000 | F141: 14916000 | H141: 12804000
A142: 707800 | B142: Autres produits accessoires | F142: 1400000 | H142: 1400000
A143: 707810 | B143: Autres produits | F143: 198780 | H143: 198780
A144: 758800 | B144: Autres produits divers | E144: 347132 | F144: 11833669 | H144: 11486537
A145: 781000 | B145: Transfert de charges | F145: 3216000 | H145: 3216000
A146: 781200 | B146: Transfert charges fret | F146: 2601880 | H146: 2601880
A147: 812000 | B147: Valeur comptable des cessions d'immobilisation | E147: 350000 | F147: 58333 | G147: 291667
A148: 822000 | B148: Produits de cession immob corporelles | F148: 350000 | H148: 350000
A149: 891000 | B149: Impôt / bénéfices | E149: 23411413 | G149: 23411413

Sheet CALCULS FISCAUX
A1: ELEMENTS DE CALCULS DE L'IMPOT SUR LES BENEFICES
A3: DETERMINATION DU RESULTAT FISCAL
A5: I | B5: BENEFICE NET COMPTABLE OU PERTE NETTE COMPTABLE | J5: =('COMPTE DE RESULTAT'!$K$41+'COMPTE DE RESULTAT'!$K$46-'COMPTE DE RESULTAT'!$K$47) -> 246491910
A6: II | B6: REINTEGRATIONS : | C6: (Charges ou pertes non déductibles ou partiellement déductibles du point de vue fiscal)
D17: TOTAL DES REINTEGRATIONS + | J17: =SUM(J8:J16) -> 0
A19: III | B19: DEDUCTIONS (à détailler obligatoirement sur feuillet séparé)
C30: TOTAL DES DEDUCTIONS - | J30: =-SUM(J20:J29) -> 0
A32: IV
B33: RESULTAT FISCAL AVANT IMPUTATION DES DEFICITS REPORTABLES | J33: =SUM(J5,J17,J30) -> 246491910
B35: MONTANT DES DEFICITES ANTERIEURS IMPUTES SUR LE RESULTAT | J35: =-MAX(0,MIN(J33,SUM(G43:I47))) -> 0
B37: AMORTISSEMENTS REGULIEREMENT DIFFERES (1)
B39: AMORTISSEMENTS DE L'EXERCICE A DIFFERER (1)
A41: V | B41: BENEFICE OU PERTE | J41: =SUM(J33:J36)-J37+J39 -> 246491910
A42: VI | B42: DEFICITS REPORTABLES | D42: Déficits reportables | E42: Exercice | G42: Déficits imputés | J42: Déficits reportables
E43: N - 5 | J43: =D43-G43 -> 0
E44: N - 4 | J44: =D44-G44 -> 0
E45: N - 3 | J45: =D45-G45 -> 0
E46: N - 2 | J46: =D46-G46 -> 0
E47: N - 1 | J47: =D47-G47 -> 0
D49: Calculs intermediaires de l'impôt
D51: Compte de Resultat | G51: BAV | J51: Abattement CGA
B52: RSI | D52: =IF(INFORMATIONS!B7="OUI",MAX(0,ROUNDDOWN('CALCULS FISCAUX'!J41,-3)*D71),MAX(D68,ROUNDDOWN('COMPTE DE RESULTAT'!K15,-5)*D67,ROUNDDOWN('CALCULS FISCAUX'!J41,-3)*D71)) -> 67785025 | G52: =IF(INFORMATIONS!B7="OUI",MAX(0,ROUNDDOWN('CALCULS FISCAUX'!J41,-3)*D71),MAX(D68,ROUNDDOWN('COMPTE DE RESULTAT'!K15,-5)*D67,ROUNDDOWN('CALCULS FISCAUX'!J41,-3)*D71)) -> 67785025 | J52: 0
B53: Adherent CGA IS RSI | D53: =IF(INFORMATIONS!B7="OUI",MAX(0,ROUNDDOWN('CALCULS FISCAUX'!J41,-3)*D71)*70%,MAX((D68*I68),ROUNDDOWN('COMPTE DE RESULTAT'!K15,-5)*(D67/2),(ROUNDDOWN('CALCULS FISCAUX'!J41,-3)*D71)*70%)) -> 47449517.5 | G53: =IF(INFORMATIONS!B7="OUI",MAX(0,ROUNDDOWN('CALCULS FISCAUX'!J41,-3)*D71),MAX((D68*I68),ROUNDDOWN('COMPTE DE RESULTAT'!K15,-5)*(D67*I68),(ROUNDDOWN('CALCULS FISCAUX'!J41,-3)*D71))) -> 67785025 | J53: =IF(INFORMATIONS!B7="OUI",MAX(0,ROUNDDOWN('CALCULS FISCAUX'!J41,-3)*D71)*I67,MAX(0,(ROUNDDOWN('CALCULS FISCAUX'!J41,-3)*D71-MAX((D68*H68),ROUNDDOWN('COMPTE DE RESULTAT'!K15,-5)*(D67*I68),))*I67)) -> 18804082.5
B54: RNI | D54: =IF(INFORMATIONS!B7="OUI",MAX(0,ROUNDDOWN('CALCULS FISCAUX'!J41,-3)*D71),MAX(D69,ROUNDDOWN('COMPTE DE RESULTAT'!K15,-5)*D67,ROUNDDOWN('CALCULS FISCAUX'!J41,-3)*D71)) -> 67785025 | G54: =IF(INFORMATIONS!B7="OUI",MAX(0,ROUNDDOWN('CALCULS FISCAUX'!J41,-3)*D71),MAX(D69,ROUNDDOWN('COMPTE DE RESULTAT'!K15,-5)*D67,ROUNDDOWN('CALCULS FISCAUX'!J41,-3)*D71)) -> 67785025 | J54: 0
B55: Resultat IS | D55: =IF(INFORMATIONS!B6="RSI",IF(INFORMATIONS!B8="OUI",D53,'CALCULS FISCAUX'!D52),'CALCULS FISCAUX'!D54) -> 67785025 | G55: =IF(INFORMATIONS!B6="RSI",IF(INFORMATIONS!B8="OUI",G53,'CALCULS FISCAUX'!G52),'CALCULS FISCAUX'!G54) -> 67785025 | J55: =IF(INFORMATIONS!B6="RSI",IF(INFORMATIONS!B8="OUI",J53,'CALCULS FISCAUX'!J52),'CALCULS FISCAUX'!J54) -> 0
B57: EI RNI | D57: =IF(INFORMATIONS!B7="OUI",(MAX(0,MIN(J76,ROUNDDOWN('CALCULS FISCAUX'!J41,-3)*E76))+MAX(0,MIN(100000,(ROUNDDOWN('CALCULS FISCAUX'!J41,-3)-B78)*E78)))+MAX(0,(ROUNDDOWN('CALCULS FISCAUX'!J41,-3)-J78)*E80),MAX(D69,ROUNDDOWN('COMPTE DE RESULTAT'!K15,-5)*D67,(MAX(0,MIN(J76,ROUNDDOWN('CALCULS FISCAUX'!J41,-3)*E76))+MAX(0,MIN(J78,(ROUNDDOWN('CALCULS FISCAUX'!J41,-3)-B78)*E78)))+MAX(0,(ROUNDDOWN('CALCULS FISCAUX'!J41,-3)-B80)*E80))) -> 67660025 | G57: =IF(INFORMATIONS!B7="OUI",(MAX(0,MIN(J76,ROUNDDOWN('CALCULS FISCAUX'!J41,-3)*E76))+MAX(0,MIN(J78,(ROUNDDOWN('CALCULS FISCAUX'!J41,-3)-B78)*E78)))+MAX(0,(ROUNDDOWN('CALCULS FISCAUX'!J41,-3)-B80)*E80),MAX(D69,ROUNDDOWN('COMPTE DE RESULTAT'!K15,-5)*D67,(MAX(0,MIN(J76,ROUNDDOWN('CALCULS FISCAUX'!J41,-3)*E76))+MAX(0,MIN(J78,(ROUNDDOWN('CALCULS FISCAUX'!J41,-3)-B78)*E78)))+MAX(0,(ROUNDDOWN('CALCULS FISCAUX'!J41,-3)-B80)*E80))) -> 67660025
B58: EI RSI | D58: =IF(INFORMATIONS!B7="OUI",(MAX(0,MIN(J76,ROUNDDOWN('CALCULS FISCAUX'!J41,-3)*E76))+MAX(0,MIN(J78,(ROUNDDOWN('CALCULS FISCAUX'!J41,-3)-B78)*E78)))+MAX(0,(ROUNDDOWN('CALCULS FISCAUX'!J41,-3)-B80)*E80),MAX(D68,ROUNDDOWN('COMPTE DE RESULTAT'!K15,-5)*D67,(MAX(0,MIN(J76,ROUNDDOWN('CALCULS FISCAUX'!J41,-3)*E76))+MAX(0,MIN(J78,(ROUNDDOWN('CALCULS FISCAUX'!J41,-3)-B78)*E78)))+MAX(0,(ROUNDDOWN('CALCULS FISCAUX'!J41,-3)-B80)*E80))) -> 67660025 | G58: =IF(INFORMATIONS!B7="OUI",(MAX(0,MIN(J76,ROUNDDOWN('CALCULS FISCAUX'!J41,-3)*E76))+MAX(0,MIN(J78,(ROUNDDOWN('CALCULS FISCAUX'!J41,-3)-B78)*E78)))+MAX(0,(ROUNDDOWN('CALCULS FISCAUX'!J41,-3)-B80)*E80),MAX(D68,ROUNDDOWN('COMPTE DE RESULTAT'!K15,-5)*D67,(MAX(0,MIN(J76,ROUNDDOWN('CALCULS FISCAUX'!J41,-3)*E76))+MAX(0,MIN(J78,(ROUNDDOWN('CALCULS FISCAUX'!J41,-3)-B78)*E78)))+MAX(0,(ROUNDDOWN('CALCULS FISCAUX'!J41,-3)-B80)*E80))) -> 67660025
B59: Adherent CGA EI RSI | D59: =IF(INFORMATIONS!B7="OUI",(MAX(0,MIN(J76,ROUNDDOWN('CALCULS FISCAUX'!J41,-3)*E76))+MAX(0,MIN(J78,(ROUNDDOWN('CALCULS FISCAUX'!J41,-3)-B78)*E78)))+MAX(0,(ROUNDDOWN('CALCULS FISCAUX'!J41,-3)-B80)*E80)*(100%-I67),MAX((D68*H68),ROUNDDOWN('COMPTE DE RESULTAT'!K15,-5)*(D67*I68),(MAX(0,MIN(J76,ROUNDDOWN('CALCULS FISCAUX'!J41,-3)*E76))+MAX(0,MIN(J78,(ROUNDDOWN('CALCULS FISCAUX'!J41,-3)-B78)*E78)))+MAX(0,((ROUNDDOWN('CALCULS FISCAUX'!J41,-3)-B80)*E80)*(100%-I67)))) -> 47407017.5 | G59: =IF(INFORMATIONS!B7="OUI",(MAX(0,MIN(J76,ROUNDDOWN('CALCULS FISCAUX'!J41,-3)*E76))+MAX(0,MIN(J78,(ROUNDDOWN('CALCULS FISCAUX'!J41,-3)-B78)*E78)))+MAX(0,(ROUNDDOWN('CALCULS FISCAUX'!J41,-3)-B80)*E80),MAX((D68*I68),ROUNDDOWN('COMPTE DE RESULTAT'!K15,-5)*(D67*I68),(MAX(0,MIN(J76,ROUNDDOWN('CALCULS FISCAUX'!J41,-3)*E76))+MAX(0,MIN(J78,(ROUNDDOWN('CALCULS FISCAUX'!J41,-3)-B78)*E78)))+MAX(0,((ROUNDDOWN('CALCULS FISCAUX'!J41,-3)-B80)*E80)))) -> 67660025 | J59: =IF(INFORMATIONS!B7="OUI",(MAX(0,MIN(J76,ROUNDDOWN('CALCULS FISCAUX'!J41,-3)*E76))+MAX(0,MIN(J78,(ROUNDDOWN('CALCULS FISCAUX'!J41,-3)-B78)*E78)))+MAX(0,(ROUNDDOWN('CALCULS FISCAUX'!J41,-3)-B80)*E80)*I67,MAX(0,(MAX(0,MIN(J76,ROUNDDOWN('CALCULS FISCAUX'!J41,-3)*E76))+MAX(0,MIN(J78,(ROUNDDOWN('CALCULS FISCAUX'!J41,-3)-B78)*E78))+MAX(0,(ROUNDDOWN('CALCULS FISCAUX'!J41,-3)-B80))*E80-MAX((D68*I68),(ROUNDDOWN('COMPTE DE RESULTAT'!K15,-5)*(D67*I68))))*I67)) -> 18766582.5
B60: Resultat EI | D60: =IF(INFORMATIONS!B6="RSI",IF(INFORMATIONS!B8="OUI",D59,D58),D57) -> 67660025 | G60: =IF(INFORMATIONS!B6="RSI",IF(INFORMATIONS!B8="OUI",G59,G58),G57) -> 67660025 | J60: =IF(INFORMATIONS!B6="RSI",IF(INFORMATIONS!B8="OUI",J59,J58),J57) -> 0
B62: Resultat final | D62: =IF(INFORMATIONS!B12="INDIVIDUELLE",D60,D55) -> 67660025 | G62: =IF(INFORMATIONS!B12="INDIVIDUELLE",G60,G55) -> 67660025 | J62: =IF(INFORMATIONS!B12="INDIVIDUELLE",J60,J55) -> 0
B65: Taux d'imposition | G65: Abattement CGA
B67: MFP | D67: 0.005 | G67: IS/BIC | I67: 0.3
B68: RSI | D68: 300000 | G68: MFP | I68: 0.5
B69: RNI | D69: 1000000
B71: IS | D71: 0.275
B74: BIC | G74: Calcul tranche
B75: Tranche | E75: Taux
B76: 0 | D76: 500000 | E76: 0.1 | G76: =D76-C76 -> 500000 | J76: =G76*E76 -> 50000
B78: 500000 | D78: 1000000 | E78: 0.2 | G78: =D78-B78 -> 500000 | J78: =G78*E78 -> 100000
B80: 1000000 | D80: N | E80: 0.275
B82: ACOMPTES ET CREDIT D'IMPOTS
B83: ACOMPTES PROVISIONNELS (ACOMPTE 1+2+3)
B84: IRVM SUBI (Attestation jointe)
B85: IRC SUBI (Attestation jointe)
B86: Minimum forfaitaire declarés (Entreprise individuelle)
B87: Crédit reportable retenues supportés (Cf. dernière déclaration)
B88: Crédit reportable prélèvements supportés (Cf. dernière déclaration)
B93: CALCULS DES PRELEVEMENTS ET RETENUES IMPUTABLES ET IMPUTES
B95: MONTANT DES PRELEVEMENTS SUPPORTES IMPUTABLES | G95: =SUM('PREL ET RET SUPPORTES IMPUTABLE'!W29,'PREL ET RET SUPPORTES IMPUTABLE'!W31)+'CALCULS FISCAUX'!G88 -> 50000
B97: MONTANT DES RETENUES SUPPORTES SUPPORTES IMPUTABLES | G97: ='PREL ET RET SUPPORTES IMPUTABLE'!W33+'CALCULS FISCAUX'!G87 -> 25000

Sheet IMPRESSION
A4: LIASSE SYSCOHADA | B4: LIASSE SYSCOHADA | C4: 1
A5: PAGE DE GARDE | B5: PAGE DE GARDE LIASSE | C5: 1
A6: NOTE 36 | B6: Tables des codes | C6: 1
A7: R1 | B7: Fiche d'identification et renseignements divers 1 | C7: 1
A8: R2 | B8: Fiche d'identification et renseignements divers 2 | C8: 1
A9: R3 | B9: Fiche d'identification et renseignements divers 3 | C9: 1
A10: R4 | B10: Fiche recapitulative des Notes annexes présentées | C10: 1
A11: BILAN | B11: Bilan en paysage | C11: 1
A12: COMPTE DE RESULTAT | B12: Compte de résultat | C12: 1
A13: TABLEAU DES FLUX DE TRESORERIE | B13: Tableau des flux de trésorerie | C13: 1
A14: NOTE 1 | B14: Dettes garanties par des suretés réelles | C14: =IF('R4'!K8="X",1,0) -> 0
A15: NOTE 2 | B15: Informations obligatoires | C15: =IF('R4'!K9="X",1,0) -> 1
A16: NOTE 3A | B16: Immobilisation brute | C16: =IF('R4'!K10="X",1,0) -> 1
A17: NOTE 3B | B17: Biens pris en location acquisition | C17: =IF('R4'!K11="X",1,0) -> 0
A18: NOTE 3C | B18: Immobilisations : amortissements | C18: =IF('R4'!K12="X",1,0) -> 1
A19: NOTE 3D | B19: Immobilisations : plus-values et moins-value de cession | C19: =IF('R4'!K13="X",1,0) -> 1
A20: NOTE 3E | B20: Informations sur les réévaluations effectuées par l'entité | C20: =IF('R4'!K14="X",1,0) -> 1
A21: NOTE 4 | B21: Tableau d'étalement des charges immobilisées | C21: =IF('R4'!K15="X",1,0) -> 1
A22: NOTE 5 | B22: Immobilisations financières | C22: =IF('R4'!K16="X",1,0) -> 1
A23: NOTE 6 | B23: Actif circulant et dettes circulantes HAO | C23: =IF('R4'!K17="X",1,0) -> 0
A24: NOTE 7 | B24: Stocks et encours | C24: =IF('R4'!K18="X",1,0) -> 1
A25: NOTE 8 | B25: Clients | C25: =IF('R4'!K19="X",1,0) -> 1
A26: NOTE 8A | B26: Autres créances | C26: =IF('R4'!K20="X",1,0) -> 0
A27: NOTE 9 | B27: Titres de placement | C27: =IF('R4'!K21="X",1,0) -> 0
A28: NOTE 10 | B28: Valeurs à encaisser | C28: =IF('R4'!K22="X",1,0) -> 0
A29: NOTE 11 | B29: Disponibilités | C29: =IF('R4'!K23="X",1,0) -> 1
A30: NOTE 12 | B30: Ecarts de conversion et transferts de charges | C30: =IF('R4'!K24="X",1,0) -> 0
A31: NOTE 13 | B31: Capital : valeur nominale des actions ou parts | C31: =IF('R4'!K25="X",1,0) -> 0
A32: NOTE 14 | B32: Primes et réserves | C32: =IF('R4'!K26="X",1,0) -> 1
A33: NOTE 15A | B33: Subventions et provisions règlementées | C33: =IF('R4'!K27="X",1,0) -> 1
A34: NOTE 15 B | B34: Autres fonds propres | C34: =IF('R4'!K28="X",1,0) -> 0
A35: NOTE 16A | B35: Dettes financières et ressources assimilées | C35: =IF('R4'!K29="X",1,0) -> 1
A36: NOTE 16 B | B36: Engagements de retraite et avantages assimiles (méthode actuarielle) | C36: =IF('R4'!K30="X",1,0) -> 0
A37: NOTE 16 B bis | B37: Engagements de retraite et avantages assimiles (méthode actuarielle) | C37: =IF('R4'!K31="X",1,0) -> 0
A38: NOTE 16 C | B38: Actifs et passifs éventuels | C38: =IF('R4'!K32="X",1,0) -> 0
A39: NOTE 17 | B39: Fournisseurs d'exploitation | C39: =IF('R4'!K33="X",1,0) -> 1
A40: NOTE 18 | B40: Dettes fiscales et sociales | C40: =IF('R4'!K34="X",1,0) -> 1
A41: NOTE 19 | B41: Autres dettes et provisions pour risques a court terme | C41: =IF('R4'!K35="X",1,0) -> 1
A42: NOTE 20 | B42: Banques, crédit d'escompte et de trésorerie | C42: =IF('R4'!K36="X",1,0) -> 0
A43: NOTE 21 | B43: Chiffre d'affaires et autres produits | C43: =IF('R4'!K37="X",1,0) -> 1
A44: NOTE 22 | B44: Achats | C44: =IF('R4'!K38="X",1,0) -> 1
A45: NOTE 23 | B45: Transports | C45: =IF('R4'!K39="X",1,0) -> 1
A46: NOTE 24 | B46: Services extérieurs | C46: =IF('R4'!K40="X",1,0) -> 1
A47: NOTE 25 | B47: Impôts et taxes | C47: =IF('R4'!K41="X",1,0) -> 1
A48: NOTE 26 | B48: Autres charges | C48: =IF('R4'!K42="X",1,0) -> 1
A49: NOTE 27A | B49: Charges de personnel | C49: =IF('R4'!K43="X",1,0) -> 1
A50: NOTE 27B | B50: Effectifs, masse salariale et personnel extérieur | C50: =IF('R4'!K44="X",1,0) -> 0
A51: NOTE 28 | B51: Provisions et dépréciations inscrites au bilan | C51: =IF('R4'!K45="X",1,0) -> 1
A52: NOTE 29 | B52: Charges et revenus financiers | C52: =IF('R4'!K46="X",1,0) -> 0
A53: NOTE 30 | B53: Autres charges et produits HAO | C53: =IF('R4'!K47="X",1,0) -> 0
A54: NOTE 31 | B54: Répartition du résultat et autres éléments caractéristiques des cinq derniers années | C54: =IF('R4'!K48="X",1,0) -> 1
A55: NOTE 32 | B55: Production de l'exercice | C55: =IF('R4'!K49="X",1,0) -> 0
A56: NOTE 33 | B56: Achats destines a la production | C56: =IF('R4'!K50="X",1,0) -> 0
A57: NOTE 34 | B57: Fiche de synthèse des principaux indicateurs financiers | C57: =IF('R4'!K51="X",1,0) -> 1
A58: NOTE 35 | B58: Liste des informations sociales, environnementales et sociétales à fournir | C58: =IF('R4'!K52="X",1,0) -> 1
A59: GARDE (DGI) | B59: Etats Supplémentaires-Direction Générale des Impôts | C59: 1
A60: Liste ETATS SUPPL DGI | B60: FICHE RECAPITULATIVE DES ETATS SUPPLEMENTAIRES DGI PRESENTES (1) | C60: 1
A61: SUPPL1-CHARGES | B61: ETAT SUPPLEMENTAIRE DIRECTION GENERALE DES IMPOTS/COMPTABILITE NATIONALE | C61: =IF('Liste ETATS SUPPL DGI'!I9="X",1,0) -> 1
A62: SUPPL2-PRODUITS | B62: ETAT SUPPLEMENTAIRE DIRECTION GENERALE DES IMPOTS/COMPTABILITE NATIONALE | C62: =IF('Liste ETATS SUPPL DGI'!I10="X",1,0) -> 1
A63: SUPPL3-TVA (1) | B63: ETAT SUPPLEMENTAIRE DIRECTION GENERALE DES IMPOTS/COMPTABILITE NATIONALE | C63: =IF('Liste ETATS SUPPL DGI'!I11="X",1,0) -> 1
A64: SUPPL4-TVA (2) | B64: ETAT SUPPLEMENTAIRE COMPTABILITE NATIONALE | C64: =IF('Liste ETATS SUPPL DGI'!I12="X",1,0) -> 0
A65: SUPPL5 | B65: ETAT SUPPLEMENTAIRE : ELEMENTS STATISTIQUES UEMOA | C65: =IF('Liste ETATS SUPPL DGI'!I13="X",1,0) -> 0
A66: SUPPL6 | B66: REPARTITION DU RESULTAT FISCAL DES SOCIETES DE PERSONNES | C66: =IF('Liste ETATS SUPPL DGI'!I14="X",1,0) -> 0
A67: SUPPL7 | B67: COMPLEMENT INFORMATIONS ENTITES INDIVIDUELLES | C67: =IF('Liste ETATS SUPPL DGI'!I15="X",1,0) -> 0
A68: SUPPL8 | B68: TABLEAU DES IMMOBILISATIONS ET DES AMORTISSEMENTS | C68: =IF('Liste ETATS SUPPL DGI'!I16="X",1,0) -> 0
A69: SUPPL9 | B69: DETAIL DES FRAIS ACCESSOIRES SUR ACHATS | C69: =IF('Liste ETATS SUPPL DGI'!I17="X",1,0) -> 0
A70: SUPPL10 | B70: DETAIL DES AVANTAGES EN NATURE | C70: =IF('Liste ETATS SUPPL DGI'!I18="X",1,0) -> 0
A71: SUPPL 11 | B71: CREANCES & DETTES ECHUES DE L'EXERCICE | C71: =IF('Liste ETATS SUPPL DGI'!I19="X",1,0) -> 0
A72: SUPPL12 | B72: ETAT ANNUEL DES SALAIRES | C72: =IF('Liste ETATS SUPPL DGI'!I20="X",1,0) -> 0
A73: SUPPL13 | B73: ETAT ANNUEL DES COMMISSIONS, VACATIONS, COURTAGES, RISTOURNES, HONORAIRES ET DROITS D'AUTEUR | C73: =IF('Liste ETATS SUPPL DGI'!I21="X",1,0) -> 0
A74: SUPPL14 | B74: ETAT ANNUEL DES REMUNERATIONS VERSEES AUX ASSOCIES ET DES PARTS DE BENEFICES SOCIAUX | C74: =IF('Liste ETATS SUPPL DGI'!I22="X",1,0) -> 0
A75: SUPPL15 | B75: ETAT DES LOYERS PASSES EN CHARGES | C75: =IF('Liste ETATS SUPPL DGI'!I23="X",1,0) -> 0
A76: SUPPL16 | B76: ETAT ANNUEL DES HONORAIRES RETROCEDES POUR DETERMINATION DE L'IBNC | C76: =IF('Liste ETATS SUPPL DGI'!I24="X",1,0) -> 0
A77: SUPPL17 | B77: LISTE DES PRINCIPAUX CLIENTS | C77: =IF('Liste ETATS SUPPL DGI'!I25="X",1,0) -> 0
A78: SUPPL18 | B78: LISTE DES PRINCIPAUX FOURNISSEURS | C78: =IF('Liste ETATS SUPPL DGI'!I26="X",1,0) -> 0
A79: SUPPL19 RESULTAT FISCAL | B79: TABLEAU DE DETERMINATION DU RESULTAT FISCAL | C79: =IF('Liste ETATS SUPPL DGI'!I27="X",1,0) -> 1
A80: SUPPL20 BAV | B80: BORDEREAU AVIS DE VERSEMENT | C80: =IF('Liste ETATS SUPPL DGI'!I28="X",1,0) -> 1
A81: PREL ET RET SUPPORTES IMPUTABLE | B81: DECLARATION DES PRELEVEMENTS ET RETENUES A LA SOURCE SUPPORTES A TITRE D'ACOMPTE | E81: Ces 4 lignes n'apparaissent pas dans Liste ETATS SUPPL DGI je ne sais aps comment les automatiser
A82: ANNEXE 1 PREL DOUANES | B82: RELEVE DES PRELEVEMENTS ACQUITES SUR LES IMPORTATIONS DE BIENS
A83: ANNEX 2_PREL INTERIEUR | B83: ETAT DETAILLE DES PRELEVEMENTS SUPPORTES EN REGIME INTERIEUR
A84: ANNEXE 3_ RET SUPPORTEES | B84: ETAT DES RETENUES SUPPORTEES AU COURS DE LA PERIODE A LAQUELLE SE RAPPORTE LA DECLARATION
A85: PAGE GARDE IS | B85: DETERMINATION DU RESULTAT FISCAL ET DE L'IMPOT SUR LES SOCIETES (IS) | C85: =IF('Liste ETATS SUPPL DGI'!I29="X",1,0) -> 0
A86: PAGE GARDE IBICA | B86: DETERMINATION DU RESULTAT FISCAL ET DE L'IMPOT SUR LES BENEFICES INDUSTRIELS OU COMMERCIAUX | C86: =IF('Liste ETATS SUPPL DGI'!I30="X",1,0) -> 1
A87: PAGE GARDE BNC | B87: DETERMINATION DU RESULTAT FISCAL ET DE L'IMPOT SUR LES DES BENEFICES NON COMMERCIAUX (IBNC) | C87: =IF('Liste ETATS SUPPL DGI'!I31="X",1,0) -> 1

Sheet LIASSE SYSCOHADA
D2: BURKINA FASO
A4: MINISTERE DE L'ECONOMIE DES FINANCES ET DU DEVELOPPEMENT
C6: DIRECTION GENERALE DES IMPOTS
A19: SUPPORT NORMALISE DE COLLECTE DES
A20: ETATS FINANCIERS DU SYSTÈME COMTABLE OHADA
C22: (SYSCOHADA)
C31: LIASSE SYSTEME NORMAL

Sheet PAGE DE GARDE
E2: BURKINA FASO
D5: =INFORMATIONS!B3 -> MINISTERE DE L'ECONOMIE, DES FINANCES ET DU DEVELOPPEMENT
D8: CENTRE DE DEPOT DE: | H8: =INFORMATIONS!B18 -> Ouagadougou
D10: ETATS FINANCIERS NORMALISES
D11: SYSTÈME COMPTABLE OHADA (SYSCOHADA)
D15: EXERCICE CLOS LE: | H15: =INFORMATIONS!D31 -> 2018-12-31
D17: DESIGNATION DE L'ENTITE
D20: DENOMINATION SOCIALE | E20: =IF(INFORMATIONS!B12="INDIVIDUELLE",INFORMATIONS!B13&"/"&INFORMATIONS!B10,INFORMATIONS!B10) -> SAMBA BONIFACE/SAM CONSEILS
D21: (ou nom et prénoms de l'exploitant)
D24: SIGLE USUEL: | E24: =INFORMATIONS!B11 -> SAM CONSEILS
D27: ADRESSE COMPLETE: | F27: =INFORMATIONS!B19&" "&INFORMATIONS!C19&" "&INFORMATIONS!D19&" "&INFORMATIONS!E19&" "&INFORMATIONS!F19 -> 02 BP 5358 OUAGA 02
D30: N° IDENTIFICATION FISCALE | E30: =INFORMATIONS!B24 -> 00084404X
D31: N° DE TELEDECLARANT (NES):
D33: SYSTÈME NORMAL
D35: Documents déposés | H35: Réservé à la Direction Générale des Impôts
D37: Fiche d'identification et renseignements divers | H37: Date de dépôt
D38: Bilan
D39: Compte de résultat | H39: Nom de l'agent de la DGI ayant réceptionné le dépôt
D40: Tableau des flux de trésorerie
D41: Notes annexées
D42: Etats supplémentaires DGI
H43: Signature de l'agent et cachet du service
D44: Nombre de pages déposés par exemplaire:
D45: Nombre d'exemplaire déposés: | F45: 03
F49: - 0 -
D52: CONDITIONS DE RECEVABILITE
D54: Entités utilisant des imprimés:
D56: * N'utilisez que des imprimés normalisés
D57: * Remplir chaque page de façon parfaitement lisible sans décalage de lignes
D58: * Ne créer aucune rubrique
D59: * Eviter toute surcharge et donner les explications sur une feuille séparée
D60: * N'utilisez que des codes indiqués dans les tables
D61: * N'utilisez que des imprimés en noir et blanc
D63: Entités produisant les états financiers à l'aide de l'outil informatique
D65: * Reproduire à l'identique la contexture des imprimés normalisés
D66: * Fournir une liasse comprenant à la fois : la fiche d'identification et renseignement diverses
D67: * Ne créer aucune rubrique
D68: * N'utilisez que des codes indiqués dans les tables
D69: * N'utilisez que des imprimés en noir et blanc
D71: Etats financiers
D73: Les rubriques et les postes du bilan, du Compte de résultat et du Tableau des Flux
D74: Les Notes annexes non chiffrées doivent êtres supprimées. Cependant, elles

Sheet NOTE 36
D1: NOTE 36 : TABLES DES CODES
D3: Désignation entité:……………………………………. | E3: =INFORMATIONS!B10 -> SAM CONSEILS | H3: Exercice clos au: | J3: =INFORMATIONS!D31 -> 2018-12-31
D4: Numéro d'identification:……………………………….. | F4: =INFORMATIONS!B24 -> 00084404X | H4: Durée (en mois): | J4: =INFORMATIONS!F34 -> 12
D5: N° DE TELEDECLARANT (NES): | E5: =INFORMATIONS!F24 -> AMMTB89
D7: 1- Code forme juridique (1) | G7: 3- Code pays du siège social
D8: Société Anonyme (SA) à participation publique | E8: 0 | F8: 0 | G8: Pays OHADA (2)
D9: Société Anonyme (SA) | E9: 0 | F9: 1 | G9: Autres pays africains | H9: 2 | I9: 1
D10: Société à Responsabilité Limitée (SARL) | E10: 0 | F10: 2 | G10: France | H10: 2 | I10: 3
D11: Société en Commandite Simple (SCS) | E11: 0 | F11: 3 | G11: Autres pays de l'Union Européenne | H11: 3 | I11: 9
D12: Société en Nom Collectif (SNC) | E12: 0 | F12: 4 | G12: USA | H12: 4 | I12: 0
D13: Société en Participation (SP) | E13: 0 | F13: 5 | G13: Canada | H13: 4 | I13: 1
D14: Groupement d'Intérêt Economique (GIE) | E14: 0 | F14: 6 | G14: Autres pays américains | H14: 4 | I14: 9
D15: Association | E15: 0 | F15: 7 | G15: Pays asiatiques | H15: 5 | I15: 0
D16: Société par Action Simplifiée (SAS) | E16: 0 | F16: 8 | G16: Autres pays | H16: 9 | I16: 9
D17: Autres formes juridiques (à préciser) | E17: 0 | F17: 9
D18: 2- Code régime fiscal
D19: Réel normal | F19: 1
D20: Réel simplifié | F20: 2
D21: Synthétique | F21: 3
D22: Forfait | F22: 4
D25: (1) Remplacer le premier 0 par 1 si l'entité bénéficie d'un agrément prioritaire
D26: (2) Code Pays OHADA
D27: Benin = 01 | E27: Mali = 05 | G27: Congo = 10 | H27: Comores = 14
D28: Burkina = 02 | E28: Niger = 06 | G28: Gabon = 11 | H28: Guinée = 15
D29: Côte d'ivoire = 03 | E29: Sénégal = 07 | G29: République Centrafricaine = 12 | H29: Guinée Equatoriale = 16
D30: Guinée Bissau = 04 | E30: Togo = 08 | G30: Tchad = 13 | H30: Congo RDC = 17
E31: Cameroun = 09
D34: NOTE 36 (suite Nomenclature)
D35: Sélectionner la ou les codes activités selon le découpage de votre chiffre d'affaires pour le renseignement de la fiche R2
D36: Agriculture vivrière | G36: Industries du caoutchouc et des plastiques
D37: 001 001 Culture céréalière | G37: 022 001 Fabrication du caoutchouc naturel
D38: 001 002 Culture de tubercules et plantains | G38: 022 002 Industries du caoutchouc
D39: 001 003 Culture de légumes | G39: 022 003 Fabrication de matières plastiques
D40: 001 004 Culture de condiments | G40: Fabrication d'autres produits minéraux non
D41: 001 005 Culture de fruits | G41: métalliques et de matériaux de construction
D42: 001 006 Culture d'autres produits de l'agriculture vivrière | G42: 023 001 Industries du verre
D43: Agriculture industrielle et d'exportation | G43: 023 002 Fabrication de produits minéraux pour la construction
D44: 002 001 Culture de canne à sucre | G44: 023 003 Fabrication d'autres produits minéraux non métalliques
D45: 002 002 Culture d'arachide d'huilerie | G45: Métallurgie et travail des métaux
D46: 002 003 Culture d'arachide de bouche | G46: 024 001 Métallurgie
D47: 002 004 Culture de tabac | G47: 024 002 Travail des métaux
D48: 002 005 Culture de coton | G48: Fabrication de machines, d'équipements
D49: 002 006 Culture de blé | G49: et d'appareils électriques
D50: 002 007 Culture de cacao | G50: 025 001 Fabrication de machines et d'équipements
D51: 002 008 Culture de café | G51: 025 002 Fabrication de machines de bureau
D52: 002 009 Culture de bananes d'exportation | G52: 025 003 Fabrication d'appareils électriques
D53: 002 010 Culture d'ananas d'exportation | G53: Fabrication d'équipements et appareils
D54: 002 011 Autres cultures industrielles | G54: audiovisuels et de communication ;
D55: Elevage et chasse | G55: fabrication d'instruments médicaux,
D56: 003 001 Elevage bovin | G56: d'optique et d'horlogerie
D57: 003 002 Elevage ovin, caprin, équin | G57: 026 001 Fabrication d'équipements et appareils audiovisuels et de communication
D58: 003 003 Elevage de volailles | G58: 026 002 Fabrication d'instruments médicaux, d'optique et d'horlogerie
D59: 003 004 Autres élevages | G59: Fabrication de matériel de transport
D60: 003 005 Chasse | G60: 027 001 Fabrication de véhicules routiers
D61: Sylviculture, exploitation forestière | G61: 027 002 Fabrication d'autres matériels de transport
D62: 004 001 Sylviculture | G62: Industries diverses
D63: 004 002 Exploitation forestière | G63: 028 001 Fabrication de meubles
D64: Pêche et aquaculture | G64: 028 002 Industries diverses
D65: 005 001 Pêche de poissons | G65: Production et distribution d'eau,
D66: 005 002 Autres pêches et aquaculture | G66: d'électricité et de gaz
D67: Industries extractives | G67: 029 001 Production, transport et
D68: 006 001 Extraction d'hydrocarbures | G68: 029 002 Captage, épuration et distribution d'eau
D69: 006 002 Extraction d'autres produits | G69: 029 003 Production et distribution de gaz
D70: Production de viande et de poissons | G70: Construction
D71: 007 001 Production de viande et de produits à base de viande | G71: 030 001 Préparation de sites et construction d'ouvrages de bâtiment ou de génie civil
D72: 007 002 Production de poissons et de produits à base de poissons | G72: 030 002 Travaux d'installation et de finition
D73: Travail des grains et fabrication de produits amylacés | G73: Commerce
D74: 008 000 Travail des grains et fabrication de produits amylacés | G74: 031 001 Commerce de véhicules, d'accessoires et de carburant
D75: Transformation du café et du cacao | G75: 031 002 Commerce de produits agricoles bruts et d'animaux vivants
D76: 009 001 Transformation du café | G76: 031 003 Autres commerces
D77: 009 002 Transformation du cacao | G77: Réparations
D78: Industrie des oléagineux | G78: 032 001 Entretien et réparation de véhicules automobiles
D79: 010 001 Huiles brutes et tourteaux | G79: 032 002 Réparation de biens personnels et domestiques
D80: 010 002 Autres corps gras | G80: Hôtels, restaurants
D81: Boulangerie, pâtisserie et pâtes alimentaires | G81: 033 001 Hôtels
D82: 011 001 Fabrication de pains, de biscuits et de pâtisserie | G82: 033 002 Bars et restaurants
D83: 011 002 Fabrication de pâtes alimentaires | G83: Transport et communication
D84: Industries laitières | G84: 034 001 Transports ferroviaires
D85: 012 000 Industries laitières | G85: 034 002 Transports routiers ; transports par conduite
G86: 034 003 Transports par eau
G87: 034 004 Transports aériens
G88: 034 005 Services annexes et auxiliaires de

Sheet R1
D1: FICHE DE RENSEIGNEMENTS R1
D3: Dénomination sociale de l'entité: | H3: =IF(INFORMATIONS!B12="INDIVIDUELLE",INFORMATIONS!B13&"/"&INFORMATIONS!B10,INFORMATIONS!B10) -> SAMBA BONIFACE/SAM CONSEILS
I4: Sigle usuel: | K4: =INFORMATIONS!B11 -> SAM CONSEILS
D6: N° d'identification fiscale | G6: =INFORMATIONS!B24 -> 00084404X | I6: Exercice clos le: | K6: =INFORMATIONS!D31 -> 2018-12-31 | L6: Durée (en mois) | N6: =INFORMATIONS!F31 -> 12
D8: ZA | E8: EXERCICE COMPTABLE | I8: DU: | J8: =INFORMATIONS!B31 -> 2018-01-01 | L8: AU | M8: =INFORMATIONS!D31 -> 2018-12-31
D10: ZB | E10: DATE D'ARRETE EFFECTIF DES COMPTES: | H10: =INFORMATIONS!B32 -> 2018-12-31
D12: ZC | E12: EXERCICE PRECEDENT CLOS LE : | H12: =INFORMATIONS!B33 -> 2017-12-31 | J12: DUREE EXERCICE PRECEDENT EN MOIS: | N12: =INFORMATIONS!F34 -> 12
D14: ZD | E14: BF | F14: =INFORMATIONS!B23 -> 0
E15: Greffe | F15: N°Registre du Commerce | J15: N° Répertoire des entités
D16: ZE | E16: =INFORMATIONS!B25 -> 0 | M16: =INFORMATIONS!B26 -> 0
E17: N° de Caisse sociale | H17: N° de Code importateur | M17: Code activité principale
D18: ZF | E18: =INFORMATIONS!B10 -> SAM CONSEILS | M18: =INFORMATIONS!B11 -> SAM CONSEILS
E19: Désignation de l'entité | M19: Sigle
D20: ZG | E20: =INFORMATIONS!B21 -> 0 | G20: =INFORMATIONS!B22 -> 0 | J20: =INFORMATIONS!B19 -> 02 | K20: =INFORMATIONS!D19 -> 5358 | M20: =INFORMATIONS!E19 -> OUAGA
E21: N° de télephone | G21: Email | J21: Code | K21: Boite postale | M21: Ville
D22: ZH | F22: =INFORMATIONS!C16 -> 0 | H22: =INFORMATIONS!B18 -> Ouagadougou | J22: =INFORMATIONS!D2 -> BF | K22: =INFORMATIONS!D16 -> 18 | M22: =INFORMATIONS!E16 -> 05 | N22: =INFORMATIONS!F16 -> AW
F23: Rue | G23: Quartier | H23: Ville | J23: Pays | K23: Parcelle | M23: Lot | N23: Section
F24: Adresse géographique complète:
D26: ZI | E26: =INFORMATIONS!B27 -> 0
E27: Désignation précise de l'activité principale exercée par l'entité
E28: =INFORMATIONS!B48 -> 0
E29: Nom, adresse et qualité de la personne à contacter en cas de demande d'informations complémentaires
E30: =INFORMATIONS!B49 -> 0
E31: Nom du professionnel salarié de l'entité ou
E32: nom, adresse et téléphone du cabinet comptable ou du professionnel INSCRIT A L'ORDRE NATIONAL DES EXPERTS
E33: COMPTABLES ET DES COMPTABLES AGREES ayant établi les états financiers
E37: Visa de l'Expert comptable ou du Comptable agréé
K39: Non Applicable | M39: Non | N39: Oui
K42: Etats financiers approuvés par l'Assemblée
K43: Générale (cocher la case)
E44: =INFORMATIONS!B45 -> 0 | J44: Domiciliations bancaires:
E45: Nom du signataire des états financiers | J45: Banques | L45: Numéro de compte
E47: =INFORMATIONS!B46 -> 0 | J47: =INFORMATIONS!B36 -> 0 | L47: =INFORMATIONS!D36 -> 0
E48: Qualité du signataire des états financiers | J48: =INFORMATIONS!B38 -> 0 | L48: =INFORMATIONS!D38 -> 0
E49: =INFORMATIONS!B47 -> 0 | J49: =INFORMATIONS!B40 -> 0 | L49: =INFORMATIONS!D40 -> 0
E50: Date de signature | J50: =INFORMATIONS!B42 -> 0 | L50: =INFORMATIONS!D42 -> 0
E55: Signature

Sheet R2
D1: FICHE DE RENSEIGNEMENTS R2
D3: Désignation entité:……………………………………. | F3: =INFORMATIONS!B10 -> SAM CONSEILS | P3: Exercice clos au: | S3: =INFORMATIONS!D31 -> 2018-12-31
D4: Numéro d'identification:……………………………….. | G4: =INFORMATIONS!B24 -> 00084404X | P4: Durée (en mois): | T4: =INFORMATIONS!F31 -> 12
L7: Contrôle de l'entité (cocher la case)
D9: ZK | E9: Forme juridique (1) | I9: 0 | J9: 1 | L9: ZQ | N9: Entité sous contrôle public
D11: ZL | E11: Régime fiscal (1) | H11: 0 | I11: 2 | L11: ZR | N11: Entité sous contrôle privé national
D13: ZM | E13: Pays du siège social (1) | I13: 0 | J13: 2 | L13: ZS | N13: Entité sous contrôle privé étranger
D15: ZN | E15: Nombre d'établissements dans le pays | I15: 0 | J15: 1
D17: ZO | E17: Nombre d'établissements hors du pays pour lesquels une comptabilité distincte est tenue | I17: 0 | J17: 0
D19: ZP | E19: Première année d'exercice dans le pays
D23: ACTIVITE DE L'ENTITE
D25: Désignation de l'activité (2) | G25: Code nomenclature d'activité (1) | O25: Chiffre d'affaires HT (CA HT) | Q25: % activité dans le CA HT
D29: 1 | E29: =INFORMATIONS!B27 -> 0 | H29: =INFORMATIONS!B26 -> 0 | O29: ='COMPTE DE RESULTAT'!K15 -> 2041946745 | Q29: =IF(O49=0,"",O29/O49) -> 1
D31: 2 | Q31: =IF(O49=0,"",O31/O49) -> 0
D33: 3 | Q33: =IF(O49=0,"",O33/O49) -> 0
D35: 4
D37: 5
D39: 6
D41: 7
D43: 8
D45: 9
D47: 10
G49: TOTAL | O49: =SUM(O29:P47) -> 2041946745 | Q49: =SUM(Q29:U47) -> 1
D52: (1) Note 36
D54: (2) Lister de manière précise les activités dans l'ordre décroissant du CA HT, ou de la valeur ajoutée (V.A)

Sheet R3
D1: FICHE DE RENSEIGNEMENTS R3
D3: Désignation entité:……………………………………. | E3: =INFORMATIONS!B10 -> SAM CONSEILS | I3: Exercice clos au: | J3: =INFORMATIONS!D31 -> 2018-12-31
D4: Numéro d'identification:……………………………….. | F4: =INFORMATIONS!B24 -> 00084404X | I4: Durée (en mois): | J4: =INFORMATIONS!F34 -> 12
D8: DIRIGEANTS (1)
D10: Nom | F10: Prénoms | H10: Qualité | I10: N°identification fiscale | J10: Adresse (BP, ville, pays)
D15: (1) Dirigeants = Président Directeur Général, Directeur général, Administrateur Général, Gérant, Autres
D20: MEMBRES DU CONSEIL D'ADMINISTRATION
D21: Nom | F21: Prénoms | H21: Qualité | I21: Adresse (BP, ville, pays)

Sheet R4
D1: FICHE DE RENSEIGNEMENTS R4
D3: Désignation entité:……… | G3: =INFORMATIONS!B10 -> SAM CONSEILS | K3: Exercice clos au: | L3: =INFORMATIONS!D31 -> 2018-12-31
D4: Numéro d'identification:……………………………….. | H4: =INFORMATIONS!B24 -> 00084404X | K4: Durée (en mois): | L4: =INFORMATIONS!F34 -> 12
D7: NOTES | E7: INTITULES | K7: A | L7: N/A
D8: 1 | E8: DETTES GARANTIES PAR DES SURETES REELLES | K8: =IF(('NOTE 1'!G30+'NOTE 1'!G39)>0,"X"," ") ->  | L8: =IF(('NOTE 1'!G30+'NOTE 1'!G39)>0," ","X") -> X
D9: 2 | E9: INFORMATIONS OBLIGATOIRES | K9: =IF('NOTE 2'!K4>0,"X"," ") -> X
D10: 3A | E10: IMMOBILISATIONS BRUTES | K10: =IF('NOTE 3A'!K27>0,"X"," ") -> X | L10: =IF('NOTE 3A'!K27>0," ","x") -> 
D11: 3B | E11: BIENS PRIS EN LOCATION ACQUISITION | K11: =IF('NOTE 3B'!K18>0,"X"," ") ->  | L11: =IF('NOTE 3B'!K18>0," ","X") -> X
D12: 3C | E12: IMMOBILISATIONS: AMORTISSEMENTS | K12: =IF('NOTE 3C'!I20>0,"X"," ") -> X | L12: =IF('NOTE 3C'!I20>0," ","X") -> 
D13: 3D | E13: IMMOBILISATION: PLUS-VALUES ET MOINS VALUES DE CESSION | K13: =IF('NOTE 3D'!F21>0,"X"," ") -> X | L13: =IF('NOTE 3D'!F21>0," ","X") -> 
D14: 3E | E14: INFORMATIONS SUR LES REEVALUATIONS EFFECTUEES PAR L'ENTITE | K14: =IF('NOTE 3E'!H19>0,"X"," ") -> X | L14: =IF('NOTE 3E'!H19>0," ","X") -> 
D15: 4 | E15: IMMOBILISATIONS FINANCIERES | K15: =IF('NOTE 4'!F16>0,"x"," ") -> x | L15: =IF('NOTE 4'!F16>0," ","X") -> 
D16: 5 | E16: ACTIF CIRCULANT ET DETTES CIRCULANTES HAO | K16: =IF(('NOTE 5'!G9+'NOTE 5'!G29)>0,"x"," ") -> x | L16: =IF(('NOTE 5'!G9+'NOTE 5'!G29)>0," ","X") -> 
D17: 6 | E17: STOCKS ET ENCOURS | K17: =IF('NOTE 6'!J15>0,"X"," ") ->  | L17: =IF('NOTE 6'!J15>0," ","X") -> X
D18: 7 | E18: CLIENTS | K18: =IF('NOTE 6'!J16>0,"X"," ") -> X | L18: =IF('NOTE 6'!J16>0," ","X") -> 
D19: 8 | E19: AUTRES CREANCES | K19: =IF(('NOTE 8'!F17+'NOTE 8'!G17)>0,"X"," ") -> X | L19: =IF(('NOTE 8'!F17+'NOTE 8'!G17)>0," ","X") -> 
D20: 8A | E20: TABLEAU D'ETALEMENT DES CHARGES IMMOBILISEES | K20: =IF(('NOTE 8A'!H20+'NOTE 8A'!J20+'NOTE 8A'!L20)>0,"X"," ") ->  | L20: =IF(('NOTE 8A'!H20+'NOTE 8A'!J20+'NOTE 8A'!L20)>0," ","X") -> X
D21: 9 | E21: TITRES DE PLACEMENT | K21: =IF(('NOTE 9'!G14+'NOTE 9'!H14)>0,"X"," ") ->  | L21: =IF(('NOTE 9'!G14+'NOTE 9'!H14)>0," ","X") -> X
D22: 10 | E22: VALEURS A ENCAISSER | K22: =IF(('NOTE 10'!G13+'NOTE 10'!H13)>0,"X"," ") ->  | L22: =IF(('NOTE 10'!G13+'NOTE 10'!H13)>0," ","X") -> X
D23: 11 | E23: DISPONIBILITES | K23: =IF(('NOTE 11'!G20+'NOTE 11'!H20)>0,"X"," ") -> X | L23: =IF(('NOTE 11'!G20+'NOTE 11'!H20)>0," ","X") -> 
D24: 12 | E24: ECARTS DE CONVERSION ET TRANSFERT DE CHARGES | K24: =IF(('NOTE 12'!G13+'NOTE 12'!G20)>0,"X"," ") ->  | L24: =IF(('NOTE 12'!GH13+'NOTE 12'!G20)>0," ","X") -> X
D25: 13 | E25: CAPITAL: VALEUR NOMINALE DES ACTIONS OU PARTS | K25: =IF(('NOTE 13'!I18)>0,"X"," ") ->  | L25: =IF(('NOTE 13'!I18)>0," ","X") -> X
D26: 14 | E26: PRIMES ET RESERVES | K26: =IF(('NOTE 14'!G12+'NOTE 14'!H12+'NOTE 14'!G18+'NOTE 14'!H18+'NOTE 14'!G19+'NOTE 14'!H19+'NOTE 14'!G20+'NOTE 14'!H20)>0,"X"," ") -> X | L26: =IF(('NOTE 14'!G12+'NOTE 14'!H12+'NOTE 14'!G18+'NOTE 14'!H18+'NOTE 14'!G19+'NOTE 14'!H19+'NOTE 14'!G20+'NOTE 14'!H20)>0," ","X") -> 
D27: 15A | E27: SUBVENTIONS ET PROVISIONS REGLEMENTEES | K27: =IF(('NOTE 15A'!F24+'NOTE 15A'!G24)>0,"X"," ") -> X | L27: =IF(('NOTE 15A'!F24+'NOTE 15A'!G24)>0," ","X") -> 
D28: 15B | E28: AUTRES FONDS PROPRES | K28: =IF(('NOTE 15 B'!G12+'NOTE 15 B'!H12)>0,"X"," ") ->  | L28: =IF(('NOTE 15 B'!G12+'NOTE 15 B'!H12)>0," ","X") -> X
D29: 16A | E29: DETTES FINANCIERES ET RESSOURCES ASSIMILEES | K29: =IF(('NOTE 16A'!E17+'NOTE 16A'!F17+'NOTE 16A'!E23+'NOTE 16A'!F23)>0,"X"," ") -> X | L29: =IF(('NOTE 16A'!E17+'NOTE 16A'!F17+'NOTE 16A'!E23+'NOTE 16A'!F23)>0," ","X") -> 
D30: 16B | E30: ENGAGEMENTS DE RETRAITE ET AVANTAGES ASSIMILES (METHODE ACTUARIELLE) | K30: =IF(('NOTE 16 B'!F26+'NOTE 16 B'!F27+'NOTE 16 B'!F28+'NOTE 16 B'!F29+'NOTE 16 B'!F30+'NOTE 16 B'!F31+'NOTE 16 B'!G26+'NOTE 16 B'!G27+'NOTE 16 B'!G28+'NOTE 16 B'!G29+'NOTE 16 B'!G30+'NOTE 16 B'!G31)>0,"X"," ") ->  | L30: =IF(('NOTE 16 B'!F26+'NOTE 16 B'!F27+'NOTE 16 B'!F28+'NOTE 16 B'!F29+'NOTE 16 B'!F30+'NOTE 16 B'!F31+'NOTE 16 B'!G26+'NOTE 16 B'!G27+'NOTE 16 B'!G28+'NOTE 16 B'!G29+'NOTE 16 B'!G30+'NOTE 16 B'!G31)>0," ","X") -> X
D31: 16 B bis | E31: ENGAGEMENTS DE RETRAITE ET AVANTAGES ASSIMILES (METHODE ACTUARIELLE) | K31: =IF(('NOTE 16 B bis'!F26+'NOTE 16 B bis'!G26+'NOTE 16 B bis'!H26+'NOTE 16 B bis'!I26)>0,"X"," ") ->  | L31: =IF(('NOTE 16 B bis'!F26+'NOTE 16 B bis'!G26+'NOTE 16 B bis'!H26+'NOTE 16 B bis'!I26)>0," ","X") -> X
D32: 16C | E32: ACTIFS ET PASSIFS EVENTUELS | K32: =IF(('NOTE 16 C'!G13+'NOTE 16 C'!H13+'NOTE 16 C'!G21+'NOTE 16 C'!H21)>0,"X"," ") ->  | L32: =IF(('NOTE 16 C'!G13+'NOTE 16 C'!H13+'NOTE 16 C'!G21+'NOTE 16 C'!H21)>0," ","X") -> X
D33: 17 | E33: FOURNISSEURS D'EXPLOITATION | K33: =IF(('NOTE 17'!E13+'NOTE 17'!F13+'NOTE 17'!E17+'NOTE 17'!F17)>0,"X"," ") -> X | L33: =IF(('NOTE 17'!E13+'NOTE 17'!F13+'NOTE 17'!E17+'NOTE 17'!F17)>0," ","X") -> 
D34: 18 | E34: DETTES FISCALES ET SOCIALES | K34: =IF(('NOTE 17'!E14+'NOTE 17'!F14+'NOTE 17'!E18+'NOTE 17'!F18)>0,"X"," ") -> X | L34: =IF(('NOTE 17'!E14+'NOTE 17'!F14+'NOTE 17'!E18+'NOTE 17'!F18)>0," ","X") -> 
D35: 19 | E35: AUTRES DETTES ET PROVISIONS POUR RISQUES A COURT TERME | K35: =IF(('NOTE 19'!E26+'NOTE 19'!F26)>0,"X"," ") -> X | L35: =IF(('NOTE 19'!E26+'NOTE 19'!F26)>0," ","X") -> 
D36: 20 | E36: BANQUES, CREDIT D'ESCOMPTE ET DE TRESORERIE | K36: =IF(('NOTE 20'!G16+'NOTE 20'!H16)>0,"X"," ") ->  | L36: =IF(('NOTE 20'!G16+'NOTE 20'!H16)>0," ","X") -> X
D37: 21 | E37: CHIFFRE D'AFFAIRES ET AUTRES PRODUITS | K37: =IF(('NOTE 21'!G31+'NOTE 21'!H31)>0,"X"," ") -> X | L37: =IF(('NOTE 21'!G31+'NOTE 21'!H31)>0," ","X") -> 
D38: 22 | E38: ACHATS | K38: =IF(('NOTE 22'!G37+'NOTE 22'!H37)>0,"X"," ") -> X | L38: =IF(('NOTE 22'!G37+'NOTE 22'!H37)>0," ","X") -> 
D39: 23 | E39: TRANSPORTS | K39: =IF(('NOTE 23'!G12+'NOTE 23'!H12)>0,"X"," ") -> X | L39: =IF(('NOTE 23'!G12+'NOTE 23'!H12)>0," ","X") -> 
D40: 24 | E40: SERVICES EXTERIEURS | K40: =IF(('NOTE 24'!G21+'NOTE 24'!H21)>0,"X"," ") -> X | L40: =IF(('NOTE 24'!G21+'NOTE 24'!H21)>0," ","X") -> 
D41: 25 | E41: IMPOTS ET TAXES | K41: =IF(('NOTE 25'!G12+'NOTE 25'!H12)>0,"X"," ") -> X | L41: =IF(('NOTE 25'!G12+'NOTE 25'!H12)>0," ","X") -> 
D42: 26 | E42: AUTRES CHARGES | K42: =IF(('NOTE 26'!G16+'NOTE 26'!H16)>0,"X"," ") -> X | L42: =IF(('NOTE 26'!G16+'NOTE 26'!H16)>0," ","X") -> 
D43: 27A | E43: CHARGES DE PERSONNEL | K43: =IF(('NOTE 27A'!G13+'NOTE 27A'!H13)>0,"X"," ") -> X | L43: =IF(('NOTE 27A'!G13+'NOTE 27A'!H13)>0," ","X") -> 
D44: 27B | E44: EFFECTIFS, MASSE SALARIALE ET PERSONNEL EXTERIEUR | K44: =IF(('NOTE 27B'!Q13+'NOTE 27B'!K22+'NOTE 27B'!L22)>0,"X"," ") ->  | L44: =IF(('NOTE 27B'!Q13+'NOTE 27B'!Q22+'NOTE 27B'!L22)>0," ","X") -> X
D45: 28 | E45: PROVISIONS ET DEPRECIATIONS INSCRITES AU BILAN | K45: =IF(('NOTE 28'!K24)>0,"X"," ") -> X | L45: =IF(('NOTE 28'!K24)>0," ","X") -> 
D46: 29 | E46: CHARGES ET REVENUS FINANCIERS | K46: =IF(('NOTE 28'!K25)>0,"X"," ") ->  | L46: =IF(('NOTE 28'!K25)>0," ","X") -> X
D47: 30 | E47: AUTRES CHARGES ET PRODUITS HAO | K47: =IF(('NOTE 28'!K26)>0,"X"," ") ->  | L47: =IF(('NOTE 28'!K26)>0," ","X") -> X
D48: 31 | E48: REPARTITION DU RESULTAT ET AUTRES ELEMENTS CARACTERISTIQUES DES CINQ DERNIERS EXERCICES | K48: =IF(('NOTE 31'!F9+'NOTE 31'!G9+'NOTE 31'!H9+'NOTE 31'!I9+'NOTE 31'!J9)>0,"X"," ") -> X | L48: =IF(('NOTE 31'!F9+'NOTE 31'!G9+'NOTE 31'!H9+'NOTE 31'!I9+'NOTE 31'!J9)>0," ","X") -> 
D49: 32 | E49: PRODUCTION DE L'EXERCICE | K49: =IF(('NOTE 32'!E29+'NOTE 32'!G29+'NOTE 32'!I29+'NOTE 32'!K29+'NOTE 32'!M29+'NOTE 32'!O29)>0,"X"," ") ->  | L49: =IF(('NOTE 32'!E29+'NOTE 32'!G29+'NOTE 32'!I29+'NOTE 32'!K29+'NOTE 32'!M29+'NOTE 32'!O29)>0," ","X") -> X
D50: 33 | E50: ACHATS DESTINES A LA PRODUCTION | K50: =IF(('NOTE 33'!G30+'NOTE 33'!I30+'NOTE 33'!K30+'NOTE 33'!L30)>0,"X"," ") ->  | L50: =IF(('NOTE 33'!G30+'NOTE 33'!I30+'NOTE 33'!K30+'NOTE 33'!L30)>0," ","X") -> X
D51: 34 | E51: FICHE DE SYNTHESE DES PRINCIPAUX INDICATEURS FINANCIERS | K51: =IF((BILAN!N8+BILAN!O8+BILAN!N9+BILAN!O9)>0,"X"," ") -> X | L51: =IF((BILAN!N8+BILAN!O8+BILAN!N9+BILAN!O9)>0," ","X") -> 
D52: 35 | E52: LISTE DES INFORMATIONS SOCIALES, ENVIRONNEMENTALES ET SOCIETALES A FOURNIR | K52: X
D53: 36 | E53: TABLES DES CODES | K53: X
D54: A : Applicable | F54: N/A : Non applicable
D55: Par exemple pour une entité qui n'a pas de stocks et en-cours, elle doit cocher à l'intersection ('ligne NOTE6' & colone N/A')

Sheet BILAN
B1: BILAN AU 31 DECEMBRE | J1: =INFORMATIONS!D31 -> 2018-12-31
C3: Désignation entité:……………………………………. | D3: =INFORMATIONS!B10 -> SAM CONSEILS | M3: Exercice clos au: | O3: =INFORMATIONS!D31 -> 2018-12-31
C4: Numéro d'identification:……………………………….. | E4: =INFORMATIONS!B24 -> 00084404X | M4: Durée (en mois): | O4: =INFORMATIONS!F34 -> 12
B6: Réf | C6: ACTIF | F6: Note | G6: Exercice clos au | I6: =O3 -> 2018-12-31 | K6: Réf | L6: PASSIF | M6: Note | N6: =O3 -> 2018-12-31 | O6: =INFORMATIONS!D34 -> 2017-12-31
G7: Brut | H7: Amortiss. et Dépréciation | I7: Net | J7: Net | N7: Net | O7: Net
B8: AD | C8: IMMOBILISATIONS INCORPORELLES | F8: 3 | G8: =SUM(G9:G12) -> 4650000 | H8: =SUM(H9:H12) -> 0 | I8: =SUM(I9:I12) -> 4650000 | J8: =SUM(J9:J12) -> 2650000 | K8: CA | L8: Capital | M8: 13 | N8: =SUMPRODUCT(((LEFT(BalanceN!$A$4:$A$9999,3)="101")+(LEFT(BalanceN!$A$4:$A$9999,3)="102")+(LEFT(BalanceN!$A$4:$A$9999,3)="103")+(LEFT(BalanceN!$A$4:$A$9999,3)="104"))*BalanceN!$H$4:$H$9999) -> 400000000 | O8: =SUMPRODUCT(((LEFT(BalanceN!$A$4:$A$9999,3)="101")+(LEFT(BalanceN!$A$4:$A$9999,3)="102")+(LEFT(BalanceN!$A$4:$A$9999,3)="103")+(LEFT(BalanceN!$A$4:$A$9999,3)="104"))*BalanceN!$D$4:$D$9999) -> 100000000
B9: AE | C9: Frais de développement et de prospection | G9: =SUMPRODUCT(((LEFT(BalanceN!$A$4:$A$9999,3)="211")+(LEFT(BalanceN!$A$4:$A$9999,4)="2181")+(LEFT(BalanceN!$A$4:$A$9999,4)="2191"))*BalanceN!$G$4:$G$9999) -> 0 | H9: =SUMPRODUCT(((LEFT(BalanceN!$A$4:$A$9999,4)="2811")+(LEFT(BalanceN!$A$4:$A$9999,5)="28181")+(LEFT(BalanceN!$A$4:$A$9999,4)="2911")+(LEFT(BalanceN!$A$4:$A$9999,5)="29181")+(LEFT(BalanceN!$A$4:$A$9999,5)="29191"))*BalanceN!$H$4:$H$9999) -> 0 | I9: =G9-H9 -> 0 | J9: =SUMPRODUCT(((LEFT(BalanceN!$A$4:$A$9999,3)="211")+(LEFT(BalanceN!$A$4:$A$9999,4)="2181")+(LEFT(BalanceN!$A$4:$A$9999,4)="2191"))*BalanceN!$C$4:$C$9999)-SUMPRODUCT(((LEFT(BalanceN!$A$4:$A$9999,4)="2811")+(LEFT(BalanceN!$A$4:$A$9999,5)="28181")+(LEFT(BalanceN!$A$4:$A$9999,4)="2911")+(LEFT(BalanceN!$A$4:$A$9999,5)="29181")+(LEFT(BalanceN!$A$4:$A$9999,5)="29191"))*BalanceN!$D$4:$D$9999) -> 0 | K9: CB | L9: Apporteurs capital non appelé (-) | M9: 13 | N9: =-SUMPRODUCT(((LEFT(BalanceN!$A$4:$A$9999,3)="109"))*BalanceN!$G$4:$G$9999) -> -100000000 | O9: =-SUMPRODUCT(((LEFT(BalanceN!$A$4:$A$9999,3)="109"))*BalanceN!$C$4:$C$9999) -> 0
B10: AF | C10: Brevets, licences, logiciels et droits similaires | G10: =SUMPRODUCT(((LEFT(BalanceN!$A$4:$A$9999,3)="212")+(LEFT(BalanceN!$A$4:$A$9999,3)="213")+(LEFT(BalanceN!$A$4:$A$9999,3)="214")+(LEFT(BalanceN!$A$4:$A$9999,4)="2193"))*BalanceN!$G$4:$G$9999) -> 3050000 | H10: =SUMPRODUCT(((LEFT(BalanceN!$A$4:$A$9999,4)="2812")+(LEFT(BalanceN!$A$4:$A$9999,4)="2813")+(LEFT(BalanceN!$A$4:$A$9999,4)="2814")+(LEFT(BalanceN!$A$4:$A$9999,4)="2912")+(LEFT(BalanceN!$A$4:$A$9999,4)="2913")+(LEFT(BalanceN!$A$4:$A$9999,4)="2914")+(LEFT(BalanceN!$A$4:$A$9999,5)="29193"))*BalanceN!$H$4:$H$9999) -> 0 | I10: =G10-H10 -> 3050000 | J10: =SUMPRODUCT(((LEFT(BalanceN!$A$4:$A$9999,3)="212")+(LEFT(BalanceN!$A$4:$A$9999,3)="213")+(LEFT(BalanceN!$A$4:$A$9999,3)="214")+(LEFT(BalanceN!$A$4:$A$9999,4)="2193"))*BalanceN!$C$4:$C$9999)-SUMPRODUCT(((LEFT(BalanceN!$A$4:$A$9999,4)="2812")+(LEFT(BalanceN!$A$4:$A$9999,4)="2813")+(LEFT(BalanceN!$A$4:$A$9999,4)="2814")+(LEFT(BalanceN!$A$4:$A$9999,4)="2912")+(LEFT(BalanceN!$A$4:$A$9999,4)="2913")+(LEFT(BalanceN!$A$4:$A$9999,4)="2914")+(LEFT(BalanceN!$A$4:$A$9999,5)="29193"))*BalanceN!$D$4:$D$9999) -> 1050000 | K10: CD | L10: Primes liées au capital social | M10: 14 | N10: =SUMPRODUCT(((LEFT(BalanceN!$A$4:$A$9999,3)="105"))*BalanceN!$H$4:$H$9999) -> 0 | O10: =SUMPRODUCT(((LEFT(BalanceN!$A$4:$A$9999,3)="105"))*BalanceN!$D$4:$D$9999) -> 0
B11: AG | C11: Fonds commercial et droit au bail | G11: =SUMPRODUCT(((LEFT(BalanceN!$A$4:$A$9999,3)="215")+(LEFT(BalanceN!$A$4:$A$9999,3)="216"))*BalanceN!$G$4:$G$9999) -> 1600000 | H11: =SUMPRODUCT(((LEFT(BalanceN!$A$4:$A$9999,4)="2815")+(LEFT(BalanceN!$A$4:$A$9999,4)="2816")+(LEFT(BalanceN!$A$4:$A$9999,4)="2915")+(LEFT(BalanceN!$A$4:$A$9999,4)="2916"))*BalanceN!$H$4:$H$9999) -> 0 | I11: =G11-H11 -> 1600000 | J11: =SUMPRODUCT(((LEFT(BalanceN!$A$4:$A$9999,3)="215")+(LEFT(BalanceN!$A$4:$A$9999,3)="216"))*BalanceN!$C$4:$C$9999)-SUMPRODUCT(((LEFT(BalanceN!$A$4:$A$9999,4)="2815")+(LEFT(BalanceN!$A$4:$A$9999,4)="2816")+(LEFT(BalanceN!$A$4:$A$9999,4)="2915")+(LEFT(BalanceN!$A$4:$A$9999,4)="2916"))*BalanceN!$D$4:$D$9999) -> 1600000 | K11: CE | L11: Ecarts de réévaluation | M11: 3E | N11: =SUMPRODUCT(((LEFT(BalanceN!$A$4:$A$9999,3)="106"))*BalanceN!$H$4:$H$9999) -> 3500000 | O11: =SUMPRODUCT(((LEFT(BalanceN!$A$4:$A$9999,3)="106"))*BalanceN!$D$4:$D$9999) -> 0
B12: AH | C12: Autres immobilisations incorporelles | G12: =SUMPRODUCT(((LEFT(BalanceN!$A$4:$A$9999,3)="217")+(LEFT(BalanceN!$A$4:$A$9999,3)="218")+(LEFT(BalanceN!$A$4:$A$9999,4)="2198")-(LEFT(BalanceN!$A$4:$A$9999,4)="2181"))*BalanceN!$G$4:$G$9999) -> 0 | H12: =SUMPRODUCT(((LEFT(BalanceN!$A$4:$A$9999,4)="2817")+(LEFT(BalanceN!$A$4:$A$9999,4)="2818")+(LEFT(BalanceN!$A$4:$A$9999,4)="2917")+(LEFT(BalanceN!$A$4:$A$9999,4)="2918")+(LEFT(BalanceN!$A$4:$A$9999,4)="2919")-(LEFT(BalanceN!$A$4:$A$9999,5)="28181")-(LEFT(BalanceN!$A$4:$A$9999,5)="29181")-(LEFT(BalanceN!$A$4:$A$9999,5)="29191")-(LEFT(BalanceN!$A$4:$A$9999,5)="29193"))*BalanceN!$H$4:$H$9999) -> 0 | I12: =G12-H12 -> 0 | J12: =SUMPRODUCT(((LEFT(BalanceN!$A$4:$A$9999,3)="217")+(LEFT(BalanceN!$A$4:$A$9999,3)="218")+(LEFT(BalanceN!$A$4:$A$9999,4)="2198")-(LEFT(BalanceN!$A$4:$A$9999,4)="2181"))*BalanceN!$C$4:$C$9999)-SUMPRODUCT(((LEFT(BalanceN!$A$4:$A$9999,4)="2817")+(LEFT(BalanceN!$A$4:$A$9999,4)="2818")+(LEFT(BalanceN!$A$4:$A$9999,4)="2917")+(LEFT(BalanceN!$A$4:$A$9999,4)="2918")+(LEFT(BalanceN!$A$4:$A$9999,4)="2919")-(LEFT(BalanceN!$A$4:$A$9999,5)="28181")-(LEFT(BalanceN!$A$4:$A$9999,5)="29181")-(LEFT(BalanceN!$A$4:$A$9999,5)="29191")-(LEFT(BalanceN!$A$4:$A$9999,5)="29193"))*BalanceN!$D$4:$D$9999) -> 0 | K12: CF | L12: Réserves indisponibles | M12: 14 | N12: =SUMPRODUCT(((LEFT(BalanceN!$A$4:$A$9999,3)="111")+(LEFT(BalanceN!$A$4:$A$9999,3)="112")+(LEFT(BalanceN!$A$4:$A$9999,3)="113"))*BalanceN!$H$4:$H$9999) -> 20000000 | O12: =SUMPRODUCT(((LEFT(BalanceN!$A$4:$A$9999,3)="111")+(LEFT(BalanceN!$A$4:$A$9999,3)="112")+(LEFT(BalanceN!$A$4:$A$9999,3)="113"))*BalanceN!$D$4:$D$9999) -> 20000000
B13: AI | C13: IMMOBILISATIONS CORPORELLES | F13: 3 | G13: =SUM(G14:G18) -> 1012410344 | H13: =SUM(H14:H18) -> 321157361 | I13: =SUM(I14:I18) -> 691252983 | J13: =SUM(J14:J18) -> 203544627 | K13: CG | L13: Réserves libres | M13: 14 | N13: =SUMPRODUCT(((LEFT(BalanceN!$A$4:$A$9999,3)="118"))*BalanceN!$H$4:$H$9999) -> 0 | O13: =SUMPRODUCT(((LEFT(BalanceN!$A$4:$A$9999,3)="118"))*BalanceN!$D$4:$D$9999) -> 0
B14: AJ | C14: Terrains (dont Placement en net) | E14: =SUMPRODUCT(((LEFT(BalanceN!$A$4:$A$9999,4)="2281"))*BalanceN!$G$4:$G$9999)-SUMPRODUCT(((LEFT(BalanceN!$A$4:$A$9999,5)="29281"))*BalanceN!$H$4:$H$9999) -> 0 | G14: =SUMPRODUCT(((LEFT(BalanceN!$A$4:$A$9999,2)="22"))*BalanceN!$G$4:$G$9999) -> 38673950 | H14: =SUMPRODUCT(((LEFT(BalanceN!$A$4:$A$9999,3)="282")+(LEFT(BalanceN!$A$4:$A$9999,3)="292"))*BalanceN!$H$4:$H$9999) -> 0 | I14: =G14-H14 -> 38673950 | J14: =SUMPRODUCT(((LEFT(BalanceN!$A$4:$A$9999,2)="22"))*BalanceN!$C$4:$C$9999)-SUMPRODUCT(((LEFT(BalanceN!$A$4:$A$9999,3)="282")+(LEFT(BalanceN!$A$4:$A$9999,3)="292"))*BalanceN!$D$4:$D$9999) -> 35173950 | K14: CH | L14: Report à nouveau (+ ou -) | M14: 14 | N14: =-SUMPRODUCT(((LEFT(BalanceN!$A$4:$A$9999,2)="12"))*BalanceN!$G$4:$G$9999)+SUMPRODUCT(((LEFT(BalanceN!$A$4:$A$9999,2)="12"))*BalanceN!$H$4:$H$9999) -> 76069991 | O14: =-SUMPRODUCT(((LEFT(BalanceN!$A$4:$A$9999,2)="12"))*BalanceN!$C$4:$C$9999)+SUMPRODUCT(((LEFT(BalanceN!$A$4:$A$9999,2)="12"))*BalanceN!$D$4:$D$9999) -> 47450317
B15: AK | C15: Bâtiments (dont Placement en net) | E15: =SUMPRODUCT(((LEFT(BalanceN!$A$4:$A$9999,4)="2315")+(LEFT(BalanceN!$A$4:$A$9999,4)="2325"))*BalanceN!$G$4:$G$9999)-SUMPRODUCT(((LEFT(BalanceN!$A$4:$A$9999,5)="29315")+(LEFT(BalanceN!$A$4:$A$9999,5)="29325"))*BalanceN!$H$4:$H$9999) -> 0 | G15: =SUMPRODUCT(((LEFT(BalanceN!$A$4:$A$9999,3)="231")+(LEFT(BalanceN!$A$4:$A$9999,3)="232")+(LEFT(BalanceN!$A$4:$A$9999,3)="233")+(LEFT(BalanceN!$A$4:$A$9999,3)="237")+(LEFT(BalanceN!$A$4:$A$9999,4)="2391"))*BalanceN!$G$4:$G$9999) -> 741411100 | H15: =SUMPRODUCT(((LEFT(BalanceN!$A$4:$A$9999,4)="2831")+(LEFT(BalanceN!$A$4:$A$9999,4)="2832")+(LEFT(BalanceN!$A$4:$A$9999,4)="2833")+(LEFT(BalanceN!$A$4:$A$9999,4)="2837")+(LEFT(BalanceN!$A$4:$A$9999,4)="2931")+(LEFT(BalanceN!$A$4:$A$9999,4)="2932")+(LEFT(BalanceN!$A$4:$A$9999,4)="2933")+(LEFT(BalanceN!$A$4:$A$9999,4)="2937")+(LEFT(BalanceN!$A$4:$A$9999,5)="29391"))*BalanceN!$H$4:$H$9999) -> 160048641 | I15: 581362459 | J15: =SUMPRODUCT(((LEFT(BalanceN!$A$4:$A$9999,3)="231")+(LEFT(BalanceN!$A$4:$A$9999,3)="232")+(LEFT(BalanceN!$A$4:$A$9999,3)="233")+(LEFT(BalanceN!$A$4:$A$9999,3)="237")+(LEFT(BalanceN!$A$4:$A$9999,4)="2391"))*BalanceN!$C$4:$C$9999)-SUMPRODUCT(((LEFT(BalanceN!$A$4:$A$9999,4)="2831")+(LEFT(BalanceN!$A$4:$A$9999,4)="2832")+(LEFT(BalanceN!$A$4:$A$9999,4)="2833")+(LEFT(BalanceN!$A$4:$A$9999,4)="2837")+(LEFT(BalanceN!$A$4:$A$9999,4)="2931")+(LEFT(BalanceN!$A$4:$A$9999,4)="2932")+(LEFT(BalanceN!$A$4:$A$9999,4)="2933")+(LEFT(BalanceN!$A$4:$A$9999,4)="2937")+(LEFT(BalanceN!$A$4:$A$9999,5)="29391"))*BalanceN!$D$4:$D$9999) -> 136097141 | K15: CJ | L15: Résultat net de l'exercice (bénéfice + ou perte -) | N15: ='COMPTE DE RESULTAT'!K49 -> 178831885 | O15: =-SUMPRODUCT(((LEFT(BalanceN!$A$4:$A$9999,2)="13"))*BalanceN!$C$4:$C$9999)+SUMPRODUCT(((LEFT(BalanceN!$A$4:$A$9999,2)="13"))*BalanceN!$D$4:$D$9999) -> 118619674
B16: AL | C16: Aménagements, agencements et installations | G16: =SUMPRODUCT(((LEFT(BalanceN!$A$4:$A$9999,3)="234")+(LEFT(BalanceN!$A$4:$A$9999,3)="235")+(LEFT(BalanceN!$A$4:$A$9999,3)="238")+(LEFT(BalanceN!$A$4:$A$9999,4)="2392")+(LEFT(BalanceN!$A$4:$A$9999,4)="2393"))*BalanceN!$G$4:$G$9999) -> 73328267 | H16: =SUMPRODUCT(((LEFT(BalanceN!$A$4:$A$9999,4)="2834")+(LEFT(BalanceN!$A$4:$A$9999,4)="2835")+(LEFT(BalanceN!$A$4:$A$9999,4)="2838")+(LEFT(BalanceN!$A$4:$A$9999,4)="2934")+(LEFT(BalanceN!$A$4:$A$9999,4)="2935")+(LEFT(BalanceN!$A$4:$A$9999,4)="2938")+(LEFT(BalanceN!$A$4:$A$9999,5)="29392")+(LEFT(BalanceN!$A$4:$A$9999,5)="29393"))*BalanceN!$H$4:$H$9999) -> 71328267 | I16: 2000000 | J16: =SUMPRODUCT(((LEFT(BalanceN!$A$4:$A$9999,3)="234")+(LEFT(BalanceN!$A$4:$A$9999,3)="235")+(LEFT(BalanceN!$A$4:$A$9999,3)="238")+(LEFT(BalanceN!$A$4:$A$9999,4)="2392")+(LEFT(BalanceN!$A$4:$A$9999,4)="2393"))*BalanceN!$C$4:$C$9999)-SUMPRODUCT(((LEFT(BalanceN!$A$4:$A$9999,4)="2834")+(LEFT(BalanceN!$A$4:$A$9999,4)="2835")+(LEFT(BalanceN!$A$4:$A$9999,4)="2838")+(LEFT(BalanceN!$A$4:$A$9999,4)="2934")+(LEFT(BalanceN!$A$4:$A$9999,4)="2935")+(LEFT(BalanceN!$A$4:$A$9999,4)="2938")+(LEFT(BalanceN!$A$4:$A$9999,5)="29392")+(LEFT(BalanceN!$A$4:$A$9999,5)="29393"))*BalanceN!$D$4:$D$9999) -> 0 | K16: CL | L16: Subventions d'investissement | M16: 15 | N16: =SUMPRODUCT(((LEFT(BalanceN!$A$4:$A$9999,2)="14"))*BalanceN!$H$4:$H$9999) -> 2000000 | O16: =SUMPRODUCT(((LEFT(BalanceN!$A$4:$A$9999,2)="14"))*BalanceN!$D$4:$D$9999) -> 0
B17: AM | C17: Matériel, mobilier et actifs biologiques | G17: =SUMPRODUCT(((LEFT(BalanceN!$A$4:$A$9999,2)="24")-(LEFT(BalanceN!$A$4:$A$9999,3)="245")-(LEFT(BalanceN!$A$4:$A$9999,4)="2495"))*BalanceN!$G$4:$G$9999) -> 82947027 | H17: =SUMPRODUCT(((LEFT(BalanceN!$A$4:$A$9999,3)="284")+(LEFT(BalanceN!$A$4:$A$9999,3)="294")-(LEFT(BalanceN!$A$4:$A$9999,4)="2845")-(LEFT(BalanceN!$A$4:$A$9999,4)="2945")-(LEFT(BalanceN!$A$4:$A$9999,5)="29495"))*BalanceN!$H$4:$H$9999) -> 35540453 | I17: 47406574 | J17: =SUMPRODUCT(((LEFT(BalanceN!$A$4:$A$9999,2)="24")-(LEFT(BalanceN!$A$4:$A$9999,3)="245")-(LEFT(BalanceN!$A$4:$A$9999,4)="2495"))*BalanceN!$C$4:$C$9999)-SUMPRODUCT(((LEFT(BalanceN!$A$4:$A$9999,3)="284")+(LEFT(BalanceN!$A$4:$A$9999,3)="294")-(LEFT(BalanceN!$A$4:$A$9999,4)="2845")-(LEFT(BalanceN!$A$4:$A$9999,4)="2945")-(LEFT(BalanceN!$A$4:$A$9999,5)="29495"))*BalanceN!$D$4:$D$9999) -> 32086036 | K17: CM | L17: Provisions règlementées | M17: 15 | N17: =SUMPRODUCT(((LEFT(BalanceN!$A$4:$A$9999,2)="15"))*BalanceN!$H$4:$H$9999) -> 40000000 | O17: =SUMPRODUCT(((LEFT(BalanceN!$A$4:$A$9999,2)="15"))*BalanceN!$D$4:$D$9999) -> 0
B18: AN | C18: Matériel de transport | G18: =SUMPRODUCT(((LEFT(BalanceN!$A$4:$A$9999,3)="245")+(LEFT(BalanceN!$A$4:$A$9999,4)="2495"))*BalanceN!$G$4:$G$9999) -> 76050000 | H18: =SUMPRODUCT(((LEFT(BalanceN!$A$4:$A$9999,4)="2845")+(LEFT(BalanceN!$A$4:$A$9999,4)="2945")+(LEFT(BalanceN!$A$4:$A$9999,5)="29495"))*BalanceN!$H$4:$H$9999) -> 54240000 | I18: 21810000 | J18: =SUMPRODUCT(((LEFT(BalanceN!$A$4:$A$9999,3)="245")+(LEFT(BalanceN!$A$4:$A$9999,4)="2495"))*BalanceN!$C$4:$C$9999)-SUMPRODUCT(((LEFT(BalanceN!$A$4:$A$9999,4)="2845")+(LEFT(BalanceN!$A$4:$A$9999,4)="2945")+(LEFT(BalanceN!$A$4:$A$9999,5)="29495"))*BalanceN!$D$4:$D$9999) -> 187500 | K18: CP | L18: TOTAL CAPITAUX PROPRES ET RESSOURCES ASSIMILEES | N18: =SUM(N8:N17) -> 620401876 | O18: =SUM(O8:O17) -> 286069991
B19: AP | C19: Avances et acomptes versés sur immobilisations | F19: 3 | G19: =SUMPRODUCT(((LEFT(BalanceN!$A$4:$A$9999,3)="251")+(LEFT(BalanceN!$A$4:$A$9999,3)="252"))*BalanceN!$G$4:$G$9999) -> 20000000 | H19: =SUMPRODUCT(((LEFT(BalanceN!$A$4:$A$9999,4)="2951")+(LEFT(BalanceN!$A$4:$A$9999,4)="2952"))*BalanceN!$H$4:$H$9999) -> 0 | I19: 20000000 | J19: =SUMPRODUCT(((LEFT(BalanceN!$A$4:$A$9999,3)="251")+(LEFT(BalanceN!$A$4:$A$9999,3)="252"))*BalanceN!$C$4:$C$9999)-SUMPRODUCT(((LEFT(BalanceN!$A$4:$A$9999,4)="2951")+(LEFT(BalanceN!$A$4:$A$9999,4)="2952"))*BalanceN!$D$4:$D$9999) -> 0 | K19: DA | L19: Emprunts et dettes financières diverses | M19: 16 | N19: =SUMPRODUCT(((LEFT(BalanceN!$A$4:$A$9999,2)="16")+(LEFT(BalanceN!$A$4:$A$9999,3)="181")+(LEFT(BalanceN!$A$4:$A$9999,3)="182")+(LEFT(BalanceN!$A$4:$A$9999,3)="183")+(LEFT(BalanceN!$A$4:$A$9999,3)="184"))*BalanceN!$H$4:$H$9999) -> 94699075 | O19: =SUMPRODUCT(((LEFT(BalanceN!$A$4:$A$9999,2)="16")+(LEFT(BalanceN!$A$4:$A$9999,3)="181")+(LEFT(BalanceN!$A$4:$A$9999,3)="182")+(LEFT(BalanceN!$A$4:$A$9999,3)="183")+(LEFT(BalanceN!$A$4:$A$9999,3)="184"))*BalanceN!$D$4:$D$9999) -> 2200000
B20: AQ | C20: IMMOBILISATIONS FINANCIERES | F20: 4 | G20: =SUM(G21:G22) -> 4419790 | H20: =SUM(H21:H22) -> 0 | I20: =SUM(I21:I22) -> 4419790 | J20: =SUM(J21:J22) -> 4548658 | K20: DB | L20: Dettes de location acquisition | M20: 16 | N20: =SUMPRODUCT(((LEFT(BalanceN!$A$4:$A$9999,2)="17"))*BalanceN!$H$4:$H$9999) -> 0 | O20: =SUMPRODUCT(((LEFT(BalanceN!$A$4:$A$9999,2)="17"))*BalanceN!$D$4:$D$9999) -> 0
B21: AR | C21: Titres de participation | G21: =SUMPRODUCT(((LEFT(BalanceN!$A$4:$A$9999,2)="26"))*BalanceN!$G$4:$G$9999) -> 0 | H21: =SUMPRODUCT(((LEFT(BalanceN!$A$4:$A$9999,3)="296"))*BalanceN!$H$4:$H$9999) -> 0 | I21: =G21-H21 -> 0 | J21: =SUMPRODUCT(((LEFT(BalanceN!$A$4:$A$9999,2)="26"))*BalanceN!$C$4:$C$9999)-SUMPRODUCT(((LEFT(BalanceN!$A$4:$A$9999,3)="296"))*BalanceN!$D$4:$D$9999) -> 0 | K21: DC | L21: Provisions pour risques et charges | M21: 16 | N21: =SUMPRODUCT(((LEFT(BalanceN!$A$4:$A$9999,2)="19"))*BalanceN!$H$4:$H$9999) -> 62116366 | O21: =SUMPRODUCT(((LEFT(BalanceN!$A$4:$A$9999,2)="19"))*BalanceN!$D$4:$D$9999) -> 54864697
B22: AS | C22: Autres immobilisations financières | G22: =SUMPRODUCT(((LEFT(BalanceN!$A$4:$A$9999,2)="27"))*BalanceN!$G$4:$G$9999) -> 4419790 | H22: =SUMPRODUCT(((LEFT(BalanceN!$A$4:$A$9999,3)="297"))*BalanceN!$H$4:$H$9999) -> 0 | I22: =G22-H22 -> 4419790 | J22: =SUMPRODUCT(((LEFT(BalanceN!$A$4:$A$9999,2)="27"))*BalanceN!$C$4:$C$9999)-SUMPRODUCT(((LEFT(BalanceN!$A$4:$A$9999,3)="297"))*BalanceN!$D$4:$D$9999) -> 4548658 | K22: DD | L22: TOTAL DETTES FINANCIERES ET RESSOURCES ASSIMILEES | N22: =SUM(N19:N21) -> 156815441 | O22: =SUM(O19:O21) -> 57064697
B23: AZ | C23: TOTAL ACTIF IMMOBILISE | G23: =SUM(G8,G13,G20,G19) -> 1041480134 | H23: =SUM(H8,H13,H20,H19) -> 321157361 | I23: =SUM(I8,I13,I20,I19) -> 720322773 | J23: =SUM(J8,J13,J20,J19) -> 210743285 | K23: DF | L23: TOTAL RESSOURCES STABLES | N23: =SUM(N18,N22) -> 777217317 | O23: =SUM(O18,O22) -> 343134688
B24: BA | C24: ACTIF CIRCULANT HAO | F24: 5 | G24: =SUMPRODUCT(((LEFT(BalanceN!$A$4:$A$9999,3)="485")+(LEFT(BalanceN!$A$4:$A$9999,3)="488"))*BalanceN!$G$4:$G$9999) -> 2140000 | H24: =SUMPRODUCT(((LEFT(BalanceN!$A$4:$A$9999,3)="498"))*BalanceN!$H$4:$H$9999) -> 0 | I24: =G24-H24 -> 2140000 | J24: =SUMPRODUCT(((LEFT(BalanceN!$A$4:$A$9999,3)="485")+(LEFT(BalanceN!$A$4:$A$9999,3)="488"))*BalanceN!$C$4:$C$9999)-SUMPRODUCT(((LEFT(BalanceN!$A$4:$A$9999,3)="498"))*BalanceN!$D$4:$D$9999) -> 380000 | K24: DH | L24: Dettes circulantes HAO | M24: 5 | N24: =SUMPRODUCT(((LEFT(BalanceN!$A$4:$A$9999,3)="481")+(LEFT(BalanceN!$A$4:$A$9999,3)="482")+(LEFT(BalanceN!$A$4:$A$9999,3)="484")+(LEFT(BalanceN!$A$4:$A$9999,4)="4998"))*BalanceN!$H$4:$H$9999) -> 156649942 | O24: =SUMPRODUCT(((LEFT(BalanceN!$A$4:$A$9999,3)="481")+(LEFT(BalanceN!$A$4:$A$9999,3)="482")+(LEFT(BalanceN!$A$4:$A$9999,3)="484")+(LEFT(BalanceN!$A$4:$A$9999,4)="4998"))*BalanceN!$D$4:$D$9999) -> 399942
B25: BB | C25: STOCKS ET ENCOURS | F25: 6 | G25: =SUMPRODUCT(((LEFT(BalanceN!$A$4:$A$9999,2)="31")+(LEFT(BalanceN!$A$4:$A$9999,2)="32")+(LEFT(BalanceN!$A$4:$A$9999,2)="33")+(LEFT(BalanceN!$A$4:$A$9999,2)="34")+(LEFT(BalanceN!$A$4:$A$9999,2)="35")+(LEFT(BalanceN!$A$4:$A$9999,2)="36")+(LEFT(BalanceN!$A$4:$A$9999,2)="37")+(LEFT(BalanceN!$A$4:$A$9999,2)="38"))*BalanceN!$G$4:$G$9999) -> 18560138 | H25: =SUMPRODUCT(((LEFT(BalanceN!$A$4:$A$9999,2)="39"))*BalanceN!$H$4:$H$9999) -> 0 | I25: =G25-H25 -> 18560138 | J25: =SUMPRODUCT(((LEFT(BalanceN!$A$4:$A$9999,2)="31")+(LEFT(BalanceN!$A$4:$A$9999,2)="32")+(LEFT(BalanceN!$A$4:$A$9999,2)="33")+(LEFT(BalanceN!$A$4:$A$9999,2)="34")+(LEFT(BalanceN!$A$4:$A$9999,2)="35")+(LEFT(BalanceN!$A$4:$A$9999,2)="36")+(LEFT(BalanceN!$A$4:$A$9999,2)="37")+(LEFT(BalanceN!$A$4:$A$9999,2)="38"))*BalanceN!$C$4:$C$9999)-SUMPRODUCT(((LEFT(BalanceN!$A$4:$A$9999,2)="39"))*BalanceN!$D$4:$D$9999) -> 15868433 | K25: DI | L25: Clients, avances reçues | M25: 7 | N25: =SUMPRODUCT(((LEFT(BalanceN!$A$4:$A$9999,3)="419"))*BalanceN!$H$4:$H$9999) -> 0 | O25: =SUMPRODUCT(((LEFT(BalanceN!$A$4:$A$9999,3)="419"))*BalanceN!$D$4:$D$9999) -> 0
B26: BG | C26: CREANCES ET EMPLOIS ASSIMILES | G26: =SUM(G27:G29) -> 206981960 | H26: =SUM(H27:H29) -> 31677520 | I26: =SUM(I27:I29) -> 175304440 | J26: =SUM(J27:J29) -> 144512218 | K26: DJ | L26: Fournisseurs d'exploitation | M26: 17 | N26: =SUMPRODUCT(((LEFT(BalanceN!$A$4:$A$9999,2)="40")-(LEFT(BalanceN!$A$4:$A$9999,3)="409"))*BalanceN!$H$4:$H$9999) -> 38210222 | O26: =SUMPRODUCT(((LEFT(BalanceN!$A$4:$A$9999,2)="40")-(LEFT(BalanceN!$A$4:$A$9999,3)="409"))*BalanceN!$D$4:$D$9999) -> 55894206
B27: BH | C27: Fournisseurs avances versés | F27: 17 | G27: =SUMPRODUCT(((LEFT(BalanceN!$A$4:$A$9999,3)="409"))*BalanceN!$G$4:$G$9999) -> 857612 | H27: =SUMPRODUCT(((LEFT(BalanceN!$A$4:$A$9999,3)="490"))*BalanceN!$H$4:$H$9999) -> 0 | I27: =G27-H27 -> 857612 | J27: =SUMPRODUCT(((LEFT(BalanceN!$A$4:$A$9999,3)="409"))*BalanceN!$C$4:$C$9999)-SUMPRODUCT(((LEFT(BalanceN!$A$4:$A$9999,3)="490"))*BalanceN!$D$4:$D$9999) -> 700000 | K27: DK | L27: Dettes fiscales et sociales | M27: 18 | N27: =SUMPRODUCT(((LEFT(BalanceN!$A$4:$A$9999,2)="42")+(LEFT(BalanceN!$A$4:$A$9999,2)="43")+(LEFT(BalanceN!$A$4:$A$9999,2)="44"))*BalanceN!$H$4:$H$9999)+ABS('COMPTE DE RESULTAT'!K48) -> 79226072 | O27: =SUMPRODUCT(((LEFT(BalanceN!$A$4:$A$9999,2)="42")+(LEFT(BalanceN!$A$4:$A$9999,2)="43")+(LEFT(BalanceN!$A$4:$A$9999,2)="44"))*BalanceN!$D$4:$D$9999) -> 36010298
B28: BI | C28: Clients | F28: 7 | G28: =SUMPRODUCT(((LEFT(BalanceN!$A$4:$A$9999,2)="41")-(LEFT(BalanceN!$A$4:$A$9999,3)="419"))*BalanceN!$G$4:$G$9999) -> 167938821 | H28: =SUMPRODUCT(((LEFT(BalanceN!$A$4:$A$9999,3)="491"))*BalanceN!$H$4:$H$9999) -> 31677520 | I28: =G28-H28 -> 136261301 | J28: =SUMPRODUCT(((LEFT(BalanceN!$A$4:$A$9999,2)="41")-(LEFT(BalanceN!$A$4:$A$9999,3)="419"))*BalanceN!$C$4:$C$9999)-SUMPRODUCT(((LEFT(BalanceN!$A$4:$A$9999,3)="491"))*BalanceN!$D$4:$D$9999) -> 140683833 | K28: DM | L28: Autres dettes | M28: 19 | N28: =SUMPRODUCT(((LEFT(BalanceN!$A$4:$A$9999,3)="185")+(LEFT(BalanceN!$A$4:$A$9999,2)="45")+(LEFT(BalanceN!$A$4:$A$9999,2)="46")+(LEFT(BalanceN!$A$4:$A$9999,2)="47")-(LEFT(BalanceN!$A$4:$A$9999,3)="479"))*BalanceN!$H$4:$H$9999) -> 620000 | O28: =SUMPRODUCT(((LEFT(BalanceN!$A$4:$A$9999,3)="185")+(LEFT(BalanceN!$A$4:$A$9999,2)="45")+(LEFT(BalanceN!$A$4:$A$9999,2)="46")+(LEFT(BalanceN!$A$4:$A$9999,2)="47")-(LEFT(BalanceN!$A$4:$A$9999,3)="479"))*BalanceN!$D$4:$D$9999) -> 10648959
B29: BJ | C29: Autres créances | F29: 8 | G29: =SUMPRODUCT(((LEFT(BalanceN!$A$4:$A$9999,3)="185")+(LEFT(BalanceN!$A$4:$A$9999,2)="42")+(LEFT(BalanceN!$A$4:$A$9999,2)="43")+(LEFT(BalanceN!$A$4:$A$9999,2)="44")+(LEFT(BalanceN!$A$4:$A$9999,2)="45")+(LEFT(BalanceN!$A$4:$A$9999,2)="46")+(LEFT(BalanceN!$A$4:$A$9999,2)="47")-(LEFT(BalanceN!$A$4:$A$9999,3)="478"))*BalanceN!$G$4:$G$9999) -> 38185527 | H29: =SUMPRODUCT(((LEFT(BalanceN!$A$4:$A$9999,3)="492")+(LEFT(BalanceN!$A$4:$A$9999,3)="493")+(LEFT(BalanceN!$A$4:$A$9999,3)="494")+(LEFT(BalanceN!$A$4:$A$9999,3)="495")+(LEFT(BalanceN!$A$4:$A$9999,3)="496")+(LEFT(BalanceN!$A$4:$A$9999,3)="497"))*BalanceN!$H$4:$H$9999) -> 0 | I29: =G29-H29 -> 38185527 | J29: =SUMPRODUCT(((LEFT(BalanceN!$A$4:$A$9999,3)="185")+(LEFT(BalanceN!$A$4:$A$9999,2)="42")+(LEFT(BalanceN!$A$4:$A$9999,2)="43")+(LEFT(BalanceN!$A$4:$A$9999,2)="44")+(LEFT(BalanceN!$A$4:$A$9999,2)="45")+(LEFT(BalanceN!$A$4:$A$9999,2)="46")+(LEFT(BalanceN!$A$4:$A$9999,2)="47")-(LEFT(BalanceN!$A$4:$A$9999,3)="478"))*BalanceN!$C$4:$C$9999)-SUMPRODUCT(((LEFT(BalanceN!$A$4:$A$9999,3)="492")+(LEFT(BalanceN!$A$4:$A$9999,3)="493")+(LEFT(BalanceN!$A$4:$A$9999,3)="494")+(LEFT(BalanceN!$A$4:$A$9999,3)="495")+(LEFT(BalanceN!$A$4:$A$9999,3)="496")+(LEFT(BalanceN!$A$4:$A$9999,3)="497"))*BalanceN!$D$4:$D$9999) -> 3128385 | K29: DN | L29: Provisions pour risques à court terme | M29: 19 | N29: =SUMPRODUCT(((LEFT(BalanceN!$A$4:$A$9999,3)="499")-(LEFT(BalanceN!$A$4:$A$9999,4)="4998")+(LEFT(BalanceN!$A$4:$A$9999,3)="599"))*BalanceN!$H$4:$H$9999) -> 0 | O29: =SUMPRODUCT(((LEFT(BalanceN!$A$4:$A$9999,3)="499")-(LEFT(BalanceN!$A$4:$A$9999,4)="4998")+(LEFT(BalanceN!$A$4:$A$9999,3)="599"))*BalanceN!$D$4:$D$9999) -> 0
B30: BK | C30: TOTAL ACTIF CIRCULANT | G30: =SUM(G24,G25,G26) -> 227682098 | H30: =SUM(H24,H25,H26) -> 31677520 | I30: =SUM(I24,I25,I26) -> 196004578 | J30: =SUM(J24,J25,J26) -> 160760651 | K30: DP | L30: TOTAL PASSIF CIRCULANT | N30: =SUM(N24:N29) -> 274706236 | O30: =SUM(O24:O29) -> 102953405
B31: BQ | C31: Titres de placement | F31: 9 | G31: =SUMPRODUCT(((LEFT(BalanceN!$A$4:$A$9999,2)="50"))*BalanceN!$G$4:$G$9999) -> 0 | H31: =SUMPRODUCT(((LEFT(BalanceN!$A$4:$A$9999,3)="590"))*BalanceN!$H$4:$H$9999) -> 0 | I31: =G31-H31 -> 0 | J31: =SUMPRODUCT(((LEFT(BalanceN!$A$4:$A$9999,2)="50"))*BalanceN!$C$4:$C$9999)-SUMPRODUCT(((LEFT(BalanceN!$A$4:$A$9999,3)="590"))*BalanceN!$D$4:$D$9999) -> 0 | K31: DQ | L31: Banques, crédit d'escompte | M31: 20 | N31: =SUMPRODUCT(((LEFT(BalanceN!$A$4:$A$9999,3)="564")+(LEFT(BalanceN!$A$4:$A$9999,3)="565"))*BalanceN!$H$4:$H$9999) -> 0 | O31: =SUMPRODUCT(((LEFT(BalanceN!$A$4:$A$9999,3)="564")+(LEFT(BalanceN!$A$4:$A$9999,3)="565"))*BalanceN!$D$4:$D$9999) -> 0
B32: BR | C32: Valeurs à encaisser | F32: 10 | G32: =SUMPRODUCT(((LEFT(BalanceN!$A$4:$A$9999,2)="51"))*BalanceN!$G$4:$G$9999) -> 0 | H32: =SUMPRODUCT(((LEFT(BalanceN!$A$4:$A$9999,3)="591"))*BalanceN!$H$4:$H$9999) -> 0 | I32: =G32-H32 -> 0 | J32: =SUMPRODUCT(((LEFT(BalanceN!$A$4:$A$9999,2)="51"))*BalanceN!$C$4:$C$9999)-SUMPRODUCT(((LEFT(BalanceN!$A$4:$A$9999,3)="591"))*BalanceN!$D$4:$D$9999) -> 0 | K32: DR | L32: Banques, établissements financiers et crédits de trésorerie | M32: 20 | N32: =SUMPRODUCT(((LEFT(BalanceN!$A$4:$A$9999,2)="52")+(LEFT(BalanceN!$A$4:$A$9999,2)="53")+(LEFT(BalanceN!$A$4:$A$9999,3)="561")+(LEFT(BalanceN!$A$4:$A$9999,3)="566"))*BalanceN!$H$4:$H$9999) -> 0 | O32: =SUMPRODUCT(((LEFT(BalanceN!$A$4:$A$9999,2)="52")+(LEFT(BalanceN!$A$4:$A$9999,2)="53")+(LEFT(BalanceN!$A$4:$A$9999,3)="561")+(LEFT(BalanceN!$A$4:$A$9999,3)="566"))*BalanceN!$D$4:$D$9999) -> 0
B33: BS | C33: Banques, chèques postaux, caisse et assimilés | F33: 11 | G33: =SUMPRODUCT(((LEFT(BalanceN!$A$4:$A$9999,2)="52")+(LEFT(BalanceN!$A$4:$A$9999,2)="53")+(LEFT(BalanceN!$A$4:$A$9999,2)="54")+(LEFT(BalanceN!$A$4:$A$9999,2)="55")+(LEFT(BalanceN!$A$4:$A$9999,2)="57")+(LEFT(BalanceN!$A$4:$A$9999,3)="581")+(LEFT(BalanceN!$A$4:$A$9999,3)="582"))*BalanceN!$G$4:$G$9999) -> 123097127 | H33: =SUMPRODUCT(((LEFT(BalanceN!$A$4:$A$9999,3)="592")+(LEFT(BalanceN!$A$4:$A$9999,3)="593")+(LEFT(BalanceN!$A$4:$A$9999,3)="594"))*BalanceN!$H$4:$H$9999) -> 0 | I33: =G33-H33 -> 123097127 | J33: =SUMPRODUCT(((LEFT(BalanceN!$A$4:$A$9999,2)="52")+(LEFT(BalanceN!$A$4:$A$9999,2)="53")+(LEFT(BalanceN!$A$4:$A$9999,2)="54")+(LEFT(BalanceN!$A$4:$A$9999,2)="55")+(LEFT(BalanceN!$A$4:$A$9999,2)="57")+(LEFT(BalanceN!$A$4:$A$9999,3)="581")+(LEFT(BalanceN!$A$4:$A$9999,3)="582"))*BalanceN!$C$4:$C$9999)-SUMPRODUCT(((LEFT(BalanceN!$A$4:$A$9999,3)="592")+(LEFT(BalanceN!$A$4:$A$9999,3)="593")+(LEFT(BalanceN!$A$4:$A$9999,3)="594"))*BalanceN!$D$4:$D$9999) -> 74584157
B34: BT | C34: TOTAL TRESORERIE-ACTIF | G34: =SUM(G31:G33) -> 123097127 | H34: =SUM(H31:H33) -> 0 | I34: =SUM(I31:I33) -> 123097127 | J34: =SUM(J31:J33) -> 74584157 | K34: DT | L34: TOTAL TRESORERIE-PASSIF | N34: =SUM(N31:N33) -> 0 | O34: =SUM(O31:O33) -> 0
B35: BU | C35: Ecart de conversion-Actif | F35: 12 | G35: =SUMPRODUCT(((LEFT(BalanceN!$A$4:$A$9999,3)="478"))*BalanceN!$G$4:$G$9999) -> 15000000 | I35: =G35-H35 -> 15000000 | J35: =SUMPRODUCT(((LEFT(BalanceN!$A$4:$A$9999,3)="478"))*BalanceN!$C$4:$C$9999) -> 0 | K35: DV | L35: Ecart de conversion-Passif | M35: 12 | N35: =SUMPRODUCT(((LEFT(BalanceN!$A$4:$A$9999,3)="479"))*BalanceN!$H$4:$H$9999) -> 2500925 | O35: =SUMPRODUCT(((LEFT(BalanceN!$A$4:$A$9999,3)="479"))*BalanceN!$D$4:$D$9999) -> 0
B36: BZ | C36: TOTAL GENERAL | G36: =SUM(G35,G34,G30,G23) -> 1407259359 | H36: =SUM(H35,H34,H30,H23) -> 352834881 | I36: =SUM(I35,I34,I30,I23) -> 1054424478 | J36: =SUM(J35,J34,J30,J23) -> 446088093 | K36: DZ | L36: TOTAL GENERAL | N36: =SUM(N35,N34,N30,N23) -> 1054424478 | O36: =SUM(O35,O34,O30,O23) -> 446088093
H40: Colonne1 | I40: Colonne2 | J40: Colonne3
H41: EQUILIBRE ACTIF - PASSIF | J41: =+J26-'TABLEAU DES FLUX DE TRESORERIE'!J13 -> 172114759
I42: N | J42: =+I36-N36 -> 0
I43: N-1 | J43: =+J36-O36 -> 0

Sheet COMPTE DE RESULTAT
E1: COMPTE DE RESULTAT AU 31 DECEMBRE
E3: Désignation entité:……………………………………. | G3: =INFORMATIONS!B10 -> SAM CONSEILS | J3: Exercice clos au: | L3: =INFORMATIONS!D31 -> 2018-12-31
E4: Numéro d'identification:……………………………….. | G4: =INFORMATIONS!B24 -> 00084404X | J4: Durée (en mois): | L4: =INFORMATIONS!F34 -> 12
E6: Réf | F6: LIBELLES | J6: Note
K7: Net | L7: Net
E8: TA | F8: Ventes de marchandises | H8: A | I8: + | J8: 21 | K8: =SUMPRODUCT(((LEFT(BalanceN!$A$4:$A$9999,3)="701"))*BalanceN!$H$4:$H$9999)-SUMPRODUCT(((LEFT(BalanceN!$A$4:$A$9999,3)="701"))*BalanceN!$G$4:$G$9999) -> 110000000 | L8: =SUMPRODUCT(((LEFT('BalanceN-1'!$A$4:$A$9999,3)="701"))*'BalanceN-1'!$H$4:$H$9999)-SUMPRODUCT(((LEFT('BalanceN-1'!$A$4:$A$9999,3)="701"))*'BalanceN-1'!$G$4:$G$9999) -> 0
E9: RA | F9: Achats de marchandises | I9: - | J9: 22 | K9: =-SUMPRODUCT(((LEFT(BalanceN!$A$4:$A$9999,3)="601"))*BalanceN!$G$4:$G$9999)+SUMPRODUCT(((LEFT(BalanceN!$A$4:$A$9999,3)="601"))*BalanceN!$H$4:$H$9999) -> -75000000 | L9: =-SUMPRODUCT(((LEFT('BalanceN-1'!$A$4:$A$9999,3)="601"))*'BalanceN-1'!$G$4:$G$9999)+SUMPRODUCT(((LEFT('BalanceN-1'!$A$4:$A$9999,3)="601"))*'BalanceN-1'!$H$4:$H$9999) -> 0
E10: RB | F10: Variation de stocks de marchandises | I10: -/+ | J10: 6 | K10: =-SUMPRODUCT(((LEFT(BalanceN!$A$4:$A$9999,4)="6031"))*BalanceN!$G$4:$G$9999)+SUMPRODUCT(((LEFT(BalanceN!$A$4:$A$9999,4)="6031"))*BalanceN!$H$4:$H$9999) -> 5000000 | L10: =-SUMPRODUCT(((LEFT('BalanceN-1'!$A$4:$A$9999,4)="6031"))*'BalanceN-1'!$G$4:$G$9999)+SUMPRODUCT(((LEFT('BalanceN-1'!$A$4:$A$9999,4)="6031"))*'BalanceN-1'!$H$4:$H$9999) -> 0
E11: XA | F11: MARGES COMMERCIALE (Somme TA à RB) | K11: =SUM(K8:K10) -> 40000000 | L11: =SUM(L8:L10) -> 0
E12: TB | F12: Ventes de produits fabriqués | H12: B | I12: + | J12: 21 | K12: =SUMPRODUCT(((LEFT(BalanceN!$A$4:$A$9999,3)="702")+(LEFT(BalanceN!$A$4:$A$9999,3)="703")+(LEFT(BalanceN!$A$4:$A$9999,3)="704"))*BalanceN!$H$4:$H$9999)-SUMPRODUCT(((LEFT(BalanceN!$A$4:$A$9999,3)="702")+(LEFT(BalanceN!$A$4:$A$9999,3)="703")+(LEFT(BalanceN!$A$4:$A$9999,3)="704"))*BalanceN!$G$4:$G$9999) -> 1918144745 | L12: =SUMPRODUCT(((LEFT('BalanceN-1'!$A$4:$A$9999,3)="702")+(LEFT('BalanceN-1'!$A$4:$A$9999,3)="703")+(LEFT('BalanceN-1'!$A$4:$A$9999,3)="704"))*'BalanceN-1'!$H$4:$H$9999)-SUMPRODUCT(((LEFT('BalanceN-1'!$A$4:$A$9999,3)="702")+(LEFT('BalanceN-1'!$A$4:$A$9999,3)="703")+(LEFT('BalanceN-1'!$A$4:$A$9999,3)="704"))*'BalanceN-1'!$G$4:$G$9999) -> 1857424110
E13: TC | F13: Travaux, services vendus | H13: C | I13: + | J13: 21 | K13: =SUMPRODUCT(((LEFT(BalanceN!$A$4:$A$9999,3)="705")+(LEFT(BalanceN!$A$4:$A$9999,3)="706"))*BalanceN!$H$4:$H$9999)-SUMPRODUCT(((LEFT(BalanceN!$A$4:$A$9999,3)="705")+(LEFT(BalanceN!$A$4:$A$9999,3)="706"))*BalanceN!$G$4:$G$9999) -> 12672000 | L13: =SUMPRODUCT(((LEFT('BalanceN-1'!$A$4:$A$9999,3)="705")+(LEFT('BalanceN-1'!$A$4:$A$9999,3)="706"))*'BalanceN-1'!$H$4:$H$9999)-SUMPRODUCT(((LEFT('BalanceN-1'!$A$4:$A$9999,3)="705")+(LEFT('BalanceN-1'!$A$4:$A$9999,3)="706"))*'BalanceN-1'!$G$4:$G$9999) -> 12804000
E14: TD | F14: Produits accessoires | H14: D | I14: + | J14: 21 | K14: =SUMPRODUCT(((LEFT(BalanceN!$A$4:$A$9999,3)="707"))*BalanceN!$H$4:$H$9999)-SUMPRODUCT(((LEFT(BalanceN!$A$4:$A$9999,3)="707"))*BalanceN!$G$4:$G$9999) -> 1130000 | L14: =SUMPRODUCT(((LEFT('BalanceN-1'!$A$4:$A$9999,3)="707"))*'BalanceN-1'!$H$4:$H$9999)-SUMPRODUCT(((LEFT('BalanceN-1'!$A$4:$A$9999,3)="707"))*'BalanceN-1'!$G$4:$G$9999) -> 1598780
E15: XB | F15: CHIFFRE D'AFFAIRES (A+B+C+D) | K15: =SUM(K12:K14,K8) -> 2041946745 | L15: =SUM(L12:L14,L8) -> 1871826890
E16: TE | F16: Production stockée (ou déstockage) | I16: -/+ | J16: 6 | K16: =-SUMPRODUCT(((LEFT(BalanceN!$A$4:$A$9999,2)="73"))*BalanceN!$G$4:$G$9999)+SUMPRODUCT(((LEFT(BalanceN!$A$4:$A$9999,2)="73"))*BalanceN!$H$4:$H$9999) -> 0 | L16: =-SUMPRODUCT(((LEFT('BalanceN-1'!$A$4:$A$9999,2)="73"))*'BalanceN-1'!$G$4:$G$9999)+SUMPRODUCT(((LEFT('BalanceN-1'!$A$4:$A$9999,2)="73"))*'BalanceN-1'!$H$4:$H$9999) -> 0
E17: TF | F17: Production immobilisée | I17: + | J17: 21 | K17: =SUMPRODUCT(((LEFT(BalanceN!$A$4:$A$9999,2)="72"))*BalanceN!$H$4:$H$9999)-SUMPRODUCT(((LEFT(BalanceN!$A$4:$A$9999,2)="72"))*BalanceN!$G$4:$G$9999) -> 4500000 | L17: =SUMPRODUCT(((LEFT('BalanceN-1'!$A$4:$A$9999,2)="72"))*'BalanceN-1'!$H$4:$H$9999)-SUMPRODUCT(((LEFT('BalanceN-1'!$A$4:$A$9999,2)="72"))*'BalanceN-1'!$G$4:$G$9999) -> 0
E18: TG | F18: Subventions d'exploitation | I18: + | J18: 21 | K18: =SUMPRODUCT(((LEFT(BalanceN!$A$4:$A$9999,2)="71"))*BalanceN!$H$4:$H$9999)-SUMPRODUCT(((LEFT(BalanceN!$A$4:$A$9999,2)="71"))*BalanceN!$G$4:$G$9999) -> 0 | L18: =SUMPRODUCT(((LEFT('BalanceN-1'!$A$4:$A$9999,2)="71"))*'BalanceN-1'!$H$4:$H$9999)-SUMPRODUCT(((LEFT('BalanceN-1'!$A$4:$A$9999,2)="71"))*'BalanceN-1'!$G$4:$G$9999) -> 0
E19: TH | F19: Autres produits | I19: + | J19: 21 | K19: =SUMPRODUCT(((LEFT(BalanceN!$A$4:$A$9999,2)="75"))*BalanceN!$H$4:$H$9999)-SUMPRODUCT(((LEFT(BalanceN!$A$4:$A$9999,2)="75"))*BalanceN!$G$4:$G$9999) -> 3436978 | L19: =SUMPRODUCT(((LEFT('BalanceN-1'!$A$4:$A$9999,2)="75"))*'BalanceN-1'!$H$4:$H$9999)-SUMPRODUCT(((LEFT('BalanceN-1'!$A$4:$A$9999,2)="75"))*'BalanceN-1'!$G$4:$G$9999) -> 11486537
E20: TI | F20: Transferts de charges d'exploitation | I20: + | J20: 12 | K20: =SUMPRODUCT(((LEFT(BalanceN!$A$4:$A$9999,3)="781"))*BalanceN!$H$4:$H$9999)-SUMPRODUCT(((LEFT(BalanceN!$A$4:$A$9999,3)="781"))*BalanceN!$G$4:$G$9999) -> 3233550 | L20: =SUMPRODUCT(((LEFT('BalanceN-1'!$A$4:$A$9999,3)="781"))*'BalanceN-1'!$H$4:$H$9999)-SUMPRODUCT(((LEFT('BalanceN-1'!$A$4:$A$9999,3)="781"))*'BalanceN-1'!$G$4:$G$9999) -> 5817880
E21: RC | F21: Achats de matières premières et fournitures liées | I21: - | J21: 22 | K21: =-SUMPRODUCT(((LEFT(BalanceN!$A$4:$A$9999,3)="602"))*BalanceN!$G$4:$G$9999)+SUMPRODUCT(((LEFT(BalanceN!$A$4:$A$9999,3)="602"))*BalanceN!$H$4:$H$9999) -> -928303692 | L21: =-SUMPRODUCT(((LEFT('BalanceN-1'!$A$4:$A$9999,3)="602"))*'BalanceN-1'!$G$4:$G$9999)+SUMPRODUCT(((LEFT('BalanceN-1'!$A$4:$A$9999,3)="602"))*'BalanceN-1'!$H$4:$H$9999) -> -954585472
E22: RD | F22: Variation de stocks de matières premières et fournitures liées | I22: -/+ | J22: 6 | K22: =-SUMPRODUCT(((LEFT(BalanceN!$A$4:$A$9999,4)="6032"))*BalanceN!$G$4:$G$9999)+SUMPRODUCT(((LEFT(BalanceN!$A$4:$A$9999,4)="6032"))*BalanceN!$H$4:$H$9999) -> 106416 | L22: =-SUMPRODUCT(((LEFT('BalanceN-1'!$A$4:$A$9999,4)="6032"))*'BalanceN-1'!$G$4:$G$9999)+SUMPRODUCT(((LEFT('BalanceN-1'!$A$4:$A$9999,4)="6032"))*'BalanceN-1'!$H$4:$H$9999) -> -2830600
E23: RE | F23: Autres achats | I23: - | J23: 22 | K23: =-SUMPRODUCT(((LEFT(BalanceN!$A$4:$A$9999,3)="604")+(LEFT(BalanceN!$A$4:$A$9999,3)="605")+(LEFT(BalanceN!$A$4:$A$9999,3)="608"))*BalanceN!$G$4:$G$9999)+SUMPRODUCT(((LEFT(BalanceN!$A$4:$A$9999,3)="604")+(LEFT(BalanceN!$A$4:$A$9999,3)="605")+(LEFT(BalanceN!$A$4:$A$9999,3)="608"))*BalanceN!$H$4:$H$9999) -> -158266959 | L23: =-SUMPRODUCT(((LEFT('BalanceN-1'!$A$4:$A$9999,3)="604")+(LEFT('BalanceN-1'!$A$4:$A$9999,3)="605")+(LEFT('BalanceN-1'!$A$4:$A$9999,3)="608"))*'BalanceN-1'!$G$4:$G$9999)+SUMPRODUCT(((LEFT('BalanceN-1'!$A$4:$A$9999,3)="604")+(LEFT('BalanceN-1'!$A$4:$A$9999,3)="605")+(LEFT('BalanceN-1'!$A$4:$A$9999,3)="608"))*'BalanceN-1'!$H$4:$H$9999) -> -161120517
E24: RF | F24: Variation de stocks d'autres approvisionnements | I24: -/+ | J24: 6 | K24: =-SUMPRODUCT(((LEFT(BalanceN!$A$4:$A$9999,4)="6033"))*BalanceN!$G$4:$G$9999)+SUMPRODUCT(((LEFT(BalanceN!$A$4:$A$9999,4)="6033"))*BalanceN!$H$4:$H$9999) -> -2414711 | L24: =-SUMPRODUCT(((LEFT('BalanceN-1'!$A$4:$A$9999,4)="6033"))*'BalanceN-1'!$G$4:$G$9999)+SUMPRODUCT(((LEFT('BalanceN-1'!$A$4:$A$9999,4)="6033"))*'BalanceN-1'!$H$4:$H$9999) -> 1884647
E25: RG | F25: Transports | I25: - | J25: 23 | K25: =-SUMPRODUCT(((LEFT(BalanceN!$A$4:$A$9999,2)="61"))*BalanceN!$G$4:$G$9999)+SUMPRODUCT(((LEFT(BalanceN!$A$4:$A$9999,2)="61"))*BalanceN!$H$4:$H$9999) -> -329146672 | L25: =-SUMPRODUCT(((LEFT('BalanceN-1'!$A$4:$A$9999,2)="61")-(LEFT('BalanceN-1'!$A$4:$A$9999,3)="611"))*'BalanceN-1'!$G$4:$G$9999)+SUMPRODUCT(((LEFT('BalanceN-1'!$A$4:$A$9999,2)="61")-(LEFT('BalanceN-1'!$A$4:$A$9999,3)="611"))*'BalanceN-1'!$H$4:$H$9999) -> -329073556
E26: RH | F26: Services extérieurs | I26: - | J26: 24 | K26: =-SUMPRODUCT(((LEFT(BalanceN!$A$4:$A$9999,2)="62")+(LEFT(BalanceN!$A$4:$A$9999,2)="63"))*BalanceN!$G$4:$G$9999)+SUMPRODUCT(((LEFT(BalanceN!$A$4:$A$9999,2)="62")+(LEFT(BalanceN!$A$4:$A$9999,2)="63"))*BalanceN!$H$4:$H$9999) -> -72599329 | L26: =-SUMPRODUCT(((LEFT('BalanceN-1'!$A$4:$A$9999,2)="62")+(LEFT('BalanceN-1'!$A$4:$A$9999,2)="63")-(LEFT('BalanceN-1'!$A$4:$A$9999,4)="6235")-(LEFT('BalanceN-1'!$A$4:$A$9999,4)="6256")-(LEFT('BalanceN-1'!$A$4:$A$9999,4)="6321")-(LEFT('BalanceN-1'!$A$4:$A$9999,4)="6323"))*'BalanceN-1'!$G$4:$G$9999)+SUMPRODUCT(((LEFT('BalanceN-1'!$A$4:$A$9999,2)="62")+(LEFT('BalanceN-1'!$A$4:$A$9999,2)="63")-(LEFT('BalanceN-1'!$A$4:$A$9999,4)="6235")-(LEFT('BalanceN-1'!$A$4:$A$9999,4)="6256")-(LEFT('BalanceN-1'!$A$4:$A$9999,4)="6321")-(LEFT('BalanceN-1'!$A$4:$A$9999,4)="6323"))*'BalanceN-1'!$H$4:$H$9999) -> -60787379
E27: RI | F27: Impôts et taxes | I27: - | J27: 25 | K27: =-SUMPRODUCT(((LEFT(BalanceN!$A$4:$A$9999,2)="64"))*BalanceN!$G$4:$G$9999)+SUMPRODUCT(((LEFT(BalanceN!$A$4:$A$9999,2)="64"))*BalanceN!$H$4:$H$9999) -> -3135200 | L27: =-SUMPRODUCT(((LEFT('BalanceN-1'!$A$4:$A$9999,2)="64"))*'BalanceN-1'!$G$4:$G$9999)+SUMPRODUCT(((LEFT('BalanceN-1'!$A$4:$A$9999,2)="64"))*'BalanceN-1'!$H$4:$H$9999) -> -110000
E28: RJ | F28: Autres charges | I28: - | J28: 26 | K28: =-SUMPRODUCT(((LEFT(BalanceN!$A$4:$A$9999,2)="65"))*BalanceN!$G$4:$G$9999)+SUMPRODUCT(((LEFT(BalanceN!$A$4:$A$9999,2)="65"))*BalanceN!$H$4:$H$9999) -> -4263929 | L28: =-SUMPRODUCT(((LEFT('BalanceN-1'!$A$4:$A$9999,2)="65"))*'BalanceN-1'!$G$4:$G$9999)+SUMPRODUCT(((LEFT('BalanceN-1'!$A$4:$A$9999,2)="65"))*'BalanceN-1'!$H$4:$H$9999) -> -67670
E29: XC | F29: VALEUR AJOUTEE (XB+RA+RB) + (Somme TE à RJ) | K29: =SUM(K16:K28,K15,K9,K10) -> 485093197 | L29: =SUM(L16:L28,L15,L9,L10) -> 382440760
E30: RK | F30: Charges de personnel | I30: - | J30: 27 | K30: =-SUMPRODUCT(((LEFT(BalanceN!$A$4:$A$9999,2)="66"))*BalanceN!$G$4:$G$9999)+SUMPRODUCT(((LEFT(BalanceN!$A$4:$A$9999,2)="66"))*BalanceN!$H$4:$H$9999) -> -218217093 | L30: =-SUMPRODUCT(((LEFT('BalanceN-1'!$A$4:$A$9999,2)="66"))*'BalanceN-1'!$G$4:$G$9999)+SUMPRODUCT(((LEFT('BalanceN-1'!$A$4:$A$9999,2)="66"))*'BalanceN-1'!$H$4:$H$9999) -> -208852251
E31: XD | F31: EXCEDENT BRUT D'EXPLOITATION (XC+RK) | J31: 28 | K31: =SUM(K29:K30) -> 266876104 | L31: =SUM(L29:L30) -> 173588509
E32: TJ | F32: Reprises d'amortissements, provisions et dépréciations | I32: + | J32: 28 | K32: =SUMPRODUCT(((LEFT(BalanceN!$A$4:$A$9999,3)="791")+(LEFT(BalanceN!$A$4:$A$9999,3)="798")+(LEFT(BalanceN!$A$4:$A$9999,3)="799"))*BalanceN!$H$4:$H$9999) -> 0 | L32: =SUMPRODUCT(((LEFT('BalanceN-1'!$A$4:$A$9999,3)="791")+(LEFT('BalanceN-1'!$A$4:$A$9999,3)="798")+(LEFT('BalanceN-1'!$A$4:$A$9999,3)="799"))*'BalanceN-1'!$H$4:$H$9999) -> 0
E33: RL | F33: Dotations aux amortissements, aux provisions et dépréciations | I33: - | J33: 3C&28 | K33: =-SUMPRODUCT(((LEFT(BalanceN!$A$4:$A$9999,3)="681")+(LEFT(BalanceN!$A$4:$A$9999,3)="691")-(LEFT(BalanceN!$A$4:$A$9999,4)="6811")-(LEFT(BalanceN!$A$4:$A$9999,4)="6912"))*BalanceN!$G$4:$G$9999)+SUMPRODUCT(((LEFT(BalanceN!$A$4:$A$9999,3)="681")+(LEFT(BalanceN!$A$4:$A$9999,3)="691")-(LEFT(BalanceN!$A$4:$A$9999,4)="6811")-(LEFT(BalanceN!$A$4:$A$9999,4)="6912"))*BalanceN!$H$4:$H$9999) -> -26511313 | L33: =-SUMPRODUCT(((LEFT('BalanceN-1'!$A$4:$A$9999,3)="681")+(LEFT('BalanceN-1'!$A$4:$A$9999,3)="691")-(LEFT('BalanceN-1'!$A$4:$A$9999,4)="6811")-(LEFT('BalanceN-1'!$A$4:$A$9999,4)="6912"))*'BalanceN-1'!$G$4:$G$9999)+SUMPRODUCT(((LEFT('BalanceN-1'!$A$4:$A$9999,3)="681")+(LEFT('BalanceN-1'!$A$4:$A$9999,3)="691")-(LEFT('BalanceN-1'!$A$4:$A$9999,4)="6811")-(LEFT('BalanceN-1'!$A$4:$A$9999,4)="6912"))*'BalanceN-1'!$H$4:$H$9999) -> -31615755
E34: XE | F34: RESULTAT D'EXPLOITATION (XD+TJ+RL) | K34: =SUM(K31:K33) -> 240364791 | L34: =SUM(L31:L33) -> 141972754
E35: TK | F35: Revenus financiers et assimilés | I35: + | J35: 29 | K35: =SUMPRODUCT(((LEFT(BalanceN!$A$4:$A$9999,2)="77"))*BalanceN!$H$4:$H$9999)-SUMPRODUCT(((LEFT(BalanceN!$A$4:$A$9999,2)="77"))*BalanceN!$G$4:$G$9999) -> 7500000 | L35: =SUMPRODUCT(((LEFT('BalanceN-1'!$A$4:$A$9999,2)="77"))*'BalanceN-1'!$H$4:$H$9999)-SUMPRODUCT(((LEFT('BalanceN-1'!$A$4:$A$9999,2)="77"))*'BalanceN-1'!$G$4:$G$9999) -> 0
E36: TL | F36: Reprises de provisions et dépréciations financières | I36: + | J36: 28 | K36: =SUMPRODUCT(((LEFT(BalanceN!$A$4:$A$9999,3)="797"))*BalanceN!$H$4:$H$9999) -> 0 | L36: =SUMPRODUCT(((LEFT('BalanceN-1'!$A$4:$A$9999,3)="797"))*'BalanceN-1'!$H$4:$H$9999) -> 0
E37: TM | F37: Transferts de charges financières | I37: + | J37: 12 | K37: =SUMPRODUCT(((LEFT(BalanceN!$A$4:$A$9999,3)="787"))*BalanceN!$H$4:$H$9999)-SUMPRODUCT(((LEFT(BalanceN!$A$4:$A$9999,3)="787"))*BalanceN!$G$4:$G$9999) -> 0 | L37: =SUMPRODUCT(((LEFT('BalanceN-1'!$A$4:$A$9999,3)="787"))*'BalanceN-1'!$H$4:$H$9999)-SUMPRODUCT(((LEFT('BalanceN-1'!$A$4:$A$9999,3)="787"))*'BalanceN-1'!$G$4:$G$9999) -> 0
E38: RM | F38: Frais financiers et charges assimilées | I38: - | J38: 29 | K38: =-SUMPRODUCT(((LEFT(BalanceN!$A$4:$A$9999,2)="67"))*BalanceN!$G$4:$G$9999)+SUMPRODUCT(((LEFT(BalanceN!$A$4:$A$9999,2)="67"))*BalanceN!$H$4:$H$9999) -> -3500000 | L38: =-SUMPRODUCT(((LEFT('BalanceN-1'!$A$4:$A$9999,2)="67"))*'BalanceN-1'!$G$4:$G$9999)+SUMPRODUCT(((LEFT('BalanceN-1'!$A$4:$A$9999,2)="67"))*'BalanceN-1'!$H$4:$H$9999) -> 0
E39: RN | F39: Dotations aux provisions et aux dépréciations financières | I39: - | J39: 3C&28 | K39: =-SUMPRODUCT(((LEFT(BalanceN!$A$4:$A$9999,3)="697"))*BalanceN!$G$4:$G$9999)+SUMPRODUCT(((LEFT(BalanceN!$A$4:$A$9999,3)="697"))*BalanceN!$H$4:$H$9999) -> 0 | L39: =-SUMPRODUCT(((LEFT('BalanceN-1'!$A$4:$A$9999,3)="697"))*'BalanceN-1'!$G$4:$G$9999)+SUMPRODUCT(((LEFT('BalanceN-1'!$A$4:$A$9999,3)="697"))*'BalanceN-1'!$H$4:$H$9999) -> 0
E40: XF | F40: RESULTAT FINANCIER (Somme TK à RN) | K40: =SUM(K35:K39) -> 4000000 | L40: =SUM(L35:L39) -> 0
E41: XG | F41: RESULTAT DES ACTIVITES ORDINAIRES (XE+XF) | K41: =SUM(K34,K40) -> 244364791 | L41: =SUM(L34,L40) -> 141972754
E42: TN | F42: Produits des cessions d'immobilisations | I42: + | J42: 3D | K42: =SUMPRODUCT(((LEFT(BalanceN!$A$4:$A$9999,2)="82"))*BalanceN!$H$4:$H$9999)-SUMPRODUCT(((LEFT(BalanceN!$A$4:$A$9999,2)="82"))*BalanceN!$G$4:$G$9999) -> 127119 | L42: =SUMPRODUCT(((LEFT('BalanceN-1'!$A$4:$A$9999,2)="82"))*'BalanceN-1'!$H$4:$H$9999)-SUMPRODUCT(((LEFT('BalanceN-1'!$A$4:$A$9999,2)="82"))*'BalanceN-1'!$G$4:$G$9999) -> 350000
E43: TO | F43: Autres Produits HAO | I43: + | J43: 30 | K43: =SUMPRODUCT(((LEFT(BalanceN!$A$4:$A$9999,2)="84")+(LEFT(BalanceN!$A$4:$A$9999,2)="86")+(LEFT(BalanceN!$A$4:$A$9999,2)="88"))*BalanceN!$H$4:$H$9999)-SUMPRODUCT(((LEFT(BalanceN!$A$4:$A$9999,2)="84")+(LEFT(BalanceN!$A$4:$A$9999,2)="86")+(LEFT(BalanceN!$A$4:$A$9999,2)="88"))*BalanceN!$G$4:$G$9999) -> 2000000 | L43: =SUMPRODUCT(((LEFT('BalanceN-1'!$A$4:$A$9999,2)="84")+(LEFT('BalanceN-1'!$A$4:$A$9999,2)="86")+(LEFT('BalanceN-1'!$A$4:$A$9999,2)="88"))*'BalanceN-1'!$H$4:$H$9999)-SUMPRODUCT(((LEFT('BalanceN-1'!$A$4:$A$9999,2)="84")+(LEFT('BalanceN-1'!$A$4:$A$9999,2)="86")+(LEFT('BalanceN-1'!$A$4:$A$9999,2)="88"))*'BalanceN-1'!$G$4:$G$9999) -> 0
E44: RO | F44: Valeurs comptables des cessions d'immobilisations | I44: - | J44: 3D | K44: =-SUMPRODUCT(((LEFT(BalanceN!$A$4:$A$9999,2)="81"))*BalanceN!$G$4:$G$9999) -> 0 | L44: =-SUMPRODUCT(((LEFT('BalanceN-1'!$A$4:$A$9999,2)="81"))*'BalanceN-1'!$G$4:$G$9999) -> -291667
E45: RP | F45: Autres Charges HAO | I45: - | J45: 30 | K45: =-SUMPRODUCT(((LEFT(BalanceN!$A$4:$A$9999,2)="83")+(LEFT(BalanceN!$A$4:$A$9999,2)="85"))*BalanceN!$G$4:$G$9999) -> 0 | L45: =-SUMPRODUCT(((LEFT('BalanceN-1'!$A$4:$A$9999,2)="83")+(LEFT('BalanceN-1'!$A$4:$A$9999,2)="85"))*'BalanceN-1'!$G$4:$G$9999) -> 0
E46: XH | F46: RESULTAT HORS ACTIVITES ORDINAIRES (Somme TN à RP) | K46: =SUM(K42:K45) -> 2127119 | L46: =SUM(L42:L45) -> 58333
E47: RQ | F47: Participation des travailleurs | I47: - | J47: 30 | K47: =-SUMPRODUCT(((LEFT(BalanceN!$A$4:$A$9999,2)="87"))*BalanceN!$G$4:$G$9999) -> 0 | L47: =-SUMPRODUCT(((LEFT('BalanceN-1'!$A$4:$A$9999,2)="87"))*'BalanceN-1'!$G$4:$G$9999) -> 0
E48: RS | F48: Impôts sur le résultat | I48: - | K48: =-'CALCULS FISCAUX'!G62 -> -67660025 | L48: =-SUMPRODUCT(((LEFT('BalanceN-1'!$A$4:$A$9999,2)="89"))*'BalanceN-1'!$G$4:$G$9999) -> -23411413
E49: XI | F49: RESULTAT NET (XG+XH+RQ+RS) | K49: =SUM(K47:K48,K41,K46) -> 178831885 | L49: =SUM(L47:L48,L41,L46) -> 118619674

Sheet TABLEAU DES FLUX DE TRESORERIE
B1: TABLEAU DES FLUX DE TRESORERIE
B3: Désignation entité:……………………………………. | D3: =INFORMATIONS!B10 -> SAM CONSEILS | H3: Exercice clos au: | J3: =INFORMATIONS!D31 -> 2018-12-31
B4: Numéro d'identification:……………………………….. | D4: =INFORMATIONS!B24 -> 00084404X | H4: Durée (en mois): | J4: =INFORMATIONS!F34 -> 12
B6: Réf | C6: LIBELLES | H6: Note
B7: ZA | C7: Trésorerie nette au 1er janvier (Trésorerie actif N-1 - Trésorerie Passif N-1) | G7: A | I7: =SUMPRODUCT(((LEFT(BalanceN!$A$4:$A$9999,2)="50")+(LEFT(BalanceN!$A$4:$A$9999,2)="51")+(LEFT(BalanceN!$A$4:$A$9999,2)="52")+(LEFT(BalanceN!$A$4:$A$9999,2)="53")+(LEFT(BalanceN!$A$4:$A$9999,2)="54")+(LEFT(BalanceN!$A$4:$A$9999,2)="55")+(LEFT(BalanceN!$A$4:$A$9999,2)="57")+(LEFT(BalanceN!$A$4:$A$9999,3)="581")+(LEFT(BalanceN!$A$4:$A$9999,3)="582")+(LEFT(BalanceN!$A$4:$A$9999,3)="472"))*BalanceN!$C$4:$C$9999)-SUMPRODUCT(((LEFT(BalanceN!$A$4:$A$9999,2)="52")+(LEFT(BalanceN!$A$4:$A$9999,2)="53")+(LEFT(BalanceN!$A$4:$A$9999,3)="561")+(LEFT(BalanceN!$A$4:$A$9999,3)="566")+(LEFT(BalanceN!$A$4:$A$9999,3)="564")+(LEFT(BalanceN!$A$4:$A$9999,3)="565")+(LEFT(BalanceN!$A$4:$A$9999,3)="472"))*BalanceN!$D$4:$D$9999) -> 74584157 | J7: =SUMPRODUCT(((LEFT('BalanceN-1'!$A$4:$A$9999,2)="50")+(LEFT('BalanceN-1'!$A$4:$A$9999,2)="51")+(LEFT('BalanceN-1'!$A$4:$A$9999,2)="52")+(LEFT('BalanceN-1'!$A$4:$A$9999,2)="53")+(LEFT('BalanceN-1'!$A$4:$A$9999,2)="54")+(LEFT('BalanceN-1'!$A$4:$A$9999,2)="55")+(LEFT('BalanceN-1'!$A$4:$A$9999,2)="57")+(LEFT('BalanceN-1'!$A$4:$A$9999,3)="581")+(LEFT('BalanceN-1'!$A$4:$A$9999,3)="582")+(LEFT('BalanceN-1'!$A$4:$A$9999,3)="472"))*'BalanceN-1'!$C$4:$C$9999)-SUMPRODUCT(((LEFT('BalanceN-1'!$A$4:$A$9999,2)="52")+(LEFT('BalanceN-1'!$A$4:$A$9999,2)="53")+(LEFT('BalanceN-1'!$A$4:$A$9999,3)="561")+(LEFT('BalanceN-1'!$A$4:$A$9999,3)="566")+(LEFT('BalanceN-1'!$A$4:$A$9999,3)="564")+(LEFT('BalanceN-1'!$A$4:$A$9999,3)="565")+(LEFT('BalanceN-1'!$A$4:$A$9999,3)="472"))*'BalanceN-1'!$D$4:$D$9999) -> 33595404
C8: Flux de trésorerie provenant des activités opérationnelles
B9: FA | C9: Capacité d'Autofinancement Globale (CAFG) | I9: ='COMPTE DE RESULTAT'!K31+SUMPRODUCT(((LEFT(BalanceN!$A$4:$A$9999,3)="654"))*BalanceN!$G$4:$G$9999)-SUMPRODUCT(((LEFT(BalanceN!$A$4:$A$9999,3)="754"))*BalanceN!$H$4:$H$9999)+'COMPTE DE RESULTAT'!K40+'COMPTE DE RESULTAT'!K43+'COMPTE DE RESULTAT'!K45+'COMPTE DE RESULTAT'!K47+'COMPTE DE RESULTAT'!K48 -> 205216079 | J9: ='COMPTE DE RESULTAT'!L31+SUMPRODUCT(((LEFT('BalanceN-1'!$A$4:$A$9999,3)="654"))*'BalanceN-1'!$G$4:$G$9999)-SUMPRODUCT(((LEFT('BalanceN-1'!$A$4:$A$9999,3)="754"))*'BalanceN-1'!$H$4:$H$9999)+'COMPTE DE RESULTAT'!L40+'COMPTE DE RESULTAT'!L43+'COMPTE DE RESULTAT'!L45+'COMPTE DE RESULTAT'!L47+'COMPTE DE RESULTAT'!L48 -> 150177096
B10: FB | C10: - Variation Actif circulant HAO (1) | I10: =-(BILAN!I24-BILAN!J24-(SUMPRODUCT(((LEFT(BalanceN!$A$4:$A$9999,3)="485"))*BalanceN!$G$4:$G$9999)-SUMPRODUCT(((LEFT(BalanceN!$A$4:$A$9999,3)="485"))*BalanceN!$C$4:$C$9999))) -> -2000000 | J10: =-(BILAN!J24-SUMPRODUCT(((LEFT('BalanceN-1'!$A$4:$A$9999,3)="485")+(LEFT('BalanceN-1'!$A$4:$A$9999,3)="488"))*'BalanceN-1'!$C$4:$C$9999)-SUMPRODUCT(((LEFT('BalanceN-1'!$A$4:$A$9999,3)="498"))*'BalanceN-1'!$D$4:$D$9999)-(SUMPRODUCT(((LEFT('BalanceN-1'!$A$4:$A$9999,3)="485"))*'BalanceN-1'!$G$4:$G$9999)-SUMPRODUCT(((LEFT('BalanceN-1'!$A$4:$A$9999,3)="485"))*'BalanceN-1'!$C$4:$C$9999))) -> 0
B11: FC | C11: - Variation des stocks | I11: =-(BILAN!I25-BILAN!J25) -> -2691705 | J11: =-(BILAN!J25-SUMPRODUCT(((LEFT('BalanceN-1'!$A$4:$A$9999,2)="31")+(LEFT('BalanceN-1'!$A$4:$A$9999,2)="32")+(LEFT('BalanceN-1'!$A$4:$A$9999,2)="33")+(LEFT('BalanceN-1'!$A$4:$A$9999,2)="34")+(LEFT('BalanceN-1'!$A$4:$A$9999,2)="35")+(LEFT('BalanceN-1'!$A$4:$A$9999,2)="36")+(LEFT('BalanceN-1'!$A$4:$A$9999,2)="37")+(LEFT('BalanceN-1'!$A$4:$A$9999,2)="38"))*'BalanceN-1'!$C$4:$C$9999)-SUMPRODUCT(((LEFT('BalanceN-1'!$A$4:$A$9999,2)="39"))*'BalanceN-1'!$D$4:$D$9999)) -> 945953
B12: FD | C12: - Variations des créances | I12: =-(BILAN!I26-BILAN!J26+SUMPRODUCT(((LEFT(BalanceN!$A$4:$A$9999,4)="4781"))*BalanceN!$G$4:$G$9999)-SUMPRODUCT(((LEFT(BalanceN!$A$4:$A$9999,4)="4791"))*BalanceN!$H$4:$H$9999)-((SUMPRODUCT(((LEFT(BalanceN!$A$4:$A$9999,3)="414")+(LEFT(BalanceN!$A$4:$A$9999,3)="467")+(LEFT(BalanceN!$A$4:$A$9999,3)="458")+(LEFT(BalanceN!$A$4:$A$9999,4)="4494")+(LEFT(BalanceN!$A$4:$A$9999,4)="4751"))*BalanceN!$G$4:$G$9999))-(SUMPRODUCT(((LEFT(BalanceN!$A$4:$A$9999,3)="414")+(LEFT(BalanceN!$A$4:$A$9999,3)="467")+(LEFT(BalanceN!$A$4:$A$9999,3)="458")+(LEFT(BalanceN!$A$4:$A$9999,4)="4494")+(LEFT(BalanceN!$A$4:$A$9999,4)="4751"))*BalanceN!$C$4:$C$9999)))) -> -45792222 | J12: =-(BILAN!J26-(SUMPRODUCT(((LEFT('BalanceN-1'!$A$4:$A$9999,3)="409"))*'BalanceN-1'!$C$4:$C$9999)-SUMPRODUCT(((LEFT('BalanceN-1'!$A$4:$A$9999,3)="490"))*'BalanceN-1'!$D$4:$D$9999)+SUMPRODUCT(((LEFT('BalanceN-1'!$A$4:$A$9999,2)="41"))*'BalanceN-1'!$C$4:$C$9999)-SUMPRODUCT(((LEFT('BalanceN-1'!$A$4:$A$9999,3)="491"))*'BalanceN-1'!$D$4:$D$9999)+SUMPRODUCT(((LEFT('BalanceN-1'!$A$4:$A$9999,3)="185")+(LEFT('BalanceN-1'!$A$4:$A$9999,2)="42")+(LEFT('BalanceN-1'!$A$4:$A$9999,2)="43")+(LEFT('BalanceN-1'!$A$4:$A$9999,2)="44")+(LEFT('BalanceN-1'!$A$4:$A$9999,2)="45")+(LEFT('BalanceN-1'!$A$4:$A$9999,2)="46")+(LEFT('BalanceN-1'!$A$4:$A$9999,2)="47")-(LEFT('BalanceN-1'!$A$4:$A$9999,3)="478"))*'BalanceN-1'!$C$4:$C$9999)-SUMPRODUCT(((LEFT('BalanceN-1'!$A$4:$A$9999,3)="492")+(LEFT('BalanceN-1'!$A$4:$A$9999,3)="493")+(LEFT('BalanceN-1'!$A$4:$A$9999,3)="494")+(LEFT('BalanceN-1'!$A$4:$A$9999,3)="495")+(LEFT('BalanceN-1'!$A$4:$A$9999,3)="496")+(LEFT('BalanceN-1'!$A$4:$A$9999,3)="497"))*'BalanceN-1'!$D$4:$D$9999))+SUMPRODUCT(((LEFT('BalanceN-1'!$A$4:$A$9999,4)="4781"))*'BalanceN-1'!$G$4:$G$9999)-SUMPRODUCT(((LEFT('BalanceN-1'!$A$4:$A$9999,4)="4791"))*'BalanceN-1'!$H$4:$H$9999)-((SUMPRODUCT(((LEFT('BalanceN-1'!$A$4:$A$9999,3)="414")+(LEFT('BalanceN-1'!$A$4:$A$9999,3)="467")+(LEFT('BalanceN-1'!$A$4:$A$9999,3)="458")+(LEFT('BalanceN-1'!$A$4:$A$9999,4)="4494")+(LEFT('BalanceN-1'!$A$4:$A$9999,4)="4751"))*'BalanceN-1'!$G$4:$G$9999))-(SUMPRODUCT(((LEFT('BalanceN-1'!$A$4:$A$9999,3)="414")+(LEFT('BalanceN-1'!$A$4:$A$9999,3)="467")+(LEFT('BalanceN-1'!$A$4:$A$9999,3)="458")+(LEFT('BalanceN-1'!$A$4:$A$9999,4)="4494")+(LEFT('BalanceN-1'!$A$4:$A$9999,4)="4751"))*'BalanceN-1'!$C$4:$C$9999)))) -> -25371738
B13: FE | C13: + Variation du Passif circulant (1) | I13: =BILAN!N30-BILAN!O30-SUMPRODUCT(((LEFT(BalanceN!$A$4:$A$9999,4)="4783"))*BalanceN!$G$4:$G$9999)+SUMPRODUCT(((LEFT(BalanceN!$A$4:$A$9999,4)="4793"))*BalanceN!$H$4:$H$9999)-((SUMPRODUCT(((LEFT(BalanceN!$A$4:$A$9999,3)="404")+(LEFT(BalanceN!$A$4:$A$9999,3)="481")+(LEFT(BalanceN!$A$4:$A$9999,3)="482")+(LEFT(BalanceN!$A$4:$A$9999,3)="467")+(LEFT(BalanceN!$A$4:$A$9999,4)="4752")+(LEFT(BalanceN!$A$4:$A$9999,3)="472"))*BalanceN!$H$4:$H$9999))-(SUMPRODUCT(((LEFT(BalanceN!$A$4:$A$9999,3)="404")+(LEFT(BalanceN!$A$4:$A$9999,3)="481")+(LEFT(BalanceN!$A$4:$A$9999,3)="482")+(LEFT(BalanceN!$A$4:$A$9999,3)="467")+(LEFT(BalanceN!$A$4:$A$9999,4)="4752")+(LEFT(BalanceN!$A$4:$A$9999,3)="472"))*BalanceN!$D$4:$D$9999))) -> 15502831 | J13: =BILAN!O30-(SUMPRODUCT(((LEFT('BalanceN-1'!$A$4:$A$9999,3)="481")+(LEFT('BalanceN-1'!$A$4:$A$9999,3)="482")+(LEFT('BalanceN-1'!$A$4:$A$9999,3)="484")+(LEFT('BalanceN-1'!$A$4:$A$9999,4)="4998"))*'BalanceN-1'!$D$4:$D$9999)+SUMPRODUCT(((LEFT('BalanceN-1'!$A$4:$A$9999,3)="419"))*'BalanceN-1'!$D$4:$D$9999)+SUMPRODUCT(((LEFT('BalanceN-1'!$A$4:$A$9999,2)="40")-(LEFT('BalanceN-1'!$A$4:$A$9999,3)="409"))*'BalanceN-1'!$D$4:$D$9999)+SUMPRODUCT(((LEFT('BalanceN-1'!$A$4:$A$9999,2)="42")+(LEFT('BalanceN-1'!$A$4:$A$9999,2)="43")+(LEFT('BalanceN-1'!$A$4:$A$9999,2)="44"))*'BalanceN-1'!$D$4:$D$9999)+SUMPRODUCT(((LEFT('BalanceN-1'!$A$4:$A$9999,3)="185")+(LEFT('BalanceN-1'!$A$4:$A$9999,2)="45")+(LEFT('BalanceN-1'!$A$4:$A$9999,2)="46")+(LEFT('BalanceN-1'!$A$4:$A$9999,2)="47")-(LEFT('BalanceN-1'!$A$4:$A$9999,3)="479"))*'BalanceN-1'!$D$4:$D$9999)+SUMPRODUCT(((LEFT('BalanceN-1'!$A$4:$A$9999,3)="499")-(LEFT('BalanceN-1'!$A$4:$A$9999,4)="4998")+(LEFT('BalanceN-1'!$A$4:$A$9999,3)="599"))*'BalanceN-1'!$D$4:$D$9999))-SUMPRODUCT(((LEFT('BalanceN-1'!$A$4:$A$9999,4)="4783"))*'BalanceN-1'!$G$4:$G$9999)+SUMPRODUCT(((LEFT('BalanceN-1'!$A$4:$A$9999,4)="4793"))*'BalanceN-1'!$H$4:$H$9999)-((SUMPRODUCT(((LEFT('BalanceN-1'!$A$4:$A$9999,3)="404")+(LEFT('BalanceN-1'!$A$4:$A$9999,3)="481")+(LEFT('BalanceN-1'!$A$4:$A$9999,3)="482")+(LEFT('BalanceN-1'!$A$4:$A$9999,3)="467")+(LEFT('BalanceN-1'!$A$4:$A$9999,4)="4752")+(LEFT('BalanceN-1'!$A$4:$A$9999,3)="472"))*'BalanceN-1'!$H$4:$H$9999))-(SUMPRODUCT(((LEFT('BalanceN-1'!$A$4:$A$9999,3)="404")+(LEFT('BalanceN-1'!$A$4:$A$9999,3)="481")+(LEFT('BalanceN-1'!$A$4:$A$9999,3)="482")+(LEFT('BalanceN-1'!$A$4:$A$9999,3)="467")+(LEFT('BalanceN-1'!$A$4:$A$9999,4)="4752")+(LEFT('BalanceN-1'!$A$4:$A$9999,3)="472"))*'BalanceN-1'!$D$4:$D$9999))) -> -27602541
C14: Variation du BF lié aux activités opérationnelles (FB+FC+FD+FE) :
E15: =-SUM(I10:I13) -> 34981096 | F15: =-SUM(J10:J13) -> 52028326
B16: ZB | C16: Flux de trésorerie provenant des activités opérationnelles (somme FA à FE) | G16: B | I16: =SUM(I9:I13) -> 170234983 | J16: =SUM(J9:J13) -> 98148770
B17: FF | C17: - Décaissements liés aux acquisitions d'immobilisations incorporelles | I17: =-(BILAN!I8-BILAN!J8+((SUMPRODUCT(((LEFT(BalanceN!$A$4:$A$9999,4)="6812")+(LEFT(BalanceN!$A$4:$A$9999,4)="6913"))*BalanceN!$G$4:$G$9999))+SUMPRODUCT(((LEFT(BalanceN!$A$4:$A$9999,3)="811")+(LEFT(BalanceN!$A$4:$A$9999,4)="6541"))*BalanceN!$G$4:$G$9999)-SUMPRODUCT(((LEFT(BalanceN!$A$4:$A$9999,4)="4811")-(LEFT(BalanceN!$A$4:$A$9999,4)="4041"))*BalanceN!$H$4:$H$9999)+(SUMPRODUCT(((LEFT(BalanceN!$A$4:$A$9999,4)="4821"))*BalanceN!$H$4:$H$9999))+SUMPRODUCT(((LEFT(BalanceN!$A$4:$A$9999,3)="251"))*BalanceN!$G$4:$G$9999)-SUMPRODUCT(((LEFT(BalanceN!$A$4:$A$9999,3)="251"))*BalanceN!$C$4:$C$9999))) -> -2000000 | J17: =-(BILAN!J8-(SUMPRODUCT(((LEFT('BalanceN-1'!$A$4:$A$9999,3)="211")+(LEFT('BalanceN-1'!$A$4:$A$9999,4)="2181")+(LEFT('BalanceN-1'!$A$4:$A$9999,4)="2191"))*'BalanceN-1'!$C$4:$C$9999)-SUMPRODUCT(((LEFT('BalanceN-1'!$A$4:$A$9999,4)="2811")+(LEFT('BalanceN-1'!$A$4:$A$9999,5)="28181")+(LEFT('BalanceN-1'!$A$4:$A$9999,4)="2911")+(LEFT('BalanceN-1'!$A$4:$A$9999,5)="29181")+(LEFT('BalanceN-1'!$A$4:$A$9999,5)="29191"))*'BalanceN-1'!$D$4:$D$9999)+SUMPRODUCT(((LEFT('BalanceN-1'!$A$4:$A$9999,3)="212")+(LEFT('BalanceN-1'!$A$4:$A$9999,3)="213")+(LEFT('BalanceN-1'!$A$4:$A$9999,3)="214")+(LEFT('BalanceN-1'!$A$4:$A$9999,4)="2193"))*'BalanceN-1'!$C$4:$C$9999)-SUMPRODUCT(((LEFT('BalanceN-1'!$A$4:$A$9999,4)="2812")+(LEFT('BalanceN-1'!$A$4:$A$9999,4)="2813")+(LEFT('BalanceN-1'!$A$4:$A$9999,4)="2814")+(LEFT('BalanceN-1'!$A$4:$A$9999,4)="2912")+(LEFT('BalanceN-1'!$A$4:$A$9999,4)="2913")+(LEFT('BalanceN-1'!$A$4:$A$9999,4)="2914")+(LEFT('BalanceN-1'!$A$4:$A$9999,5)="29193"))*'BalanceN-1'!$D$4:$D$9999)+SUMPRODUCT(((LEFT('BalanceN-1'!$A$4:$A$9999,3)="215")+(LEFT('BalanceN-1'!$A$4:$A$9999,3)="216"))*'BalanceN-1'!$C$4:$C$9999)-SUMPRODUCT(((LEFT('BalanceN-1'!$A$4:$A$9999,4)="2815")+(LEFT('BalanceN-1'!$A$4:$A$9999,4)="2816")+(LEFT('BalanceN-1'!$A$4:$A$9999,4)="2915")+(LEFT('BalanceN-1'!$A$4:$A$9999,4)="2916"))*'BalanceN-1'!$D$4:$D$9999)+SUMPRODUCT(((LEFT('BalanceN-1'!$A$4:$A$9999,3)="217")+(LEFT('BalanceN-1'!$A$4:$A$9999,3)="218")+(LEFT('BalanceN-1'!$A$4:$A$9999,4)="2198")-(LEFT('BalanceN-1'!$A$4:$A$9999,4)="2181"))*'BalanceN-1'!$C$4:$C$9999)-SUMPRODUCT(((LEFT('BalanceN-1'!$A$4:$A$9999,4)="2817")+(LEFT('BalanceN-1'!$A$4:$A$9999,4)="2818")+(LEFT('BalanceN-1'!$A$4:$A$9999,4)="2917")+(LEFT('BalanceN-1'!$A$4:$A$9999,4)="2918")+(LEFT('BalanceN-1'!$A$4:$A$9999,4)="2919")-(LEFT('BalanceN-1'!$A$4:$A$9999,5)="28181")-(LEFT('BalanceN-1'!$A$4:$A$9999,5)="29181")-(LEFT('BalanceN-1'!$A$4:$A$9999,5)="29191")-(LEFT('BalanceN-1'!$A$4:$A$9999,5)="29193"))*'BalanceN-1'!$D$4:$D$9999))++((SUMPRODUCT(((LEFT('BalanceN-1'!$A$4:$A$9999,4)="6812")+(LEFT('BalanceN-1'!$A$4:$A$9999,4)="6913"))*'BalanceN-1'!$G$4:$G$9999))+SUMPRODUCT(((LEFT('BalanceN-1'!$A$4:$A$9999,3)="811")+(LEFT('BalanceN-1'!$A$4:$A$9999,4)="6541"))*'BalanceN-1'!$G$4:$G$9999)-SUMPRODUCT(((LEFT('BalanceN-1'!$A$4:$A$9999,4)="4811")-(LEFT('BalanceN-1'!$A$4:$A$9999,4)="4041"))*'BalanceN-1'!$H$4:$H$9999)+(SUMPRODUCT(((LEFT('BalanceN-1'!$A$4:$A$9999,4)="4821"))*'BalanceN-1'!$H$4:$H$9999))+SUMPRODUCT(((LEFT('BalanceN-1'!$A$4:$A$9999,3)="251"))*'BalanceN-1'!$G$4:$G$9999)-SUMPRODUCT(((LEFT('BalanceN-1'!$A$4:$A$9999,3)="251"))*'BalanceN-1'!$C$4:$C$9999))) -> 0
B18: FG | C18: - Décaissements liés aux acquisitions d'immobilisations corporelles | I18: =-(BILAN!I13-BILAN!J13+SUMPRODUCT(((LEFT(BalanceN!$A$4:$A$9999,4)="6813")+(LEFT(BalanceN!$A$4:$A$9999,4)="6914"))*BalanceN!$G$4:$G$9999)+SUMPRODUCT(((LEFT(BalanceN!$A$4:$A$9999,3)="812")+(LEFT(BalanceN!$A$4:$A$9999,4)="6542"))*BalanceN!$G$4:$G$9999)-SUMPRODUCT(((LEFT(BalanceN!$A$4:$A$9999,4)="4812")+(LEFT(BalanceN!$A$4:$A$9999,4)="4042")+(LEFT(BalanceN!$A$4:$A$9999,5)="48182"))*BalanceN!$H$4:$H$9999)+SUMPRODUCT(((LEFT(BalanceN!$A$4:$A$9999,4)="4822"))*BalanceN!$H$4:$H$9999)+SUMPRODUCT(((LEFT(BalanceN!$A$4:$A$9999,3)="252"))*BalanceN!$G$4:$G$9999)-SUMPRODUCT(((LEFT(BalanceN!$A$4:$A$9999,3)="252"))*BalanceN!$C$4:$C$9999)-SUMPRODUCT(((LEFT(BalanceN!$A$4:$A$9999,3)="154"))*BalanceN!$H$4:$H$9999)-SUMPRODUCT(((LEFT(BalanceN!$A$4:$A$9999,3)="106"))*BalanceN!$H$4:$H$9999)-SUMPRODUCT(((LEFT(BalanceN!$A$4:$A$9999,2)="17"))*BalanceN!$H$4:$H$9999)-SUMPRODUCT(((LEFT(BalanceN!$A$4:$A$9999,4)="1984"))*BalanceN!$H$4:$H$9999)) -> -327218000 | J18: =-(BILAN!J13-(SUMPRODUCT(((LEFT('BalanceN-1'!$A$4:$A$9999,2)="22"))*'BalanceN-1'!$C$4:$C$9999)-SUMPRODUCT(((LEFT('BalanceN-1'!$A$4:$A$9999,3)="282")+(LEFT('BalanceN-1'!$A$4:$A$9999,3)="292"))*'BalanceN-1'!$D$4:$D$9999)+SUMPRODUCT(((LEFT('BalanceN-1'!$A$4:$A$9999,3)="231")+(LEFT('BalanceN-1'!$A$4:$A$9999,3)="232")+(LEFT('BalanceN-1'!$A$4:$A$9999,3)="233")+(LEFT('BalanceN-1'!$A$4:$A$9999,3)="237")+(LEFT('BalanceN-1'!$A$4:$A$9999,4)="2391"))*'BalanceN-1'!$C$4:$C$9999)-SUMPRODUCT(((LEFT('BalanceN-1'!$A$4:$A$9999,4)="2831")+(LEFT('BalanceN-1'!$A$4:$A$9999,4)="2832")+(LEFT('BalanceN-1'!$A$4:$A$9999,4)="2833")+(LEFT('BalanceN-1'!$A$4:$A$9999,4)="2837")+(LEFT('BalanceN-1'!$A$4:$A$9999,4)="2931")+(LEFT('BalanceN-1'!$A$4:$A$9999,4)="2932")+(LEFT('BalanceN-1'!$A$4:$A$9999,4)="2933")+(LEFT('BalanceN-1'!$A$4:$A$9999,4)="2937")+(LEFT('BalanceN-1'!$A$4:$A$9999,5)="29391"))*'BalanceN-1'!$D$4:$D$9999)+SUMPRODUCT(((LEFT('BalanceN-1'!$A$4:$A$9999,3)="234")+(LEFT('BalanceN-1'!$A$4:$A$9999,3)="235")+(LEFT('BalanceN-1'!$A$4:$A$9999,3)="238")+(LEFT('BalanceN-1'!$A$4:$A$9999,4)="2392")+(LEFT('BalanceN-1'!$A$4:$A$9999,4)="2393"))*'BalanceN-1'!$C$4:$C$9999)-SUMPRODUCT(((LEFT('BalanceN-1'!$A$4:$A$9999,4)="2834")+(LEFT('BalanceN-1'!$A$4:$A$9999,4)="2835")+(LEFT('BalanceN-1'!$A$4:$A$9999,4)="2838")+(LEFT('BalanceN-1'!$A$4:$A$9999,4)="2934")+(LEFT('BalanceN-1'!$A$4:$A$9999,4)="2935")+(LEFT('BalanceN-1'!$A$4:$A$9999,4)="2938")+(LEFT('BalanceN-1'!$A$4:$A$9999,5)="29392")+(LEFT('BalanceN-1'!$A$4:$A$9999,5)="29393"))*'BalanceN-1'!$D$4:$D$9999)+SUMPRODUCT(((LEFT('BalanceN-1'!$A$4:$A$9999,2)="24")-(LEFT('BalanceN-1'!$A$4:$A$9999,3)="245")-(LEFT('BalanceN-1'!$A$4:$A$9999,4)="2495"))*'BalanceN-1'!$C$4:$C$9999)-SUMPRODUCT(((LEFT('BalanceN-1'!$A$4:$A$9999,3)="284")+(LEFT('BalanceN-1'!$A$4:$A$9999,3)="294")-(LEFT('BalanceN-1'!$A$4:$A$9999,4)="2845")-(LEFT('BalanceN-1'!$A$4:$A$9999,4)="2945")-(LEFT('BalanceN-1'!$A$4:$A$9999,5)="29495"))*'BalanceN-1'!$D$4:$D$9999)+SUMPRODUCT(((LEFT('BalanceN-1'!$A$4:$A$9999,3)="245")+(LEFT('BalanceN-1'!$A$4:$A$9999,4)="2495"))*'BalanceN-1'!$C$4:$C$9999)-SUMPRODUCT(((LEFT('BalanceN-1'!$A$4:$A$9999,4)="2845")+(LEFT('BalanceN-1'!$A$4:$A$9999,4)="2945")+(LEFT('BalanceN-1'!$A$4:$A$9999,5)="29495"))*'BalanceN-1'!$D$4:$D$9999)+SUMPRODUCT(((LEFT('BalanceN-1'!$A$4:$A$9999,3)="252"))*'BalanceN-1'!$G$4:$G$9999)-SUMPRODUCT(((LEFT('BalanceN-1'!$A$4:$A$9999,3)="252"))*'BalanceN-1'!$C$4:$C$9999))+(SUMPRODUCT(((LEFT('BalanceN-1'!$A$4:$A$9999,4)="6813")+(LEFT('BalanceN-1'!$A$4:$A$9999,4)="6914"))*'BalanceN-1'!$G$4:$G$9999)+SUMPRODUCT(((LEFT('BalanceN-1'!$A$4:$A$9999,3)="812")+(LEFT('BalanceN-1'!$A$4:$A$9999,4)="6542"))*'BalanceN-1'!$G$4:$G$9999)-SUMPRODUCT(((LEFT('BalanceN-1'!$A$4:$A$9999,4)="4812")+(LEFT('BalanceN-1'!$A$4:$A$9999,5)="48182")+(LEFT('BalanceN-1'!$A$4:$A$9999,4)="4042"))*'BalanceN-1'!$H$4:$H$9999)+SUMPRODUCT(((LEFT('BalanceN-1'!$A$4:$A$9999,4)="4822"))*'BalanceN-1'!$E$4:$E$9999)+SUMPRODUCT(((LEFT('BalanceN-1'!$A$4:$A$9999,3)="252"))*'BalanceN-1'!$G$4:$G$9999)-SUMPRODUCT(((LEFT('BalanceN-1'!$A$4:$A$9999,3)="252"))*'BalanceN-1'!$C$4:$C$9999)-SUMPRODUCT(((LEFT('BalanceN-1'!$A$4:$A$9999,3)="154"))*'BalanceN-1'!$H$4:$H$9999)-SUMPRODUCT(((LEFT('BalanceN-1'!$A$4:$A$9999,3)="106"))*'BalanceN-1'!$H$4:$H$9999)-SUMPRODUCT(((LEFT('BalanceN-1'!$A$4:$A$9999,2)="17"))*'BalanceN-1'!$H$4:$H$9999)-SUMPRODUCT(((LEFT('BalanceN-1'!$A$4:$A$9999,4)="1984"))*'BalanceN-1'!$H$4:$H$9999))) -> -17971503
B19: FH | C19: - Décaissements liés aux acquisitions d'immobilisations financières | I19: =-(BILAN!I20-BILAN!J20+SUMPRODUCT(((LEFT(BalanceN!$A$4:$A$9999,3)="697"))*BalanceN!$G$4:$G$9999)-SUMPRODUCT(((LEFT(BalanceN!$A$4:$A$9999,3)="697"))*BalanceN!$H$4:$H$9999)+SUMPRODUCT(((LEFT(BalanceN!$A$4:$A$9999,3)="816"))*BalanceN!$G$4:$G$9999)-SUMPRODUCT(((LEFT(BalanceN!$A$4:$A$9999,4)="4813"))*BalanceN!$H$4:$H$9999)+SUMPRODUCT(((LEFT(BalanceN!$A$4:$A$9999,2)="27"))*BalanceN!$F$4:$F$9999)-SUMPRODUCT(((LEFT(BalanceN!$A$4:$A$9999,3)="274"))*BalanceN!$F$4:$F$9999)) -> -601175 | J19: =-(BILAN!J20-(SUMPRODUCT(((LEFT('BalanceN-1'!$A$4:$A$9999,2)="26"))*'BalanceN-1'!$C$4:$C$9999)-SUMPRODUCT(((LEFT('BalanceN-1'!$A$4:$A$9999,3)="296"))*'BalanceN-1'!$D$4:$D$9999)+SUMPRODUCT(((LEFT('BalanceN-1'!$A$4:$A$9999,2)="27"))*'BalanceN-1'!$C$4:$C$9999)-SUMPRODUCT(((LEFT('BalanceN-1'!$A$4:$A$9999,3)="297"))*'BalanceN-1'!$D$4:$D$9999))+SUMPRODUCT(((LEFT('BalanceN-1'!$A$4:$A$9999,3)="697"))*'BalanceN-1'!$G$4:$G$9999)-SUMPRODUCT(((LEFT('BalanceN-1'!$A$4:$A$9999,3)="697"))*'BalanceN-1'!$H$4:$H$9999)+SUMPRODUCT(((LEFT('BalanceN-1'!$A$4:$A$9999,3)="816"))*'BalanceN-1'!$G$4:$G$9999)-SUMPRODUCT(((LEFT('BalanceN-1'!$A$4:$A$9999,4)="4813"))*'BalanceN-1'!$H$4:$H$9999)+SUMPRODUCT(((LEFT('BalanceN-1'!$A$4:$A$9999,2)="27"))*'BalanceN-1'!$F$4:$F$9999)-SUMPRODUCT(((LEFT('BalanceN-1'!$A$4:$A$9999,3)="274"))*'BalanceN-1'!$F$4:$F$9999)) -> -958379
B20: FI | C20: + Encaissements liés aux cessions d'immobilisations incorporelles et corporelles | I20: =SUMPRODUCT(((LEFT(BalanceN!$A$4:$A$9999,2)="82")-(LEFT(BalanceN!$A$4:$A$9999,3)="826")+(LEFT(BalanceN!$A$4:$A$9999,3)="754"))*BalanceN!$H$4:$H$9999)-SUMPRODUCT(((LEFT(BalanceN!$A$4:$A$9999,3)="485")+(LEFT(BalanceN!$A$4:$A$9999,4)="4856")-(LEFT(BalanceN!$A$4:$A$9999,3)="414"))*BalanceN!$E$4:$E$9999)+SUMPRODUCT(((LEFT(BalanceN!$A$4:$A$9999,3)="485")-(LEFT(BalanceN!$A$4:$A$9999,4)="4856")-(LEFT(BalanceN!$A$4:$A$9999,3)="414"))*BalanceN!$F$4:$F$9999) -> 367119 | J20: =SUMPRODUCT(((LEFT('BalanceN-1'!$A$4:$A$9999,2)="82")-(LEFT('BalanceN-1'!$A$4:$A$9999,3)="826")+(LEFT('BalanceN-1'!$A$4:$A$9999,3)="754"))*'BalanceN-1'!$H$4:$H$9999)-SUMPRODUCT(((LEFT('BalanceN-1'!$A$4:$A$9999,3)="485")+(LEFT('BalanceN-1'!$A$4:$A$9999,4)="4856")-(LEFT('BalanceN-1'!$A$4:$A$9999,3)="414"))*'BalanceN-1'!$E$4:$E$9999)+SUMPRODUCT(((LEFT('BalanceN-1'!$A$4:$A$9999,3)="485")-(LEFT('BalanceN-1'!$A$4:$A$9999,4)="4856")-(LEFT('BalanceN-1'!$A$4:$A$9999,3)="414"))*'BalanceN-1'!$F$4:$F$9999) -> 590000
B21: FJ | C21: + Encaissements liés aux cessions d'immobilisations financières | I21: =SUMPRODUCT(((LEFT(BalanceN!$A$4:$A$9999,3)="826"))*BalanceN!$H$4:$H$9999)-SUMPRODUCT(((LEFT(BalanceN!$A$4:$A$9999,4)="4856"))*BalanceN!$E$4:$E$9999)+SUMPRODUCT(((LEFT(BalanceN!$A$4:$A$9999,4)="4856"))*BalanceN!$F$4:$F$9999)+SUMPRODUCT(((LEFT(BalanceN!$A$4:$A$9999,2)="27"))*BalanceN!$F$4:$F$9999)-SUMPRODUCT(((LEFT(BalanceN!$A$4:$A$9999,3)="274"))*BalanceN!$F$4:$F$9999) -> 730043 | J21: =SUMPRODUCT(((LEFT('BalanceN-1'!$A$4:$A$9999,3)="826"))*'BalanceN-1'!$H$4:$H$9999)-SUMPRODUCT(((LEFT('BalanceN-1'!$A$4:$A$9999,4)="4856"))*'BalanceN-1'!$E$4:$E$9999)+SUMPRODUCT(((LEFT('BalanceN-1'!$A$4:$A$9999,4)="4856"))*'BalanceN-1'!$F$4:$F$9999)+SUMPRODUCT(((LEFT('BalanceN-1'!$A$4:$A$9999,2)="27"))*'BalanceN-1'!$F$4:$F$9999)-SUMPRODUCT(((LEFT('BalanceN-1'!$A$4:$A$9999,3)="274"))*'BalanceN-1'!$F$4:$F$9999) -> 1179865
B22: ZC | C22: Flux de trésorerie provenant des activités d'investissement (Somme FF à FJ) | G22: C | I22: =SUM(I17:I21) -> -328722013 | J22: =SUM(J17:J21) -> -17160017 | N22: =M22-#REF! -> 
C23: Flux de trésorerie provenant du financement par les capitaux propres
B24: FK | C24: + Augmentations de capital par apports nouveaux | I24: =SUMPRODUCT(((LEFT(BalanceN!$A$4:$A$9999,2)="10")-(LEFT(BalanceN!$A$4:$A$9999,3)="106"))*BalanceN!$H$4:$H$9999)-SUMPRODUCT(((LEFT(BalanceN!$A$4:$A$9999,2)="10")-(LEFT(BalanceN!$A$4:$A$9999,3)="106"))*BalanceN!$D$4:$D$9999)-SUMPRODUCT(((LEFT(BalanceN!$A$4:$A$9999,3)="109"))*BalanceN!$G$4:$G$9999)-(SUMPRODUCT(((LEFT(BalanceN!$A$4:$A$9999,3)="467")+(LEFT(BalanceN!$A$4:$A$9999,4)="4581"))*BalanceN!$C$4:$C$9999)+SUMPRODUCT(((LEFT(BalanceN!$A$4:$A$9999,3)="467")+(LEFT(BalanceN!$A$4:$A$9999,4)="4581"))*BalanceN!$G$4:$G$9999)) -> 200000000 | J24: =SUMPRODUCT(((LEFT('BalanceN-1'!$A$4:$A$9999,2)="10")-(LEFT('BalanceN-1'!$A$4:$A$9999,3)="106"))*'BalanceN-1'!$H$4:$H$9999)-SUMPRODUCT(((LEFT('BalanceN-1'!$A$4:$A$9999,2)="10")-(LEFT('BalanceN-1'!$A$4:$A$9999,3)="106"))*'BalanceN-1'!$D$4:$D$9999)-SUMPRODUCT(((LEFT('BalanceN-1'!$A$4:$A$9999,3)="109"))*'BalanceN-1'!$G$4:$G$9999)-(SUMPRODUCT(((LEFT('BalanceN-1'!$A$4:$A$9999,3)="467")+(LEFT('BalanceN-1'!$A$4:$A$9999,4)="4581"))*'BalanceN-1'!$C$4:$C$9999)+SUMPRODUCT(((LEFT('BalanceN-1'!$A$4:$A$9999,3)="467")+(LEFT('BalanceN-1'!$A$4:$A$9999,4)="4581"))*'BalanceN-1'!$G$4:$G$9999)) -> 0
B25: FL | C25: + Subventions d'investissement reçues | I25: =SUMPRODUCT(((LEFT(BalanceN!$A$4:$A$9999,2)="14")+(LEFT(BalanceN!$A$4:$A$9999,3)="799"))*BalanceN!$H$4:$H$9999)-SUMPRODUCT(((LEFT(BalanceN!$A$4:$A$9999,2)="14"))*BalanceN!$D$4:$D$9999)+SUMPRODUCT(((LEFT(BalanceN!$A$4:$A$9999,4)="4582")+(LEFT(BalanceN!$A$4:$A$9999,4)="4494"))*BalanceN!$C$4:$C$9999)-(SUMPRODUCT(((LEFT(BalanceN!$A$4:$A$9999,4)="4582")+(LEFT(BalanceN!$A$4:$A$9999,4)="4494"))*BalanceN!$G$4:$G$9999)) -> 2000000 | J25: =SUMPRODUCT(((LEFT('BalanceN-1'!$A$4:$A$9999,2)="14")+(LEFT('BalanceN-1'!$A$4:$A$9999,3)="799"))*'BalanceN-1'!$H$4:$H$9999)-SUMPRODUCT(((LEFT('BalanceN-1'!$A$4:$A$9999,2)="14"))*'BalanceN-1'!$D$4:$D$9999)+SUMPRODUCT(((LEFT('BalanceN-1'!$A$4:$A$9999,4)="4582")+(LEFT('BalanceN-1'!$A$4:$A$9999,4)="4494"))*'BalanceN-1'!$C$4:$C$9999)-(SUMPRODUCT(((LEFT('BalanceN-1'!$A$4:$A$9999,4)="4582")+(LEFT('BalanceN-1'!$A$4:$A$9999,4)="4494"))*'BalanceN-1'!$G$4:$G$9999)) -> 0
B26: FM | C26: - Prélèvement sur le capital | I26: =SUMPRODUCT(((LEFT(BalanceN!$A$4:$A$9999,2)="10")-(LEFT(BalanceN!$A$4:$A$9999,3)="106"))*BalanceN!$D$4:$D$9999)-SUMPRODUCT(((LEFT(BalanceN!$A$4:$A$9999,2)="10")-(LEFT(BalanceN!$A$4:$A$9999,3)="106"))*BalanceN!$H$4:$H$9999)+SUMPRODUCT(((LEFT(BalanceN!$A$4:$A$9999,3)="109"))*BalanceN!$E$4:$E$9999) -> 0 | J26: =SUMPRODUCT(((LEFT('BalanceN-1'!$A$4:$A$9999,2)="10")-(LEFT('BalanceN-1'!$A$4:$A$9999,3)="106"))*'BalanceN-1'!$D$4:$D$9999)-SUMPRODUCT(((LEFT('BalanceN-1'!$A$4:$A$9999,2)="10")-(LEFT('BalanceN-1'!$A$4:$A$9999,3)="106"))*'BalanceN-1'!$H$4:$H$9999)+SUMPRODUCT(((LEFT('BalanceN-1'!$A$4:$A$9999,3)="109"))*'BalanceN-1'!$E$4:$E$9999) -> 0
B27: FN | C27: - Dividendes versés | I27: =SUMPRODUCT(((LEFT(BalanceN!$A$4:$A$9999,2)="12")+(LEFT(BalanceN!$A$4:$A$9999,2)="13"))*BalanceN!$F$4:$F$9999)-SUMPRODUCT(((LEFT(BalanceN!$A$4:$A$9999,2)="12")+(LEFT(BalanceN!$A$4:$A$9999,2)="13"))*BalanceN!$E$4:$E$9999) -> -90000000 | J27: =SUMPRODUCT(((LEFT('BalanceN-1'!$A$4:$A$9999,2)="12")+(LEFT('BalanceN-1'!$A$4:$A$9999,2)="13"))*'BalanceN-1'!$F$4:$F$9999)-SUMPRODUCT(((LEFT('BalanceN-1'!$A$4:$A$9999,2)="12")+(LEFT('BalanceN-1'!$A$4:$A$9999,2)="13"))*'BalanceN-1'!$E$4:$E$9999) -> 26631518
B28: FD | C28: Flux de trésorerie provenant des capitaux propres (Somme FK à FN) | G28: D | I28: =SUM(I24:I27) -> 112000000 | J28: =SUM(J24:J27) -> 26631518
C29: Trésorerie provenant du financement par les capitaux étrangers
B30: FO | C30: + Emprunts | I30: =SUMPRODUCT(((LEFT(BalanceN!$A$4:$A$9999,2)="16")-(LEFT(BalanceN!$A$4:$A$9999,3)="166"))*BalanceN!$F$4:$F$9999) -> 100000000 | J30: =SUMPRODUCT(((LEFT('BalanceN-1'!$A$4:$A$9999,2)="16")-(LEFT('BalanceN-1'!$A$4:$A$9999,3)="166"))*'BalanceN-1'!$F$4:$F$9999) -> 0
B31: FP | C31: + Autres dettes financières | I31: =SUMPRODUCT(((LEFT(BalanceN!$A$4:$A$9999,2)="18")-(LEFT(BalanceN!$A$4:$A$9999,3)="183"))*BalanceN!$F$4:$F$9999) -> 0 | J31: =SUMPRODUCT(((LEFT('BalanceN-1'!$A$4:$A$9999,2)="18")-(LEFT('BalanceN-1'!$A$4:$A$9999,3)="183"))*'BalanceN-1'!$F$4:$F$9999) -> 0
B32: FQ | C32: - Remboursement des emprunts et autres dettes financières | I32: =-(SUMPRODUCT(((LEFT(BalanceN!$A$4:$A$9999,2)="16")+(LEFT(BalanceN!$A$4:$A$9999,2)="17")+(LEFT(BalanceN!$A$4:$A$9999,2)="18")-(LEFT(BalanceN!$A$4:$A$9999,3)="166")-(LEFT(BalanceN!$A$4:$A$9999,3)="176")-(LEFT(BalanceN!$A$4:$A$9999,3)="183"))*BalanceN!$E$4:$E$9999)-SUMPRODUCT(((LEFT(BalanceN!$A$4:$A$9999,4)="4794"))*BalanceN!$F$4:$F$9999)+SUMPRODUCT(((LEFT(BalanceN!$A$4:$A$9999,4)="4784"))*BalanceN!$E$4:$E$9999)) -> -5000000 | J32: =-(SUMPRODUCT(((LEFT('BalanceN-1'!$A$4:$A$9999,2)="16")+(LEFT('BalanceN-1'!$A$4:$A$9999,2)="17")+(LEFT('BalanceN-1'!$A$4:$A$9999,2)="18")-(LEFT('BalanceN-1'!$A$4:$A$9999,3)="166")-(LEFT('BalanceN-1'!$A$4:$A$9999,3)="176")-(LEFT('BalanceN-1'!$A$4:$A$9999,3)="183"))*'BalanceN-1'!$E$4:$E$9999)-SUMPRODUCT(((LEFT('BalanceN-1'!$A$4:$A$9999,4)="4794"))*'BalanceN-1'!$F$4:$F$9999)+SUMPRODUCT(((LEFT('BalanceN-1'!$A$4:$A$9999,4)="4784"))*'BalanceN-1'!$E$4:$E$9999)) -> 0
B33: ZE | C33: Flux de trésorerie provenant des capitaux étrangers (Somme FO à FQ) | G33: E | I33: =SUM(I30:I32) -> 95000000 | J33: =SUM(J30:J32) -> 0
B34: ZF | C34: Flux de trésorerie provenant des activités de financement (D+E) | G34: F | I34: =SUM(I28,I33) -> 207000000 | J34: =SUM(J28,J33) -> 26631518
B35: ZG | C35: VARIATION DE LA TRESORERIE NETTE DE LA PERIODE (B+C+F) | G35: G | I35: =SUM(I16,I22,I34) -> 48512970 | J35: =SUM(J16,J22,J34) -> 107620271
B36: ZH | C36: Trésorerie nette au 31 décembre (G+A) | G36: H | I36: =SUM(I7,I35) -> 123097127 | J36: =SUM(J7,J35) -> 141215675
C37: Contrôle : Trésorerie actif N - Trésorerie Passif N
B39: (1) à l’exclusion des variations des créances et dettes liées aux activités d’investissement (variation des créances sur cession d’immobilisation et des dettes sur acquisition ou production d’immobilisation) et de financement (par exemple : variation des créances sur subventions d’investissements reçues).
D41: EQUILIBRE TRESORERIE
E42: N | F42: =+I36-E38 -> 123097127
E43: N-1 | F43: =+J36-F38 -> 141215675

Sheet NOTE 1
A1: =IF(G30>0,1,0) -> 0 | D1: NOTE 1 : DETTES GARANTIES PAR DES SURETES REELLES
D3: Désignation entité:……………………………………. | E3: =INFORMATIONS!B10 -> SAM CONSEILS | I3: Exercice clos au: | J3: =INFORMATIONS!D31 -> 2018-12-31
D4: Numéro d'identification:……………………………….. | E4: =INFORMATIONS!B24 -> 00084404X | I4: Durée (en mois): | J4: =INFORMATIONS!F34 -> 12
D6: LIBELLES | F6: Note | G6: Montant brut | H6: SURETES REELES
H7: Hypothèques | I7: Nantissements | J7: Gages/Autres
D8: Dettes financières et ressources assimilées
D9: Emprunts obligataires convertibles
D10: Autres emprunts obligataires
D11: Emprunts et dettes des établissements de crédit
D12: Autres dettes financières
D13: SOUS TOTAL (1) | G13: =SUM(G9:G12) -> 0 | H13: =SUM(H9:H12) -> 0 | I13: =SUM(I9:I12) -> 0 | J13: =SUM(J9:J12) -> 0
D14: Dettes de location-acquisition
D15: Dettes de crédit-bail immobilier
D16: Dettes de crédit-bail mobilier
D17: Dettes sur contrats de location-vente
D18: Dettes sur contrats de location-acquisition
D19: SOUS TOTAL (2) | G19: =SUM(G15:G18) -> 0 | H19: =SUM(H15:H18) -> 0 | I19: =SUM(I15:I18) -> 0 | J19: =SUM(J15:J18) -> 0
D20: Dettes du Passif circulant
D21: Fournisseurs et comptes rattachés
D22: Clients
D23: Personnel
D24: Sécurité sociale et organismes sociaux
D25: Etat
D26: Organismes internationaux
D27: Associés et groupe
D28: Créditeurs divers
D29: SOUS TOTAL (3) | G29: =SUM(G21:G28) -> 0 | H29: =SUM(H21:H28) -> 0 | I29: =SUM(I21:I28) -> 0 | J29: =SUM(J21:J28) -> 0
D30: TOTAL (1) + (2) + (3) | G30: =G13+G19+G29 -> 0 | H30: =H13+H19+H29 -> 0 | I30: =I13+I19+I29 -> 0 | J30: =J13+J19+J29 -> 0
D31: ENGAGEMENTS FINANCIERS | I31: Engagements donnés | J31: Engagements reçus
D32: Engagements consentis à des entités liées
D33: Primes de remboursement non échues
D34: Avals, cautions, garanties
D35: Hypothèses, nantissements, gages, autres
D36: Effets escomptés non échus
D37: Créances commerciales et professionnelles cédées
D38: Abandonds de créances conditionnelles
D39: TOTAL | G39: =SUM(G32:G38) -> 0 | H39: =SUM(H32:H38) -> 0 | I39: =SUM(I32:I38) -> 0 | J39: =SUM(J32:J38) -> 0
D41: COMMENTAIRE

Sheet NOTE 2
E1: NOTE 2 : INFORMATIONS OBLIGATOIRES
E3: Désignation entité:……………………………………. | F3: =INFORMATIONS!B10 -> SAM CONSEILS | J3: Exercice clos au: | K3: =INFORMATIONS!D31 -> 2018-12-31
E4: Numéro d'identification:……………………………….. | F4: =INFORMATIONS!B24 -> 00084404X | J4: Durée (en mois): | K4: =INFORMATIONS!F34 -> 12
E6: A- DECLARATION DE CONFORMITE AU SYSCOA
E7: Les présents états financiers ont été établis en conformité avec le Système comptable OHADA et l'Acte Uniforme relatif au Droit Comptable et à l'information financière
E19: B- REGLES ET METHODES COMPTABLES
E20: Les présents états financiers ont été élaborés en respect des postulats, des conventions et des règles d'évaluation édictés par le SYSCOHADA et l'Acte Uniforme
E30: C- DEROGATION AUX POSTULATS ET CONVENTIONS COMPTABLES
E31: Tous les postulats et conventions comptables ont été respectés sans dérogations
E41: D- INFORMATIONS COMPLEMENTAIRES RELATIVES AU BILAN, AU COMPTE DE RESULTAT ET AU TABLEAU DES FLUX DE TRESORERIE

Sheet NOTE 3A
A1: =IF(E27>0,1,0) -> 1 | C1: NOTE 3 A : IMMOBILISATIONS BRUTES
C3: Désignation entité:……………………………………. | D3: =INFORMATIONS!B10 -> SAM CONSEILS | I3: Exercice clos au: | K3: =INFORMATIONS!D31 -> 2018-12-31
C4: Numéro d'identification:……………………………….. | D4: =INFORMATIONS!B24 -> 00084404X | I4: Durée (en mois): | K4: =INFORMATIONS!F34 -> 12
C6: SITUATIONS ET MOUVEMENTS | E6: Montant brut à l'ouverture de l'exercice | F6: Acquisition Apports créations | G6: Virements de postes à postes | H6: Suite à une réévaluation pratiquée au cours de l'exercice | I6: Cession Scission Hors services | J6: Virements de poste à poste | K6: Montant brut à la clôture de l'exercice
C7: RUBRIQUES
C8: IMMOBILISATIONS INCORPORELLES | E8: =SUM(E9:E12) -> 2650000 | F8: =SUM(F9:F12) -> 2000000 | G8: 0 | H8: =SUM(H9:H12) -> 0 | I8: =SUM(I9:I12) -> 0 | J8: =SUM(J9:J12) -> 0 | K8: =SUM(K9:K12) -> 4650000
C9: Frais de développement et de prospection | E9: =SUMPRODUCT(((LEFT(BalanceN!$A$4:$A$9999,3)="211")+(LEFT(BalanceN!$A$4:$A$9999,4)="2181")+(LEFT(BalanceN!$A$4:$A$9999,4)="2191"))*BalanceN!$C$4:$C$9999) -> 0 | F9: =SUMPRODUCT(((LEFT(BalanceN!$A$4:$A$9999,3)="211")+(LEFT(BalanceN!$A$4:$A$9999,4)="2181")+(LEFT(BalanceN!$A$4:$A$9999,4)="2191"))*BalanceN!$E$4:$E$9999)-G9-H9 -> 0 | I9: =SUMPRODUCT(((LEFT(BalanceN!$A$4:$A$9999,3)="211")+(LEFT(BalanceN!$A$4:$A$9999,4)="2181")+(LEFT(BalanceN!$A$4:$A$9999,4)="2191"))*BalanceN!$F$4:$F$9999)-J9 -> 0 | K9: =E9+F9+G9+H9-I9-J9 -> 0
C10: Licences, logiciels et droit au bail | E10: =SUMPRODUCT(((LEFT(BalanceN!$A$4:$A$9999,3)="212")+(LEFT(BalanceN!$A$4:$A$9999,3)="213")+(LEFT(BalanceN!$A$4:$A$9999,3)="214")+(LEFT(BalanceN!$A$4:$A$9999,4)="2193"))*BalanceN!$C$4:$C$9999) -> 1050000 | F10: =SUMPRODUCT(((LEFT(BalanceN!$A$4:$A$9999,3)="212")+(LEFT(BalanceN!$A$4:$A$9999,3)="213")+(LEFT(BalanceN!$A$4:$A$9999,3)="214")+(LEFT(BalanceN!$A$4:$A$9999,4)="2193"))*BalanceN!$E$4:$E$9999)-G10-H10 -> 2000000 | I10: =SUMPRODUCT(((LEFT(BalanceN!$A$4:$A$9999,3)="212")+(LEFT(BalanceN!$A$4:$A$9999,3)="213")+(LEFT(BalanceN!$A$4:$A$9999,3)="214")+(LEFT(BalanceN!$A$4:$A$9999,4)="2193"))*BalanceN!$F$4:$F$9999)-J10 -> 0 | K10: =E10+F10+G10+H10-I10-J10 -> 3050000
C11: Fonds commercial et droit au bail | E11: =SUMPRODUCT(((LEFT(BalanceN!$A$4:$A$9999,3)="215")+(LEFT(BalanceN!$A$4:$A$9999,3)="216"))*BalanceN!$C$4:$C$9999) -> 1600000 | F11: =SUMPRODUCT(((LEFT(BalanceN!$A$4:$A$9999,3)="215")+(LEFT(BalanceN!$A$4:$A$9999,3)="216"))*BalanceN!$E$4:$E$9999)-G11-H11 -> 0 | I11: =SUMPRODUCT(((LEFT(BalanceN!$A$4:$A$9999,3)="215")+(LEFT(BalanceN!$A$4:$A$9999,3)="216"))*BalanceN!$F$4:$F$9999)-J11 -> 0 | K11: 1600000
C12: Autres immobilisations incorporelles | E12: =SUMPRODUCT(((LEFT(BalanceN!$A$4:$A$9999,3)="217")+(LEFT(BalanceN!$A$4:$A$9999,3)="218")+(LEFT(BalanceN!$A$4:$A$9999,4)="2198")-(LEFT(BalanceN!$A$4:$A$9999,4)="2181"))*BalanceN!$C$4:$C$9999) -> 0 | F12: =SUMPRODUCT(((LEFT(BalanceN!$A$4:$A$9999,3)="217")+(LEFT(BalanceN!$A$4:$A$9999,3)="218")+(LEFT(BalanceN!$A$4:$A$9999,4)="2198")-(LEFT(BalanceN!$A$4:$A$9999,4)="2181"))*BalanceN!$E$4:$E$9999)-G12-H12 -> 0 | I12: =SUMPRODUCT(((LEFT(BalanceN!$A$4:$A$9999,3)="217")+(LEFT(BalanceN!$A$4:$A$9999,3)="218")+(LEFT(BalanceN!$A$4:$A$9999,4)="2198")-(LEFT(BalanceN!$A$4:$A$9999,4)="2181"))*BalanceN!$F$4:$F$9999)-J12 -> 0 | K12: 0
C13: IMMOBILISATIONS CORPORELLES | E13: =SUM(E14:E20) -> 551435323 | F13: =SUM(F14:F20) -> 463468000 | G13: =SUM(G14:G20) -> 0 | H13: 43500000 | I13: =SUM(I14:I20) -> 45992979 | J13: 0 | K13: 1012410344
C14: Terrains hors immeuble de placement | E14: =SUMPRODUCT(((LEFT(BalanceN!$A$4:$A$9999,2)="22")-(LEFT(BalanceN!$A$4:$A$9999,4)="2281"))*BalanceN!$C$4:$C$9999) -> 35173950 | F14: =SUMPRODUCT(((LEFT(BalanceN!$A$4:$A$9999,2)="22"))*BalanceN!$E$4:$E$9999)-G14-H14 -> 0 | H14: 3500000 | I14: =SUMPRODUCT(((LEFT(BalanceN!$A$4:$A$9999,2)="22"))*BalanceN!$F$4:$F$9999)-J14 -> 0 | K14: =E14+F14+G14+H14-I14-J14 -> 38673950
C15: Terrains - immeuble de placement | E15: =SUMPRODUCT(((LEFT(BalanceN!$A$4:$A$9999,4)="2281"))*BalanceN!$C$4:$C$9999) -> 0 | F15: =SUMPRODUCT(((LEFT(BalanceN!$A$4:$A$9999,4)="2281"))*BalanceN!$E$4:$E$9999)-G15-H15 -> 0 | I15: =SUMPRODUCT(((LEFT(BalanceN!$A$4:$A$9999,4)="2281"))*BalanceN!$F$4:$F$9999)-J15 -> 0 | K15: =E15+F15+G15+H15-I15-J15 -> 0
C16: Bâtiments hors immeuble de placement Bâtiments | E16: =SUMPRODUCT(((LEFT(BalanceN!$A$4:$A$9999,3)="231")+(LEFT(BalanceN!$A$4:$A$9999,3)="232")+(LEFT(BalanceN!$A$4:$A$9999,3)="233")+(LEFT(BalanceN!$A$4:$A$9999,3)="237")+(LEFT(BalanceN!$A$4:$A$9999,4)="2391")-(LEFT(BalanceN!$A$4:$A$9999,4)="2315")-(LEFT(BalanceN!$A$4:$A$9999,4)="2325"))*BalanceN!$C$4:$C$9999) -> 286411100 | F16: =SUMPRODUCT(((LEFT(BalanceN!$A$4:$A$9999,3)="231")+(LEFT(BalanceN!$A$4:$A$9999,3)="232")+(LEFT(BalanceN!$A$4:$A$9999,3)="233")+(LEFT(BalanceN!$A$4:$A$9999,3)="237")+(LEFT(BalanceN!$A$4:$A$9999,4)="2391"))*BalanceN!$E$4:$E$9999)-G16-H16 -> 430000000 | H16: 25000000 | I16: =SUMPRODUCT(((LEFT(BalanceN!$A$4:$A$9999,3)="231")+(LEFT(BalanceN!$A$4:$A$9999,3)="232")+(LEFT(BalanceN!$A$4:$A$9999,3)="233")+(LEFT(BalanceN!$A$4:$A$9999,3)="237")+(LEFT(BalanceN!$A$4:$A$9999,4)="2391"))*BalanceN!$F$4:$F$9999)-J16 -> 0 | K16: 741411100
C17: Bâtiments - immeuble de placement | E17: =SUMPRODUCT(((LEFT(BalanceN!$A$4:$A$9999,4)="2315")+(LEFT(BalanceN!$A$4:$A$9999,4)="2325"))*BalanceN!$C$4:$C$9999) -> 0 | F17: =SUMPRODUCT(((LEFT(BalanceN!$A$4:$A$9999,4)="2315")+(LEFT(BalanceN!$A$4:$A$9999,4)="2325"))*BalanceN!$E$4:$E$9999)-G17-H17 -> 0 | I17: =SUMPRODUCT(((LEFT(BalanceN!$A$4:$A$9999,4)="2315")+(LEFT(BalanceN!$A$4:$A$9999,4)="2325"))*BalanceN!$F$4:$F$9999)-J17 -> 0 | K17: 0
C18: Aménagements, agencements et installations | E18: =SUMPRODUCT(((LEFT(BalanceN!$A$4:$A$9999,3)="234")+(LEFT(BalanceN!$A$4:$A$9999,3)="235")+(LEFT(BalanceN!$A$4:$A$9999,3)="238")+(LEFT(BalanceN!$A$4:$A$9999,4)="2392")+(LEFT(BalanceN!$A$4:$A$9999,4)="2393"))*BalanceN!$C$4:$C$9999) -> 71328267 | F18: =SUMPRODUCT(((LEFT(BalanceN!$A$4:$A$9999,3)="234")+(LEFT(BalanceN!$A$4:$A$9999,3)="235")+(LEFT(BalanceN!$A$4:$A$9999,3)="238")+(LEFT(BalanceN!$A$4:$A$9999,4)="2392")+(LEFT(BalanceN!$A$4:$A$9999,4)="2393"))*BalanceN!$E$4:$E$9999)-G18-H18 -> 0 | H18: 2000000 | I18: =SUMPRODUCT(((LEFT(BalanceN!$A$4:$A$9999,3)="234")+(LEFT(BalanceN!$A$4:$A$9999,3)="235")+(LEFT(BalanceN!$A$4:$A$9999,3)="238")+(LEFT(BalanceN!$A$4:$A$9999,4)="2392")+(LEFT(BalanceN!$A$4:$A$9999,4)="2393"))*BalanceN!$F$4:$F$9999)-J18 -> 0 | K18: 73328267
C19: Matériel, mobilier et actifs biologiques | E19: =SUMPRODUCT(((LEFT(BalanceN!$A$4:$A$9999,2)="24")-(LEFT(BalanceN!$A$4:$A$9999,3)="245")-(LEFT(BalanceN!$A$4:$A$9999,4)="2495"))*BalanceN!$C$4:$C$9999) -> 104472006 | F19: =SUMPRODUCT(((LEFT(BalanceN!$A$4:$A$9999,2)="24")-(LEFT(BalanceN!$A$4:$A$9999,3)="245")-(LEFT(BalanceN!$A$4:$A$9999,4)="2495"))*BalanceN!$E$4:$E$9999)-G19-H19 -> 21468000 | H19: 3000000 | I19: =SUMPRODUCT(((LEFT(BalanceN!$A$4:$A$9999,2)="24")-(LEFT(BalanceN!$A$4:$A$9999,3)="245")-(LEFT(BalanceN!$A$4:$A$9999,4)="2495"))*BalanceN!$F$4:$F$9999)-J19 -> 45992979 | K19: 82947027
C20: Matériel de transport | E20: =SUMPRODUCT(((LEFT(BalanceN!$A$4:$A$9999,3)="245")+(LEFT(BalanceN!$A$4:$A$9999,4)="2495"))*BalanceN!$C$4:$C$9999) -> 54050000 | F20: =SUMPRODUCT(((LEFT(BalanceN!$A$4:$A$9999,3)="245")+(LEFT(BalanceN!$A$4:$A$9999,4)="2495"))*BalanceN!$E$4:$E$9999)-G20-H20 -> 12000000 | H20: 10000000 | I20: =SUMPRODUCT(((LEFT(BalanceN!$A$4:$A$9999,3)="245")+(LEFT(BalanceN!$A$4:$A$9999,4)="2495"))*BalanceN!$F$4:$F$9999)-J20 -> 0 | K20: 76050000
C21: AVANCES ET ACOMPTES VERSES SUR IMMOBILISATIONS | E21: =SUM(E22:E23) -> 0 | F21: =SUM(F22:F23) -> 25000000 | G21: =SUM(G22:G23) -> 0 | H21: 0 | I21: 5000000 | J21: 0 | K21: 20000000
C22: Immobilisations incorporelles | E22: =SUMPRODUCT(((LEFT(BalanceN!$A$4:$A$9999,3)="251"))*BalanceN!$C$4:$C$9999) -> 0 | F22: =SUMPRODUCT(((LEFT(BalanceN!$A$4:$A$9999,3)="251"))*BalanceN!$E$4:$E$9999)-G22-H22 -> 0 | I22: =SUMPRODUCT(((LEFT(BalanceN!$A$4:$A$9999,3)="251"))*BalanceN!$F$4:$F$9999)-J22 -> 0 | K22: 0
C23: Immobilisations corporelles | E23: =SUMPRODUCT(((LEFT(BalanceN!$A$4:$A$9999,3)="252"))*BalanceN!$C$4:$C$9999) -> 0 | F23: =SUMPRODUCT(((LEFT(BalanceN!$A$4:$A$9999,3)="252"))*BalanceN!$E$4:$E$9999)-G23-H23 -> 25000000 | I23: =SUMPRODUCT(((LEFT(BalanceN!$A$4:$A$9999,3)="252"))*BalanceN!$F$4:$F$9999)-J23 -> 5000000 | K23: =E23+F23+G23+H23-I23-J23 -> 20000000
C24: IMMOBILISATIONS FINANCIERES | E24: =SUM(E25:E26) -> 4548658 | F24: =SUM(F25:F26) -> 601175 | G24: 0 | H24: 0 | I24: 730043 | J24: 0 | K24: 4419790
C25: Titres de participation | E25: =SUMPRODUCT(((LEFT(BalanceN!$A$4:$A$9999,2)="26"))*BalanceN!$C$4:$C$9999) -> 0 | F25: =SUMPRODUCT(((LEFT(BalanceN!$A$4:$A$9999,2)="26"))*BalanceN!$E$4:$E$9999)-G25-H25 -> 0 | I25: =SUMPRODUCT(((LEFT(BalanceN!$A$4:$A$9999,2)="26"))*BalanceN!$F$4:$F$9999)-J25 -> 0 | K25: 0
C26: Autres immobilisations financières | E26: =SUMPRODUCT(((LEFT(BalanceN!$A$4:$A$9999,2)="27"))*BalanceN!$C$4:$C$9999) -> 4548658 | F26: =SUMPRODUCT(((LEFT(BalanceN!$A$4:$A$9999,2)="27"))*BalanceN!$E$4:$E$9999)-G26-H26 -> 601175 | I26: =SUMPRODUCT(((LEFT(BalanceN!$A$4:$A$9999,2)="27"))*BalanceN!$F$4:$F$9999)-J26 -> 730043 | K26: 4419790
C27: TOTAL GENERAL | E27: =+E8+E13+E21+E24 -> 558633981 | F27: =+F8+F13+F21+F24 -> 491069175 | G27: 0 | H27: 43500000 | I27: 51723022 | J27: 0 | K27: 1041480134
C29: COMMENTAIRE

Sheet NOTE 3B
A1: =IF(E18>0,1,0) -> 0 | B1: NOTE 3 A :BIENS PRIS EN LOCATION ACQUISITION
B3: Désignation entité:……………………………………. | C3: =INFORMATIONS!B10 -> SAM CONSEILS | I3: Exercice clos au: | K3: =INFORMATIONS!D31 -> 2018-12-31
B4: Numéro d'identification:……………………………….. | C4: =INFORMATIONS!B24 -> 00084404X | I4: Durée (en mois): | K4: =INFORMATIONS!F34 -> 12
B6: SITUATIONS ET MOUVEMENTS | D6: Nature du Contrat (I;M;A) (1) | E6: A | F6: AUGMENTATIONS (B) | I6: DIMINUTION (C ) | K6: D = A + B - C
B7: RUBRIQUES | E7: Montant brut à l'ouverture de l'exercice | F7: Acquisition Apports Créations | G7: Virements de poste à poste | H7: Suite à une réévaluation pratiquée au cours de l'exercie | I7: Cession Scission Hors service | J7: Virements de poste à poste | K7: Montant brut à la clôture de l'exercie
B8: Brevets, licences, logiciels et droits similaires | E8: =SUMPRODUCT(((LEFT(BalanceN!$A$4:$A$9999,4)="2128")+(LEFT(BalanceN!$A$4:$A$9999,3)="2133"))*BalanceN!$C$4:$C$9999) -> 0 | F8: =SUMPRODUCT(((LEFT(BalanceN!$A$4:$A$9999,4)="2128")+(LEFT(BalanceN!$A$4:$A$9999,3)="2133"))*BalanceN!$E$4:$E$9999)-G8-H8 -> 0 | I8: =SUMPRODUCT(((LEFT(BalanceN!$A$4:$A$9999,4)="2128")+(LEFT(BalanceN!$A$4:$A$9999,3)="2133"))*BalanceN!$H$4:$H$9999)-J8 -> 0 | K8: =E8+F8+G8+H8-I8-J8 -> 0
B9: Fonds commercial et droit au bail | E9: =SUMPRODUCT(((LEFT(BalanceN!$A$4:$A$9999,4)="2152"))*BalanceN!$C$4:$C$9999) -> 0 | F9: =SUMPRODUCT(((LEFT(BalanceN!$A$4:$A$9999,4)="2152"))*BalanceN!$E$4:$E$9999)-G9-H9 -> 0 | I9: =SUMPRODUCT(((LEFT(BalanceN!$A$4:$A$9999,4)="2152"))*BalanceN!$H$4:$H$9999)-J9 -> 0 | K9: =E9+F9+G9+H9-I9-J9 -> 0
B10: Autres immobilisations incorporelles | E10: =SUMPRODUCT(((LEFT(BalanceN!$A$4:$A$9999,4)="2189"))*BalanceN!$C$4:$C$9999) -> 0 | F10: =SUMPRODUCT(((LEFT(BalanceN!$A$4:$A$9999,4)="2189"))*BalanceN!$E$4:$E$9999)-G10-H10 -> 0 | I10: =SUMPRODUCT(((LEFT(BalanceN!$A$4:$A$9999,4)="2189"))*BalanceN!$H$4:$H$9999)-J10 -> 0 | K10: =E10+F10+G10+H10-I10-J10 -> 0
B11: SOUS TOTAL : IMMOBILISATIONS INCORPORELLES | E11: =SUM(E8:E10) -> 0 | F11: =SUM(F8:F10) -> 0 | G11: 0 | H11: 0 | I11: =SUM(I8:I10) -> 0 | J11: 0 | K11: =SUM(K8:K10) -> 0
B12: Terrains | E12: =SUMPRODUCT(((LEFT(BalanceN!$A$4:$A$9999,4)="2286"))*BalanceN!$C$4:$C$9999) -> 0 | F12: =SUMPRODUCT(((LEFT(BalanceN!$A$4:$A$9999,4)="2286"))*BalanceN!$E$4:$E$9999)-G12-H12 -> 0 | I12: =SUMPRODUCT(((LEFT(BalanceN!$A$4:$A$9999,4)="2286"))*BalanceN!$H$4:$H$9999)-J12 -> 0 | K12: =E12+F12+G12+H12-I12-J12 -> 0
B13: Bâtiments | E13: =SUMPRODUCT(((LEFT(BalanceN!$A$4:$A$9999,4)="2316")+(LEFT(BalanceN!$A$4:$A$9999,4)="2326"))*BalanceN!$C$4:$C$9999) -> 0 | F13: =SUMPRODUCT(((LEFT(BalanceN!$A$4:$A$9999,4)="2316")+(LEFT(BalanceN!$A$4:$A$9999,4)="2326"))*BalanceN!$E$4:$E$9999)-G13-H13 -> 0 | I13: =SUMPRODUCT(((LEFT(BalanceN!$A$4:$A$9999,4)="2316")+(LEFT(BalanceN!$A$4:$A$9999,4)="2326"))*BalanceN!$H$4:$H$9999)-J13 -> 0 | K13: =E13+F13+G13+H13-I13-J13 -> 0
B14: Aménagements, agencements et installations | E14: =SUMPRODUCT(((LEFT(BalanceN!$A$4:$A$9999,4)="2346")+(LEFT(BalanceN!$A$4:$A$9999,4)="2359")+(LEFT(BalanceN!$A$4:$A$9999,4)="2382"))*BalanceN!$C$4:$C$9999) -> 0 | F14: =SUMPRODUCT(((LEFT(BalanceN!$A$4:$A$9999,4)="2346")+(LEFT(BalanceN!$A$4:$A$9999,4)="2359")+(LEFT(BalanceN!$A$4:$A$9999,4)="2382"))*BalanceN!$E$4:$E$9999)-G14-H14 -> 0 | I14: =SUMPRODUCT(((LEFT(BalanceN!$A$4:$A$9999,4)="2346")+(LEFT(BalanceN!$A$4:$A$9999,4)="2359")+(LEFT(BalanceN!$A$4:$A$9999,4)="2382"))*BalanceN!$H$4:$H$9999)-J14 -> 0 | K14: 0
B15: Matériel, mobilier et actifs biologiques | E15: =SUMPRODUCT(((LEFT(BalanceN!$A$4:$A$9999,4)="2416")+(LEFT(BalanceN!$A$4:$A$9999,4)="2426")+(LEFT(BalanceN!$A$4:$A$9999,4)="2446"))*BalanceN!$C$4:$C$9999) -> 0 | F15: =SUMPRODUCT(((LEFT(BalanceN!$A$4:$A$9999,4)="2416")+(LEFT(BalanceN!$A$4:$A$9999,4)="2426")+(LEFT(BalanceN!$A$4:$A$9999,4)="2446"))*BalanceN!$E$4:$E$9999)-G15-H15 -> 0 | I15: =SUMPRODUCT(((LEFT(BalanceN!$A$4:$A$9999,4)="2416")+(LEFT(BalanceN!$A$4:$A$9999,4)="2426")+(LEFT(BalanceN!$A$4:$A$9999,4)="2446"))*BalanceN!$H$4:$H$9999)-J15 -> 0 | K15: 0
B16: Matériel de transport | E16: =SUMPRODUCT(((LEFT(BalanceN!$A$4:$A$9999,3)="2456"))*BalanceN!$C$4:$C$9999) -> 0 | F16: =SUMPRODUCT(((LEFT(BalanceN!$A$4:$A$9999,3)="2456"))*BalanceN!$E$4:$E$9999)-G16-H16 -> 0 | I16: =SUMPRODUCT(((LEFT(BalanceN!$A$4:$A$9999,3)="2456"))*BalanceN!$H$4:$H$9999)-J16 -> 0 | K16: 0
B17: SOUS TOTAL IMMOBILISATIONS CORPORELLES | E17: =SUM(E12:E16) -> 0 | F17: =SUM(F12:F16) -> 0 | G17: =SUM(G12:G16) -> 0 | H17: 0 | I17: =SUM(I12:I16) -> 0 | J17: 0 | K17: 0
B18: TOTAL GENERAL | D18: =+D11+D17 -> 0 | E18: =+E11+E17 -> 0 | F18: =+F11+F17 -> 0 | G18: 0 | H18: 0 | I18: =+I11+I17 -> 0 | J18: 0 | K18: 0
B20: COMMENTAIRE

Sheet NOTE 3C
A1: =IF(F20+G20+H20+I20>0,1,0) -> 1 | D1: NOTE 3 C : IMMOBILISATIONS : AMORTISSEMENTS
D3: Désignation entité:……………………………………. | E3: =INFORMATIONS!B10 -> SAM CONSEILS | H3: Exercice clos au: | I3: =INFORMATIONS!D31 -> 2018-12-31
D4: Numéro d'identification:……………………………….. | E4: =INFORMATIONS!B24 -> 00084404X | H4: Durée (en mois): | I4: =INFORMATIONS!F34 -> 12
F6: A | G6: B | H6: C | I6: D = A + B - C
D7: SITUATIONS ET MOUVEMENTS | F7: Amortissements cumulés à l'ouverture de l'exercice | G7: Augmentation: Dotation de l'exercice | H7: Diminution: Amortissements relatifs aux éléments sortis de l'actif | I7: Cumul des amortissements à la clôture de l'exercice
D8: RUBRIQUES
D9: Frais de développement et de prospection | F9: =SUMPRODUCT(((LEFT(BalanceN!$A$4:$A$9999,4)="2811")+(LEFT(BalanceN!$A$4:$A$9999,5)="28181"))*BalanceN!$D$4:$D$9999) -> 0 | G9: =SUMPRODUCT(((LEFT(BalanceN!$A$4:$A$9999,4)="2811")+(LEFT(BalanceN!$A$4:$A$9999,5)="28181"))*BalanceN!$F$4:$F$9999) -> 0 | H9: =SUMPRODUCT(((LEFT(BalanceN!$A$4:$A$9999,4)="2811")+(LEFT(BalanceN!$A$4:$A$9999,5)="28181"))*BalanceN!$E$4:$E$9999) -> 0 | I9: =F9+G9-H9 -> 0
D10: Licences, logiciels et droit au bail | F10: =SUMPRODUCT(((LEFT(BalanceN!$A$4:$A$9999,4)="2812")+(LEFT(BalanceN!$A$4:$A$9999,4)="2813")+(LEFT(BalanceN!$A$4:$A$9999,4)="2814"))*BalanceN!$D$4:$D$9999) -> 0 | G10: =SUMPRODUCT(((LEFT(BalanceN!$A$4:$A$9999,4)="2812")+(LEFT(BalanceN!$A$4:$A$9999,4)="2813")+(LEFT(BalanceN!$A$4:$A$9999,4)="2814"))*BalanceN!$F$4:$F$9999) -> 0 | H10: =SUMPRODUCT(((LEFT(BalanceN!$A$4:$A$9999,4)="2812")+(LEFT(BalanceN!$A$4:$A$9999,4)="2813")+(LEFT(BalanceN!$A$4:$A$9999,4)="2814"))*BalanceN!$E$4:$E$9999) -> 0 | I10: =F10+G10-H10 -> 0
D11: Fonds commercial et droit au bail | F11: =SUMPRODUCT(((LEFT(BalanceN!$A$4:$A$9999,4)="2815")+(LEFT(BalanceN!$A$4:$A$9999,4)="2816"))*BalanceN!$D$4:$D$9999) -> 0 | G11: =SUMPRODUCT(((LEFT(BalanceN!$A$4:$A$9999,4)="2815")+(LEFT(BalanceN!$A$4:$A$9999,4)="2816"))*BalanceN!$F$4:$F$9999) -> 0 | H11: =SUMPRODUCT(((LEFT(BalanceN!$A$4:$A$9999,4)="2815")+(LEFT(BalanceN!$A$4:$A$9999,4)="2816"))*BalanceN!$E$4:$E$9999) -> 0 | I11: 0
D12: Autres immobilisations incorporelles | F12: =SUMPRODUCT(((LEFT(BalanceN!$A$4:$A$9999,4)="2817")+(LEFT(BalanceN!$A$4:$A$9999,4)="2818")-(LEFT(BalanceN!$A$4:$A$9999,5)="28181"))*BalanceN!$D$4:$D$9999) -> 0 | G12: =SUMPRODUCT(((LEFT(BalanceN!$A$4:$A$9999,4)="2817")+(LEFT(BalanceN!$A$4:$A$9999,4)="2818")-(LEFT(BalanceN!$A$4:$A$9999,5)="28181"))*BalanceN!$F$4:$F$9999) -> 0 | H12: =SUMPRODUCT(((LEFT(BalanceN!$A$4:$A$9999,4)="2817")+(LEFT(BalanceN!$A$4:$A$9999,4)="2818")-(LEFT(BalanceN!$A$4:$A$9999,5)="28181"))*BalanceN!$E$4:$E$9999) -> 0 | I12: 0
D13: Sous total: Immobilisations incorporelles | F13: =SUM(F9:F12) -> 0 | G13: =SUM(G9:G12) -> 0 | H13: =SUM(H9:H12) -> 0 | I13: =SUM(I9:I12) -> 0
D14: Terrains | F14: =SUMPRODUCT(((LEFT(BalanceN!$A$4:$A$9999,3)="282"))*BalanceN!$D$4:$D$9999) -> 0 | G14: =SUMPRODUCT(((LEFT(BalanceN!$A$4:$A$9999,3)="282"))*BalanceN!$F$4:$F$9999) -> 0 | H14: =SUMPRODUCT(((LEFT(BalanceN!$A$4:$A$9999,3)="282"))*BalanceN!$E$4:$E$9999) -> 0 | I14: =F14+G14-H14 -> 0
D15: Bâtiments | F15: =SUMPRODUCT(((LEFT(BalanceN!$A$4:$A$9999,4)="2831")+(LEFT(BalanceN!$A$4:$A$9999,4)="2832")+(LEFT(BalanceN!$A$4:$A$9999,4)="2833")+(LEFT(BalanceN!$A$4:$A$9999,4)="2837"))*BalanceN!$D$4:$D$9999) -> 150313959 | G15: =SUMPRODUCT(((LEFT(BalanceN!$A$4:$A$9999,4)="2831")+(LEFT(BalanceN!$A$4:$A$9999,4)="2832")+(LEFT(BalanceN!$A$4:$A$9999,4)="2833")+(LEFT(BalanceN!$A$4:$A$9999,4)="2837"))*BalanceN!$F$4:$F$9999) -> 9734682 | H15: =SUMPRODUCT(((LEFT(BalanceN!$A$4:$A$9999,4)="2831")+(LEFT(BalanceN!$A$4:$A$9999,4)="2832")+(LEFT(BalanceN!$A$4:$A$9999,4)="2833")+(LEFT(BalanceN!$A$4:$A$9999,4)="2837"))*BalanceN!$E$4:$E$9999) -> 0 | I15: =F15+G15-H15 -> 160048641
D16: Aménagements, agencements et installations | F16: =SUMPRODUCT(((LEFT(BalanceN!$A$4:$A$9999,4)="2834")+(LEFT(BalanceN!$A$4:$A$9999,4)="2835")+(LEFT(BalanceN!$A$4:$A$9999,4)="2838"))*BalanceN!$D$4:$D$9999) -> 71328267 | G16: =SUMPRODUCT(((LEFT(BalanceN!$A$4:$A$9999,4)="2834")+(LEFT(BalanceN!$A$4:$A$9999,4)="2835")+(LEFT(BalanceN!$A$4:$A$9999,4)="2838"))*BalanceN!$F$4:$F$9999) -> 0 | H16: =SUMPRODUCT(((LEFT(BalanceN!$A$4:$A$9999,4)="2834")+(LEFT(BalanceN!$A$4:$A$9999,4)="2835")+(LEFT(BalanceN!$A$4:$A$9999,4)="2838"))*BalanceN!$E$4:$E$9999) -> 0 | I16: 71328267
D17: Matériel, mobilier et actifs biologiques | F17: =SUMPRODUCT(((LEFT(BalanceN!$A$4:$A$9999,3)="284")-(LEFT(BalanceN!$A$4:$A$9999,4)="2845"))*BalanceN!$D$4:$D$9999) -> 72385970 | G17: =SUMPRODUCT(((LEFT(BalanceN!$A$4:$A$9999,3)="284")-(LEFT(BalanceN!$A$4:$A$9999,4)="2845"))*BalanceN!$F$4:$F$9999) -> 9147462 | H17: =SUMPRODUCT(((LEFT(BalanceN!$A$4:$A$9999,3)="284")-(LEFT(BalanceN!$A$4:$A$9999,4)="2845"))*BalanceN!$E$4:$E$9999) -> 45992979 | I17: 35540453
D18: Matériel de transport | F18: =SUMPRODUCT(((LEFT(BalanceN!$A$4:$A$9999,4)="2845"))*BalanceN!$D$4:$D$9999) -> 53862500 | G18: =SUMPRODUCT(((LEFT(BalanceN!$A$4:$A$9999,4)="2845"))*BalanceN!$F$4:$F$9999) -> 377500 | H18: =SUMPRODUCT(((LEFT(BalanceN!$A$4:$A$9999,4)="2845"))*BalanceN!$E$4:$E$9999) -> 0 | I18: 54240000
D19: Sous total: Immobilisations corporelles | F19: =SUM(F14:F18) -> 347890696 | G19: =SUM(G14:G18) -> 19259644 | H19: =SUM(H14:H18) -> 45992979 | I19: =SUM(I14:I18) -> 321157361
D20: TOTAL GENERAL | F20: =F13+F19 -> 347890696 | G20: =G13+G19 -> 19259644 | H20: =H13+H19 -> 45992979 | I20: =I13+I19 -> 321157361
D22: COMMENTAIRE

Sheet NOTE 3D
A1: =IF(F21>0,1,0) -> 1 | D1: NOTE 3 D : IMMOBILISATIONS: PLUS-VALUES ET MOINS-VALUES DE CESSION
D3: Désignation entité:……………………………………. | E3: =INFORMATIONS!B10 -> SAM CONSEILS | H3: Exercice clos au: | J3: =INFORMATIONS!D31 -> 2018-12-31
D4: Numéro d'identification:……………………………….. | E4: =INFORMATIONS!B24 -> 00084404X | H4: Durée (en mois): | J4: =INFORMATIONS!F34 -> 12
D6: SITUATIONS ET MOUVEMENTS | F6: Montant Brut | G6: Amortissements pratiqués | H6: Valeur comptable nette | I6: Prix de cession | J6: Plus value ou moins value
D7: RUBRIQUES | F7: A | G7: B | H7: C = A - B | I7: D | J7: E = D - C
D8: Frais de développement et de prospection | F8: =IF(I8=0,0,SUMPRODUCT(((LEFT(BalanceN!$A$4:$A$9999,3)="211")+(LEFT(BalanceN!$A$4:$A$9999,4)="2181")+(LEFT(BalanceN!$A$4:$A$9999,4)="2191"))*BalanceN!$F$4:$F$9999)) -> 0 | G8: =IF(I8=0,0,SUMPRODUCT(((LEFT(BalanceN!$A$4:$A$9999,4)="2811")+(LEFT(BalanceN!$A$4:$A$9999,5)="28181"))*BalanceN!$E$4:$E$9999)) -> 0 | H8: =+F8-G8 -> 0 | J8: =I8-H8 -> 0
D9: Licences, logiciels et droit au bail | F9: =IF(I9=0,0,SUMPRODUCT(((LEFT(BalanceN!$A$4:$A$9999,3)="212")+(LEFT(BalanceN!$A$4:$A$9999,3)="213")+(LEFT(BalanceN!$A$4:$A$9999,3)="214")+(LEFT(BalanceN!$A$4:$A$9999,4)="2193"))*BalanceN!$F$4:$F$9999)) -> 0 | G9: =IF(I9=0,0,SUMPRODUCT(((LEFT(BalanceN!$A$4:$A$9999,4)="2812")+(LEFT(BalanceN!$A$4:$A$9999,4)="2813")+(LEFT(BalanceN!$A$4:$A$9999,4)="2814"))*BalanceN!$E$4:$E$9999)) -> 0 | H9: =+F9-G9 -> 0 | J9: =I9-H9 -> 0
D10: Autres immobilisations incorporelles | F10: =IF(I10=0,0,SUMPRODUCT(((LEFT(BalanceN!$A$4:$A$9999,3)="217")+(LEFT(BalanceN!$A$4:$A$9999,3)="218")+(LEFT(BalanceN!$A$4:$A$9999,4)="2198")-(LEFT(BalanceN!$A$4:$A$9999,4)="2181"))*BalanceN!$F$4:$F$9999)) -> 0 | G10: =IF(I10=0,0,SUMPRODUCT(((LEFT(BalanceN!$A$4:$A$9999,4)="2817")+(LEFT(BalanceN!$A$4:$A$9999,4)="2818")-(LEFT(BalanceN!$A$4:$A$9999,5)="28181"))*BalanceN!$E$4:$E$9999)) -> 0 | H10: 0 | J10: 0
D11: SOUS TOTAL IMMOBILISATIONS INCORPORELLES | F11: =SUM(F8:F10) -> 0 | G11: =SUM(G8:G10) -> 0 | H11: =SUM(H8:H10) -> 0 | I11: =SUM(I8:I10) -> 0 | J11: =SUM(J8:J10) -> 0
D12: Terrains | F12: =IF(I12=0,0,SUMPRODUCT(((LEFT(BalanceN!$A$4:$A$9999,2)="22"))*BalanceN!$F$4:$F$9999)) -> 0 | G12: =IF(I12=0,0,SUMPRODUCT(((LEFT(BalanceN!$A$4:$A$9999,3)="282"))*BalanceN!$E$4:$E$9999)) -> 0 | H12: =F12-G12 -> 0 | J12: =I12-H12 -> 0
D13: Bâtiments | F13: =IF(I13=0,0,SUMPRODUCT(((LEFT(BalanceN!$A$4:$A$9999,3)="231")+(LEFT(BalanceN!$A$4:$A$9999,3)="232")+(LEFT(BalanceN!$A$4:$A$9999,3)="233")+(LEFT(BalanceN!$A$4:$A$9999,3)="237")+(LEFT(BalanceN!$A$4:$A$9999,4)="2391"))*BalanceN!$F$4:$F$9999)) -> 0 | G13: =IF(I13=0,0,SUMPRODUCT(((LEFT(BalanceN!$A$4:$A$9999,4)="2831")+(LEFT(BalanceN!$A$4:$A$9999,4)="2832")+(LEFT(BalanceN!$A$4:$A$9999,4)="2833")+(LEFT(BalanceN!$A$4:$A$9999,4)="2837"))*BalanceN!$E$4:$E$9999)) -> 0 | H13: =F13-G13 -> 0 | J13: =I13-H13 -> 0
D14: Aménagements, agencements et installations | F14: =IF(I14=0,0,SUMPRODUCT(((LEFT(BalanceN!$A$4:$A$9999,3)="234")+(LEFT(BalanceN!$A$4:$A$9999,3)="235")+(LEFT(BalanceN!$A$4:$A$9999,3)="238")+(LEFT(BalanceN!$A$4:$A$9999,4)="2392")+(LEFT(BalanceN!$A$4:$A$9999,4)="2393"))*BalanceN!$F$4:$F$9999)) -> 0 | G14: =IF(I14=0,0,SUMPRODUCT(((LEFT(BalanceN!$A$4:$A$9999,4)="2834")+(LEFT(BalanceN!$A$4:$A$9999,4)="2835")+(LEFT(BalanceN!$A$4:$A$9999,4)="2838"))*BalanceN!$E$4:$E$9999)) -> 0 | H14: 0 | J14: 0
D15: Matériel, mobilier et actifs biologiques | F15: =IF(I15=0,0,SUMPRODUCT(((LEFT(BalanceN!$A$4:$A$9999,2)="24")-(LEFT(BalanceN!$A$4:$A$9999,3)="245")-(LEFT(BalanceN!$A$4:$A$9999,4)="2495"))*BalanceN!$F$4:$F$9999)) -> 45992979 | G15: =IF(I15=0,0,SUMPRODUCT(((LEFT(BalanceN!$A$4:$A$9999,3)="284")-(LEFT(BalanceN!$A$4:$A$9999,4)="2845"))*BalanceN!$E$4:$E$9999)) -> 45992979 | H15: 0 | I15: 127119 | J15: 127119
D16: Matériel de transport | F16: =IF(I16=0,0,SUMPRODUCT(((LEFT(BalanceN!$A$4:$A$9999,3)="245")+(LEFT(BalanceN!$A$4:$A$9999,4)="2495"))*BalanceN!$F$4:$F$9999)) -> 0 | G16: =IF(I16=0,0,SUMPRODUCT(((LEFT(BalanceN!$A$4:$A$9999,4)="2845"))*BalanceN!$E$4:$E$9999)) -> 0 | H16: 0 | J16: 0
D17: SOUS TOTAL IMMOBILISATIONS CORPORELLES | F17: =SUM(F12:F16) -> 45992979 | G17: =SUM(G12:G16) -> 45992979 | H17: =SUM(H12:H16) -> 0 | I17: =SUM(I12:I16) -> 127119 | J17: =SUM(J12:J16) -> 127119
D18: Titres de participation | F18: =IF(I18=0,0,SUMPRODUCT(((LEFT(BalanceN!$A$4:$A$9999,2)="26"))*BalanceN!$F$4:$F$9999)) -> 0 | H18: =F18-G18 -> 0 | J18: =I18-H18 -> 0
D19: Autres immobilisations financières | F19: =IF(I19=0,0,SUMPRODUCT(((LEFT(BalanceN!$A$4:$A$9999,2)="27"))*BalanceN!$F$4:$F$9999)) -> 0 | H19: =F19-G19 -> 0 | J19: =I19-H19 -> 0
D20: SOUS TOTAL IMMOBILISATIONS FINANCIERES | F20: =SUM(F18:F19) -> 0 | G20: =SUM(G18:G19) -> 0 | H20: 0 | I20: 0 | J20: =SUM(J18:J19) -> 0
D21: TOTAL GENERAL | F21: =F11+F17+F20 -> 45992979 | G21: =G11+G17+G20 -> 45992979 | H21: =H11+H17+H20 -> 0 | I21: =I11+I17+I20 -> 127119 | J21: =J11+J17+J20 -> 127119
D22: COMMENTAIRE

Sheet NOTE 3E
A1: =IF(H20>0,1,0) -> 1 | E1: NOTE 3 E : INFORMATIONS SUR LES REEVALUATIONS EFFECTUEES PAR L'ENTITE
E3: Désignation entité:……………………………………. | F3: =INFORMATIONS!B10 -> SAM CONSEILS | G3: Exercice clos au: | H3: =INFORMATIONS!D31 -> 2018-12-31
E4: Numéro d'identification:……………………………….. | F4: =INFORMATIONS!B24 -> 00084404X | G4: Durée (en mois): | H4: =INFORMATIONS!F34 -> 12
E6: Nature des réévaluations | G6: Date des réévaluations
E13: Eléments réévalués par poste du bilan | G13: Montants coûts historiques | H13: Ecarts et provisions spéciales de réévaluation
E14: Terrains | G14: =IF(H14=0,0,'NOTE 3A'!E14) -> 35173950 | H14: ='NOTE 3A'!H14 -> 3500000
E15: Bâtiments | G15: =IF(H15=0,0,'NOTE 3A'!E16) -> 286411100 | H15: ='NOTE 3A'!H16 -> 25000000
E16: Aménagements, agencements et installations | G16: =IF(H16=0,0,'NOTE 3A'!E18) -> 71328267 | H16: ='NOTE 3A'!H18 -> 2000000
E17: Matériel, mobilier et actifs biologiques | G17: =IF(H17=0,0,'NOTE 3A'!E19) -> 104472006 | H17: ='NOTE 3A'!H19 -> 3000000
E18: Matériel de transport | G18: =IF(H18=0,0,'NOTE 3A'!E20) -> 54050000 | H18: ='NOTE 3A'!H20 -> 10000000
E19: Total écarts de réévaluation | H19: =H14 -> 3500000
E20: Total provisions spéciales de réévaluations | H20: =SUM(H15:H18) -> 40000000
E21: Méthode de réévaluation utilisée:
E30: Traitement fiscal de l'écart de réévaluation et des amortisssements supplémentaires:
E42: Montant de l'écart incorporé au capital

Sheet NOTE 4
A1: =IF(F20>0,1,0) -> 1 | D1: NOTE 4 : IMMOBILISATIONS FINANCIERES
D3: Désignation entité:……………………………………. | E3: =INFORMATIONS!B10 -> SAM CONSEILS | I3: Exercice clos au: | K3: =INFORMATIONS!D31 -> 2018-12-31
D4: Numéro d'identification:……………………………….. | E4: =INFORMATIONS!B24 -> 00084404X | I4: Durée (en mois): | K4: =INFORMATIONS!F34 -> 12
D6: Libellés | F6: Année N | G6: Année N-1 | H6: Variation en % | I6: Créances à un an au plus | J6: Créances à plus d'un an et à deux ans au plus | K6: Créances à plus de deux ans
D7: Titres de participation | F7: =SUMPRODUCT(((LEFT(BalanceN!$A$4:$A$9999,2)="26"))*BalanceN!$G$4:$G$9999) -> 0 | G7: =SUMPRODUCT(((LEFT(BalanceN!$A$4:$A$9999,2)="26"))*BalanceN!$C$4:$C$9999) -> 0 | H7: =IF(G7=0,"-",(F7-G7)/G7) -> - | K7: =F7-I7-J7 -> 0
D8: Prêts et créances | F8: =SUMPRODUCT(((LEFT(BalanceN!$A$4:$A$9999,3)="271"))*BalanceN!$G$4:$G$9999) -> 0 | G8: =SUMPRODUCT(((LEFT(BalanceN!$A$4:$A$9999,3)="271"))*BalanceN!$C$4:$C$9999) -> 0 | H8: =IF(G8=0,"-",(F8-G8)/G8) -> - | K8: =F8-I8-J8 -> 0
D9: Prêt au personnel | F9: =SUMPRODUCT(((LEFT(BalanceN!$A$4:$A$9999,3)="272"))*BalanceN!$G$4:$G$9999) -> 1927000 | G9: =SUMPRODUCT(((LEFT(BalanceN!$A$4:$A$9999,3)="272"))*BalanceN!$C$4:$C$9999) -> 1927000 | H9: 0 | I9: 500000 | J9: 200000 | K9: 1227000
D10: Créances sur l'Etat | F10: =SUMPRODUCT(((LEFT(BalanceN!$A$4:$A$9999,3)="273"))*BalanceN!$G$4:$G$9999) -> 0 | G10: =SUMPRODUCT(((LEFT(BalanceN!$A$4:$A$9999,3)="273"))*BalanceN!$C$4:$C$9999) -> 0 | H10: - | K10: 0
D11: Titres immobilisés | F11: =SUMPRODUCT(((LEFT(BalanceN!$A$4:$A$9999,3)="274"))*BalanceN!$G$4:$G$9999) -> 0 | G11: =SUMPRODUCT(((LEFT(BalanceN!$A$4:$A$9999,3)="274"))*BalanceN!$C$4:$C$9999) -> 0 | H11: - | K11: 0
D12: Dépôts et cautionnements | F12: =SUMPRODUCT(((LEFT(BalanceN!$A$4:$A$9999,3)="275"))*BalanceN!$G$4:$G$9999) -> 2492790 | G12: =SUMPRODUCT(((LEFT(BalanceN!$A$4:$A$9999,3)="275"))*BalanceN!$C$4:$C$9999) -> 2621658 | H12: -0.04915515296 | K12: 2492790
D13: Intérêts courus | F13: =SUMPRODUCT(((LEFT(BalanceN!$A$4:$A$9999,3)="276"))*BalanceN!$G$4:$G$9999) -> 0 | G13: =SUMPRODUCT(((LEFT(BalanceN!$A$4:$A$9999,3)="276"))*BalanceN!$C$4:$C$9999) -> 0 | H13: - | K13: 0
D14: Créances rattachées à des participations | F14: =SUMPRODUCT(((LEFT(BalanceN!$A$4:$A$9999,3)="277"))*BalanceN!$G$4:$G$9999) -> 0 | G14: =SUMPRODUCT(((LEFT(BalanceN!$A$4:$A$9999,3)="277"))*BalanceN!$C$4:$C$9999) -> 0 | H14: - | K14: 0
D15: Immobilisations financières diverses | F15: =SUMPRODUCT(((LEFT(BalanceN!$A$4:$A$9999,3)="278"))*BalanceN!$G$4:$G$9999) -> 0 | G15: =SUMPRODUCT(((LEFT(BalanceN!$A$4:$A$9999,3)="278"))*BalanceN!$C$4:$C$9999) -> 0 | H15: - | K15: 0
D16: TOTAL BRUT | F16: =SUM(F7:F15) -> 4419790 | G16: =SUM(G7:G15) -> 4548658 | I16: =SUM(I7:I15) -> 500000 | J16: =SUM(J7:J15) -> 200000 | K16: =SUM(K7:K15) -> 3719790
D17: Dépréciations des titres de participation | F17: =SUMPRODUCT(((LEFT(BalanceN!$A$4:$A$9999,3)="296"))*BalanceN!$D$4:$D$9999) -> 0 | G17: =SUMPRODUCT(((LEFT(BalanceN!$A$4:$A$9999,3)="296"))*BalanceN!$H$4:$H$9999) -> 0 | H17: - | I17: =F17 -> 0 | K17: =F17-I17-J17 -> 0
D18: Dépréciations des autres immobilisations | F18: =SUMPRODUCT(((LEFT(BalanceN!$A$4:$A$9999,3)="297"))*BalanceN!$D$4:$D$9999) -> 0 | G18: =SUMPRODUCT(((LEFT(BalanceN!$A$4:$A$9999,3)="297"))*BalanceN!$H$4:$H$9999) -> 0 | H18: - | I18: =F18 -> 0 | K18: =F18-I18-J18 -> 0
D19: TOTAL DES DEPRECIATIONS | F19: =SUM(F17:F18) -> 0 | G19: =SUM(G17:G18) -> 0 | H19: - | I19: =SUM(I17:I18) -> 0 | J19: =SUM(J17:J18) -> 0 | K19: =SUM(K17:K18) -> 0
D20: TOTAL NET DE DEPRECIATION | F20: =F16-F19 -> 4419790 | G20: =G16-G19 -> 4548658 | I20: =I16-I19 -> 500000 | J20: =J16-J19 -> 200000 | K20: =K16-K19 -> 3719790
D22: Liste des filiales et participations
D23: Dénomination sociales | F23: Localisation (Ville/pays) | H23: Valeur d'acquisition | I23: % Détenu | J23: Montant des capitaux propres filiale | K23: Résultat dernier exercice filiale
D31: COMMENTAIRES

Sheet NOTE 5
A1: =IF(G11>0,1,0) -> 1 | E1: NOTE 5 : ACTIF CIRCULANT HAO
E3: Désignation entité:………… | F3: =INFORMATIONS!B10 -> SAM CONSEILS | H3: Exercice clos au: | I3: =INFORMATIONS!D31 -> 2018-12-31
E4: Numéro d'identification:……………………………….. | F4: =INFORMATIONS!B24 -> 00084404X | H4: Durée (en mois): | I4: =INFORMATIONS!F34 -> 12
E6: Libellés | G6: Année N | H6: Année N-1 | I6: Variation en %
E7: Créances sur cessions d'immobilisation | G7: =SUMPRODUCT(((LEFT(BalanceN!$A$4:$A$9999,3)="485"))*BalanceN!$G$4:$G$9999) -> 140000 | H7: =SUMPRODUCT(((LEFT(BalanceN!$A$4:$A$9999,3)="485"))*BalanceN!$C$4:$C$9999) -> 380000 | I7: =IF(H7=0,"-",(G7-H7)/H7) -> -0.6315789474
E8: Autres créances hors activités ordinaires | G8: =SUMPRODUCT(((LEFT(BalanceN!$A$4:$A$9999,3)="488"))*BalanceN!$G$4:$G$9999) -> 2000000 | H8: =SUMPRODUCT(((LEFT(BalanceN!$A$4:$A$9999,3)="488"))*BalanceN!$C$4:$C$9999) -> 0 | I8: =IF(H8=0,"-",(G8-H8)/H8) -> -
E9: TOTAL BRUT | G9: =SUM(G7:G8) -> 2140000 | H9: =SUM(H7:H8) -> 380000 | I9: =IF(H9=0,"-",(G9-H9)/H9) -> 4.631578947
E10: Dépréciations des créances HAO | G10: =SUMPRODUCT(((LEFT(BalanceN!$A$4:$A$9999,3)="498"))*BalanceN!$H$4:$H$9999) -> 0 | H10: =SUMPRODUCT(((LEFT(BalanceN!$A$4:$A$9999,3)="498"))*BalanceN!$D$4:$D$9999) -> 0 | I10: =IF(H10=0,"-",(G10-H10)/H10) -> -
E11: TOTAL NET DE DEPRECIATION | G11: =G9-G10 -> 2140000 | H11: =H9-H10 -> 380000 | I11: =IF(H11=0,"-",(G11-H11)/H11) -> 4.631578947
E13: COMMENTAIRES
E22: DETTES CIRCULANTES HAO
E24: Libellés | G24: Année N | H24: Année N-1 | I24: Variation en %
E25: Fournisseurs d'investissements | G25: =SUMPRODUCT(((LEFT(BalanceN!$A$4:$A$9999,4)="4811")+(LEFT(BalanceN!$A$4:$A$9999,4)="4812"))*BalanceN!$H$4:$H$9999) -> 156250000 | H25: =SUMPRODUCT(((LEFT(BalanceN!$A$4:$A$9999,4)="4811")+(LEFT(BalanceN!$A$4:$A$9999,4)="4812"))*BalanceN!$D$4:$D$9999) -> 0 | I25: =IF(H25=0,"-",(G25-H25)/H25) -> -
E26: Fournisseurs d'investissements effets à payer | G26: =SUMPRODUCT(((LEFT(BalanceN!$A$4:$A$9999,3)="482"))*BalanceN!$H$4:$H$9999) -> 0 | H26: =SUMPRODUCT(((LEFT(BalanceN!$A$4:$A$9999,3)="482"))*BalanceN!$D$4:$D$9999) -> 0 | I26: =IF(H26=0,"-",(G26-H26)/H26) -> -
E27: Versements restant à effectuer sur titres de participation et titres immobilisés non libérés | G27: =SUMPRODUCT(((LEFT(BalanceN!$A$4:$A$9999,4)="4813"))*BalanceN!$H$4:$H$9999) -> 0 | H27: =SUMPRODUCT(((LEFT(BalanceN!$A$4:$A$9999,4)="4813"))*BalanceN!$D$4:$D$9999) -> 0 | I27: =IF(H27=0,"-",(G27-H27)/H27) -> -
E28: Autres dettes hors activités ordinaires | G28: =SUMPRODUCT(((LEFT(BalanceN!$A$4:$A$9999,4)="4818"))*BalanceN!$H$4:$H$9999) -> 399942 | H28: =SUMPRODUCT(((LEFT(BalanceN!$A$4:$A$9999,4)="4818"))*BalanceN!$D$4:$D$9999) -> 399942 | I28: =IF(H28=0,"-",(G28-H28)/H28) -> 0
E29: TOTAL | G29: =SUM(G25:G28) -> 156649942 | H29: =SUM(H25:H28) -> 399942
E31: COMMENTAIRES

Sheet NOTE 6
A1: =IF(G15>0,1,0) -> 1 | E1: NOTE 6 : STOCKS ET ENCOURS
E3: Désignation entité:……………………………………. | F3: =INFORMATIONS!B10 -> SAM CONSEILS | H3: Exercice clos au: | J3: =INFORMATIONS!D31 -> 2018-12-31
E4: Numéro d'identification:……………………………….. | F4: =INFORMATIONS!B24 -> 00084404X | H4: Durée (en mois): | J4: =INFORMATIONS!F34 -> 12
E6: Libellés | G6: Année N | H6: Année N-1 | I6: Variation de stock en valeur absolue | J6: Variation en %
E7: Marchandises | G7: =SUMPRODUCT(((LEFT(BalanceN!$A$4:$A$9999,2)="31"))*BalanceN!$G$4:$G$9999) -> 5000000 | H7: =SUMPRODUCT(((LEFT(BalanceN!$A$4:$A$9999,2)="31"))*BalanceN!$C$4:$C$9999) -> 0 | I7: =G7-H7 -> 5000000 | J7: =IF(H7=0,"-",(G7-H7)/H7) -> -
E8: Matières premières et fournitures liées | G8: =SUMPRODUCT(((LEFT(BalanceN!$A$4:$A$9999,2)="32"))*BalanceN!$G$4:$G$9999) -> 7827856 | H8: =SUMPRODUCT(((LEFT(BalanceN!$A$4:$A$9999,2)="32"))*BalanceN!$C$4:$C$9999) -> 7721440 | I8: =G8-H8 -> 106416 | J8: =IF(H8=0,"-",(G8-H8)/H8) -> 0.01378188524
E9: Autres approvisionnements | G9: =SUMPRODUCT(((LEFT(BalanceN!$A$4:$A$9999,2)="33"))*BalanceN!$G$4:$G$9999) -> 5732282 | H9: =SUMPRODUCT(((LEFT(BalanceN!$A$4:$A$9999,2)="33"))*BalanceN!$C$4:$C$9999) -> 8146993 | I9: -2414711 | J9: -0.2963929145
E10: Produits en cours | G10: =SUMPRODUCT(((LEFT(BalanceN!$A$4:$A$9999,2)="34"))*BalanceN!$G$4:$G$9999) -> 0 | H10: =SUMPRODUCT(((LEFT(BalanceN!$A$4:$A$9999,2)="34"))*BalanceN!$C$4:$C$9999) -> 0 | I10: 0 | J10: -
E11: Services en cours | G11: =SUMPRODUCT(((LEFT(BalanceN!$A$4:$A$9999,2)="35"))*BalanceN!$G$4:$G$9999) -> 0 | H11: =SUMPRODUCT(((LEFT(BalanceN!$A$4:$A$9999,2)="35"))*BalanceN!$C$4:$C$9999) -> 0 | I11: 0 | J11: -
E12: Produits finis | G12: =SUMPRODUCT(((LEFT(BalanceN!$A$4:$A$9999,2)="36"))*BalanceN!$G$4:$G$9999) -> 0 | H12: =SUMPRODUCT(((LEFT(BalanceN!$A$4:$A$9999,2)="36"))*BalanceN!$C$4:$C$9999) -> 0 | I12: 0 | J12: -
E13: Produits intermédiaires | G13: =SUMPRODUCT(((LEFT(BalanceN!$A$4:$A$9999,2)="37"))*BalanceN!$G$4:$G$9999) -> 0 | H13: =SUMPRODUCT(((LEFT(BalanceN!$A$4:$A$9999,2)="37"))*BalanceN!$C$4:$C$9999) -> 0 | I13: 0 | J13: -
E14: Stocks en cours de route, en consignation ou en dépôt | G14: =SUMPRODUCT(((LEFT(BalanceN!$A$4:$A$9999,2)="38"))*BalanceN!$G$4:$G$9999) -> 0 | H14: =SUMPRODUCT(((LEFT(BalanceN!$A$4:$A$9999,2)="38"))*BalanceN!$C$4:$C$9999) -> 0 | I14: 0 | J14: -
E15: TOTAL BRUT STOCKS ET ENCOURS | G15: =SUM(G7:G14) -> 18560138 | H15: =SUM(H7:H14) -> 15868433 | I15: =SUM(I7:I14) -> 2691705
E16: Dépréciations des stocks | G16: =SUMPRODUCT(((LEFT(BalanceN!$A$4:$A$9999,2)="39"))*BalanceN!$G$4:$G$9999) -> 0 | H16: =SUMPRODUCT(((LEFT(BalanceN!$A$4:$A$9999,2)="39"))*BalanceN!$C$4:$C$9999) -> 0 | I16: =G16-H16 -> 0 | J16: =IF(H16=0,"-",(G16-H16)/H16) -> -
E17: TOTAL NET DE DEPRECIATION | G17: =SUM(G16) -> 0 | H17: =SUM(H16) -> 0 | I17: =SUM(I16) -> 0
E19: COMMENTAIRES

Sheet NOTE 7
A1: =IF(F16>0,1,0) -> 1 | D1: NOTE 7 : CLIENTS PRODUITS A RECEVOIR
D3: Désignation entité:……………………………………. | E3: =INFORMATIONS!B10 -> SAM CONSEILS | I3: Exercice clos au: | K3: =INFORMATIONS!B24 -> 00084404X
D4: Numéro d'identification:……………………………….. | E4: =INFORMATIONS!B24 -> 00084404X | I4: Durée (en mois): | K4: =INFORMATIONS!F34 -> 12
D6: Libellés | F6: Année N | G6: Année N-1 | H6: Variation en % | I6: Créances à un an au plus | J6: Créances à plus d'un an et à deux ans au plus | K6: Créances à plus de deux ans
D7: Clients (hors réserves de propriété Groupe) | F7: =SUMPRODUCT(((LEFT(BalanceN!$A$4:$A$9999,4)="4111"))*BalanceN!$G$4:$G$9999) -> 136261301 | G7: =SUMPRODUCT(((LEFT(BalanceN!$A$4:$A$9999,4)="4111"))*BalanceN!$C$4:$C$9999) -> 140683833 | H7: =IF(G7=0,"-",(F7-G7)/G7) -> -0.03143596464 | I7: =+F7-J7-K7 -> 136261301
D8: Clients effets à recevoir (hors réserves de propriété Groupe) | F8: =SUMPRODUCT(((LEFT(BalanceN!$A$4:$A$9999,4)="4121"))*BalanceN!$G$4:$G$9999) -> 0 | G8: =SUMPRODUCT(((LEFT(BalanceN!$A$4:$A$9999,4)="4121"))*BalanceN!$C$4:$C$9999) -> 0 | H8: =IF(G8=0,"-",(F8-G8)/G8) -> - | I8: =+F8-J8-K8 -> 0
D9: Clients et effets à recevoir avec réserves de propriété | F9: =SUMPRODUCT(((LEFT(BalanceN!$A$4:$A$9999,4)="4116"))*BalanceN!$G$4:$G$9999) -> 0 | G9: =SUMPRODUCT(((LEFT(BalanceN!$A$4:$A$9999,4)="4116"))*BalanceN!$C$4:$C$9999) -> 0 | H9: - | I9: 0
D10: Clients et effets à recevoir Groupe | F10: =SUMPRODUCT(((LEFT(BalanceN!$A$4:$A$9999,4)="4122"))*BalanceN!$G$4:$G$9999) -> 0 | G10: =SUMPRODUCT(((LEFT(BalanceN!$A$4:$A$9999,4)="4122"))*BalanceN!$C$4:$C$9999) -> 0 | H10: - | I10: 0
D11: Clients, chèques, effets et autres valeurs impayés | F11: =SUMPRODUCT(((LEFT(BalanceN!$A$4:$A$9999,3)="413"))*BalanceN!$G$4:$G$9999) -> 0 | G11: =SUMPRODUCT(((LEFT(BalanceN!$A$4:$A$9999,3)="413"))*BalanceN!$C$4:$C$9999) -> 0 | H11: - | I11: 0
D12: Créances sur cession d'immobilisations | F12: =SUMPRODUCT(((LEFT(BalanceN!$A$4:$A$9999,3)="414"))*BalanceN!$G$4:$G$9999) -> 0 | G12: =SUMPRODUCT(((LEFT(BalanceN!$A$4:$A$9999,3)="414"))*BalanceN!$C$4:$C$9999) -> 0 | H12: - | I12: 0
D13: Clients effets escomptés et non échus | F13: =SUMPRODUCT(((LEFT(BalanceN!$A$4:$A$9999,3)="415"))*BalanceN!$G$4:$G$9999) -> 0 | G13: =SUMPRODUCT(((LEFT(BalanceN!$A$4:$A$9999,3)="415"))*BalanceN!$C$4:$C$9999) -> 0 | H13: - | I13: 0
D14: Créances litigieuses ou douteuses | F14: =SUMPRODUCT(((LEFT(BalanceN!$A$4:$A$9999,3)="416"))*BalanceN!$G$4:$G$9999) -> 31677520 | G14: =SUMPRODUCT(((LEFT(BalanceN!$A$4:$A$9999,3)="416"))*BalanceN!$C$4:$C$9999) -> 31677520 | H14: 0 | I14: 31677520
D15: Clients produits à recevoir | F15: =SUMPRODUCT(((LEFT(BalanceN!$A$4:$A$9999,3)="418"))*BalanceN!$G$4:$G$9999) -> 0 | G15: =SUMPRODUCT(((LEFT(BalanceN!$A$4:$A$9999,3)="418"))*BalanceN!$C$4:$C$9999) -> 0 | H15: - | I15: 0
D16: TOTAL BRUT CLIENTS | F16: =SUM(F7:F15) -> 167938821 | G16: =SUM(G7:G15) -> 172361353 | I16: =SUM(I7) -> 136261301 | J16: =SUM(J10:J15) -> 0 | K16: =SUM(K10:K15) -> 0
D17: Dépréciations des comptes clients | F17: =SUMPRODUCT(((LEFT(BalanceN!$A$4:$A$9999,3)="491"))*BalanceN!$H$4:$H$9999) -> 31677520 | G17: =SUMPRODUCT(((LEFT(BalanceN!$A$4:$A$9999,3)="491"))*BalanceN!$D$4:$D$9999) -> 31677520 | H17: 0 | I17: =+F17-J17-K17 -> 31677520
D18: TOTAL NET DE DEPRECIATION | F18: =SUM(F9:F17) -> 231293861 | G18: =SUM(G9:G17) -> 235716393 | I18: =SUM(I17:I17) -> 31677520 | J18: =SUM(J17:J17) -> 0 | K18: =SUM(K17:K17) -> 0
D19: Clients, avances reçues hors groupe | F19: =SUMPRODUCT(((LEFT(BalanceN!$A$4:$A$9999,4)="4191"))*BalanceN!$H$4:$H$9999) -> 0 | G19: =SUMPRODUCT(((LEFT(BalanceN!$A$4:$A$9999,4)="4191"))*BalanceN!$D$4:$D$9999) -> 0 | H19: - | I19: =F19-J19-K19 -> 0
D20: Clients, avances reçues groupe | F20: =SUMPRODUCT(((LEFT(BalanceN!$A$4:$A$9999,4)="4192"))*BalanceN!$H$4:$H$9999) -> 0 | G20: =SUMPRODUCT(((LEFT(BalanceN!$A$4:$A$9999,4)="4192"))*BalanceN!$D$4:$D$9999) -> 0 | H20: - | I20: =F20-J20-K20 -> 0
D21: Autres clients créditeurs | F21: =SUMPRODUCT(((LEFT(BalanceN!$A$4:$A$9999,4)="4194")+(LEFT(BalanceN!$A$4:$A$9999,4)="4198"))*BalanceN!$H$4:$H$9999) -> 0 | G21: =SUMPRODUCT(((LEFT(BalanceN!$A$4:$A$9999,4)="4194")+(LEFT(BalanceN!$A$4:$A$9999,4)="4198"))*BalanceN!$D$4:$D$9999) -> 0 | H21: - | I21: =F21-J21-K21 -> 0
D22: TOTAL CLIENTS CREDITEURS | F22: =SUM(F19:F21) -> 0 | G22: 0 | H22: 0 | I22: 0 | J22: 0 | K22: 0
D24: COMMENTAIRES

Sheet NOTE 8
A1: =IF(F17>0,1,0) -> 1 | D1: NOTE 8 : AUTRES CREANCES
D3: Désignation entité:……………………………………. | E3: =INFORMATIONS!B10 -> SAM CONSEILS | I3: Exercice clos au: | K3: =INFORMATIONS!D31 -> 2018-12-31
D4: Numéro d'identification:……………………………….. | E4: =INFORMATIONS!B24 -> 00084404X | I4: Durée (en mois): | K4: =INFORMATIONS!F34 -> 12
D6: Libellés | F6: Année N | G6: Année N-1 | H6: Variation en % | I6: Créances à un an au plus | J6: Créances à plus d'un an et à deux ans au plus | K6: Créances à plus de deux ans
D7: Personnel | F7: =SUMPRODUCT(((LEFT(BalanceN!$A$4:$A$9999,2)="42"))*BalanceN!$G$4:$G$9999) -> 16921663 | G7: =SUMPRODUCT(((LEFT(BalanceN!$A$4:$A$9999,2)="42"))*BalanceN!$C$4:$C$9999) -> 1280286 | H7: =IF(G7=0,"-",(F7-G7)/G7) -> 12.21709602 | I7: =F7-J7-K7 -> 16921663
D8: Organismes sociaux | F8: =SUMPRODUCT(((LEFT(BalanceN!$A$4:$A$9999,2)="43"))*BalanceN!$G$4:$G$9999) -> 0 | G8: =SUMPRODUCT(((LEFT(BalanceN!$A$4:$A$9999,2)="43"))*BalanceN!$C$4:$C$9999) -> 0 | H8: =IF(G8=0,"-",(F8-G8)/G8) -> - | I8: =F8-J8-K8 -> 0
D9: Etat et collectivités publiques | F9: =SUMPRODUCT(((LEFT(BalanceN!$A$4:$A$9999,2)="44"))*BalanceN!$G$4:$G$9999) -> 0 | G9: =SUMPRODUCT(((LEFT(BalanceN!$A$4:$A$9999,2)="44"))*BalanceN!$C$4:$C$9999) -> 0 | H9: - | I9: 0
D10: Organisme internationaux | F10: =SUMPRODUCT(((LEFT(BalanceN!$A$4:$A$9999,2)="45"))*BalanceN!$G$4:$G$9999) -> 0 | G10: =SUMPRODUCT(((LEFT(BalanceN!$A$4:$A$9999,2)="45"))*BalanceN!$C$4:$C$9999) -> 0 | H10: - | I10: 0
D11: Apporteurs, associés et groupe | F11: =SUMPRODUCT(((LEFT(BalanceN!$A$4:$A$9999,2)="46"))*BalanceN!$G$4:$G$9999) -> 20000000 | G11: =SUMPRODUCT(((LEFT(BalanceN!$A$4:$A$9999,2)="46"))*BalanceN!$C$4:$C$9999) -> 0 | H11: - | I11: =F11-J11-K11 -> 20000000
D12: Compte transitoire ajustement spécial lié à la révision du SYSCOHADA | F12: =SUMPRODUCT(((LEFT(BalanceN!$A$4:$A$9999,3)="475"))*BalanceN!$G$4:$G$9999) -> 0 | G12: =SUMPRODUCT(((LEFT(BalanceN!$A$4:$A$9999,3)="475"))*BalanceN!$C$4:$C$9999) -> 0 | H12: - | I12: 0
D13: Autres débiteurs divers | F13: =SUMPRODUCT(((LEFT(BalanceN!$A$4:$A$9999,3)="471"))*BalanceN!$G$4:$G$9999) -> 0 | G13: =SUMPRODUCT(((LEFT(BalanceN!$A$4:$A$9999,3)="471"))*BalanceN!$C$4:$C$9999) -> 450000 | H13: -1 | I13: 0
D14: Comptes permanents non bloqués des établissements et des succursales | F14: =SUMPRODUCT(((LEFT(BalanceN!$A$4:$A$9999,3)="185"))*BalanceN!$G$4:$G$9999) -> 0 | G14: =SUMPRODUCT(((LEFT(BalanceN!$A$4:$A$9999,3)="185"))*BalanceN!$C$4:$C$9999) -> 0 | H14: - | I14: 0
D15: Comptes de liaison charges et produits | F15: =SUMPRODUCT(((LEFT(BalanceN!$A$4:$A$9999,3)="186")+(LEFT(BalanceN!$A$4:$A$9999,3)="187"))*BalanceN!$G$4:$G$9999) -> 0 | G15: =SUMPRODUCT(((LEFT(BalanceN!$A$4:$A$9999,3)="186")+(LEFT(BalanceN!$A$4:$A$9999,3)="187"))*BalanceN!$C$4:$C$9999) -> 0 | H15: - | I15: 0
D16: Charges constatées d'avances | F16: =SUMPRODUCT(((LEFT(BalanceN!$A$4:$A$9999,3)="476"))*BalanceN!$G$4:$G$9999) -> 1263864 | G16: =SUMPRODUCT(((LEFT(BalanceN!$A$4:$A$9999,3)="476"))*BalanceN!$C$4:$C$9999) -> 1398099 | H16: -0.09601251414 | I16: 1263864
D17: TOTAL BRUT DES AUTRES CREANCES | F17: =SUM(F7:F16) -> 38185527 | G17: =SUM(G7:G16) -> 3128385 | H17: 11.20614694 | I17: =SUM(I7:I16) -> 38185527 | J17: =SUM(J7:J16) -> 0 | K17: =SUM(K7:K16) -> 0
D18: Dépréciations des autres créances | F18: =SUMPRODUCT(((LEFT(BalanceN!$A$4:$A$9999,3)="492")+(LEFT(BalanceN!$A$4:$A$9999,3)="493")+(LEFT(BalanceN!$A$4:$A$9999,3)="494")+(LEFT(BalanceN!$A$4:$A$9999,3)="495")+(LEFT(BalanceN!$A$4:$A$9999,3)="496")+(LEFT(BalanceN!$A$4:$A$9999,3)="497"))*BalanceN!$H$4:$H$9999) -> 0 | G18: =SUMPRODUCT(((LEFT(BalanceN!$A$4:$A$9999,3)="492")+(LEFT(BalanceN!$A$4:$A$9999,3)="493")+(LEFT(BalanceN!$A$4:$A$9999,3)="494")+(LEFT(BalanceN!$A$4:$A$9999,3)="495")+(LEFT(BalanceN!$A$4:$A$9999,3)="496")+(LEFT(BalanceN!$A$4:$A$9999,3)="497"))*BalanceN!$D$4:$D$9999) -> 0 | H18: =IF(G18=0,"-",(F18-G18)/G18) -> - | I18: =F18-J18-K18 -> 0
D19: TOTAL NET DE DEPRECIATION | F19: =+F17-F18 -> 38185527 | G19: =+G17-G18 -> 3128385 | H19: 11.20614694 | I19: =+I17-I18 -> 38185527 | J19: =+J17-J18 -> 0 | K19: =+K17-K18 -> 0
D21: COMMENTAIRES

Sheet NOTE 8A
A1: =IF(H20>0,1,0) -> 0 | E1: NOTE 8A : TABLEAU D'ETALEMENT DES CHARGES IMMOBILISEES
E3: Désignation entité:……………………………………. | F3: =INFORMATIONS!B10 -> SAM CONSEILS | I3: Exercice clos au: | L3: =INFORMATIONS!D31 -> 2018-12-31
E4: Numéro d'identification:……………………………….. | F4: =INFORMATIONS!B24 -> 00084404X | I4: Durée (en mois): | L4: =INFORMATIONS!F34 -> 12
E6: Libellés | G6: Frais d'établissement | I6: Charges à repartir sur plusieurs exercices | K6: Primes de remboursement des obligations
E7: Montant global à établir au | F7: =INFORMATIONS!B31 -> 2018-01-01
E8: Durée d'établissement retenue
G9: Comptes | H9: Montants | I9: Comptes | J9: Montants | K9: Comptes | L9: Montants
E11: Exercice | F11: =INFORMATIONS!B30 -> 2018
E15: Total exercice | F15: =+F11 -> 2018
E16: Total exercice | F16: =+F15+1 -> 2019
E17: Total exercice | F17: =+F16+1 -> 2020
E18: Total exercice | F18: =+F17+1 -> 2021
E19: Total exercice | F19: =+F18+1 -> 2022
E20: TOTAL GENERAL | H20: =SUM(H10:H19) -> 0 | J20: =SUM(J10:J19) -> 0 | L20: =SUM(L10:L19) -> 0

Sheet NOTE 9
A1: =IF(G14>0,1,0) -> 0 | E1: NOTE 9 : TITRES DE PLACEMENT
E3: Désignation entité:……………………………………. | F3: =INFORMATIONS!B10 -> SAM CONSEILS | H3: Exercice clos au: | I3: =INFORMATIONS!D31 -> 2018-12-31
E4: Numéro d'identification:……………………………….. | F4: =INFORMATIONS!B24 -> 00084404X | H4: Durée (en mois): | I4: =INFORMATIONS!F34 -> 12
E6: Libellés | G6: Année N | H6: Année N-1 | I6: Variation en %
E7: Titres de trésor et bons de caisse à court terme | G7: =SUMPRODUCT(((LEFT(BalanceN!$A$4:$A$9999,3)="501"))*BalanceN!$G$4:$G$9999) -> 0 | H7: =SUMPRODUCT(((LEFT(BalanceN!$A$4:$A$9999,3)="501"))*BalanceN!$C$4:$C$9999) -> 0 | I7: =IF(H7=0,"-",(G7-H7)/H7) -> -
E8: Actions | G8: =SUMPRODUCT(((LEFT(BalanceN!$A$4:$A$9999,3)="502"))*BalanceN!$G$4:$G$9999) -> 0 | H8: =SUMPRODUCT(((LEFT(BalanceN!$A$4:$A$9999,3)="502"))*BalanceN!$C$4:$C$9999) -> 0 | I8: =IF(H8=0,"-",(G8-H8)/H8) -> -
E9: Obligations | G9: =SUMPRODUCT(((LEFT(BalanceN!$A$4:$A$9999,3)="503"))*BalanceN!$G$4:$G$9999) -> 0 | H9: =SUMPRODUCT(((LEFT(BalanceN!$A$4:$A$9999,3)="503"))*BalanceN!$C$4:$C$9999) -> 0 | I9: -
E10: Bons de souscription | G10: =SUMPRODUCT(((LEFT(BalanceN!$A$4:$A$9999,3)="504"))*BalanceN!$G$4:$G$9999) -> 0 | H10: =SUMPRODUCT(((LEFT(BalanceN!$A$4:$A$9999,3)="504"))*BalanceN!$C$4:$C$9999) -> 0 | I10: -
E11: Titres négociables hors régions | G11: =SUMPRODUCT(((LEFT(BalanceN!$A$4:$A$9999,3)="505"))*BalanceN!$G$4:$G$9999) -> 0 | H11: =SUMPRODUCT(((LEFT(BalanceN!$A$4:$A$9999,3)="505"))*BalanceN!$C$4:$C$9999) -> 0 | I11: -
E12: Intérêts courus | G12: =SUMPRODUCT(((LEFT(BalanceN!$A$4:$A$9999,3)="506"))*BalanceN!$G$4:$G$9999) -> 0 | H12: =SUMPRODUCT(((LEFT(BalanceN!$A$4:$A$9999,3)="506"))*BalanceN!$C$4:$C$9999) -> 0 | I12: -
E13: Autres valeurs assimilés | G13: =SUMPRODUCT(((LEFT(BalanceN!$A$4:$A$9999,3)="508"))*BalanceN!$G$4:$G$9999) -> 0 | H13: =SUMPRODUCT(((LEFT(BalanceN!$A$4:$A$9999,3)="508"))*BalanceN!$C$4:$C$9999) -> 0 | I13: -
E14: TOTAL BRUT DES TITRES | G14: =SUM(G7:G13) -> 0 | H14: =SUM(H7:H13) -> 0 | I14: -
E15: Dépréciations des titres | G15: =SUMPRODUCT(((LEFT(BalanceN!$A$4:$A$9999,3)="590"))*BalanceN!$H$4:$H$9999) -> 0 | H15: =SUMPRODUCT(((LEFT(BalanceN!$A$4:$A$9999,3)="590"))*BalanceN!$D$4:$D$9999) -> 0 | I15: -
E16: TOTAL NET DE DEPRECIATION | G16: =G14-G15 -> 0 | H16: =H14-H15 -> 0 | I16: -
E18: COMMENTAIRES

Sheet NOTE 10
A1: =IF(G13>0,1,0) -> 0 | E1: NOTE 10 : VALEURS A ENCAISSER
E3: Désignation entité:……………………………………. | F3: =INFORMATIONS!B10 -> SAM CONSEILS | H3: Exercice clos au: | I3: =INFORMATIONS!D31 -> 2018-12-31
E4: Numéro d'identification:……………………………….. | F4: =INFORMATIONS!B24 -> 00084404X | H4: Durée (en mois): | I4: =INFORMATIONS!F34 -> 12
E6: Libellés | G6: Année N | H6: Année N-1 | I6: Variation en %
E7: Effets à encaisser | G7: =SUMPRODUCT(((LEFT(BalanceN!$A$4:$A$9999,3)="511"))*BalanceN!$G$4:$G$9999) -> 0 | H7: =SUMPRODUCT(((LEFT(BalanceN!$A$4:$A$9999,3)="511"))*BalanceN!$C$4:$C$9999) -> 0 | I7: =IF(H7=0,"-",(G7-H7)/H7) -> -
E8: Effets à l'encaissement | G8: =SUMPRODUCT(((LEFT(BalanceN!$A$4:$A$9999,3)="512"))*BalanceN!$G$4:$G$9999) -> 0 | H8: =SUMPRODUCT(((LEFT(BalanceN!$A$4:$A$9999,3)="512"))*BalanceN!$C$4:$C$9999) -> 0 | I8: =IF(H8=0,"-",(G8-H8)/H8) -> -
E9: Chèques à encaisser | G9: =SUMPRODUCT(((LEFT(BalanceN!$A$4:$A$9999,3)="513"))*BalanceN!$G$4:$G$9999) -> 0 | H9: =SUMPRODUCT(((LEFT(BalanceN!$A$4:$A$9999,3)="513"))*BalanceN!$C$4:$C$9999) -> 0 | I9: -
E10: Chèques à l'encaissement | G10: =SUMPRODUCT(((LEFT(BalanceN!$A$4:$A$9999,3)="514"))*BalanceN!$G$4:$G$9999) -> 0 | H10: =SUMPRODUCT(((LEFT(BalanceN!$A$4:$A$9999,3)="514"))*BalanceN!$C$4:$C$9999) -> 0 | I10: -
E11: Cartes de crédit à encaisser | G11: =SUMPRODUCT(((LEFT(BalanceN!$A$4:$A$9999,3)="515"))*BalanceN!$G$4:$G$9999) -> 0 | H11: =SUMPRODUCT(((LEFT(BalanceN!$A$4:$A$9999,3)="515"))*BalanceN!$C$4:$C$9999) -> 0 | I11: -
E12: Autres valeurs à encaisser | G12: =SUMPRODUCT(((LEFT(BalanceN!$A$4:$A$9999,3)="518"))*BalanceN!$G$4:$G$9999) -> 0 | H12: =SUMPRODUCT(((LEFT(BalanceN!$A$4:$A$9999,3)="518"))*BalanceN!$C$4:$C$9999) -> 0 | I12: -
E13: TOTAL BRUT DES VALEURS A ENCAISSER | G13: =SUM(G7:G12) -> 0 | H13: =SUM(H7:H12) -> 0 | I13: -
E14: Dépréciations des valeurs à encaisser | G14: =SUMPRODUCT(((LEFT(BalanceN!$A$4:$A$9999,3)="591"))*BalanceN!$H$4:$H$9999) -> 0 | H14: =SUMPRODUCT(((LEFT(BalanceN!$A$4:$A$9999,3)="591"))*BalanceN!$D$4:$D$9999) -> 0 | I14: -
E15: TOTAL NET DE DEPRECIATION | G15: =G13-G14 -> 0 | H15: =H13-H14 -> 0 | I15: -
E17: COMMENTAIRES

Sheet NOTE 11
A1: =IF(G20>0,1,0) -> 1 | E1: NOTE 11 :DISPONIBILITES
E3: Désignation entité:……………………………………. | F3: =INFORMATIONS!B10 -> SAM CONSEILS | H3: Exercice clos au: | I3: =INFORMATIONS!D31 -> 2018-12-31
E4: Numéro d'identification:……………………………….. | F4: =INFORMATIONS!B24 -> 00084404X | H4: Durée (en mois): | I4: =INFORMATIONS!F34 -> 12
E6: Libellés | G6: Année N | H6: Année N-1 | I6: Variation en %
E7: Banques locales | G7: =SUMPRODUCT(((LEFT(BalanceN!$A$4:$A$9999,3)="521"))*BalanceN!$G$4:$G$9999) -> 121152991 | H7: =SUMPRODUCT(((LEFT(BalanceN!$A$4:$A$9999,3)="521"))*BalanceN!$C$4:$C$9999) -> 69123976 | I7: =IF(H7=0,"-",(G7-H7)/H7) -> 0.7526912948
E8: Banques autres Etats région | G8: =SUMPRODUCT(((LEFT(BalanceN!$A$4:$A$9999,3)="522"))*BalanceN!$G$4:$G$9999) -> 0 | H8: =SUMPRODUCT(((LEFT(BalanceN!$A$4:$A$9999,3)="522"))*BalanceN!$C$4:$C$9999) -> 0 | I8: =IF(H8=0,"-",(G8-H8)/H8) -> -
E9: Banques autres Etats zone monétaires | G9: =SUMPRODUCT(((LEFT(BalanceN!$A$4:$A$9999,3)="523"))*BalanceN!$G$4:$G$9999) -> 0 | H9: =SUMPRODUCT(((LEFT(BalanceN!$A$4:$A$9999,3)="523"))*BalanceN!$C$4:$C$9999) -> 0 | I9: -
E10: Banques hors zone monétaire | G10: =SUMPRODUCT(((LEFT(BalanceN!$A$4:$A$9999,3)="524"))*BalanceN!$G$4:$G$9999) -> 0 | H10: =SUMPRODUCT(((LEFT(BalanceN!$A$4:$A$9999,3)="524"))*BalanceN!$C$4:$C$9999) -> 0 | I10: -
E11: Banques, dépôt à terme | G11: =SUMPRODUCT(((LEFT(BalanceN!$A$4:$A$9999,3)="525"))*BalanceN!$G$4:$G$9999) -> 0 | H11: =SUMPRODUCT(((LEFT(BalanceN!$A$4:$A$9999,3)="525"))*BalanceN!$C$4:$C$9999) -> 0 | I11: -
E12: Banques intérêts courus | G12: =SUMPRODUCT(((LEFT(BalanceN!$A$4:$A$9999,3)="526"))*BalanceN!$G$4:$G$9999) -> 0 | H12: =SUMPRODUCT(((LEFT(BalanceN!$A$4:$A$9999,3)="526"))*BalanceN!$C$4:$C$9999) -> 0 | I12: -
E13: Chèques postaux | G13: =SUMPRODUCT(((LEFT(BalanceN!$A$4:$A$9999,3)="531"))*BalanceN!$G$4:$G$9999) -> 0 | H13: =SUMPRODUCT(((LEFT(BalanceN!$A$4:$A$9999,3)="531"))*BalanceN!$C$4:$C$9999) -> 0 | I13: -
E14: Autres établissement financiers | G14: =SUMPRODUCT(((LEFT(BalanceN!$A$4:$A$9999,3)="538"))*BalanceN!$G$4:$G$9999) -> 0 | H14: =SUMPRODUCT(((LEFT(BalanceN!$A$4:$A$9999,3)="538"))*BalanceN!$C$4:$C$9999) -> 0 | I14: -
E15: Etablissement financiers intérêts courus | G15: =SUMPRODUCT(((LEFT(BalanceN!$A$4:$A$9999,3)="536"))*BalanceN!$G$4:$G$9999) -> 0 | H15: =SUMPRODUCT(((LEFT(BalanceN!$A$4:$A$9999,3)="536"))*BalanceN!$C$4:$C$9999) -> 0 | I15: -
E16: Instruments de trésorerie | G16: =SUMPRODUCT(((LEFT(BalanceN!$A$4:$A$9999,2)="54"))*BalanceN!$G$4:$G$9999) -> 0 | H16: =SUMPRODUCT(((LEFT(BalanceN!$A$4:$A$9999,2)="54"))*BalanceN!$C$4:$C$9999) -> 0 | I16: -
E17: Caisse électronique mobile | G17: =SUMPRODUCT(((LEFT(BalanceN!$A$4:$A$9999,2)="55"))*BalanceN!$G$4:$G$9999) -> 0 | H17: =SUMPRODUCT(((LEFT(BalanceN!$A$4:$A$9999,2)="55"))*BalanceN!$C$4:$C$9999) -> 0 | I17: -
E18: Caisse | G18: =SUMPRODUCT(((LEFT(BalanceN!$A$4:$A$9999,2)="57"))*BalanceN!$G$4:$G$9999) -> 1944136 | H18: =SUMPRODUCT(((LEFT(BalanceN!$A$4:$A$9999,2)="57"))*BalanceN!$C$4:$C$9999) -> 5460181 | I18: -0.6439429389
E19: Régies d'avances et virements accréditifs | G19: =SUMPRODUCT(((LEFT(BalanceN!$A$4:$A$9999,3)="581")+(LEFT(BalanceN!$A$4:$A$9999,3)="582"))*BalanceN!$G$4:$G$9999) -> 0 | H19: =SUMPRODUCT(((LEFT(BalanceN!$A$4:$A$9999,3)="581")+(LEFT(BalanceN!$A$4:$A$9999,3)="582"))*BalanceN!$C$4:$C$9999) -> 0 | I19: -
E20: TOTAL BRUT DES DISPONIBILITES | G20: =SUM(G7:G19) -> 123097127 | H20: =SUM(H7:H19) -> 74584157
E21: Dépréciations des disponibilités | G21: =SUMPRODUCT(((LEFT(BalanceN!$A$4:$A$9999,3)="592")+(LEFT(BalanceN!$A$4:$A$9999,3)="593")++(LEFT(BalanceN!$A$4:$A$9999,3)="594"))*BalanceN!$H$4:$H$9999) -> 0 | H21: =SUMPRODUCT(((LEFT(BalanceN!$A$4:$A$9999,3)="592")+(LEFT(BalanceN!$A$4:$A$9999,3)="593")++(LEFT(BalanceN!$A$4:$A$9999,3)="594"))*BalanceN!$D$4:$D$9999) -> 0 | I21: -
E22: TOTAL NET DE DEPRECIATION | G22: =G20-G21 -> 123097127 | H22: =H20-H21 -> 74584157
E24: COMMENTAIRES
E25: Le niveau de la caisse au 31/12/2018 représente les recettes du 28 et 31 décembre 2018.

Sheet NOTE 12
A1: =IF(G13+G20>0,1,0) -> 0 | D1: NOTE 12 : ECARTS DE CONVERSION
D3: Désignation entité:……………………………………. | E3: =INFORMATIONS!B10 -> SAM CONSEILS | H3: Exercice clos au: | J3: =INFORMATIONS!D31 -> 2018-12-31
D4: Numéro d'identification:……………………………….. | E4: =INFORMATIONS!B24 -> 00084404X | H4: Durée (en mois): | J4: =INFORMATIONS!F34 -> 12
D6: Libellés | F6: Devises | G6: Montant en devises | H6: Cours UML Année d'acquisition | I6: Cours UML 31/12/N | J6: Variation en valeur absolue
D7: Ecarts de conversion Actif: | J7: =SUM(J8:J13) -> 0
J8: =(G8*H8)-(G8*I8) -> 0
J9: =(G9*H9)-(G9*I9) -> 0
J10: 0
J11: 0
J12: 0
E13: Total | F13: =SUM(F8:F12) -> 0 | G13: =SUM(G8:G12) -> 0 | H13: =SUM(H8:H12) -> 0 | I13: =SUM(I8:I12) -> 0 | J13: 0
D14: Ecarts de conversion Passif: | J14: =SUM(J15:J20) -> 0
J16: 0
J17: 0
J18: 0
J19: 0
E20: Total | F20: =SUM(F15:F19) -> 0 | G20: =SUM(G15:G19) -> 0 | H20: =SUM(H15:H19) -> 0 | I20: =SUM(I15:I19) -> 0 | J20: 0
D21: COMMENTAIRES
D31: TRANSFERTS DE CHARGES
D33: Libellés | F33: Année N | G33: Année N-1 | H33: Variation en %
D34: Transfert de charges d'exploitation: | F34: =SUMPRODUCT(((LEFT(BalanceN!$A$4:$A$9999,3)="781"))*BalanceN!$H$4:$H$9999) -> 3233550 | G34: =SUMPRODUCT(((LEFT('BalanceN-1'!$A$4:$A$9999,3)="781"))*'BalanceN-1'!$H$4:$H$9999) -> 5817880 | H34: =IF(G34=0,"-",(F34-G34)/G34) -> -0.4442047619
H35: -
H36: -
H37: -
H38: -
D39: Transfert des charges financières: | F39: =SUMPRODUCT(((LEFT(BalanceN!$A$4:$A$9999,3)="787"))*BalanceN!$H$4:$H$9999) -> 0 | G39: =SUMPRODUCT(((LEFT('BalanceN-1'!$A$4:$A$9999,3)="787"))*'BalanceN-1'!$H$4:$H$9999) -> 0 | H39: -
H40: -
H41: -
H42: -
H43: -
D44: COMMENTAIRES

Sheet NOTE 13
A1: =IF(I18>0,1,0) -> 0 | D1: NOTE 13 : CAPITAL: VALEUR NOMINALE DES ACTIONS OU PARTS
D3: Désignation entité:……………………………………. | E3: =INFORMATIONS!B10 -> SAM CONSEILS | H3: Exercice clos au: | J3: =INFORMATIONS!D31 -> 2018-12-31
D4: Numéro d'identification:……………………………….. | E4: =INFORMATIONS!B24 -> 00084404X | H4: Durée (en mois): | J4: =INFORMATIONS!F34 -> 12
G6: Valeur nominale des actions ou parts | J6: 10000
D7: Nom et prénoms | F7: Nationalité | G7: Natures des actions ou parts (ordinaires ou préférences) | H7: Nombre | I7: Montant total | J7: Cessions ou remboursements en cours d'exercice
I8: =H8*J6 -> 0
I9: =H9*J6 -> 0
I10: =J6*H10 -> 0
I11: =J6*H11 -> 0
I12: =J6*H12 -> 0
I13: =J6*H13 -> 0
I14: =J6*H14 -> 0
I15: =J6*H15 -> 0
I16: =J6*H16 -> 0
D17: Apporteurs, capital non appelé | I17: =J6*H17 -> 0
D18: TOTAL | H18: =SUM(H8:H17) -> 0 | I18: =SUM(I8:I17) -> 0 | J18: =SUM(J8:J17) -> 0
D20: COMMENTAIRES

Sheet NOTE 14
A1: =IF(G18+G12>0,1,0) -> 1 | E1: NOTE 14 : PRIMES ET RESERVES
E3: Désignation entité:……………………………………. | F3: =INFORMATIONS!B10 -> SAM CONSEILS | H3: Exercice clos au: | I3: =INFORMATIONS!D31 -> 2018-12-31
E4: Numéro d'identification:……………………………….. | F4: =INFORMATIONS!B24 -> 00084404X | H4: Durée (en mois): | I4: =INFORMATIONS!F34 -> 12
E6: Libellés | G6: Année N | H6: Année N-1 | I6: Variation en valeur absolue
E7: Primes d'émission | G7: =SUMPRODUCT(((LEFT(BalanceN!$A$4:$A$9999,4)="1051"))*BalanceN!$H$4:$H$9999) -> 0 | H7: =SUMPRODUCT(((LEFT(BalanceN!$A$4:$A$9999,4)="1051"))*BalanceN!$D$4:$D$9999) -> 0 | I7: =G7-H7 -> 0
E8: Prime d'apport | G8: =SUMPRODUCT(((LEFT(BalanceN!$A$4:$A$9999,4)="1052"))*BalanceN!$H$4:$H$9999) -> 0 | H8: =SUMPRODUCT(((LEFT(BalanceN!$A$4:$A$9999,4)="1052"))*BalanceN!$D$4:$D$9999) -> 0 | I8: =G8-H8 -> 0
E9: Prime de fusion | G9: =SUMPRODUCT(((LEFT(BalanceN!$A$4:$A$9999,4)="1053"))*BalanceN!$H$4:$H$9999) -> 0 | H9: =SUMPRODUCT(((LEFT(BalanceN!$A$4:$A$9999,4)="1053"))*BalanceN!$D$4:$D$9999) -> 0 | I9: =G9-H9 -> 0
E10: Prime de conversion | G10: =SUMPRODUCT(((LEFT(BalanceN!$A$4:$A$9999,4)="1054"))*BalanceN!$H$4:$H$9999) -> 0 | H10: =SUMPRODUCT(((LEFT(BalanceN!$A$4:$A$9999,4)="1054"))*BalanceN!$D$4:$D$9999) -> 0 | I10: =G10-H10 -> 0
E11: Autres primes | G11: =SUMPRODUCT(((LEFT(BalanceN!$A$4:$A$9999,4)="1058"))*BalanceN!$H$4:$H$9999) -> 0 | H11: =SUMPRODUCT(((LEFT(BalanceN!$A$4:$A$9999,4)="1058"))*BalanceN!$D$4:$D$9999) -> 0 | I11: =G11-H11 -> 0
E12: TOTAL PRIMES | G12: =SUM(G7:G11) -> 0 | H12: =SUM(H7:H11) -> 0 | I12: =SUM(I7:I11) -> 0
E13: Réserves légales | G13: =SUMPRODUCT(((LEFT(BalanceN!$A$4:$A$9999,3)="111"))*BalanceN!$H$4:$H$9999) -> 20000000 | H13: =SUMPRODUCT(((LEFT(BalanceN!$A$4:$A$9999,3)="111"))*BalanceN!$D$4:$D$9999) -> 20000000 | I13: =G13-H13 -> 0
E14: Réserves statutaires | G14: =SUMPRODUCT(((LEFT(BalanceN!$A$4:$A$9999,3)="112"))*BalanceN!$H$4:$H$9999) -> 0 | H14: =SUMPRODUCT(((LEFT(BalanceN!$A$4:$A$9999,3)="112"))*BalanceN!$D$4:$D$9999) -> 0 | I14: =G14-H14 -> 0
E15: Réserves de plus-values nettes à long terme | G15: =SUMPRODUCT(((LEFT(BalanceN!$A$4:$A$9999,4)="1131"))*BalanceN!$H$4:$H$9999) -> 0 | H15: =SUMPRODUCT(((LEFT(BalanceN!$A$4:$A$9999,4)="1131"))*BalanceN!$D$4:$D$9999) -> 0 | I15: =G15-H15 -> 0
E16: Réserves d'attribution gratuite d'actions au personnel salarié et aux dirigeants | G16: =SUMPRODUCT(((LEFT(BalanceN!$A$4:$A$9999,4)="1132"))*BalanceN!$H$4:$H$9999) -> 0 | H16: =SUMPRODUCT(((LEFT(BalanceN!$A$4:$A$9999,4)="1132"))*BalanceN!$D$4:$D$9999) -> 0 | I16: =G16-H16 -> 0
E17: Autres réserves règlementées | G17: =SUMPRODUCT(((LEFT(BalanceN!$A$4:$A$9999,4)="1138"))*BalanceN!$H$4:$H$9999) -> 0 | H17: =SUMPRODUCT(((LEFT(BalanceN!$A$4:$A$9999,4)="1138"))*BalanceN!$D$4:$D$9999) -> 0 | I17: =G17-H17 -> 0
E18: TOTAL RESERVES INDISPONIBLES | G18: =SUM(G13:G17) -> 20000000 | H18: =SUM(H13:H17) -> 20000000 | I18: =SUM(I13:I17) -> 0
E19: Réserves libres | G19: =SUMPRODUCT(((LEFT(BalanceN!$A$4:$A$9999,3)="118"))*BalanceN!$H$4:$H$9999) -> 0 | H19: =SUMPRODUCT(((LEFT(BalanceN!$A$4:$A$9999,3)="118"))*BalanceN!$D$4:$D$9999) -> 0 | I19: =G19-H19 -> 0
E20: Report à nouveau | G20: =SUMPRODUCT(((LEFT(BalanceN!$A$4:$A$9999,2)="12"))*BalanceN!$H$4:$H$9999)-SUMPRODUCT(((LEFT(BalanceN!$A$4:$A$9999,2)="12"))*BalanceN!$G$4:$G$9999) -> 76069991 | H20: =SUMPRODUCT(((LEFT(BalanceN!$A$4:$A$9999,2)="12"))*BalanceN!$D$4:$D$9999)-SUMPRODUCT(((LEFT(BalanceN!$A$4:$A$9999,2)="12"))*BalanceN!$C$4:$C$9999) -> 47450317 | I20: =G20-H20 -> 28619674
E22: COMMENTAIRES

Sheet NOTE 15A
A1: =IF(F24>0,1,0) -> 1 | C1: NOTE 15A : SUBVENTIONS ET PROVISIONS REGLEMENTEES
C3: Désignation entité:……………………………………. | D3: =INFORMATIONS!B10 -> SAM CONSEILS | I3: Exercice clos au: | K3: =INFORMATIONS!D31 -> 2018-12-31
C4: Numéro d'identification:……………………………….. | D4: =INFORMATIONS!B24 -> 00084404X | I4: Durée (en mois): | K4: =INFORMATIONS!F34 -> 12
C6: Libellés | E6: Note | F6: Année N | G6: Année N-1 | H6: Variation en valeur absolue | I6: Variation en % | J6: Régime fiscal | K6: Échéances
C7: Etat | F7: =SUMPRODUCT(((LEFT(BalanceN!$A$4:$A$9999,4)="1411"))*BalanceN!$H$4:$H$9999) -> 0 | G7: =SUMPRODUCT(((LEFT(BalanceN!$A$4:$A$9999,4)="1411"))*BalanceN!$D$4:$D$9999) -> 0 | H7: =F7-G7 -> 0 | I7: =IF(G7=0,"-",(H7/G7)) -> -
C8: Régions | F8: =SUMPRODUCT(((LEFT(BalanceN!$A$4:$A$9999,4)="1412"))*BalanceN!$H$4:$H$9999) -> 0 | G8: =SUMPRODUCT(((LEFT(BalanceN!$A$4:$A$9999,4)="1412"))*BalanceN!$D$4:$D$9999) -> 0 | H8: =F8-G8 -> 0 | I8: =IF(G8=0,"-",(H8/G8)) -> -
C9: Département | F9: =SUMPRODUCT(((LEFT(BalanceN!$A$4:$A$9999,4)="1413"))*BalanceN!$H$4:$H$9999) -> 0 | G9: =SUMPRODUCT(((LEFT(BalanceN!$A$4:$A$9999,4)="1413"))*BalanceN!$D$4:$D$9999) -> 0 | H9: 0 | I9: -
C10: Communes et collectivités publiques décentralisées | F10: =SUMPRODUCT(((LEFT(BalanceN!$A$4:$A$9999,4)="1414"))*BalanceN!$H$4:$H$9999) -> 2000000 | G10: =SUMPRODUCT(((LEFT(BalanceN!$A$4:$A$9999,4)="1414"))*BalanceN!$D$4:$D$9999) -> 0 | H10: 2000000 | I10: -
C11: Entités publiques ou mixtes | F11: =SUMPRODUCT(((LEFT(BalanceN!$A$4:$A$9999,4)="1415"))*BalanceN!$H$4:$H$9999) -> 0 | G11: =SUMPRODUCT(((LEFT(BalanceN!$A$4:$A$9999,4)="1415"))*BalanceN!$D$4:$D$9999) -> 0 | H11: 0 | I11: -
C12: Entités et organismes privés | F12: =SUMPRODUCT(((LEFT(BalanceN!$A$4:$A$9999,4)="1416"))*BalanceN!$H$4:$H$9999) -> 0 | G12: =SUMPRODUCT(((LEFT(BalanceN!$A$4:$A$9999,4)="1416"))*BalanceN!$D$4:$D$9999) -> 0 | H12: 0 | I12: -
C13: Organismes internationaux | F13: =SUMPRODUCT(((LEFT(BalanceN!$A$4:$A$9999,4)="1417"))*BalanceN!$H$4:$H$9999) -> 0 | G13: =SUMPRODUCT(((LEFT(BalanceN!$A$4:$A$9999,4)="1417"))*BalanceN!$D$4:$D$9999) -> 0 | H13: 0 | I13: -
C14: Autres subventions | F14: =SUMPRODUCT(((LEFT(BalanceN!$A$4:$A$9999,3)="148"))*BalanceN!$H$4:$H$9999) -> 0 | G14: =SUMPRODUCT(((LEFT(BalanceN!$A$4:$A$9999,3)="148"))*BalanceN!$D$4:$D$9999) -> 0 | H14: 0 | I14: -
C15: Total subventions | F15: =SUM(F7:F14) -> 2000000 | G15: =SUM(G7:G14) -> 0 | H15: =SUM(H7:H14) -> 2000000 | I15: =IF(G15=0,"-",(H15/G15)) -> -
C16: Amortissements dérogatoires | F16: =SUMPRODUCT(((LEFT(BalanceN!$A$4:$A$9999,3)="151"))*BalanceN!$H$4:$H$9999) -> 0 | G16: =SUMPRODUCT(((LEFT(BalanceN!$A$4:$A$9999,3)="151"))*BalanceN!$D$4:$D$9999) -> 0 | H16: =F16-G16 -> 0 | I16: =IF(G16=0,"-",(H16/G16)) -> -
C17: Plus-value de cession à réinvestir | F17: =SUMPRODUCT(((LEFT(BalanceN!$A$4:$A$9999,3)="152"))*BalanceN!$H$4:$H$9999) -> 0 | G17: =SUMPRODUCT(((LEFT(BalanceN!$A$4:$A$9999,3)="152"))*BalanceN!$D$4:$D$9999) -> 0 | H17: 0 | I17: =IF(G17=0,"-",(H17/G17)) -> -
C18: Provision spéciale de réévaluation | E18: 3E | F18: =SUMPRODUCT(((LEFT(BalanceN!$A$4:$A$9999,3)="154"))*BalanceN!$H$4:$H$9999) -> 40000000 | G18: =SUMPRODUCT(((LEFT(BalanceN!$A$4:$A$9999,3)="154"))*BalanceN!$D$4:$D$9999) -> 0 | H18: 40000000 | I18: -
C19: Provision réglementés relatives aux immobilisations | F19: =SUMPRODUCT(((LEFT(BalanceN!$A$4:$A$9999,3)="155"))*BalanceN!$H$4:$H$9999) -> 0 | G19: =SUMPRODUCT(((LEFT(BalanceN!$A$4:$A$9999,3)="155"))*BalanceN!$D$4:$D$9999) -> 0 | H19: 0 | I19: -
C20: Provisions réglementées relatives aux stocks | F20: =SUMPRODUCT(((LEFT(BalanceN!$A$4:$A$9999,3)="156"))*BalanceN!$H$4:$H$9999) -> 0 | G20: =SUMPRODUCT(((LEFT(BalanceN!$A$4:$A$9999,3)="156"))*BalanceN!$D$4:$D$9999) -> 0 | H20: 0 | I20: -
C21: Provisions pour investissement | F21: =SUMPRODUCT(((LEFT(BalanceN!$A$4:$A$9999,3)="157"))*BalanceN!$H$4:$H$9999) -> 0 | G21: =SUMPRODUCT(((LEFT(BalanceN!$A$4:$A$9999,3)="157"))*BalanceN!$D$4:$D$9999) -> 0 | H21: 0 | I21: -
C22: Autres provisions et fonds réglementées | F22: =SUMPRODUCT(((LEFT(BalanceN!$A$4:$A$9999,3)="158"))*BalanceN!$H$4:$H$9999) -> 0 | G22: =SUMPRODUCT(((LEFT(BalanceN!$A$4:$A$9999,3)="158"))*BalanceN!$D$4:$D$9999) -> 0 | H22: 0 | I22: -
C23: Total Provisions règlementées | E23: =SUM(E7:E20) -> 0 | F23: =SUM(F16:F22) -> 40000000 | G23: =SUM(G16:G22) -> 0 | H23: =SUM(H16:H22) -> 40000000 | I23: -
C24: Total Subventions et provisions règlementées | F24: =F15+F23 -> 42000000 | G24: =G15+G23 -> 0 | H24: =H15+H23 -> 42000000 | I24: =IF(G24=0,"-",(H24/G24)) -> -
C26: COMMENTAIRES

Sheet NOTE 15 B
A1: =IF(G12>0,1,0) -> 0 | D1: NOTE 15B : AUTRES FONDS PROPRES (1)
D3: Désignation entité:……………………………………. | E3: =INFORMATIONS!B10 -> SAM CONSEILS | I3: Exercice clos au: | K3: =INFORMATIONS!D31 -> 2018-12-31
D4: Numéro d'identification:……………………………….. | E4: =INFORMATIONS!B24 -> 00084404X | I4: Durée (en mois): | K4: =INFORMATIONS!F34 -> 12
D6: Libellés | F6: Note | G6: Année N | H6: Année N-1 | I6: Variation en valeur absolue | J6: Variation en % | K6: Échéances
D7: Titres participatifs | I7: =G7-H7 -> 0 | J7: =IF(H7=0,"-",(I7/H7)) -> -
D8: Avances conditionnées | I8: =G8-H8 -> 0 | J8: -
D9: Titres subordonnés à durée indéterminée (T.S.D.I) | I9: =G9-H9 -> 0 | J9: -
D10: Obligations remboursables en actions (O.R.A.) | I10: =G10-H10 -> 0 | J10: -
D11: Autres | I11: =G11-H11 -> 0 | J11: -
D12: Total Autres Fonds Propres | G12: =SUM(G7:G11) -> 0 | H12: =SUM(H7:H11) -> 0 | I12: =SUM(I7:I11) -> 0 | J12: -
D14: COMMENTAIRES

Sheet NOTE 16A
A1: =IF(E17>0,1,0) -> 1 | C1: NOTE 16 A : DETTES FINANCIERES ET RESSOURCES ASSIMILEES
C3: Désignation entité:……………………………………. | D3: =INFORMATIONS!B10 -> SAM CONSEILS | I3: Exercice clos au: | K3: =INFORMATIONS!D31 -> 2018-12-31
C4: Numéro d'identification:……………………………….. | D4: =INFORMATIONS!B24 -> 00084404X | I4: Durée (en mois): | K4: =INFORMATIONS!F34 -> 12
C6: Libellés | E6: Année N | F6: Année N-1 | G6: Variation en valeur absolue | H6: Variation en % | I6: Durée à un an au plus | J6: Durée à plus d'un an et à deux an au plus | K6: Durée à plus de deux ans
C7: Emprunts obligataires | E7: =SUMPRODUCT(((LEFT(BalanceN!$A$4:$A$9999,3)="161"))*BalanceN!$H$4:$H$9999) -> 0 | F7: =SUMPRODUCT(((LEFT(BalanceN!$A$4:$A$9999,3)="161"))*BalanceN!$D$4:$D$9999) -> 0 | G7: =E7-F7 -> 0 | H7: =IF(F7=0,"-",(G7/F7)) -> - | K7: =E7-I7-J7 -> 0
C8: Emprunts et dettes auprès des établissements de crédit | E8: =SUMPRODUCT(((LEFT(BalanceN!$A$4:$A$9999,3)="162"))*BalanceN!$H$4:$H$9999) -> 92499075 | F8: =SUMPRODUCT(((LEFT(BalanceN!$A$4:$A$9999,3)="162"))*BalanceN!$D$4:$D$9999) -> 0 | G8: =E8-F8 -> 92499075 | H8: =IF(F8=0,"-",(G8/F8)) -> - | I8: 14699075 | J8: 39000000 | K8: =E8-I8-J8 -> 38800000
C9: Avances reçues de l'Etat | E9: =SUMPRODUCT(((LEFT(BalanceN!$A$4:$A$9999,3)="163"))*BalanceN!$H$4:$H$9999) -> 0 | F9: =SUMPRODUCT(((LEFT(BalanceN!$A$4:$A$9999,3)="163"))*BalanceN!$D$4:$D$9999) -> 0 | G9: 0 | H9: - | K9: 0
C10: Avances reçues et comptes courants bloqués | E10: =SUMPRODUCT(((LEFT(BalanceN!$A$4:$A$9999,3)="164"))*BalanceN!$H$4:$H$9999) -> 0 | F10: =SUMPRODUCT(((LEFT(BalanceN!$A$4:$A$9999,3)="164"))*BalanceN!$D$4:$D$9999) -> 0 | G10: 0 | H10: - | K10: 0
C11: Dépôts et cautionnements reçus | E11: =SUMPRODUCT(((LEFT(BalanceN!$A$4:$A$9999,3)="165"))*BalanceN!$H$4:$H$9999) -> 2200000 | F11: =SUMPRODUCT(((LEFT(BalanceN!$A$4:$A$9999,3)="165"))*BalanceN!$D$4:$D$9999) -> 2200000 | G11: 0 | H11: 0 | K11: 2200000
C12: Intérêts courus | E12: =SUMPRODUCT(((LEFT(BalanceN!$A$4:$A$9999,3)="166"))*BalanceN!$H$4:$H$9999) -> 0 | F12: =SUMPRODUCT(((LEFT(BalanceN!$A$4:$A$9999,3)="166"))*BalanceN!$D$4:$D$9999) -> 0 | G12: 0 | H12: - | K12: 0
C13: Avances assorties de conditions particulières | E13: =SUMPRODUCT(((LEFT(BalanceN!$A$4:$A$9999,3)="167"))*BalanceN!$H$4:$H$9999) -> 0 | F13: =SUMPRODUCT(((LEFT(BalanceN!$A$4:$A$9999,3)="167"))*BalanceN!$D$4:$D$9999) -> 0 | G13: 0 | H13: - | K13: 0
C14: Autres emprunts et dettes | E14: =SUMPRODUCT(((LEFT(BalanceN!$A$4:$A$9999,3)="168"))*BalanceN!$H$4:$H$9999) -> 0 | F14: =SUMPRODUCT(((LEFT(BalanceN!$A$4:$A$9999,3)="168"))*BalanceN!$D$4:$D$9999) -> 0 | G14: 0 | H14: - | K14: 0
C15: Dettes liées à des participations | E15: =SUMPRODUCT(((LEFT(BalanceN!$A$4:$A$9999,3)="181"))*BalanceN!$H$4:$H$9999) -> 0 | F15: =SUMPRODUCT(((LEFT(BalanceN!$A$4:$A$9999,3)="181"))*BalanceN!$D$4:$D$9999) -> 0 | G15: 0 | H15: - | K15: 0
C16: Comptes permanents bloqués des établissements et succursales | E16: =SUMPRODUCT(((LEFT(BalanceN!$A$4:$A$9999,3)="184"))*BalanceN!$H$4:$H$9999) -> 0 | F16: =SUMPRODUCT(((LEFT(BalanceN!$A$4:$A$9999,3)="184"))*BalanceN!$D$4:$D$9999) -> 0 | G16: 0 | H16: - | K16: 0
C17: TOTAL EMPRUNTS ET DETTES FINANCIERES | E17: =SUM(E7:E16) -> 94699075 | F17: 2200000 | G17: 92499075 | H17: =IF(F17=0,"-",(G17/F17)) -> 42.04503409 | I17: 14699075 | J17: =SUM(J7:J16) -> 39000000 | K17: 41000000
C18: Crédit-bail immobilier | E18: =SUMPRODUCT(((LEFT(BalanceN!$A$4:$A$9999,3)="172"))*BalanceN!$H$4:$H$9999) -> 0 | F18: =SUMPRODUCT(((LEFT(BalanceN!$A$4:$A$9999,3)="172"))*BalanceN!$D$4:$D$9999) -> 0 | G18: =E18-F18 -> 0 | H18: =IF(F18=0,"-",(G18/F18)) -> - | K18: 0
C19: Crédit-bail mobilier | E19: =SUMPRODUCT(((LEFT(BalanceN!$A$4:$A$9999,3)="173"))*BalanceN!$H$4:$H$9999) -> 0 | F19: =SUMPRODUCT(((LEFT(BalanceN!$A$4:$A$9999,3)="173"))*BalanceN!$D$4:$D$9999) -> 0 | G19: =E19-F19 -> 0 | H19: =IF(F19=0,"-",(G19/F19)) -> - | K19: 0
C20: Location-vente | E20: =SUMPRODUCT(((LEFT(BalanceN!$A$4:$A$9999,3)="174"))*BalanceN!$H$4:$H$9999) -> 0 | F20: =SUMPRODUCT(((LEFT(BalanceN!$A$4:$A$9999,3)="174"))*BalanceN!$D$4:$D$9999) -> 0 | G20: 0 | H20: - | K20: 0
C21: Intérêts courus | E21: =SUMPRODUCT(((LEFT(BalanceN!$A$4:$A$9999,3)="176"))*BalanceN!$H$4:$H$9999) -> 0 | F21: =SUMPRODUCT(((LEFT(BalanceN!$A$4:$A$9999,3)="176"))*BalanceN!$D$4:$D$9999) -> 0 | G21: 0 | H21: - | K21: 0
C22: Autres dettes de location acquisition | E22: =SUMPRODUCT(((LEFT(BalanceN!$A$4:$A$9999,3)="178"))*BalanceN!$H$4:$H$9999) -> 0 | F22: =SUMPRODUCT(((LEFT(BalanceN!$A$4:$A$9999,3)="178"))*BalanceN!$D$4:$D$9999) -> 0 | G22: =E22-F22 -> 0 | H22: - | K22: 0
C23: TOTAL DETTES DE LOCATION ACQUISITION | E23: =SUM(E18:E22) -> 0 | F23: =SUM(F18:F22) -> 0 | G23: 0 | H23: =IF(F23=0,"-",(G23/F23)) -> - | I23: 0 | J23: 0 | K23: 0
C24: Provisions pour litiges | E24: =SUMPRODUCT(((LEFT(BalanceN!$A$4:$A$9999,3)="191"))*BalanceN!$H$4:$H$9999) -> 0 | F24: =SUMPRODUCT(((LEFT(BalanceN!$A$4:$A$9999,3)="191"))*BalanceN!$D$4:$D$9999) -> 0 | G24: =E24-F24 -> 0 | H24: =IF(F24=0,"-",(G24/F24)) -> -
C25: Provisions pour garantie donnés aux clients | E25: =SUMPRODUCT(((LEFT(BalanceN!$A$4:$A$9999,3)="192"))*BalanceN!$H$4:$H$9999) -> 0 | F25: =SUMPRODUCT(((LEFT(BalanceN!$A$4:$A$9999,3)="192"))*BalanceN!$D$4:$D$9999) -> 0 | G25: =E25-F25 -> 0 | H25: =IF(F25=0,"-",(G25/F25)) -> -
C26: Provisions pour pertes sur marchés à achèvement futur | E26: =SUMPRODUCT(((LEFT(BalanceN!$A$4:$A$9999,3)="193"))*BalanceN!$H$4:$H$9999) -> 0 | F26: =SUMPRODUCT(((LEFT(BalanceN!$A$4:$A$9999,3)="193"))*BalanceN!$D$4:$D$9999) -> 0 | G26: 0 | H26: -
C27: Provisions pour pertes de change | E27: =SUMPRODUCT(((LEFT(BalanceN!$A$4:$A$9999,3)="194"))*BalanceN!$H$4:$H$9999) -> 0 | F27: =SUMPRODUCT(((LEFT(BalanceN!$A$4:$A$9999,3)="194"))*BalanceN!$D$4:$D$9999) -> 0 | G27: 0 | H27: -
C28: Provisions pour impôts | E28: =SUMPRODUCT(((LEFT(BalanceN!$A$4:$A$9999,3)="195"))*BalanceN!$H$4:$H$9999) -> 0 | F28: =SUMPRODUCT(((LEFT(BalanceN!$A$4:$A$9999,3)="195"))*BalanceN!$D$4:$D$9999) -> 0 | G28: 0 | H28: -
C29: Provisions pour pensions et obligations assimilées | E29: =SUMPRODUCT(((LEFT(BalanceN!$A$4:$A$9999,3)="196"))*BalanceN!$H$4:$H$9999) -> 62116366 | F29: =SUMPRODUCT(((LEFT(BalanceN!$A$4:$A$9999,3)="196"))*BalanceN!$D$4:$D$9999) -> 54864697 | G29: 7251669 | H29: 0.1321736817
C30: Actif du régime de retraite | G30: 0 | H30: -
C31: Provisions restructuration | E31: =SUMPRODUCT(((LEFT(BalanceN!$A$4:$A$9999,3)="197"))*BalanceN!$H$4:$H$9999) -> 0 | F31: =SUMPRODUCT(((LEFT(BalanceN!$A$4:$A$9999,3)="197"))*BalanceN!$D$4:$D$9999) -> 0 | G31: 0 | H31: -
C32: Provisions pour amendes et pénalités | E32: =SUMPRODUCT(((LEFT(BalanceN!$A$4:$A$9999,4)="1981"))*BalanceN!$H$4:$H$9999) -> 0 | F32: =SUMPRODUCT(((LEFT(BalanceN!$A$4:$A$9999,4)="1981"))*BalanceN!$D$4:$D$9999) -> 0 | G32: 0 | H32: -
C33: Provisions de propre assureur | E33: =SUMPRODUCT(((LEFT(BalanceN!$A$4:$A$9999,4)="1983"))*BalanceN!$H$4:$H$9999) -> 0 | F33: =SUMPRODUCT(((LEFT(BalanceN!$A$4:$A$9999,4)="1983"))*BalanceN!$D$4:$D$9999) -> 0 | G33: 0 | H33: -
C34: Provisions pour démantèlement et remise en état | E34: =SUMPRODUCT(((LEFT(BalanceN!$A$4:$A$9999,4)="1984"))*BalanceN!$H$4:$H$9999) -> 0 | F34: =SUMPRODUCT(((LEFT(BalanceN!$A$4:$A$9999,4)="1984"))*BalanceN!$D$4:$D$9999) -> 0 | G34: 0 | H34: -
C35: Provisions de droits à réduction ou avantage en nature | E35: =SUMPRODUCT(((LEFT(BalanceN!$A$4:$A$9999,4)="1985"))*BalanceN!$H$4:$H$9999) -> 0 | F35: =SUMPRODUCT(((LEFT(BalanceN!$A$4:$A$9999,4)="1985"))*BalanceN!$D$4:$D$9999) -> 0 | G35: 0 | H35: -
C36: Autres provisions | E36: =SUMPRODUCT(((LEFT(BalanceN!$A$4:$A$9999,4)="1988"))*BalanceN!$H$4:$H$9999) -> 0 | F36: =SUMPRODUCT(((LEFT(BalanceN!$A$4:$A$9999,4)="1988"))*BalanceN!$D$4:$D$9999) -> 0 | G36: 0 | H36: -
C37: Total provisions pour risques et charges | E37: =SUM(E24:E36) -> 62116366 | F37: =SUM(F24:F36) -> 54864697 | G37: 7251669 | I37: 0 | J37: 0 | K37: 0
C39: COMMENTAIRES

Sheet NOTE 16 B
A1: =IF(F8>0,1,0) -> 0 | D1: NOTE 16 B : ENGAGEMENTS DE RETRAITE ET AVANTAGES ASSIMILES (METHODE ACTUARIELLE)
D3: Désignation entité:……………………………………. | E3: =INFORMATIONS!B10 -> SAM CONSEILS | F3: Exercice clos au: | G3: =INFORMATIONS!D31 -> 2018-12-31
D4: Numéro d'identification:……………………………….. | E4: =INFORMATIONS!B24 -> 00084404X | F4: Durée (en mois): | G4: =INFORMATIONS!F34 -> 12
D6: Hypothèses actuarielles
D7: Libellés | F7: Année N | G7: Année N-1
D8: Taux d'augmentation des salaires
D9: Taux d'actualisation
D10: Taux d'inflation
D11: Probabilité d'être présent dans l'entité à la date de départ à la retraite (expérience passée)
D12: Probabilité d'être en vie à l'age de départ à la retraite (table de mortalité)
D13: Taux de rendement effectif des actifs du régime
D15: COMMENTAIRES
D23: Variation de la valeur de l'engagement de retraite au cours de l'exercice
D24: Libellés | F24: Année N | G24: Année N-1
D25: Obligation au titre des engagements de retraite à l'ouverture
D26: Coût des services rendus au cours de l'exercice
D27: Coût financier
D28: Pertes actuarielles / (gain)
D29: Prestations payées au cours de l'exercice
D30: Coût des services passés
D31: Obligation au tite des engagements de retraite à la clôture
D33: COMMENTAIRES
D41: Analyse de sensibilité des hypothèses actuarielles
D42: Libellés | F42: Année N | H42: Année N-1
F43: Augmentation | G43: Diminution | H43: Augmentation | I43: Diminution
D44: Taux d'actualisation (variation de……%)
D45: Taux de progression des salaires (variation de…..%)
D46: Taux de départ du personnel (variation de…..%)
D48: COMMENTAIRE

Sheet NOTE 16 B bis
A1: =IF(F8>0,1,0) -> 0 | D1: NOTE 16 B bis : ENGAGEMENTS DE RETRAITE ET AVANTAGES ASSIMILES (METHODE ACTUARIELLE)
D3: Désignation entité:……………………………………. | E3: =INFORMATIONS!B10 -> SAM CONSEILS | F3: Exercice clos au: | G3: =INFORMATIONS!D31 -> 2018-12-31
D4: Numéro d'identification:……………………………….. | E4: =INFORMATIONS!B24 -> 00084404X | F4: Durée (en mois): | G4: =INFORMATIONS!F34 -> 12
D6: ACTIF/PASSIF NET COMPTABILISE AU TITRE DES REGIMES FINANCES
D7: Libellés | F7: Année N | G7: Année N-1
D8: Valeur actuelle de l'obligation résultant de régimes financés
D9: Valeur actuelle des actifs affectés aux plans de retraite
D10: Excédent/Déficit de régime
D12: COMMENTAIRES
D20: VALEUR ACTUELLE DES ACTIFS DU REGIME
D21: Libellés | F21: Année N | H21: Année N-1
F22: Rendement attendus | G22: Juste valeur des actifs | H22: Rendement attendus | I22: Juste valeur des actifs
D23: Actions
D24: Obligations
D25: Autres
D26: Total | F26: =SUM(F23:F25) -> 0 | G26: =SUM(G23:G25) -> 0 | H26: =SUM(H23:H25) -> 0 | I26: =SUM(I23:I25) -> 0
D28: COMMENTAIRES

Sheet NOTE 16 C
A1: =IF(G13+G21>0,1,0) -> 0 | E1: NOTE 16 C : ACTIFS ET PASSIFS EVENTUELS
E3: Désignation entité:……………………………………. | F3: =INFORMATIONS!B10 -> SAM CONSEILS | G3: Exercice clos au: | H3: =INFORMATIONS!D31 -> 2018-12-31
E4: Numéro d'identification:……………………………….. | F4: =INFORMATIONS!B24 -> 00084404X | G4: Durée (en mois): | H4: =INFORMATIONS!F34 -> 12
E6: Libellés | G6: Année N | H6: Année N-1
E7: Actif éventuel
E8: Litiges
E9: …………………..
E10: …………………..
E11: …………………..
E12: …………………..
F13: Total | G13: =SUM(G8:G12) -> 0 | H13: =SUM(H8:H12) -> 0
E14: Passif éventuel
E15: Litiges
E16: ……………………
E17: ……………………
E18: ……………………
E19: ……………………
E20: ……………………
F21: Total | G21: =SUM(G16:G20) -> 0 | H21: =SUM(H16:H20) -> 0
E23: COMMENTAIRES

Sheet NOTE 17
A1: =IF(E13>0,1,0) -> 1 | C1: NOTE 17 : FOURNISSEURS D'EXPLOITATION
C3: Désignation entité:……………………………………. | D3: =INFORMATIONS!B10 -> SAM CONSEILS | H3: Exercice clos au: | J3: =INFORMATIONS!D31 -> 2018-12-31
C4: Numéro d'identification:……………………………….. | D4: =INFORMATIONS!B24 -> 00084404X | H4: Durée (en mois): | J4: =INFORMATIONS!F34 -> 12
C6: Libellés | E6: Année N | F6: Année N-1 | G6: Variation en % | H6: Dettes à un an au plus | I6: Dettes à plus d'un an et à deux an au plus | J6: Dettes à plus de deux ans
C7: Fournisseurs dettes en comptes (Hors groupe) | E7: =SUMPRODUCT(((LEFT(BalanceN!$A$4:$A$9999,3)="401")-(LEFT(BalanceN!$A$4:$A$9999,4)="4012"))*BalanceN!$H$4:$H$9999) -> 26695015 | F7: =SUMPRODUCT(((LEFT(BalanceN!$A$4:$A$9999,3)="401")-(LEFT(BalanceN!$A$4:$A$9999,4)="4012"))*BalanceN!$D$4:$D$9999) -> 40583900 | G7: =IF(F7=0,"-",(E7-F7)/F7) -> -0.342226474 | H7: =E7-I7-J7 -> 26695015
C8: Fournisseurs dettes en comptes (groupe) | E8: =SUMPRODUCT(((LEFT(BalanceN!$A$4:$A$9999,4)="4012"))*BalanceN!$H$4:$H$9999) -> 0 | F8: =SUMPRODUCT(((LEFT(BalanceN!$A$4:$A$9999,4)="4012"))*BalanceN!$D$4:$D$9999) -> 0 | G8: =IF(F8=0,"-",(E8-F8)/F8) -> - | H8: =E8-I8-J8 -> 0
C9: Fournisseurs effets à payer (Hors groupe) | E9: =SUMPRODUCT(((LEFT(BalanceN!$A$4:$A$9999,3)="402")-(LEFT(BalanceN!$A$4:$A$9999,4)="4022"))*BalanceN!$H$4:$H$9999) -> 0 | F9: =SUMPRODUCT(((LEFT(BalanceN!$A$4:$A$9999,3)="402")-(LEFT(BalanceN!$A$4:$A$9999,4)="4022"))*BalanceN!$D$4:$D$9999) -> 0 | G9: - | H9: 0
C10: Fournisseurs, dettes et effets à payer (groupe) | E10: =SUMPRODUCT(((LEFT(BalanceN!$A$4:$A$9999,4)="4022"))*BalanceN!$H$4:$H$9999) -> 0 | F10: =SUMPRODUCT(((LEFT(BalanceN!$A$4:$A$9999,4)="4022"))*BalanceN!$D$4:$D$9999) -> 0 | G10: - | H10: 0
C11: Fournisseurs factures non parvenues (hors groupe) | E11: =SUMPRODUCT(((LEFT(BalanceN!$A$4:$A$9999,3)="408")-(LEFT(BalanceN!$A$4:$A$9999,4)="4082"))*BalanceN!$H$4:$H$9999) -> 11515207 | F11: =SUMPRODUCT(((LEFT(BalanceN!$A$4:$A$9999,3)="408")-(LEFT(BalanceN!$A$4:$A$9999,4)="4082"))*BalanceN!$D$4:$D$9999) -> 15310306 | G11: -0.2478787165 | H11: 11515207
C12: Fournisseurs factures non parvenues (groupe) | E12: =SUMPRODUCT(((LEFT(BalanceN!$A$4:$A$9999,4)="4082"))*BalanceN!$H$4:$H$9999) -> 0 | F12: =SUMPRODUCT(((LEFT(BalanceN!$A$4:$A$9999,4)="4082"))*BalanceN!$D$4:$D$9999) -> 0 | G12: - | H12: 0
C13: Total fournisseurs | E13: =SUM(E7:E12) -> 38210222 | F13: =SUM(F7:F12) -> 55894206 | H13: 38210222 | I13: 0 | J13: 0
C14: Fournisseurs, avances et acomptes (hors groupe) | E14: =SUMPRODUCT(((LEFT(BalanceN!$A$4:$A$9999,3)="409")-(LEFT(BalanceN!$A$4:$A$9999,4)="4092"))*BalanceN!$G$4:$G$9999) -> 857612 | F14: =SUMPRODUCT(((LEFT(BalanceN!$A$4:$A$9999,3)="409")-(LEFT(BalanceN!$A$4:$A$9999,4)="4092"))*BalanceN!$C$4:$C$9999) -> 700000 | G14: 0.22516 | H14: =E14-I14-J14 -> 857612
C15: Fournisseurs, avances et acomptes (groupe) | E15: =SUMPRODUCT(((LEFT(BalanceN!$A$4:$A$9999,4)="4092"))*BalanceN!$G$4:$G$9999) -> 0 | F15: =SUMPRODUCT(((LEFT(BalanceN!$A$4:$A$9999,4)="4092"))*BalanceN!$C$4:$C$9999) -> 0 | G15: - | H15: =E15-I15-J15 -> 0
C16: Autres fournisseurs débiteurs | G16: - | H16: 0
C17: Total fournisseurs débiteurs | E17: =SUM(E14:E16) -> 857612 | F17: =SUM(F14:F16) -> 700000 | H17: 857612 | I17: 0 | J17: 0
C19: COMMENTAIRES

Sheet NOTE 18
A1: =IF(F20>0,1,0) -> 1 | D1: NOTE 18 : DETTES FISCALES ET SOCIALES
D3: Désignation entité:……………………………………. | E3: =INFORMATIONS!B10 -> SAM CONSEILS | I3: Exercice clos au: | K3: =INFORMATIONS!D31 -> 2018-12-31
D4: Numéro d'identification:……………………………….. | E4: =INFORMATIONS!B21 -> 0 | I4: Durée (en mois): | K4: =INFORMATIONS!F34 -> 12
D6: Libellés | F6: Année N | G6: Année N-1 | H6: Variation en % | I6: Dettes à un an au plus | J6: Dettes à plus d'un an et à deux an au plus | K6: Dettes à plus de deux ans
D7: Personnel avances et acomptes | F7: =SUMPRODUCT(((LEFT(BalanceN!$A$4:$A$9999,3)="421"))*BalanceN!$H$4:$H$9999) -> 0 | G7: =SUMPRODUCT(((LEFT(BalanceN!$A$4:$A$9999,3)="421"))*BalanceN!$D$4:$D$9999) -> 0 | H7: =IF(G7=0,"-",(F7-G7)/G7) -> - | I7: =F7-J7-K7 -> 0
D8: Personnel rémunérations dues | F8: =SUMPRODUCT(((LEFT(BalanceN!$A$4:$A$9999,3)="422"))*BalanceN!$H$4:$H$9999) -> 134939 | G8: =SUMPRODUCT(((LEFT(BalanceN!$A$4:$A$9999,3)="422"))*BalanceN!$D$4:$D$9999) -> 983251 | H8: =IF(G8=0,"-",(F8-G8)/G8) -> -0.8627624076 | I8: =F8-J8-K8 -> 134939
D9: Personnel | F9: =SUMPRODUCT(((LEFT(BalanceN!$A$4:$A$9999,2)="42")-(LEFT(BalanceN!$A$4:$A$9999,3)="421")-(LEFT(BalanceN!$A$4:$A$9999,3)="422"))*BalanceN!$H$4:$H$9999) -> 3708640 | G9: =SUMPRODUCT(((LEFT(BalanceN!$A$4:$A$9999,2)="42")-(LEFT(BalanceN!$A$4:$A$9999,3)="421")-(LEFT(BalanceN!$A$4:$A$9999,3)="422"))*BalanceN!$D$4:$D$9999) -> 4125592 | H9: =IF(G9=0,"-",(F9-G9)/G9) -> -0.1010647684 | I9: =F9-J9-K9 -> 3708640
D10: Securité sociale | F10: =SUMPRODUCT(((LEFT(BalanceN!$A$4:$A$9999,3)="431"))*BalanceN!$H$4:$H$9999) -> 2127881 | G10: =SUMPRODUCT(((LEFT(BalanceN!$A$4:$A$9999,3)="431"))*BalanceN!$D$4:$D$9999) -> 2025713 | H10: 0.05043557503 | I10: =F10-J10-K10 -> 2127881
D11: Caisse de retraite | F11: =SUMPRODUCT(((LEFT(BalanceN!$A$4:$A$9999,3)="432"))*BalanceN!$H$4:$H$9999) -> 0 | G11: =SUMPRODUCT(((LEFT(BalanceN!$A$4:$A$9999,3)="432"))*BalanceN!$D$4:$D$9999) -> 0 | H11: -
D12: Autres organismes sociaux | F12: =SUMPRODUCT(((LEFT(BalanceN!$A$4:$A$9999,2)="43")-(LEFT(BalanceN!$A$4:$A$9999,3)="431")-(LEFT(BalanceN!$A$4:$A$9999,3)="432"))*BalanceN!$H$4:$H$9999) -> 784580 | G12: =SUMPRODUCT(((LEFT(BalanceN!$A$4:$A$9999,2)="43")-(LEFT(BalanceN!$A$4:$A$9999,3)="431")-(LEFT(BalanceN!$A$4:$A$9999,3)="432"))*BalanceN!$D$4:$D$9999) -> 978586 | H12: -0.1982513545
D13: Total dettes sociales | F13: =SUM(F7:F12) -> 6756040 | G13: =SUM(G7:G12) -> 8113142 | I13: =SUM(I7:I12) -> 5971460 | J13: =SUM(J7:J12) -> 0 | K13: =SUM(K7:K12) -> 0
D14: Etat, impôts sur les bénéfices | F14: =SUMPRODUCT(((LEFT(BalanceN!$A$4:$A$9999,3)="441"))*BalanceN!$H$4:$H$9999) -> 0 | G14: =SUMPRODUCT(((LEFT(BalanceN!$A$4:$A$9999,3)="441"))*BalanceN!$D$4:$D$9999) -> 23411413 | H14: -1 | I14: =F14-J14-K14 -> 0
D15: Etat, impôts et taxes | F15: =SUMPRODUCT(((LEFT(BalanceN!$A$4:$A$9999,3)="442"))*BalanceN!$H$4:$H$9999) -> 3669336 | G15: =SUMPRODUCT(((LEFT(BalanceN!$A$4:$A$9999,3)="442"))*BalanceN!$D$4:$D$9999) -> 3213144 | H15: 0.1419768302 | I15: =F15-J15-K15 -> 3669336
D16: Etat, TVA | F16: =SUMPRODUCT(((LEFT(BalanceN!$A$4:$A$9999,3)="443")+(LEFT(BalanceN!$A$4:$A$9999,4)="4441")+(LEFT(BalanceN!$A$4:$A$9999,3)="446")+(LEFT(BalanceN!$A$4:$A$9999,4)="4486"))*BalanceN!$H$4:$H$9999) -> 0 | G16: =SUMPRODUCT(((LEFT(BalanceN!$A$4:$A$9999,3)="443")+(LEFT(BalanceN!$A$4:$A$9999,4)="4441")+(LEFT(BalanceN!$A$4:$A$9999,3)="446")+(LEFT(BalanceN!$A$4:$A$9999,4)="4486"))*BalanceN!$D$4:$D$9999) -> 89781 | H16: -1 | I16: 0
D17: Etat, impôts retenus à la source | F17: =SUMPRODUCT(((LEFT(BalanceN!$A$4:$A$9999,3)="447"))*BalanceN!$H$4:$H$9999) -> 1140671 | G17: =SUMPRODUCT(((LEFT(BalanceN!$A$4:$A$9999,3)="447"))*BalanceN!$D$4:$D$9999) -> 1182818 | H17: -0.03563270089 | I17: 1140671
D18: Autres dettes Etat | F18: =SUMPRODUCT(((LEFT(BalanceN!$A$4:$A$9999,3)="449"))*BalanceN!$H$4:$H$9999) -> 0 | G18: =SUMPRODUCT(((LEFT(BalanceN!$A$4:$A$9999,3)="449"))*BalanceN!$D$4:$D$9999) -> 0 | H18: - | I18: 0
D19: Total dettes fiscales | F19: =SUM(F14:F18) -> 4810007 | G19: =SUM(G14:G18) -> 27897156 | I19: =SUM(I14:I18) -> 4810007 | J19: =SUM(J14:J18) -> 0 | K19: =SUM(K14:K18) -> 0
D20: Total dettes sociales et fiscales | F20: =F13+F19 -> 11566047 | G20: =G13+G19 -> 36010298 | I20: =I13+I19 -> 10781467 | J20: =J13+J19 -> 0 | K20: =K13+K19 -> 0
D22: COMMENTAIRES

Sheet NOTE 19
A1: =IF(E13+E21>0,1,0) -> 1 | C1: NOTE 19 : AUTRES DETTES ET PROVISIONS POUR RISQUES A COURT TERME
C3: Désignation entité:……………………………………. | D3: =INFORMATIONS!B10 -> SAM CONSEILS | H3: Exercice clos au: | J3: =INFORMATIONS!D31 -> 2018-12-31
C4: Numéro d'identification:……………………………….. | D4: =INFORMATIONS!B24 -> 00084404X | H4: Durée (en mois): | J4: =INFORMATIONS!F34 -> 12
C6: Libellés | E6: Année N | F6: Année N-1 | G6: Variation en % | H6: Dettes à un an au plus | I6: Dettes à plus d'un an et à deux an au plus | J6: Dettes à plus de deux ans
C7: Organismes internationaux | E7: =SUMPRODUCT(((LEFT(BalanceN!$A$4:$A$9999,2)="45"))*BalanceN!$H$4:$H$9999) -> 0 | F7: =SUMPRODUCT(((LEFT(BalanceN!$A$4:$A$9999,2)="45"))*BalanceN!$D$4:$D$9999) -> 0 | G7: =IF(F7=0,"-",(E7-F7)/F7) -> - | I7: =E7-H7-J7 -> 0
C8: Apporteurs, opérations sur le capital | E8: =SUMPRODUCT(((LEFT(BalanceN!$A$4:$A$9999,3)="461"))*BalanceN!$H$4:$H$9999) -> 0 | F8: =SUMPRODUCT(((LEFT(BalanceN!$A$4:$A$9999,3)="461"))*BalanceN!$D$4:$D$9999) -> 0 | G8: =IF(F8=0,"-",(E8-F8)/F8) -> - | I8: =E8-H8-J8 -> 0
C9: Associés, compte courant | E9: =SUMPRODUCT(((LEFT(BalanceN!$A$4:$A$9999,3)="462"))*BalanceN!$H$4:$H$9999) -> 0 | F9: =SUMPRODUCT(((LEFT(BalanceN!$A$4:$A$9999,3)="462"))*BalanceN!$D$4:$D$9999) -> 9938959 | G9: -1 | I9: 0
C10: Associés, dividendes à payer | E10: =SUMPRODUCT(((LEFT(BalanceN!$A$4:$A$9999,3)="465"))*BalanceN!$H$4:$H$9999) -> 0 | F10: =SUMPRODUCT(((LEFT(BalanceN!$A$4:$A$9999,3)="465"))*BalanceN!$D$4:$D$9999) -> 0 | G10: - | I10: 0
C11: Groupe, comptes courants | E11: =SUMPRODUCT(((LEFT(BalanceN!$A$4:$A$9999,3)="466"))*BalanceN!$H$4:$H$9999) -> 0 | F11: =SUMPRODUCT(((LEFT(BalanceN!$A$4:$A$9999,3)="466"))*BalanceN!$D$4:$D$9999) -> 0 | G11: - | I11: 0
C12: Autres dettes associés | E12: =SUMPRODUCT(((LEFT(BalanceN!$A$4:$A$9999,3)="463")+(LEFT(BalanceN!$A$4:$A$9999,3)="467"))*BalanceN!$H$4:$H$9999) -> 0 | F12: =SUMPRODUCT(((LEFT(BalanceN!$A$4:$A$9999,3)="463")+(LEFT(BalanceN!$A$4:$A$9999,3)="467"))*BalanceN!$D$4:$D$9999) -> 0 | G12: - | I12: 0
C13: Total dettes associés | E13: =SUM(E7:E12) -> 0 | F13: 9938959 | H13: 0 | I13: 0 | J13: 0
C14: Créditeurs divers | E14: =SUMPRODUCT(((LEFT(BalanceN!$A$4:$A$9999,4)="4712"))*BalanceN!$H$4:$H$9999) -> 0 | F14: =SUMPRODUCT(((LEFT(BalanceN!$A$4:$A$9999,4)="4712"))*BalanceN!$D$4:$D$9999) -> 0 | G14: - | H14: =E14-I14-J14 -> 0
C15: Obligataires | E15: =SUMPRODUCT(((LEFT(BalanceN!$A$4:$A$9999,4)="4713"))*BalanceN!$H$4:$H$9999) -> 620000 | F15: =SUMPRODUCT(((LEFT(BalanceN!$A$4:$A$9999,4)="4713"))*BalanceN!$D$4:$D$9999) -> 710000 | G15: -0.1267605634 | H15: =E15-I15-J15 -> 620000
C16: Rémunérations d'administrateurs | E16: =SUMPRODUCT(((LEFT(BalanceN!$A$4:$A$9999,4)="4715"))*BalanceN!$H$4:$H$9999) -> 0 | F16: =SUMPRODUCT(((LEFT(BalanceN!$A$4:$A$9999,4)="4715"))*BalanceN!$D$4:$D$9999) -> 0 | G16: - | H16: 0
C17: Compte du factor | E17: =SUMPRODUCT(((LEFT(BalanceN!$A$4:$A$9999,4)="4716"))*BalanceN!$H$4:$H$9999) -> 0 | F17: =SUMPRODUCT(((LEFT(BalanceN!$A$4:$A$9999,4)="4716"))*BalanceN!$D$4:$D$9999) -> 0 | G17: - | H17: 0
C18: Versements restant à effectuer sur les titres de placement non libérés | E18: =SUMPRODUCT(((LEFT(BalanceN!$A$4:$A$9999,4)="4726"))*BalanceN!$H$4:$H$9999) -> 0 | F18: =SUMPRODUCT(((LEFT(BalanceN!$A$4:$A$9999,4)="4726"))*BalanceN!$D$4:$D$9999) -> 0 | G18: - | H18: 0
C19: Compte transitoire ajustement spécial lié à la révision du SYSCOHADA | E19: =SUMPRODUCT(((LEFT(BalanceN!$A$4:$A$9999,4)="4752"))*BalanceN!$H$4:$H$9999) -> 0 | F19: =SUMPRODUCT(((LEFT(BalanceN!$A$4:$A$9999,4)="4752"))*BalanceN!$D$4:$D$9999) -> 0 | G19: - | H19: 0
C20: Autres créditeurs divers | E20: =SUMPRODUCT(((LEFT(BalanceN!$A$4:$A$9999,3)="473")+(LEFT(BalanceN!$A$4:$A$9999,3)="474")+(LEFT(BalanceN!$A$4:$A$9999,3)="477"))*BalanceN!$H$4:$H$9999) -> 0 | F20: =SUMPRODUCT(((LEFT(BalanceN!$A$4:$A$9999,3)="473")+(LEFT(BalanceN!$A$4:$A$9999,3)="474")+(LEFT(BalanceN!$A$4:$A$9999,3)="477"))*BalanceN!$D$4:$D$9999) -> 0 | G20: - | H20: 0
C21: Total créditeurs divers | E21: =SUM(E14:E20) -> 620000 | F21: 710000 | H21: 620000 | I21: 0 | J21: 0
C22: Comptes permanents non bloqués des établissements et des succursales | E22: =SUMPRODUCT(((LEFT(BalanceN!$A$4:$A$9999,3)="185"))*BalanceN!$H$4:$H$9999) -> 0 | G22: - | J22: =E22-H22-I22 -> 0
C23: Comptes de liaison des sociétés en participation | E23: =SUMPRODUCT(((LEFT(BalanceN!$A$4:$A$9999,3)="188"))*BalanceN!$H$4:$H$9999) -> 0 | G23: - | J23: =E23-H23-I23 -> 0
C24: Comptes de liaison | E24: =SUMPRODUCT(((LEFT(BalanceN!$A$4:$A$9999,3)="187"))*BalanceN!$H$4:$H$9999) -> 0 | G24: - | J24: 0
C25: Total comptes de liaison | E25: =SUM(E22:E24) -> 0 | F25: =SUM(F22:F24) -> 0 | G25: =SUM(G22:G24) -> 0 | H25: =SUM(H22:H24) -> 0 | I25: 0 | J25: 0
C26: Total Autres dettes | E26: =E13+E21+E25 -> 620000 | F26: =F13+F21+F25 -> 10648959 | H26: =H13+H21+H25 -> 620000 | I26: =I13+I21+I25 -> 0 | J26: =J13+J21+J25 -> 0
C27: Provisions pour risques à court terme (voir note 28) | G27: -
C29: COMMENTAIRES

Sheet NOTE 20
A1: =IF(G16>0,1,0) -> 0 | E1: NOTE 20 : BANQUES, CREDIT D'ESCOMPTE ET DE TRESORERIE
E3: Désignation entité:……………………………………. | F3: =INFORMATIONS!B10 -> SAM CONSEILS | H3: Exercice clos au: | I3: =INFORMATIONS!D31 -> 2018-12-31
E4: Numéro d'identification:……………………………….. | F4: =INFORMATIONS!B24 -> 00084404X | H4: Durée (en mois): | I4: =INFORMATIONS!F34 -> 12
E6: Libellés | G6: Année N | H6: Année N-1 | I6: Variation en %
E7: Escomptes de crédits de campagne | G7: =SUMPRODUCT(((LEFT(BalanceN!$A$4:$A$9999,3)="564"))*BalanceN!$H$4:$H$9999) -> 0 | H7: =SUMPRODUCT(((LEFT(BalanceN!$A$4:$A$9999,3)="564"))*BalanceN!$D$4:$D$9999) -> 0 | I7: =IF(H7=0,"-",(G7-H7)/H7) -> -
E8: Escomptes de crédits ordinaires | G8: =SUMPRODUCT(((LEFT(BalanceN!$A$4:$A$9999,3)="565"))*BalanceN!$H$4:$H$9999) -> 0 | H8: =SUMPRODUCT(((LEFT(BalanceN!$A$4:$A$9999,3)="565"))*BalanceN!$D$4:$D$9999) -> 0 | I8: =IF(H8=0,"-",(G8-H8)/H8) -> -
E9: Total: banques, crédits d'escompte | G9: =SUM(G7:G8) -> 0 | H9: =SUM(H7:H8) -> 0 | I9: -
E10: Banques locales | G10: =SUMPRODUCT(((LEFT(BalanceN!$A$4:$A$9999,3)="521"))*BalanceN!$H$4:$H$9999) -> 0 | H10: =SUMPRODUCT(((LEFT(BalanceN!$A$4:$A$9999,3)="521"))*BalanceN!$D$4:$D$9999) -> 0 | I10: -
E11: Banques autres états région | G11: =SUMPRODUCT(((LEFT(BalanceN!$A$4:$A$9999,3)="522"))*BalanceN!$H$4:$H$9999) -> 0 | H11: =SUMPRODUCT(((LEFT(BalanceN!$A$4:$A$9999,3)="522"))*BalanceN!$D$4:$D$9999) -> 0 | I11: -
E12: Autres banques | G12: =SUMPRODUCT(((LEFT(BalanceN!$A$4:$A$9999,3)="523")+(LEFT(BalanceN!$A$4:$A$9999,3)="524")++(LEFT(BalanceN!$A$4:$A$9999,3)="525"))*BalanceN!$H$4:$H$9999) -> 0 | H12: =SUMPRODUCT(((LEFT(BalanceN!$A$4:$A$9999,3)="523")+(LEFT(BalanceN!$A$4:$A$9999,3)="524")++(LEFT(BalanceN!$A$4:$A$9999,3)="525"))*BalanceN!$D$4:$D$9999) -> 0 | I12: -
E13: Banque intérêts courus | G13: =SUMPRODUCT(((LEFT(BalanceN!$A$4:$A$9999,3)="526"))*BalanceN!$H$4:$H$9999) -> 0 | H13: =SUMPRODUCT(((LEFT(BalanceN!$A$4:$A$9999,3)="526"))*BalanceN!$D$4:$D$9999) -> 0 | I13: -
E14: Crédit de trésorerie | G14: =SUMPRODUCT(((LEFT(BalanceN!$A$4:$A$9999,3)="561"))*BalanceN!$H$4:$H$9999) -> 0 | H14: =SUMPRODUCT(((LEFT(BalanceN!$A$4:$A$9999,3)="561"))*BalanceN!$D$4:$D$9999) -> 0 | I14: -
E15: Total: banques, crédits de trésorerie | G15: =SUM(G10:G14) -> 0 | H15: =SUM(H10:H14) -> 0 | I15: -
E16: TOTAL GENERAL | G16: =+G9+G15 -> 0 | H16: =+H9+H15 -> 0 | I16: -
E18: COMMENTAIRES

Sheet NOTE 21
A1: =IF(G26>0,1,0) -> 1 | E1: NOTE 21 : CHIFFRE D'AFFAIRES ET AUTRES PRODUITS
E3: Désignation entité:……………………………………. | F3: =INFORMATIONS!B10 -> SAM CONSEILS | H3: Exercice clos au: | I3: =INFORMATIONS!D31 -> 2018-12-31
E4: Numéro d'identification:……………………………….. | F4: =INFORMATIONS!B24 -> 00084404X | H4: Durée (en mois): | I4: =INFORMATIONS!F34 -> 12
E6: Libellés | G6: Année N | H6: Année N-1 | I6: Variation en %
E7: Ventes dans la région | G7: =SUMPRODUCT(((LEFT(BalanceN!$A$4:$A$9999,4)="7011"))*BalanceN!$H$4:$H$9999)-SUMPRODUCT(((LEFT(BalanceN!$A$4:$A$9999,4)="7011"))*BalanceN!$G$4:$G$9999) -> 110000000 | H7: =SUMPRODUCT(((LEFT('BalanceN-1'!$A$4:$A$9999,4)="7011"))*'BalanceN-1'!$H$4:$H$9999)-SUMPRODUCT(((LEFT('BalanceN-1'!$A$4:$A$9999,4)="7011"))*'BalanceN-1'!$G$4:$G$9999) -> 0 | I7: =IF(H7=0,"-",(G7-H7)/H7) -> -
E8: Ventes hors région | G8: =SUMPRODUCT(((LEFT(BalanceN!$A$4:$A$9999,4)="7012"))*BalanceN!$H$4:$H$9999)-SUMPRODUCT(((LEFT(BalanceN!$A$4:$A$9999,4)="7012"))*BalanceN!$G$4:$G$9999) -> 0 | H8: =SUMPRODUCT(((LEFT(BalanceN!$A$4:$A$9999,4)="7012"))*BalanceN!$H$4:$H$9999)-SUMPRODUCT(((LEFT(BalanceN!$A$4:$A$9999,4)="7012"))*BalanceN!$G$4:$G$9999) -> 0 | I8: =IF(H8=0,"-",(G8-H8)/H8) -> -
E9: Ventes groupe | G9: =SUMPRODUCT(((LEFT(BalanceN!$A$4:$A$9999,4)="7013")+(LEFT(BalanceN!$A$4:$A$9999,4)="7014"))*BalanceN!$H$4:$H$9999)-SUMPRODUCT(((LEFT(BalanceN!$A$4:$A$9999,4)="7013")+(LEFT(BalanceN!$A$4:$A$9999,4)="7014"))*BalanceN!$G$4:$G$9999) -> 0 | H9: =SUMPRODUCT(((LEFT(BalanceN!$A$4:$A$9999,4)="7013")+(LEFT(BalanceN!$A$4:$A$9999,4)="7014"))*BalanceN!$H$4:$H$9999)-SUMPRODUCT(((LEFT(BalanceN!$A$4:$A$9999,4)="7013")+(LEFT(BalanceN!$A$4:$A$9999,4)="7014"))*BalanceN!$G$4:$G$9999) -> 0 | I9: -
E10: Ventes sur internet | G10: =SUMPRODUCT(((LEFT(BalanceN!$A$4:$A$9999,4)="7015"))*BalanceN!$H$4:$H$9999)-SUMPRODUCT(((LEFT(BalanceN!$A$4:$A$9999,4)="7015"))*BalanceN!$G$4:$G$9999) -> 0 | H10: =SUMPRODUCT(((LEFT(BalanceN!$A$4:$A$9999,4)="7015"))*BalanceN!$H$4:$H$9999)-SUMPRODUCT(((LEFT(BalanceN!$A$4:$A$9999,4)="7015"))*BalanceN!$G$4:$G$9999) -> 0 | I10: -
E11: Rabais, remises, ristournes accordés | G11: =-(SUMPRODUCT(((LEFT(BalanceN!$A$4:$A$9999,4)="7019"))*BalanceN!$G$4:$G$9999)-SUMPRODUCT(((LEFT(BalanceN!$A$4:$A$9999,4)="7019"))*BalanceN!$H$4:$H$9999)) -> 0 | H11: =-(SUMPRODUCT(((LEFT(BalanceN!$A$4:$A$9999,4)="7019"))*BalanceN!$G$4:$G$9999)-SUMPRODUCT(((LEFT(BalanceN!$A$4:$A$9999,4)="7019"))*BalanceN!$H$4:$H$9999)) -> 0 | I11: -
E12: Total des ventes de marchandises | G12: =SUM(G7:G11) -> 110000000 | H12: =SUM(H7:H10) -> 0 | I12: -
E13: Ventes dans la région | G13: =SUMPRODUCT(((LEFT(BalanceN!$A$4:$A$9999,4)="7021")+(LEFT(BalanceN!$A$4:$A$9999,4)="7031")+(LEFT(BalanceN!$A$4:$A$9999,4)="7041"))*BalanceN!$H$4:$H$9999)-SUMPRODUCT(((LEFT(BalanceN!$A$4:$A$9999,4)="7021")+(LEFT(BalanceN!$A$4:$A$9999,4)="7031")+(LEFT(BalanceN!$A$4:$A$9999,4)="7041"))*BalanceN!$G$4:$G$9999) -> 0 | H13: =SUMPRODUCT(((LEFT('BalanceN-1'!$A$4:$A$9999,4)="7021")+(LEFT('BalanceN-1'!$A$4:$A$9999,4)="7031")+(LEFT('BalanceN-1'!$A$4:$A$9999,4)="7041"))*'BalanceN-1'!$H$4:$H$9999)-SUMPRODUCT(((LEFT('BalanceN-1'!$A$4:$A$9999,4)="7021")+(LEFT('BalanceN-1'!$A$4:$A$9999,4)="7031")+(LEFT('BalanceN-1'!$A$4:$A$9999,4)="7041"))*'BalanceN-1'!$G$4:$G$9999) -> 0 | I13: -
E14: Ventes hors région | G14: =SUMPRODUCT(((LEFT(BalanceN!$A$4:$A$9999,4)="7022")+(LEFT(BalanceN!$A$4:$A$9999,4)="7032")+(LEFT(BalanceN!$A$4:$A$9999,4)="7042"))*BalanceN!$H$4:$H$9999)-SUMPRODUCT(((LEFT(BalanceN!$A$4:$A$9999,4)="7022")+(LEFT(BalanceN!$A$4:$A$9999,4)="7032")+(LEFT(BalanceN!$A$4:$A$9999,4)="7042"))*BalanceN!$G$4:$G$9999) -> 1939940531 | H14: =SUMPRODUCT(((LEFT('BalanceN-1'!$A$4:$A$9999,4)="7022")+(LEFT('BalanceN-1'!$A$4:$A$9999,4)="7032")+(LEFT('BalanceN-1'!$A$4:$A$9999,4)="7042"))*'BalanceN-1'!$H$4:$H$9999)-SUMPRODUCT(((LEFT('BalanceN-1'!$A$4:$A$9999,4)="7022")+(LEFT('BalanceN-1'!$A$4:$A$9999,4)="7032")+(LEFT('BalanceN-1'!$A$4:$A$9999,4)="7042"))*'BalanceN-1'!$G$4:$G$9999) -> 1858577695 | I14: 0.04377693557
E15: Ventes groupe | G15: =SUMPRODUCT(((LEFT(BalanceN!$A$4:$A$9999,4)="7023")+(LEFT(BalanceN!$A$4:$A$9999,4)="7024")+(LEFT(BalanceN!$A$4:$A$9999,4)="7033")+(LEFT(BalanceN!$A$4:$A$9999,4)="7034")+(LEFT(BalanceN!$A$4:$A$9999,4)="7043")+(LEFT(BalanceN!$A$4:$A$9999,4)="7044"))*BalanceN!$H$4:$H$9999)-SUMPRODUCT(((LEFT(BalanceN!$A$4:$A$9999,4)="7023")+(LEFT(BalanceN!$A$4:$A$9999,4)="7024")+(LEFT(BalanceN!$A$4:$A$9999,4)="7033")+(LEFT(BalanceN!$A$4:$A$9999,4)="7034")+(LEFT(BalanceN!$A$4:$A$9999,4)="7043")+(LEFT(BalanceN!$A$4:$A$9999,4)="7044"))*BalanceN!$D$4:$D$9999) -> 0 | H15: =SUMPRODUCT(((LEFT('BalanceN-1'!$A$4:$A$9999,4)="7023")+(LEFT('BalanceN-1'!$A$4:$A$9999,4)="7024")+(LEFT('BalanceN-1'!$A$4:$A$9999,4)="7033")+(LEFT('BalanceN-1'!$A$4:$A$9999,4)="7034")+(LEFT('BalanceN-1'!$A$4:$A$9999,4)="7043")+(LEFT('BalanceN-1'!$A$4:$A$9999,4)="7044"))*'BalanceN-1'!$H$4:$H$9999)-SUMPRODUCT(((LEFT('BalanceN-1'!$A$4:$A$9999,4)="7023")+(LEFT('BalanceN-1'!$A$4:$A$9999,4)="7024")+(LEFT('BalanceN-1'!$A$4:$A$9999,4)="7033")+(LEFT('BalanceN-1'!$A$4:$A$9999,4)="7034")+(LEFT('BalanceN-1'!$A$4:$A$9999,4)="7043")+(LEFT('BalanceN-1'!$A$4:$A$9999,4)="7044"))*'BalanceN-1'!$D$4:$D$9999) -> 0 | I15: -
E16: Ventes sur internet | G16: =SUMPRODUCT(((LEFT(BalanceN!$A$4:$A$9999,4)="7025")+(LEFT(BalanceN!$A$4:$A$9999,4)="7035")+(LEFT(BalanceN!$A$4:$A$9999,4)="7045"))*BalanceN!$H$4:$H$9999)-SUMPRODUCT(((LEFT(BalanceN!$A$4:$A$9999,4)="7025")+(LEFT(BalanceN!$A$4:$A$9999,4)="7035")+(LEFT(BalanceN!$A$4:$A$9999,4)="7045"))*BalanceN!$G$4:$G$9999) -> 0 | H16: =SUMPRODUCT(((LEFT('BalanceN-1'!$A$4:$A$9999,4)="7025")+(LEFT('BalanceN-1'!$A$4:$A$9999,4)="7035")+(LEFT('BalanceN-1'!$A$4:$A$9999,4)="7045"))*'BalanceN-1'!$H$4:$H$9999)-SUMPRODUCT(((LEFT('BalanceN-1'!$A$4:$A$9999,4)="7025")+(LEFT('BalanceN-1'!$A$4:$A$9999,4)="7035")+(LEFT('BalanceN-1'!$A$4:$A$9999,4)="7045"))*'BalanceN-1'!$G$4:$G$9999) -> 0 | I16: -
E17: Rabais, remises, ristournes accordés | G17: =-(SUMPRODUCT(((LEFT(BalanceN!$A$4:$A$9999,4)="7029")+(LEFT(BalanceN!$A$4:$A$9999,4)="7039")+(LEFT(BalanceN!$A$4:$A$9999,4)="7049"))*BalanceN!$G$4:$G$9999)-SUMPRODUCT(((LEFT(BalanceN!$A$4:$A$9999,4)="7029")+(LEFT(BalanceN!$A$4:$A$9999,4)="7039")+(LEFT(BalanceN!$A$4:$A$9999,4)="7049"))*BalanceN!$H$4:$H$9999)) -> -21795786 | H17: =-(SUMPRODUCT(((LEFT('BalanceN-1'!$A$4:$A$9999,4)="7029")+(LEFT('BalanceN-1'!$A$4:$A$9999,4)="7039")+(LEFT('BalanceN-1'!$A$4:$A$9999,4)="7049"))*'BalanceN-1'!$G$4:$G$9999)-SUMPRODUCT(((LEFT('BalanceN-1'!$A$4:$A$9999,4)="7029")+(LEFT('BalanceN-1'!$A$4:$A$9999,4)="7039")+(LEFT('BalanceN-1'!$A$4:$A$9999,4)="7049"))*'BalanceN-1'!$H$4:$H$9999)) -> -1153585 | I17: 17.89395753
E18: Total des ventes de produits fabriqués | G18: =SUM(G13:G17) -> 1918144745 | H18: =SUM(H13:H17) -> 1857424110
E19: Ventes dans la région | G19: =SUMPRODUCT(((LEFT(BalanceN!$A$4:$A$9999,4)="7051")+(LEFT(BalanceN!$A$4:$A$9999,4)="7061"))*BalanceN!$H$4:$H$9999)-SUMPRODUCT(((LEFT(BalanceN!$A$4:$A$9999,4)="7051")+(LEFT(BalanceN!$A$4:$A$9999,4)="7061"))*BalanceN!$G$4:$G$9999) -> 12672000 | H19: =SUMPRODUCT(((LEFT('BalanceN-1'!$A$4:$A$9999,4)="7051")+(LEFT('BalanceN-1'!$A$4:$A$9999,4)="7061"))*'BalanceN-1'!$H$4:$H$9999)-SUMPRODUCT(((LEFT('BalanceN-1'!$A$4:$A$9999,4)="7051")+(LEFT('BalanceN-1'!$A$4:$A$9999,4)="7061"))*'BalanceN-1'!$G$4:$G$9999) -> 12804000 | I19: -0.01030927835
E20: Ventes hors région | G20: =SUMPRODUCT(((LEFT(BalanceN!$A$4:$A$9999,4)="7052")+(LEFT(BalanceN!$A$4:$A$9999,4)="7062"))*BalanceN!$H$4:$H$9999)-SUMPRODUCT(((LEFT(BalanceN!$A$4:$A$9999,4)="7052")+(LEFT(BalanceN!$A$4:$A$9999,4)="7062"))*BalanceN!$G$4:$G$9999) -> 0 | H20: =SUMPRODUCT(((LEFT('BalanceN-1'!$A$4:$A$9999,4)="7052")+(LEFT('BalanceN-1'!$A$4:$A$9999,4)="7062"))*'BalanceN-1'!$H$4:$H$9999)-SUMPRODUCT(((LEFT('BalanceN-1'!$A$4:$A$9999,4)="7052")+(LEFT('BalanceN-1'!$A$4:$A$9999,4)="7062"))*'BalanceN-1'!$G$4:$G$9999) -> 0 | I20: -
E21: Ventes groupe | G21: =SUMPRODUCT(((LEFT(BalanceN!$A$4:$A$9999,4)="7053")+(LEFT(BalanceN!$A$4:$A$9999,4)="7054")+(LEFT(BalanceN!$A$4:$A$9999,4)="7063")+(LEFT(BalanceN!$A$4:$A$9999,4)="7064"))*BalanceN!$H$4:$H$9999)-SUMPRODUCT(((LEFT(BalanceN!$A$4:$A$9999,4)="7053")+(LEFT(BalanceN!$A$4:$A$9999,4)="7054")+(LEFT(BalanceN!$A$4:$A$9999,4)="7063")+(LEFT(BalanceN!$A$4:$A$9999,4)="7064"))*BalanceN!$G$4:$G$9999) -> 0 | H21: =SUMPRODUCT(((LEFT('BalanceN-1'!$A$4:$A$9999,4)="7053")+(LEFT('BalanceN-1'!$A$4:$A$9999,4)="7054")+(LEFT('BalanceN-1'!$A$4:$A$9999,4)="7063")+(LEFT('BalanceN-1'!$A$4:$A$9999,4)="7064"))*'BalanceN-1'!$H$4:$H$9999)-SUMPRODUCT(((LEFT('BalanceN-1'!$A$4:$A$9999,4)="7053")+(LEFT('BalanceN-1'!$A$4:$A$9999,4)="7054")+(LEFT('BalanceN-1'!$A$4:$A$9999,4)="7063")+(LEFT('BalanceN-1'!$A$4:$A$9999,4)="7064"))*'BalanceN-1'!$G$4:$G$9999) -> 0 | I21: -
E22: Ventes sur internet | G22: =SUMPRODUCT(((LEFT(BalanceN!$A$4:$A$9999,4)="7055")+(LEFT(BalanceN!$A$4:$A$9999,4)="7065"))*BalanceN!$H$4:$H$9999)-SUMPRODUCT(((LEFT(BalanceN!$A$4:$A$9999,4)="7055")+(LEFT(BalanceN!$A$4:$A$9999,4)="7065"))*BalanceN!$G$4:$G$9999) -> 0 | H22: =SUMPRODUCT(((LEFT('BalanceN-1'!$A$4:$A$9999,4)="7055")+(LEFT('BalanceN-1'!$A$4:$A$9999,4)="7065"))*'BalanceN-1'!$H$4:$H$9999)-SUMPRODUCT(((LEFT('BalanceN-1'!$A$4:$A$9999,4)="7055")+(LEFT('BalanceN-1'!$A$4:$A$9999,4)="7065"))*'BalanceN-1'!$G$4:$G$9999) -> 0 | I22: -
E23: Rabais, remises, ristournes accordés | G23: =-(SUMPRODUCT(((LEFT(BalanceN!$A$4:$A$9999,4)="7059")+(LEFT(BalanceN!$A$4:$A$9999,4)="7069"))*BalanceN!$G$4:$G$9999)-SUMPRODUCT(((LEFT(BalanceN!$A$4:$A$9999,4)="7059")+(LEFT(BalanceN!$A$4:$A$9999,4)="7069"))*BalanceN!$H$4:$H$9999)) -> 0 | H23: =-(SUMPRODUCT(((LEFT('BalanceN-1'!$A$4:$A$9999,4)="7059")+(LEFT('BalanceN-1'!$A$4:$A$9999,4)="7069"))*'BalanceN-1'!$G$4:$G$9999)-SUMPRODUCT(((LEFT('BalanceN-1'!$A$4:$A$9999,4)="7059")+(LEFT('BalanceN-1'!$A$4:$A$9999,4)="7069"))*'BalanceN-1'!$H$4:$H$9999)) -> 0 | I23: -
E24: Total des ventes de travaux et services vendus | G24: =SUM(G19:G23) -> 12672000 | H24: =SUM(H19:H23) -> 12804000
E25: Produits accessoires | G25: =SUMPRODUCT(((LEFT(BalanceN!$A$4:$A$9999,3)="707"))*BalanceN!$H$4:$H$9999)-SUMPRODUCT(((LEFT(BalanceN!$A$4:$A$9999,3)="707"))*BalanceN!$G$4:$G$9999) -> 1130000 | H25: =SUMPRODUCT(((LEFT('BalanceN-1'!$A$4:$A$9999,3)="707"))*'BalanceN-1'!$H$4:$H$9999)-SUMPRODUCT(((LEFT('BalanceN-1'!$A$4:$A$9999,3)="707"))*'BalanceN-1'!$G$4:$G$9999) -> 1598780 | I25: -0.2932110734
E26: Total: Chiffre d'affaires | G26: =G12+G18+G24+G25 -> 2041946745 | H26: =H12+H18+H24+H25 -> 1871826890
E27: Production immobilisée | G27: =SUMPRODUCT(((LEFT(BalanceN!$A$4:$A$9999,2)="72"))*BalanceN!$H$4:$H$9999)-SUMPRODUCT(((LEFT(BalanceN!$A$4:$A$9999,2)="72"))*BalanceN!$G$4:$G$9999) -> 4500000 | H27: =SUMPRODUCT(((LEFT('BalanceN-1'!$A$4:$A$9999,2)="72"))*'BalanceN-1'!$H$4:$H$9999)-SUMPRODUCT(((LEFT('BalanceN-1'!$A$4:$A$9999,2)="72"))*'BalanceN-1'!$G$4:$G$9999) -> 0 | I27: -
E28: Subventions d'exploitation | G28: =SUMPRODUCT(((LEFT(BalanceN!$A$4:$A$9999,2)="71"))*BalanceN!$H$4:$H$9999)-SUMPRODUCT(((LEFT(BalanceN!$A$4:$A$9999,2)="71"))*BalanceN!$G$4:$G$9999) -> 0 | H28: =SUMPRODUCT(((LEFT('BalanceN-1'!$A$4:$A$9999,2)="71"))*'BalanceN-1'!$H$4:$H$9999)-SUMPRODUCT(((LEFT('BalanceN-1'!$A$4:$A$9999,2)="71"))*'BalanceN-1'!$G$4:$G$9999) -> 0 | I28: -
E29: Autres produits | G29: =SUMPRODUCT(((LEFT(BalanceN!$A$4:$A$9999,2)="75"))*BalanceN!$H$4:$H$9999)-SUMPRODUCT(((LEFT(BalanceN!$A$4:$A$9999,2)="75"))*BalanceN!$G$4:$G$9999) -> 3436978 | H29: =SUMPRODUCT(((LEFT('BalanceN-1'!$A$4:$A$9999,2)="75"))*'BalanceN-1'!$H$4:$H$9999)-SUMPRODUCT(((LEFT('BalanceN-1'!$A$4:$A$9999,2)="75"))*'BalanceN-1'!$G$4:$G$9999) -> 11486537 | I29: -0.7007820547
E30: Total: Autres produits | G30: =SUM(G27:G29) -> 7936978 | H30: =SUM(H27:H29) -> 11486537
E31: TOTAL GENERAL | G31: =G26+G30 -> 2049883723 | H31: =H26+H30 -> 1883313427
E33: COMMENTAIRES

Sheet NOTE 22
A1: =IF(G12>0,1,0) -> 1 | E1: NOTE 22 : ACHATS
E3: Désignation entité:……………………………………. | F3: =INFORMATIONS!B10 -> SAM CONSEILS | H3: Exercice clos au: | I3: =INFORMATIONS!D31 -> 2018-12-31
E4: Numéro d'identification:……………………………….. | F4: =INFORMATIONS!B24 -> 00084404X | H4: Durée (en mois): | I4: =INFORMATIONS!F34 -> 12
E6: Libellés | G6: Année N | H6: Année N-1 | I6: Variation en %
E7: Achats dans la région | G7: =-SUMPRODUCT(((LEFT(BalanceN!$A$4:$A$9999,4)="6011"))*BalanceN!$H$4:$H$9999)+SUMPRODUCT(((LEFT(BalanceN!$A$4:$A$9999,4)="6011"))*BalanceN!$G$4:$G$9999) -> 75000000 | H7: =-SUMPRODUCT(((LEFT('BalanceN-1'!$A$4:$A$9999,4)="6011"))*'BalanceN-1'!$H$4:$H$9999)+SUMPRODUCT(((LEFT('BalanceN-1'!$A$4:$A$9999,4)="6011"))*'BalanceN-1'!$G$4:$G$9999) -> 0 | I7: =IF(H7=0,"-",(G7-H7)/H7) -> -
E8: Achats hors région | G8: =-SUMPRODUCT(((LEFT(BalanceN!$A$4:$A$9999,4)="6012"))*BalanceN!$H$4:$H$9999)+SUMPRODUCT(((LEFT(BalanceN!$A$4:$A$9999,4)="6012"))*BalanceN!$G$4:$G$9999) -> 0 | H8: =-SUMPRODUCT(((LEFT('BalanceN-1'!$A$4:$A$9999,4)="6012"))*'BalanceN-1'!$H$4:$H$9999)+SUMPRODUCT(((LEFT('BalanceN-1'!$A$4:$A$9999,4)="6012"))*'BalanceN-1'!$G$4:$G$9999) -> 0 | I8: =IF(H8=0,"-",(G8-H8)/H8) -> -
E9: Achats groupe | G9: =-SUMPRODUCT(((LEFT(BalanceN!$A$4:$A$9999,4)="6013")+(LEFT(BalanceN!$A$4:$A$9999,4)="6014"))*BalanceN!$H$4:$H$9999)+SUMPRODUCT(((LEFT(BalanceN!$A$4:$A$9999,4)="6013")+(LEFT(BalanceN!$A$4:$A$9999,4)="6014"))*BalanceN!$G$4:$G$9999) -> 0 | H9: =-SUMPRODUCT(((LEFT('BalanceN-1'!$A$4:$A$9999,4)="6013")+(LEFT('BalanceN-1'!$A$4:$A$9999,4)="6014"))*'BalanceN-1'!$H$4:$H$9999)+SUMPRODUCT(((LEFT('BalanceN-1'!$A$4:$A$9999,4)="6013")+(LEFT('BalanceN-1'!$A$4:$A$9999,4)="6014"))*'BalanceN-1'!$G$4:$G$9999) -> 0 | I9: -
E10: Frais sur achats | G10: =-SUMPRODUCT(((LEFT(BalanceN!$A$4:$A$9999,4)="6015"))*BalanceN!$H$4:$H$9999)+SUMPRODUCT(((LEFT(BalanceN!$A$4:$A$9999,4)="6015"))*BalanceN!$G$4:$G$9999) -> 0 | H10: =-SUMPRODUCT(((LEFT('BalanceN-1'!$A$4:$A$9999,4)="6015"))*'BalanceN-1'!$H$4:$H$9999)+SUMPRODUCT(((LEFT('BalanceN-1'!$A$4:$A$9999,4)="6015"))*'BalanceN-1'!$G$4:$G$9999) -> 0 | I10: -
E11: Remises rabais, remises et ristournes obtenus | G11: =-(-SUMPRODUCT(((LEFT(BalanceN!$A$4:$A$9999,4)="6019"))*BalanceN!$G$4:$G$9999)+SUMPRODUCT(((LEFT(BalanceN!$A$4:$A$9999,4)="6019"))*BalanceN!$H$4:$H$9999)) -> 0 | H11: =-(-SUMPRODUCT(((LEFT('BalanceN-1'!$A$4:$A$9999,4)="6019"))*'BalanceN-1'!$G$4:$G$9999)+SUMPRODUCT(((LEFT('BalanceN-1'!$A$4:$A$9999,4)="6019"))*'BalanceN-1'!$H$4:$H$9999)) -> 0 | I11: -
E12: Total des Achats de marchandises | G12: =SUM(G7:G11) -> 75000000 | H12: =SUM(H7:H11) -> 0 | I12: -
E13: Achats dans la région | G13: =-SUMPRODUCT(((LEFT(BalanceN!$A$4:$A$9999,4)="6021"))*BalanceN!$H$4:$H$9999)+SUMPRODUCT(((LEFT(BalanceN!$A$4:$A$9999,4)="6021"))*BalanceN!$G$4:$G$9999) -> 923186842 | H13: =-SUMPRODUCT(((LEFT('BalanceN-1'!$A$4:$A$9999,4)="6021"))*'BalanceN-1'!$H$4:$H$9999)+SUMPRODUCT(((LEFT('BalanceN-1'!$A$4:$A$9999,4)="6021"))*'BalanceN-1'!$G$4:$G$9999) -> 954585472 | I13: -0.03289242391
E14: Achats hors région | G14: =-SUMPRODUCT(((LEFT(BalanceN!$A$4:$A$9999,4)="6022"))*BalanceN!$H$4:$H$9999)+SUMPRODUCT(((LEFT(BalanceN!$A$4:$A$9999,4)="6022"))*BalanceN!$G$4:$G$9999) -> 5116850 | H14: =-SUMPRODUCT(((LEFT('BalanceN-1'!$A$4:$A$9999,4)="6022"))*'BalanceN-1'!$H$4:$H$9999)+SUMPRODUCT(((LEFT('BalanceN-1'!$A$4:$A$9999,4)="6022"))*'BalanceN-1'!$G$4:$G$9999) -> 0 | I14: -
E15: Achats groupe | G15: =-SUMPRODUCT(((LEFT(BalanceN!$A$4:$A$9999,4)="6023")+(LEFT(BalanceN!$A$4:$A$9999,4)="6024"))*BalanceN!$H$4:$H$9999)+SUMPRODUCT(((LEFT(BalanceN!$A$4:$A$9999,4)="6023")+(LEFT(BalanceN!$A$4:$A$9999,4)="6024"))*BalanceN!$G$4:$G$9999) -> 0 | H15: =-SUMPRODUCT(((LEFT('BalanceN-1'!$A$4:$A$9999,4)="6023")+(LEFT('BalanceN-1'!$A$4:$A$9999,4)="6024"))*'BalanceN-1'!$H$4:$H$9999)+SUMPRODUCT(((LEFT('BalanceN-1'!$A$4:$A$9999,4)="6023")+(LEFT('BalanceN-1'!$A$4:$A$9999,4)="6024"))*'BalanceN-1'!$G$4:$G$9999) -> 0 | I15: -
E16: Frais sur achats | G16: =-SUMPRODUCT(((LEFT(BalanceN!$A$4:$A$9999,4)="6025"))*BalanceN!$H$4:$H$9999)+SUMPRODUCT(((LEFT(BalanceN!$A$4:$A$9999,4)="6025"))*BalanceN!$G$4:$G$9999) -> 0 | H16: =-SUMPRODUCT(((LEFT('BalanceN-1'!$A$4:$A$9999,4)="6025"))*'BalanceN-1'!$H$4:$H$9999)+SUMPRODUCT(((LEFT('BalanceN-1'!$A$4:$A$9999,4)="6025"))*'BalanceN-1'!$G$4:$G$9999) -> 0 | I16: -
E17: Remises rabais, remises et ristournes obtenus | G17: =-(-SUMPRODUCT(((LEFT(BalanceN!$A$4:$A$9999,4)="6029"))*BalanceN!$G$4:$G$9999)+SUMPRODUCT(((LEFT(BalanceN!$A$4:$A$9999,4)="6029"))*BalanceN!$H$4:$H$9999)) -> 0 | H17: =-(-SUMPRODUCT(((LEFT('BalanceN-1'!$A$4:$A$9999,4)="6029"))*'BalanceN-1'!$G$4:$G$9999)+SUMPRODUCT(((LEFT('BalanceN-1'!$A$4:$A$9999,4)="6029"))*'BalanceN-1'!$H$4:$H$9999)) -> 0 | I17: -
E18: Total des achats de matières premières et fournitures liées | G18: =SUM(G13:G17) -> 928303692 | H18: =SUM(H13:H17) -> 954585472
E19: Matières consommables | G19: =-SUMPRODUCT(((LEFT(BalanceN!$A$4:$A$9999,4)="6041"))*BalanceN!$H$4:$H$9999)+SUMPRODUCT(((LEFT(BalanceN!$A$4:$A$9999,4)="6041"))*BalanceN!$G$4:$G$9999) -> 0 | H19: =-SUMPRODUCT(((LEFT('BalanceN-1'!$A$4:$A$9999,4)="6041"))*'BalanceN-1'!$H$4:$H$9999)+SUMPRODUCT(((LEFT('BalanceN-1'!$A$4:$A$9999,4)="6041"))*'BalanceN-1'!$G$4:$G$9999) -> 0 | I19: -
E20: Matières combustibles | G20: =-SUMPRODUCT(((LEFT(BalanceN!$A$4:$A$9999,4)="6042"))*BalanceN!$H$4:$H$9999)+SUMPRODUCT(((LEFT(BalanceN!$A$4:$A$9999,4)="6042"))*BalanceN!$G$4:$G$9999) -> 11259476 | H20: =-SUMPRODUCT(((LEFT('BalanceN-1'!$A$4:$A$9999,4)="6042"))*'BalanceN-1'!$H$4:$H$9999)+SUMPRODUCT(((LEFT('BalanceN-1'!$A$4:$A$9999,4)="6042"))*'BalanceN-1'!$G$4:$G$9999) -> 12683576 | I20: -0.1122790607
E21: Produits d'entretien | G21: =-SUMPRODUCT(((LEFT(BalanceN!$A$4:$A$9999,4)="6043"))*BalanceN!$H$4:$H$9999)+SUMPRODUCT(((LEFT(BalanceN!$A$4:$A$9999,4)="6043"))*BalanceN!$G$4:$G$9999) -> 0 | H21: =-SUMPRODUCT(((LEFT('BalanceN-1'!$A$4:$A$9999,4)="6043"))*'BalanceN-1'!$H$4:$H$9999)+SUMPRODUCT(((LEFT('BalanceN-1'!$A$4:$A$9999,4)="6043"))*'BalanceN-1'!$G$4:$G$9999) -> 1144000 | I21: -1
E22: Fournitures d'atelier, d'usine et de magasin | G22: =-SUMPRODUCT(((LEFT(BalanceN!$A$4:$A$9999,4)="6044"))*BalanceN!$H$4:$H$9999)+SUMPRODUCT(((LEFT(BalanceN!$A$4:$A$9999,4)="6044"))*BalanceN!$G$4:$G$9999) -> 0 | H22: =-SUMPRODUCT(((LEFT('BalanceN-1'!$A$4:$A$9999,4)="6044"))*'BalanceN-1'!$H$4:$H$9999)+SUMPRODUCT(((LEFT('BalanceN-1'!$A$4:$A$9999,4)="6044"))*'BalanceN-1'!$G$4:$G$9999) -> 0 | I22: -
E23: Frais sur achats | G23: =-SUMPRODUCT(((LEFT(BalanceN!$A$4:$A$9999,4)="6045"))*BalanceN!$H$4:$H$9999)+SUMPRODUCT(((LEFT(BalanceN!$A$4:$A$9999,4)="6045"))*BalanceN!$G$4:$G$9999) -> 0 | H23: =-SUMPRODUCT(((LEFT('BalanceN-1'!$A$4:$A$9999,4)="6045"))*'BalanceN-1'!$H$4:$H$9999)+SUMPRODUCT(((LEFT('BalanceN-1'!$A$4:$A$9999,4)="6045"))*'BalanceN-1'!$G$4:$G$9999) -> 0 | I23: -
E24: Fournitures de magasin | G24: =-SUMPRODUCT(((LEFT(BalanceN!$A$4:$A$9999,4)="6046"))*BalanceN!$H$4:$H$9999)+SUMPRODUCT(((LEFT(BalanceN!$A$4:$A$9999,4)="6046"))*BalanceN!$G$4:$G$9999) -> 0 | H24: =-SUMPRODUCT(((LEFT('BalanceN-1'!$A$4:$A$9999,4)="6046"))*'BalanceN-1'!$H$4:$H$9999)+SUMPRODUCT(((LEFT('BalanceN-1'!$A$4:$A$9999,4)="6046"))*'BalanceN-1'!$G$4:$G$9999) -> 0 | I24: -
E25: Fourniture de bureau | G25: =-SUMPRODUCT(((LEFT(BalanceN!$A$4:$A$9999,4)="6047"))*BalanceN!$H$4:$H$9999)+SUMPRODUCT(((LEFT(BalanceN!$A$4:$A$9999,4)="6047"))*BalanceN!$G$4:$G$9999) -> 0 | H25: =-SUMPRODUCT(((LEFT('BalanceN-1'!$A$4:$A$9999,4)="6047"))*'BalanceN-1'!$H$4:$H$9999)+SUMPRODUCT(((LEFT('BalanceN-1'!$A$4:$A$9999,4)="6047"))*'BalanceN-1'!$G$4:$G$9999) -> 0 | I25: -
E26: Eau | G26: =-SUMPRODUCT(((LEFT(BalanceN!$A$4:$A$9999,4)="6051"))*BalanceN!$H$4:$H$9999)+SUMPRODUCT(((LEFT(BalanceN!$A$4:$A$9999,4)="6051"))*BalanceN!$G$4:$G$9999) -> 5507820 | H26: =-SUMPRODUCT(((LEFT('BalanceN-1'!$A$4:$A$9999,4)="6051"))*'BalanceN-1'!$H$4:$H$9999)+SUMPRODUCT(((LEFT('BalanceN-1'!$A$4:$A$9999,4)="6051"))*'BalanceN-1'!$G$4:$G$9999) -> 4659249 | I26: 0.1821261323
E27: Electricité | G27: =-SUMPRODUCT(((LEFT(BalanceN!$A$4:$A$9999,4)="6052"))*BalanceN!$H$4:$H$9999)+SUMPRODUCT(((LEFT(BalanceN!$A$4:$A$9999,4)="6052"))*BalanceN!$G$4:$G$9999) -> 23946351 | H27: =-SUMPRODUCT(((LEFT('BalanceN-1'!$A$4:$A$9999,4)="6052"))*'BalanceN-1'!$H$4:$H$9999)+SUMPRODUCT(((LEFT('BalanceN-1'!$A$4:$A$9999,4)="6052"))*'BalanceN-1'!$G$4:$G$9999) -> 21760619 | I27: 0.1004443853
E28: Autres énergies | G28: =-SUMPRODUCT(((LEFT(BalanceN!$A$4:$A$9999,4)="6053"))*BalanceN!$H$4:$H$9999)+SUMPRODUCT(((LEFT(BalanceN!$A$4:$A$9999,4)="6053"))*BalanceN!$G$4:$G$9999) -> 0 | H28: =-SUMPRODUCT(((LEFT('BalanceN-1'!$A$4:$A$9999,4)="6053"))*'BalanceN-1'!$H$4:$H$9999)+SUMPRODUCT(((LEFT('BalanceN-1'!$A$4:$A$9999,4)="6053"))*'BalanceN-1'!$G$4:$G$9999) -> 0 | I28: -
E29: Fournitures d'entretien non stockables | G29: =-SUMPRODUCT(((LEFT(BalanceN!$A$4:$A$9999,4)="6054"))*BalanceN!$H$4:$H$9999)+SUMPRODUCT(((LEFT(BalanceN!$A$4:$A$9999,4)="6054"))*BalanceN!$G$4:$G$9999) -> 3983103 | H29: =-SUMPRODUCT(((LEFT('BalanceN-1'!$A$4:$A$9999,4)="6054"))*'BalanceN-1'!$H$4:$H$9999)+SUMPRODUCT(((LEFT('BalanceN-1'!$A$4:$A$9999,4)="6054"))*'BalanceN-1'!$G$4:$G$9999) -> 2179626 | I29: 0.8274249802
E30: Fournitures de bureau non stockables | G30: =-SUMPRODUCT(((LEFT(BalanceN!$A$4:$A$9999,4)="6055"))*BalanceN!$H$4:$H$9999)+SUMPRODUCT(((LEFT(BalanceN!$A$4:$A$9999,4)="6055"))*BalanceN!$G$4:$G$9999) -> 4273500 | H30: =-SUMPRODUCT(((LEFT('BalanceN-1'!$A$4:$A$9999,4)="6055"))*'BalanceN-1'!$H$4:$H$9999)+SUMPRODUCT(((LEFT('BalanceN-1'!$A$4:$A$9999,4)="6055"))*'BalanceN-1'!$G$4:$G$9999) -> 5034950 | I30: -0.1512328822
E31: Petit matériel et outillages | G31: =-SUMPRODUCT(((LEFT(BalanceN!$A$4:$A$9999,4)="6056"))*BalanceN!$H$4:$H$9999)+SUMPRODUCT(((LEFT(BalanceN!$A$4:$A$9999,4)="6056"))*BalanceN!$G$4:$G$9999) -> 13718052 | H31: =-SUMPRODUCT(((LEFT('BalanceN-1'!$A$4:$A$9999,4)="6056"))*'BalanceN-1'!$H$4:$H$9999)+SUMPRODUCT(((LEFT('BalanceN-1'!$A$4:$A$9999,4)="6056"))*'BalanceN-1'!$G$4:$G$9999) -> 11441377 | I31: 0.1989861011
E32: Achats études, prestations de services, de travaux matériels et équipements | G32: =-SUMPRODUCT(((LEFT(BalanceN!$A$4:$A$9999,4)="6057")+(LEFT(BalanceN!$A$4:$A$9999,4)="6058"))*BalanceN!$H$4:$H$9999)+SUMPRODUCT(((LEFT(BalanceN!$A$4:$A$9999,4)="6057")+(LEFT(BalanceN!$A$4:$A$9999,4)="6058"))*BalanceN!$G$4:$G$9999) -> 12000 | H32: =-SUMPRODUCT(((LEFT('BalanceN-1'!$A$4:$A$9999,4)="6057")+(LEFT('BalanceN-1'!$A$4:$A$9999,4)="6058"))*'BalanceN-1'!$H$4:$H$9999)+SUMPRODUCT(((LEFT('BalanceN-1'!$A$4:$A$9999,4)="6057")+(LEFT('BalanceN-1'!$A$4:$A$9999,4)="6058"))*'BalanceN-1'!$G$4:$G$9999) -> 925025 | I32: -0.9870273776
E33: Achats d'emballages | G33: =-SUMPRODUCT(((LEFT(BalanceN!$A$4:$A$9999,3)="608")-(LEFT(BalanceN!$A$4:$A$9999,4)="6085")-(LEFT(BalanceN!$A$4:$A$9999,4)="6089"))*BalanceN!$H$4:$H$9999)+SUMPRODUCT(((LEFT(BalanceN!$A$4:$A$9999,3)="608")-(LEFT(BalanceN!$A$4:$A$9999,4)="6085")-(LEFT(BalanceN!$A$4:$A$9999,4)="6089"))*BalanceN!$G$4:$G$9999) -> 95566657 | H33: =-SUMPRODUCT(((LEFT('BalanceN-1'!$A$4:$A$9999,3)="608")-(LEFT('BalanceN-1'!$A$4:$A$9999,4)="6085")-(LEFT('BalanceN-1'!$A$4:$A$9999,4)="6089"))*'BalanceN-1'!$H$4:$H$9999)+SUMPRODUCT(((LEFT('BalanceN-1'!$A$4:$A$9999,3)="608")-(LEFT('BalanceN-1'!$A$4:$A$9999,4)="6085")-(LEFT('BalanceN-1'!$A$4:$A$9999,4)="6089"))*'BalanceN-1'!$G$4:$G$9999) -> 101292095 | I33: -0.05652403576
E34: Frais sur achats | G34: =-SUMPRODUCT(((LEFT(BalanceN!$A$4:$A$9999,4)="6085"))*BalanceN!$H$4:$H$9999)+SUMPRODUCT(((LEFT(BalanceN!$A$4:$A$9999,4)="6085"))*BalanceN!$G$4:$G$9999) -> 0 | H34: =-SUMPRODUCT(((LEFT('BalanceN-1'!$A$4:$A$9999,4)="6085"))*'BalanceN-1'!$H$4:$H$9999)+SUMPRODUCT(((LEFT('BalanceN-1'!$A$4:$A$9999,4)="6085"))*'BalanceN-1'!$G$4:$G$9999) -> 0 | I34: -
E35: Remises rabais, remises et ristournes | G35: =-(-SUMPRODUCT(((LEFT(BalanceN!$A$4:$A$9999,4)="6049")+(LEFT(BalanceN!$A$4:$A$9999,4)="6059")+(LEFT(BalanceN!$A$4:$A$9999,4)="6089"))*BalanceN!$G$4:$G$9999)+SUMPRODUCT(((LEFT(BalanceN!$A$4:$A$9999,4)="6049")+(LEFT(BalanceN!$A$4:$A$9999,4)="6059")+(LEFT(BalanceN!$A$4:$A$9999,4)="6089"))*BalanceN!$H$4:$H$9999)) -> 0 | H35: =-(-SUMPRODUCT(((LEFT('BalanceN-1'!$A$4:$A$9999,4)="6049")+(LEFT('BalanceN-1'!$A$4:$A$9999,4)="6059")+(LEFT('BalanceN-1'!$A$4:$A$9999,4)="6089"))*'BalanceN-1'!$G$4:$G$9999)+SUMPRODUCT(((LEFT('BalanceN-1'!$A$4:$A$9999,4)="6049")+(LEFT('BalanceN-1'!$A$4:$A$9999,4)="6059")+(LEFT('BalanceN-1'!$A$4:$A$9999,4)="6089"))*'BalanceN-1'!$H$4:$H$9999)) -> 0 | I35: -
E36: Total des autres achats | G36: =SUM(G19:G35) -> 158266959 | H36: =SUM(H19:H35) -> 161120517
E37: TOTAL GENERAL | G37: =G12+G18+G36 -> 1161570651 | H37: =H12+H18+H36 -> 1115705989
E39: COMMENTAIRES

Sheet NOTE 23
A1: =IF(G12>0,1,0) -> 1 | E1: NOTE 23 : TRANSPORTS
E3: Désignation entité:……………………………………. | F3: =INFORMATIONS!B10 -> SAM CONSEILS | H3: Exercice clos au: | I3: =INFORMATIONS!D31 -> 2018-12-31
E4: Numéro d'identification:……………………………….. | F4: =INFORMATIONS!B24 -> 00084404X | H4: Durée (en mois): | I4: =INFORMATIONS!F34 -> 12
E6: Libellés | G6: Année N | H6: Année N-1 | I6: Variation en %
E7: Transports sur ventes | G7: =-SUMPRODUCT(((LEFT(BalanceN!$A$4:$A$9999,2)="612"))*BalanceN!$H$4:$H$9999)+SUMPRODUCT(((LEFT(BalanceN!$A$4:$A$9999,3)="612"))*BalanceN!$G$4:$G$9999) -> 323526071 | H7: =-SUMPRODUCT(((LEFT('BalanceN-1'!$A$4:$A$9999,2)="612"))*'BalanceN-1'!$H$4:$H$9999)+SUMPRODUCT(((LEFT('BalanceN-1'!$A$4:$A$9999,3)="612"))*'BalanceN-1'!$G$4:$G$9999) -> 327994361 | I7: =IF(H7=0,"-",(G7-H7)/H7) -> -0.01362306957
E8: Transports pour le compte de tiers | G8: =-SUMPRODUCT(((LEFT(BalanceN!$A$4:$A$9999,2)="613"))*BalanceN!$H$4:$H$9999)+SUMPRODUCT(((LEFT(BalanceN!$A$4:$A$9999,3)="613"))*BalanceN!$G$4:$G$9999) -> 0 | H8: =-SUMPRODUCT(((LEFT('BalanceN-1'!$A$4:$A$9999,2)="613"))*'BalanceN-1'!$H$4:$H$9999)+SUMPRODUCT(((LEFT('BalanceN-1'!$A$4:$A$9999,3)="613"))*'BalanceN-1'!$G$4:$G$9999) -> 0 | I8: -
E9: Transport du personnel | G9: =-SUMPRODUCT(((LEFT(BalanceN!$A$4:$A$9999,2)="614"))*BalanceN!$H$4:$H$9999)+SUMPRODUCT(((LEFT(BalanceN!$A$4:$A$9999,3)="614"))*BalanceN!$G$4:$G$9999) -> 0 | H9: =-SUMPRODUCT(((LEFT('BalanceN-1'!$A$4:$A$9999,2)="614"))*'BalanceN-1'!$H$4:$H$9999)+SUMPRODUCT(((LEFT('BalanceN-1'!$A$4:$A$9999,3)="614"))*'BalanceN-1'!$G$4:$G$9999) -> 0 | I9: -
E10: Transports de plis | G10: =-SUMPRODUCT(((LEFT(BalanceN!$A$4:$A$9999,2)="616"))*BalanceN!$H$4:$H$9999)+SUMPRODUCT(((LEFT(BalanceN!$A$4:$A$9999,3)="616"))*BalanceN!$G$4:$G$9999) -> 0 | H10: =-SUMPRODUCT(((LEFT('BalanceN-1'!$A$4:$A$9999,2)="616"))*'BalanceN-1'!$H$4:$H$9999)+SUMPRODUCT(((LEFT('BalanceN-1'!$A$4:$A$9999,3)="616"))*'BalanceN-1'!$G$4:$G$9999) -> 86870 | I10: -1
E11: Autres transports | G11: =-SUMPRODUCT(((LEFT(BalanceN!$A$4:$A$9999,2)="618"))*BalanceN!$H$4:$H$9999)+SUMPRODUCT(((LEFT(BalanceN!$A$4:$A$9999,3)="618"))*BalanceN!$G$4:$G$9999) -> 5620601 | H11: =-SUMPRODUCT(((LEFT('BalanceN-1'!$A$4:$A$9999,2)="618"))*'BalanceN-1'!$H$4:$H$9999)+SUMPRODUCT(((LEFT('BalanceN-1'!$A$4:$A$9999,3)="618"))*'BalanceN-1'!$G$4:$G$9999) -> 992325 | I11: 4.664072758
E12: TOTAL | G12: =SUM(G7:G11) -> 329146672 | H12: =SUM(H7:H11) -> 329073556
E14: COMMENTAIRES

Sheet NOTE 24
A1: =IF(G21>0,1,0) -> 1 | E1: NOTE 24 : SERVICES EXTERIEURS
E3: Désignation entité:……………………………………. | F3: =INFORMATIONS!B10 -> SAM CONSEILS | H3: Exercice clos au: | I3: =INFORMATIONS!D31 -> 2018-12-31
E4: Numéro d'identification:……………………………….. | F4: =INFORMATIONS!B24 -> 00084404X | H4: Durée (en mois): | I4: =INFORMATIONS!F34 -> 12
E6: Libellés | G6: Année N | H6: Année N-1 | I6: Variation en %
E7: Sous-traitance générale | G7: =-SUMPRODUCT(((LEFT(BalanceN!$A$4:$A$9999,3)="621"))*BalanceN!$H$4:$H$9999)+SUMPRODUCT(((LEFT(BalanceN!$A$4:$A$9999,3)="621"))*BalanceN!$G$4:$G$9999) -> 0 | H7: =-SUMPRODUCT(((LEFT('BalanceN-1'!$A$4:$A$9999,3)="621"))*'BalanceN-1'!$H$4:$H$9999)+SUMPRODUCT(((LEFT('BalanceN-1'!$A$4:$A$9999,3)="621"))*'BalanceN-1'!$G$4:$G$9999) -> 0 | I7: =IF(H7=0,"-",(G7-H7)/H7) -> -
E8: Locations et charges locatives | G8: =-SUMPRODUCT(((LEFT(BalanceN!$A$4:$A$9999,3)="622"))*BalanceN!$H$4:$H$9999)+SUMPRODUCT(((LEFT(BalanceN!$A$4:$A$9999,3)="622"))*BalanceN!$G$4:$G$9999) -> 20807898 | H8: =-SUMPRODUCT(((LEFT('BalanceN-1'!$A$4:$A$9999,3)="622"))*'BalanceN-1'!$H$4:$H$9999)+SUMPRODUCT(((LEFT('BalanceN-1'!$A$4:$A$9999,3)="622"))*'BalanceN-1'!$G$4:$G$9999) -> 23133759 | I8: =IF(H8=0,"-",(G8-H8)/H8) -> -0.1005396918
E9: Redevances de location acquisition | G9: =-SUMPRODUCT(((LEFT(BalanceN!$A$4:$A$9999,3)="623"))*BalanceN!$H$4:$H$9999)+SUMPRODUCT(((LEFT(BalanceN!$A$4:$A$9999,3)="623"))*BalanceN!$G$4:$G$9999) -> 0 | H9: =-SUMPRODUCT(((LEFT('BalanceN-1'!$A$4:$A$9999,3)="623"))*'BalanceN-1'!$H$4:$H$9999)+SUMPRODUCT(((LEFT('BalanceN-1'!$A$4:$A$9999,3)="623"))*'BalanceN-1'!$G$4:$G$9999) -> 0 | I9: -
E10: Entretien, réparations et maintenance | G10: =-SUMPRODUCT(((LEFT(BalanceN!$A$4:$A$9999,3)="624"))*BalanceN!$H$4:$H$9999)+SUMPRODUCT(((LEFT(BalanceN!$A$4:$A$9999,3)="624"))*BalanceN!$G$4:$G$9999) -> 12018564 | H10: =-SUMPRODUCT(((LEFT('BalanceN-1'!$A$4:$A$9999,3)="624"))*'BalanceN-1'!$H$4:$H$9999)+SUMPRODUCT(((LEFT('BalanceN-1'!$A$4:$A$9999,3)="624"))*'BalanceN-1'!$G$4:$G$9999) -> 9706145 | I10: 0.2382427833
E11: Primes d'assurance | G11: =-SUMPRODUCT(((LEFT(BalanceN!$A$4:$A$9999,3)="625"))*BalanceN!$H$4:$H$9999)+SUMPRODUCT(((LEFT(BalanceN!$A$4:$A$9999,3)="625"))*BalanceN!$G$4:$G$9999) -> 2461776 | H11: =-SUMPRODUCT(((LEFT('BalanceN-1'!$A$4:$A$9999,3)="625"))*'BalanceN-1'!$H$4:$H$9999)+SUMPRODUCT(((LEFT('BalanceN-1'!$A$4:$A$9999,3)="625"))*'BalanceN-1'!$G$4:$G$9999) -> 2440484 | I11: 0.008724498911
E12: Etudes, recherches et documentation | G12: =-SUMPRODUCT(((LEFT(BalanceN!$A$4:$A$9999,3)="626"))*BalanceN!$H$4:$H$9999)+SUMPRODUCT(((LEFT(BalanceN!$A$4:$A$9999,3)="626"))*BalanceN!$G$4:$G$9999) -> 0 | H12: =-SUMPRODUCT(((LEFT('BalanceN-1'!$A$4:$A$9999,3)="626"))*'BalanceN-1'!$H$4:$H$9999)+SUMPRODUCT(((LEFT('BalanceN-1'!$A$4:$A$9999,3)="626"))*'BalanceN-1'!$G$4:$G$9999) -> 30000 | I12: -1
E13: Publicité, publications, relations publiques | G13: =-SUMPRODUCT(((LEFT(BalanceN!$A$4:$A$9999,3)="627"))*BalanceN!$H$4:$H$9999)+SUMPRODUCT(((LEFT(BalanceN!$A$4:$A$9999,3)="627"))*BalanceN!$G$4:$G$9999) -> 0 | H13: =-SUMPRODUCT(((LEFT('BalanceN-1'!$A$4:$A$9999,3)="627"))*'BalanceN-1'!$H$4:$H$9999)+SUMPRODUCT(((LEFT('BalanceN-1'!$A$4:$A$9999,3)="627"))*'BalanceN-1'!$G$4:$G$9999) -> 200000 | I13: -1
E14: Frais de télécommunications | G14: =-SUMPRODUCT(((LEFT(BalanceN!$A$4:$A$9999,3)="628"))*BalanceN!$H$4:$H$9999)+SUMPRODUCT(((LEFT(BalanceN!$A$4:$A$9999,3)="628"))*BalanceN!$G$4:$G$9999) -> 7316650 | H14: =-SUMPRODUCT(((LEFT('BalanceN-1'!$A$4:$A$9999,3)="628"))*'BalanceN-1'!$H$4:$H$9999)+SUMPRODUCT(((LEFT('BalanceN-1'!$A$4:$A$9999,3)="628"))*'BalanceN-1'!$G$4:$G$9999) -> 5223250 | I14: 0.4007849519
E15: Frais bancaires | G15: =-SUMPRODUCT(((LEFT(BalanceN!$A$4:$A$9999,3)="631"))*BalanceN!$H$4:$H$9999)+SUMPRODUCT(((LEFT(BalanceN!$A$4:$A$9999,3)="631"))*BalanceN!$G$4:$G$9999) -> 8430066 | H15: =-SUMPRODUCT(((LEFT('BalanceN-1'!$A$4:$A$9999,3)="631"))*'BalanceN-1'!$H$4:$H$9999)+SUMPRODUCT(((LEFT('BalanceN-1'!$A$4:$A$9999,3)="631"))*'BalanceN-1'!$G$4:$G$9999) -> 12728046 | I15: -0.3376779122
E16: Rémunérations d'intermédiaires et de conseils | G16: =-SUMPRODUCT(((LEFT(BalanceN!$A$4:$A$9999,3)="632"))*BalanceN!$H$4:$H$9999)+SUMPRODUCT(((LEFT(BalanceN!$A$4:$A$9999,3)="632"))*BalanceN!$G$4:$G$9999) -> 21254575 | H16: =-SUMPRODUCT(((LEFT('BalanceN-1'!$A$4:$A$9999,3)="632"))*'BalanceN-1'!$H$4:$H$9999)+SUMPRODUCT(((LEFT('BalanceN-1'!$A$4:$A$9999,3)="632"))*'BalanceN-1'!$G$4:$G$9999) -> 7017695 | I16: 2.028711707
E17: Frais de formation du personnel | G17: =-SUMPRODUCT(((LEFT(BalanceN!$A$4:$A$9999,3)="633"))*BalanceN!$H$4:$H$9999)+SUMPRODUCT(((LEFT(BalanceN!$A$4:$A$9999,3)="633"))*BalanceN!$G$4:$G$9999) -> 0 | H17: =-SUMPRODUCT(((LEFT('BalanceN-1'!$A$4:$A$9999,3)="633"))*'BalanceN-1'!$H$4:$H$9999)+SUMPRODUCT(((LEFT('BalanceN-1'!$A$4:$A$9999,3)="633"))*'BalanceN-1'!$G$4:$G$9999) -> 0 | I17: -
E18: Redevances pour brevets, licences, logiciels, concessions et droits similaires | G18: =-SUMPRODUCT(((LEFT(BalanceN!$A$4:$A$9999,3)="634"))*BalanceN!$H$4:$H$9999)+SUMPRODUCT(((LEFT(BalanceN!$A$4:$A$9999,3)="634"))*BalanceN!$G$4:$G$9999) -> 48000 | H18: =-SUMPRODUCT(((LEFT('BalanceN-1'!$A$4:$A$9999,3)="634"))*'BalanceN-1'!$H$4:$H$9999)+SUMPRODUCT(((LEFT('BalanceN-1'!$A$4:$A$9999,3)="634"))*'BalanceN-1'!$G$4:$G$9999) -> 0 | I18: -
E19: Cotisations | G19: =-SUMPRODUCT(((LEFT(BalanceN!$A$4:$A$9999,3)="635"))*BalanceN!$H$4:$H$9999)+SUMPRODUCT(((LEFT(BalanceN!$A$4:$A$9999,3)="635"))*BalanceN!$G$4:$G$9999) -> 200000 | H19: =-SUMPRODUCT(((LEFT('BalanceN-1'!$A$4:$A$9999,3)="635"))*'BalanceN-1'!$H$4:$H$9999)+SUMPRODUCT(((LEFT('BalanceN-1'!$A$4:$A$9999,3)="635"))*'BalanceN-1'!$G$4:$G$9999) -> 290000 | I19: -0.3103448276
E20: Autres charges externes | G20: =-SUMPRODUCT(((LEFT(BalanceN!$A$4:$A$9999,3)="637")+(LEFT(BalanceN!$A$4:$A$9999,3)="638"))*BalanceN!$H$4:$H$9999)+SUMPRODUCT(((LEFT(BalanceN!$A$4:$A$9999,3)="637")+(LEFT(BalanceN!$A$4:$A$9999,3)="638"))*BalanceN!$G$4:$G$9999) -> 61800 | H20: =-SUMPRODUCT(((LEFT('BalanceN-1'!$A$4:$A$9999,3)="637")+(LEFT('BalanceN-1'!$A$4:$A$9999,3)="638"))*'BalanceN-1'!$H$4:$H$9999)+SUMPRODUCT(((LEFT('BalanceN-1'!$A$4:$A$9999,3)="637")+(LEFT('BalanceN-1'!$A$4:$A$9999,3)="638"))*'BalanceN-1'!$G$4:$G$9999) -> 18000 | I20: 2.433333333
E21: TOTAL | G21: =SUM(G7:G20) -> 72599329 | H21: =SUM(H7:H20) -> 60787379
E23: COMMENTAIRES

Sheet NOTE 25
A1: =IF(G12>0,1,0) -> 1 | E1: NOTE 25 : IMPOTS ET TAXES
E3: Désignation entité:……………………………………. | F3: =INFORMATIONS!B10 -> SAM CONSEILS | H3: Exercice clos au: | I3: =INFORMATIONS!D31 -> 2018-12-31
E4: Numéro d'identification:……………………………….. | F4: =INFORMATIONS!B24 -> 00084404X | H4: Durée (en mois): | I4: =INFORMATIONS!F34 -> 12
E6: Libellés | G6: Année N | H6: Année N-1 | I6: Variation en %
E7: Impôts et taxes directs | G7: =-SUMPRODUCT(((LEFT(BalanceN!$A$4:$A$9999,3)="641"))*BalanceN!$H$4:$H$9999)+SUMPRODUCT(((LEFT(BalanceN!$A$4:$A$9999,3)="641"))*BalanceN!$G$4:$G$9999) -> 0 | H7: =-SUMPRODUCT(((LEFT('BalanceN-1'!$A$4:$A$9999,3)="641"))*'BalanceN-1'!$H$4:$H$9999)+SUMPRODUCT(((LEFT('BalanceN-1'!$A$4:$A$9999,3)="641"))*'BalanceN-1'!$G$4:$G$9999) -> 0 | I7: =IF(H7=0,"-",(G7-H7)/H7) -> -
E8: Impôts et taxes indirects | G8: =-SUMPRODUCT(((LEFT(BalanceN!$A$4:$A$9999,3)="645"))*BalanceN!$H$4:$H$9999)+SUMPRODUCT(((LEFT(BalanceN!$A$4:$A$9999,3)="645"))*BalanceN!$G$4:$G$9999) -> 0 | H8: =-SUMPRODUCT(((LEFT('BalanceN-1'!$A$4:$A$9999,3)="645"))*'BalanceN-1'!$H$4:$H$9999)+SUMPRODUCT(((LEFT('BalanceN-1'!$A$4:$A$9999,3)="645"))*'BalanceN-1'!$G$4:$G$9999) -> 0 | I8: -
E9: Droits d'enregistrement | G9: =-SUMPRODUCT(((LEFT(BalanceN!$A$4:$A$9999,3)="646"))*BalanceN!$H$4:$H$9999)+SUMPRODUCT(((LEFT(BalanceN!$A$4:$A$9999,3)="646"))*BalanceN!$G$4:$G$9999) -> 3045200 | H9: =-SUMPRODUCT(((LEFT('BalanceN-1'!$A$4:$A$9999,3)="646"))*'BalanceN-1'!$H$4:$H$9999)+SUMPRODUCT(((LEFT('BalanceN-1'!$A$4:$A$9999,3)="646"))*'BalanceN-1'!$G$4:$G$9999) -> 35000 | I9: 86.00571429
